Workbook

Sheet Redacted
B3: Redacted Version
B6: Redacted Version

Sheet Run calculations (R)
A1: Snoqualmie Falls annual generation estimate
A2: Daily inflow-to-MWh calculations
B5: Enter inflow year: | C5: 2008 | D5: or
A6: lookup row | C6: Total site inflow (average cfs) | D6: Minimum flow over the Falls (average cfs) | E6: Flow available to facility (average cfs) | F6: Flow to U1-U4 (average cfs) | G6: Flow to U5 (average cfs) | H6: Flow to U6 (average cfs) | I6: Flow to U7 (average cfs) | J6: unusable flow (average cfs) | K6: U1-U4 output (average MW) | L6: U5 output (average MW) | M6: U6 output (average MW) | N6: U7 output (average MW) | O6: PH 1 output (MWh) | P6: PH 2 output (MWh) | Q6: Total Snoqualmie output (MWh)
A7: 2 | B7: 2013-01-01 | C7: 1340 | D7: 115 | E7: 1225 | F7: 0 | G7: 215 | H7: 310 | I7: 700 | J7: 0 | K7: XXXX | L7: XXXX | M7: XXXX | N7: XXXX | O7: XXXX | P7: XXXX | Q7: XXXX
A8: 3 | B8: 2013-01-02 | C8: 1310 | D8: 115 | E8: 1195 | F8: 0 | G8: 215 | H8: 280 | I8: 700 | J8: 0 | K8: XXXX | L8: XXXX | M8: XXXX | N8: XXXX | O8: XXXX | P8: XXXX | Q8: XXXX
A9: 4 | B9: 2013-01-03 | C9: 1360 | D9: 115 | E9: 1245 | F9: 0 | G9: 215 | H9: 330 | I9: 700 | J9: 0 | K9: XXXX | L9: XXXX | M9: XXXX | N9: XXXX | O9: XXXX | P9: XXXX | Q9: XXXX
A10: 5 | B10: 2013-01-04 | C10: 1470 | D10: 115 | E10: 1355 | F10: 0 | G10: 215 | H10: 440 | I10: 700 | J10: 0 | K10: XXXX | L10: XXXX | M10: XXXX | N10: XXXX | O10: XXXX | P10: XXXX | Q10: XXXX
A11: 6 | B11: 2013-01-05 | C11: 1570 | D11: 115 | E11: 1455 | F11: 0 | G11: 215 | H11: 540 | I11: 700 | J11: 0 | K11: XXXX | L11: XXXX | M11: XXXX | N11: XXXX | O11: XXXX | P11: XXXX | Q11: XXXX
A12: 7 | B12: 2013-01-06 | C12: 1450 | D12: 115 | E12: 1335 | F12: 0 | G12: 215 | H12: 420 | I12: 700 | J12: 0 | K12: XXXX | L12: XXXX | M12: XXXX | N12: XXXX | O12: XXXX | P12: XXXX | Q12: XXXX
A13: 8 | B13: 2013-01-07 | C13: 1330 | D13: 115 | E13: 1215 | F13: 0 | G13: 215 | H13: 300 | I13: 700 | J13: 0 | K13: XXXX | L13: XXXX | M13: XXXX | N13: XXXX | O13: XXXX | P13: XXXX | Q13: XXXX
A14: 9 | B14: 2013-01-08 | C14: 1270 | D14: 115 | E14: 1155 | F14: 0 | G14: 215 | H14: 240 | I14: 700 | J14: 0 | K14: XXXX | L14: XXXX | M14: XXXX | N14: XXXX | O14: XXXX | P14: XXXX | Q14: XXXX
A15: 10 | B15: 2013-01-09 | C15: 1250 | D15: 115 | E15: 1135 | F15: 168.75 | G15: 310 | H15: 600 | I15: 0 | J15: 56.25 | K15: XXXX | L15: XXXX | M15: XXXX | N15: XXXX | O15: XXXX | P15: XXXX | Q15: XXXX
A16: 11 | B16: 2013-01-10 | C16: 1560 | D16: 115 | E16: 1445 | F16: 0 | G16: 215 | H16: 530 | I16: 700 | J16: 0 | K16: XXXX | L16: XXXX | M16: XXXX | N16: XXXX | O16: XXXX | P16: XXXX | Q16: XXXX
A17: 12 | B17: 2013-01-11 | C17: 3280 | D17: 115 | E17: 3165 | F17: 240 | G17: 300 | H17: 600 | I17: 1280 | J17: 745 | K17: XXXX | L17: XXXX | M17: XXXX | N17: XXXX | O17: XXXX | P17: XXXX | Q17: XXXX
A18: 13 | B18: 2013-01-12 | C18: 3020 | D18: 115 | E18: 2905 | F18: 240 | G18: 300 | H18: 600 | I18: 1280 | J18: 485 | K18: XXXX | L18: XXXX | M18: XXXX | N18: XXXX | O18: XXXX | P18: XXXX | Q18: XXXX
A19: 14 | B19: 2013-01-13 | C19: 3030 | D19: 115 | E19: 2915 | F19: 240 | G19: 300 | H19: 600 | I19: 1280 | J19: 495 | K19: XXXX | L19: XXXX | M19: XXXX | N19: XXXX | O19: XXXX | P19: XXXX | Q19: XXXX
A20: 15 | B20: 2013-01-14 | C20: 2600 | D20: 115 | E20: 2485 | F20: 228.75 | G20: 300 | H20: 600 | I20: 1280 | J20: 76.25 | K20: XXXX | L20: XXXX | M20: XXXX | N20: XXXX | O20: XXXX | P20: XXXX | Q20: XXXX
A21: 16 | B21: 2013-01-15 | C21: 3150 | D21: 115 | E21: 3035 | F21: 240 | G21: 300 | H21: 600 | I21: 1280 | J21: 615 | K21: XXXX | L21: XXXX | M21: XXXX | N21: XXXX | O21: XXXX | P21: XXXX | Q21: XXXX
A22: 17 | B22: 2013-01-16 | C22: 2300 | D22: 115 | E22: 2185 | F22: 3.75 | G22: 300 | H22: 600 | I22: 1280 | J22: 1.25 | K22: XXXX | L22: XXXX | M22: XXXX | N22: XXXX | O22: XXXX | P22: XXXX | Q22: XXXX
A23: 18 | B23: 2013-01-17 | C23: 1900 | D23: 115 | E23: 1785 | F23: 0 | G23: 215 | H23: 485 | I23: 1085 | J23: 0 | K23: XXXX | L23: XXXX | M23: XXXX | N23: XXXX | O23: XXXX | P23: XXXX | Q23: XXXX
A24: 19 | B24: 2013-01-18 | C24: 1670 | D24: 115 | E24: 1555 | F24: 0 | G24: 215 | H24: 370 | I24: 970 | J24: 0 | K24: XXXX | L24: XXXX | M24: XXXX | N24: XXXX | O24: XXXX | P24: XXXX | Q24: XXXX
A25: 20 | B25: 2013-01-19 | C25: 1600 | D25: 115 | E25: 1485 | F25: 0 | G25: 215 | H25: 570 | I25: 700 | J25: 0 | K25: XXXX | L25: XXXX | M25: XXXX | N25: XXXX | O25: XXXX | P25: XXXX | Q25: XXXX
A26: 21 | B26: 2013-01-20 | C26: 1600 | D26: 115 | E26: 1485 | F26: 0 | G26: 215 | H26: 570 | I26: 700 | J26: 0 | K26: XXXX | L26: XXXX | M26: XXXX | N26: XXXX | O26: XXXX | P26: XXXX | Q26: XXXX
A27: 22 | B27: 2013-01-21 | C27: 1420 | D27: 115 | E27: 1305 | F27: 0 | G27: 215 | H27: 390 | I27: 700 | J27: 0 | K27: XXXX | L27: XXXX | M27: XXXX | N27: XXXX | O27: XXXX | P27: XXXX | Q27: XXXX
A28: 23 | B28: 2013-01-22 | C28: 1280 | D28: 115 | E28: 1165 | F28: 0 | G28: 215 | H28: 250 | I28: 700 | J28: 0 | K28: XXXX | L28: XXXX | M28: XXXX | N28: XXXX | O28: XXXX | P28: XXXX | Q28: XXXX
A29: 24 | B29: 2013-01-23 | C29: 1210 | D29: 115 | E29: 1095 | F29: 185 | G29: 310 | H29: 600 | I29: 0 | J29: 0 | K29: XXXX | L29: XXXX | M29: XXXX | N29: XXXX | O29: XXXX | P29: XXXX | Q29: XXXX
A30: 25 | B30: 2013-01-24 | C30: 1160 | D30: 115 | E30: 1045 | F30: 135 | G30: 310 | H30: 600 | I30: 0 | J30: 0 | K30: XXXX | L30: XXXX | M30: XXXX | N30: XXXX | O30: XXXX | P30: XXXX | Q30: XXXX
A31: 26 | B31: 2013-01-25 | C31: 1090 | D31: 115 | E31: 975 | F31: 65 | G31: 310 | H31: 600 | I31: 0 | J31: 0 | K31: XXXX | L31: XXXX | M31: XXXX | N31: XXXX | O31: XXXX | P31: XXXX | Q31: XXXX
A32: 27 | B32: 2013-01-26 | C32: 1070 | D32: 115 | E32: 955 | F32: 45 | G32: 310 | H32: 600 | I32: 0 | J32: 0 | K32: XXXX | L32: XXXX | M32: XXXX | N32: XXXX | O32: XXXX | P32: XXXX | Q32: XXXX
A33: 28 | B33: 2013-01-27 | C33: 1080 | D33: 115 | E33: 965 | F33: 55 | G33: 310 | H33: 600 | I33: 0 | J33: 0 | K33: XXXX | L33: XXXX | M33: XXXX | N33: XXXX | O33: XXXX | P33: XXXX | Q33: XXXX
A34: 29 | B34: 2013-01-28 | C34: 1030 | D34: 115 | E34: 915 | F34: 5 | G34: 310 | H34: 600 | I34: 0 | J34: 0 | K34: XXXX | L34: XXXX | M34: XXXX | N34: XXXX | O34: XXXX | P34: XXXX | Q34: XXXX
A35: 30 | B35: 2013-01-29 | C35: 1070 | D35: 115 | E35: 955 | F35: 45 | G35: 310 | H35: 600 | I35: 0 | J35: 0 | K35: XXXX | L35: XXXX | M35: XXXX | N35: XXXX | O35: XXXX | P35: XXXX | Q35: XXXX
A36: 31 | B36: 2013-01-30 | C36: 1080 | D36: 115 | E36: 965 | F36: 55 | G36: 310 | H36: 600 | I36: 0 | J36: 0 | K36: XXXX | L36: XXXX | M36: XXXX | N36: XXXX | O36: XXXX | P36: XXXX | Q36: XXXX
A37: 32 | B37: 2013-01-31 | C37: 1190 | D37: 115 | E37: 1075 | F37: 165 | G37: 310 | H37: 600 | I37: 0 | J37: 0 | K37: XXXX | L37: XXXX | M37: XXXX | N37: XXXX | O37: XXXX | P37: XXXX | Q37: XXXX
A38: 33 | B38: 2013-02-01 | C38: 1250 | D38: 115 | E38: 1135 | F38: 225 | G38: 310 | H38: 600 | I38: 0 | J38: 0 | K38: XXXX | L38: XXXX | M38: XXXX | N38: XXXX | O38: XXXX | P38: XXXX | Q38: XXXX
A39: 34 | B39: 2013-02-02 | C39: 1190 | D39: 115 | E39: 1075 | F39: 165 | G39: 310 | H39: 600 | I39: 0 | J39: 0 | K39: XXXX | L39: XXXX | M39: XXXX | N39: XXXX | O39: XXXX | P39: XXXX | Q39: XXXX
A40: 35 | B40: 2013-02-03 | C40: 1090 | D40: 115 | E40: 975 | F40: 65 | G40: 310 | H40: 600 | I40: 0 | J40: 0 | K40: XXXX | L40: XXXX | M40: XXXX | N40: XXXX | O40: XXXX | P40: XXXX | Q40: XXXX
A41: 36 | B41: 2013-02-04 | C41: 1020 | D41: 115 | E41: 905 | F41: 0 | G41: 305 | H41: 600 | I41: 0 | J41: 0 | K41: XXXX | L41: XXXX | M41: XXXX | N41: XXXX | O41: XXXX | P41: XXXX | Q41: XXXX
A42: 37 | B42: 2013-02-05 | C42: 1100 | D42: 115 | E42: 985 | F42: 75 | G42: 310 | H42: 600 | I42: 0 | J42: 0 | K42: XXXX | L42: XXXX | M42: XXXX | N42: XXXX | O42: XXXX | P42: XXXX | Q42: XXXX
A43: 38 | B43: 2013-02-06 | C43: 1200 | D43: 115 | E43: 1085 | F43: 175 | G43: 310 | H43: 600 | I43: 0 | J43: 0 | K43: XXXX | L43: XXXX | M43: XXXX | N43: XXXX | O43: XXXX | P43: XXXX | Q43: XXXX
A44: 39 | B44: 2013-02-07 | C44: 1330 | D44: 115 | E44: 1215 | F44: 0 | G44: 215 | H44: 300 | I44: 700 | J44: 0 | K44: XXXX | L44: XXXX | M44: XXXX | N44: XXXX | O44: XXXX | P44: XXXX | Q44: XXXX
A45: 40 | B45: 2013-02-08 | C45: 1750 | D45: 115 | E45: 1635 | F45: 0 | G45: 215 | H45: 410 | I45: 1010 | J45: 0 | K45: XXXX | L45: XXXX | M45: XXXX | N45: XXXX | O45: XXXX | P45: XXXX | Q45: XXXX
A46: 41 | B46: 2013-02-09 | C46: 3210 | D46: 115 | E46: 3095 | F46: 320 | G46: 300 | H46: 600 | I46: 1280 | J46: 595 | K46: XXXX | L46: XXXX | M46: XXXX | N46: XXXX | O46: XXXX | P46: XXXX | Q46: XXXX
A47: 42 | B47: 2013-02-10 | C47: 3800 | D47: 115 | E47: 3685 | F47: 320 | G47: 300 | H47: 600 | I47: 1280 | J47: 1185 | K47: XXXX | L47: XXXX | M47: XXXX | N47: XXXX | O47: XXXX | P47: XXXX | Q47: XXXX
A48: 43 | B48: 2013-02-11 | C48: 4270 | D48: 115 | E48: 4155 | F48: 320 | G48: 300 | H48: 600 | I48: 1280 | J48: 1655 | K48: XXXX | L48: XXXX | M48: XXXX | N48: XXXX | O48: XXXX | P48: XXXX | Q48: XXXX
A49: 44 | B49: 2013-02-12 | C49: 3380 | D49: 115 | E49: 3265 | F49: 320 | G49: 300 | H49: 600 | I49: 1280 | J49: 765 | K49: XXXX | L49: XXXX | M49: XXXX | N49: XXXX | O49: XXXX | P49: XXXX | Q49: XXXX
A50: 45 | B50: 2013-02-13 | C50: 3530 | D50: 115 | E50: 3415 | F50: 320 | G50: 300 | H50: 600 | I50: 1280 | J50: 915 | K50: XXXX | L50: XXXX | M50: XXXX | N50: XXXX | O50: XXXX | P50: XXXX | Q50: XXXX
A51: 46 | B51: 2013-02-14 | C51: 2740 | D51: 115 | E51: 2625 | F51: 320 | G51: 300 | H51: 600 | I51: 1280 | J51: 125 | K51: XXXX | L51: XXXX | M51: XXXX | N51: XXXX | O51: XXXX | P51: XXXX | Q51: XXXX
A52: 47 | B52: 2013-02-15 | C52: 2220 | D52: 115 | E52: 2105 | F52: 0 | G52: 260 | H52: 600 | I52: 1245 | J52: 0 | K52: XXXX | L52: XXXX | M52: XXXX | N52: XXXX | O52: XXXX | P52: XXXX | Q52: XXXX
A53: 48 | B53: 2013-02-16 | C53: 2300 | D53: 115 | E53: 2185 | F53: 5 | G53: 300 | H53: 600 | I53: 1280 | J53: 0 | K53: XXXX | L53: XXXX | M53: XXXX | N53: XXXX | O53: XXXX | P53: XXXX | Q53: XXXX
A54: 49 | B54: 2013-02-17 | C54: 2110 | D54: 115 | E54: 1995 | F54: 0 | G54: 215 | H54: 590 | I54: 1190 | J54: 0 | K54: XXXX | L54: XXXX | M54: XXXX | N54: XXXX | O54: XXXX | P54: XXXX | Q54: XXXX
A55: 50 | B55: 2013-02-18 | C55: 1900 | D55: 115 | E55: 1785 | F55: 0 | G55: 215 | H55: 485 | I55: 1085 | J55: 0 | K55: XXXX | L55: XXXX | M55: XXXX | N55: XXXX | O55: XXXX | P55: XXXX | Q55: XXXX
A56: 51 | B56: 2013-02-19 | C56: 1910 | D56: 115 | E56: 1795 | F56: 0 | G56: 215 | H56: 490 | I56: 1090 | J56: 0 | K56: XXXX | L56: XXXX | M56: XXXX | N56: XXXX | O56: XXXX | P56: XXXX | Q56: XXXX
A57: 52 | B57: 2013-02-20 | C57: 1940 | D57: 115 | E57: 1825 | F57: 0 | G57: 215 | H57: 505 | I57: 1105 | J57: 0 | K57: XXXX | L57: XXXX | M57: XXXX | N57: XXXX | O57: XXXX | P57: XXXX | Q57: XXXX
A58: 53 | B58: 2013-02-21 | C58: 1890 | D58: 115 | E58: 1775 | F58: 0 | G58: 215 | H58: 480 | I58: 1080 | J58: 0 | K58: XXXX | L58: XXXX | M58: XXXX | N58: XXXX | O58: XXXX | P58: XXXX | Q58: XXXX
A59: 54 | B59: 2013-02-22 | C59: 1830 | D59: 115 | E59: 1715 | F59: 0 | G59: 215 | H59: 450 | I59: 1050 | J59: 0 | K59: XXXX | L59: XXXX | M59: XXXX | N59: XXXX | O59: XXXX | P59: XXXX | Q59: XXXX
A60: 55 | B60: 2013-02-23 | C60: 1810 | D60: 115 | E60: 1695 | F60: 0 | G60: 215 | H60: 440 | I60: 1040 | J60: 0 | K60: XXXX | L60: XXXX | M60: XXXX | N60: XXXX | O60: XXXX | P60: XXXX | Q60: XXXX
A61: 56 | B61: 2013-02-24 | C61: 1760 | D61: 115 | E61: 1645 | F61: 0 | G61: 215 | H61: 415 | I61: 1015 | J61: 0 | K61: XXXX | L61: XXXX | M61: XXXX | N61: XXXX | O61: XXXX | P61: XXXX | Q61: XXXX
A62: 57 | B62: 2013-02-25 | C62: 1730 | D62: 115 | E62: 1615 | F62: 0 | G62: 215 | H62: 400 | I62: 1000 | J62: 0 | K62: XXXX | L62: XXXX | M62: XXXX | N62: XXXX | O62: XXXX | P62: XXXX | Q62: XXXX
A63: 58 | B63: 2013-02-26 | C63: 1710 | D63: 115 | E63: 1595 | F63: 0 | G63: 215 | H63: 390 | I63: 990 | J63: 0 | K63: XXXX | L63: XXXX | M63: XXXX | N63: XXXX | O63: XXXX | P63: XXXX | Q63: XXXX
A64: 59 | B64: 2013-02-27 | C64: 1730 | D64: 115 | E64: 1615 | F64: 0 | G64: 215 | H64: 400 | I64: 1000 | J64: 0 | K64: XXXX | L64: XXXX | M64: XXXX | N64: XXXX | O64: XXXX | P64: XXXX | Q64: XXXX
A65: 60 | B65: 2013-02-28 | C65: 2080 | D65: 115 | E65: 1965 | F65: 0 | G65: 215 | H65: 575 | I65: 1175 | J65: 0 | K65: XXXX | L65: XXXX | M65: XXXX | N65: XXXX | O65: XXXX | P65: XXXX | Q65: XXXX
A66: 61 | B66: 2013-03-01 | C66: 3870 | D66: 115 | E66: 3755 | F66: 240 | G66: 300 | H66: 600 | I66: 1280 | J66: 1335 | K66: XXXX | L66: XXXX | M66: XXXX | N66: XXXX | O66: XXXX | P66: XXXX | Q66: XXXX
A67: 62 | B67: 2013-03-02 | C67: 3090 | D67: 115 | E67: 2975 | F67: 240 | G67: 300 | H67: 600 | I67: 1280 | J67: 555 | K67: XXXX | L67: XXXX | M67: XXXX | N67: XXXX | O67: XXXX | P67: XXXX | Q67: XXXX
A68: 63 | B68: 2013-03-03 | C68: 2530 | D68: 115 | E68: 2415 | F68: 235 | G68: 300 | H68: 600 | I68: 1280 | J68: 0 | K68: XXXX | L68: XXXX | M68: XXXX | N68: XXXX | O68: XXXX | P68: XXXX | Q68: XXXX
A69: 64 | B69: 2013-03-04 | C69: 2810 | D69: 115 | E69: 2695 | F69: 320 | G69: 300 | H69: 600 | I69: 1280 | J69: 195 | K69: XXXX | L69: XXXX | M69: XXXX | N69: XXXX | O69: XXXX | P69: XXXX | Q69: XXXX
A70: 65 | B70: 2013-03-05 | C70: 2310 | D70: 115 | E70: 2195 | F70: 15 | G70: 300 | H70: 600 | I70: 1280 | J70: 0 | K70: XXXX | L70: XXXX | M70: XXXX | N70: XXXX | O70: XXXX | P70: XXXX | Q70: XXXX
A71: 66 | B71: 2013-03-06 | C71: 1990 | D71: 115 | E71: 1875 | F71: 0 | G71: 215 | H71: 530 | I71: 1130 | J71: 0 | K71: XXXX | L71: XXXX | M71: XXXX | N71: XXXX | O71: XXXX | P71: XXXX | Q71: XXXX
A72: 67 | B72: 2013-03-07 | C72: 1840 | D72: 115 | E72: 1725 | F72: 0 | G72: 215 | H72: 455 | I72: 1055 | J72: 0 | K72: XXXX | L72: XXXX | M72: XXXX | N72: XXXX | O72: XXXX | P72: XXXX | Q72: XXXX
A73: 68 | B73: 2013-03-08 | C73: 1950 | D73: 115 | E73: 1835 | F73: 0 | G73: 215 | H73: 510 | I73: 1110 | J73: 0 | K73: XXXX | L73: XXXX | M73: XXXX | N73: XXXX | O73: XXXX | P73: XXXX | Q73: XXXX
A74: 69 | B74: 2013-03-09 | C74: 2070 | D74: 115 | E74: 1955 | F74: 0 | G74: 215 | H74: 570 | I74: 1170 | J74: 0 | K74: XXXX | L74: XXXX | M74: XXXX | N74: XXXX | O74: XXXX | P74: XXXX | Q74: XXXX
A75: 70 | B75: 2013-03-10 | C75: 2010 | D75: 115 | E75: 1895 | F75: 0 | G75: 215 | H75: 540 | I75: 1140 | J75: 0 | K75: XXXX | L75: XXXX | M75: XXXX | N75: XXXX | O75: XXXX | P75: XXXX | Q75: XXXX
A76: 71 | B76: 2013-03-11 | C76: 3170 | D76: 115 | E76: 3055 | F76: 320 | G76: 300 | H76: 600 | I76: 1280 | J76: 555 | K76: XXXX | L76: XXXX | M76: XXXX | N76: XXXX | O76: XXXX | P76: XXXX | Q76: XXXX
A77: 72 | B77: 2013-03-12 | C77: 3010 | D77: 115 | E77: 2895 | F77: 320 | G77: 300 | H77: 600 | I77: 1280 | J77: 395 | K77: XXXX | L77: XXXX | M77: XXXX | N77: XXXX | O77: XXXX | P77: XXXX | Q77: XXXX
A78: 73 | B78: 2013-03-13 | C78: 2450 | D78: 115 | E78: 2335 | F78: 155 | G78: 300 | H78: 600 | I78: 1280 | J78: 0 | K78: XXXX | L78: XXXX | M78: XXXX | N78: XXXX | O78: XXXX | P78: XXXX | Q78: XXXX
A79: 74 | B79: 2013-03-14 | C79: 2380 | D79: 115 | E79: 2265 | F79: 85 | G79: 300 | H79: 600 | I79: 1280 | J79: 0 | K79: XXXX | L79: XXXX | M79: XXXX | N79: XXXX | O79: XXXX | P79: XXXX | Q79: XXXX
A80: 75 | B80: 2013-03-15 | C80: 2400 | D80: 115 | E80: 2285 | F80: 105 | G80: 300 | H80: 600 | I80: 1280 | J80: 0 | K80: XXXX | L80: XXXX | M80: XXXX | N80: XXXX | O80: XXXX | P80: XXXX | Q80: XXXX
A81: 76 | B81: 2013-03-16 | C81: 2140 | D81: 115 | E81: 2025 | F81: 0 | G81: 220 | H81: 600 | I81: 1205 | J81: 0 | K81: XXXX | L81: XXXX | M81: XXXX | N81: XXXX | O81: XXXX | P81: XXXX | Q81: XXXX
A82: 77 | B82: 2013-03-17 | C82: 2070 | D82: 115 | E82: 1955 | F82: 0 | G82: 215 | H82: 570 | I82: 1170 | J82: 0 | K82: XXXX | L82: XXXX | M82: XXXX | N82: XXXX | O82: XXXX | P82: XXXX | Q82: XXXX
A83: 78 | B83: 2013-03-18 | C83: 2070 | D83: 115 | E83: 1955 | F83: 0 | G83: 215 | H83: 570 | I83: 1170 | J83: 0 | K83: XXXX | L83: XXXX | M83: XXXX | N83: XXXX | O83: XXXX | P83: XXXX | Q83: XXXX
A84: 79 | B84: 2013-03-19 | C84: 1920 | D84: 115 | E84: 1805 | F84: 0 | G84: 215 | H84: 495 | I84: 1095 | J84: 0 | K84: XXXX | L84: XXXX | M84: XXXX | N84: XXXX | O84: XXXX | P84: XXXX | Q84: XXXX
A85: 80 | B85: 2013-03-20 | C85: 1820 | D85: 115 | E85: 1705 | F85: 0 | G85: 215 | H85: 445 | I85: 1045 | J85: 0 | K85: XXXX | L85: XXXX | M85: XXXX | N85: XXXX | O85: XXXX | P85: XXXX | Q85: XXXX
A86: 81 | B86: 2013-03-21 | C86: 1710 | D86: 115 | E86: 1595 | F86: 0 | G86: 215 | H86: 390 | I86: 990 | J86: 0 | K86: XXXX | L86: XXXX | M86: XXXX | N86: XXXX | O86: XXXX | P86: XXXX | Q86: XXXX
A87: 82 | B87: 2013-03-22 | C87: 1560 | D87: 115 | E87: 1445 | F87: 0 | G87: 215 | H87: 530 | I87: 700 | J87: 0 | K87: XXXX | L87: XXXX | M87: XXXX | N87: XXXX | O87: XXXX | P87: XXXX | Q87: XXXX
A88: 83 | B88: 2013-03-23 | C88: 1620 | D88: 115 | E88: 1505 | F88: 0 | G88: 215 | H88: 590 | I88: 700 | J88: 0 | K88: XXXX | L88: XXXX | M88: XXXX | N88: XXXX | O88: XXXX | P88: XXXX | Q88: XXXX
A89: 84 | B89: 2013-03-24 | C89: 1980 | D89: 115 | E89: 1865 | F89: 0 | G89: 215 | H89: 525 | I89: 1125 | J89: 0 | K89: XXXX | L89: XXXX | M89: XXXX | N89: XXXX | O89: XXXX | P89: XXXX | Q89: XXXX
A90: 85 | B90: 2013-03-25 | C90: 1690 | D90: 115 | E90: 1575 | F90: 0 | G90: 215 | H90: 380 | I90: 980 | J90: 0 | K90: XXXX | L90: XXXX | M90: XXXX | N90: XXXX | O90: XXXX | P90: XXXX | Q90: XXXX
A91: 86 | B91: 2013-03-26 | C91: 1610 | D91: 115 | E91: 1495 | F91: 0 | G91: 215 | H91: 580 | I91: 700 | J91: 0 | K91: XXXX | L91: XXXX | M91: XXXX | N91: XXXX | O91: XXXX | P91: XXXX | Q91: XXXX
A92: 87 | B92: 2013-03-27 | C92: 1540 | D92: 115 | E92: 1425 | F92: 0 | G92: 215 | H92: 510 | I92: 700 | J92: 0 | K92: XXXX | L92: XXXX | M92: XXXX | N92: XXXX | O92: XXXX | P92: XXXX | Q92: XXXX
A93: 88 | B93: 2013-03-28 | C93: 1440 | D93: 115 | E93: 1325 | F93: 0 | G93: 215 | H93: 410 | I93: 700 | J93: 0 | K93: XXXX | L93: XXXX | M93: XXXX | N93: XXXX | O93: XXXX | P93: XXXX | Q93: XXXX
A94: 89 | B94: 2013-03-29 | C94: 1440 | D94: 115 | E94: 1325 | F94: 0 | G94: 215 | H94: 410 | I94: 700 | J94: 0 | K94: XXXX | L94: XXXX | M94: XXXX | N94: XXXX | O94: XXXX | P94: XXXX | Q94: XXXX
A95: 90 | B95: 2013-03-30 | C95: 1430 | D95: 115 | E95: 1315 | F95: 0 | G95: 215 | H95: 400 | I95: 700 | J95: 0 | K95: XXXX | L95: XXXX | M95: XXXX | N95: XXXX | O95: XXXX | P95: XXXX | Q95: XXXX
A96: 91 | B96: 2013-03-31 | C96: 1350 | D96: 115 | E96: 1235 | F96: 0 | G96: 215 | H96: 320 | I96: 700 | J96: 0 | K96: XXXX | L96: XXXX | M96: XXXX | N96: XXXX | O96: XXXX | P96: XXXX | Q96: XXXX
A97: 92 | B97: 2013-04-01 | C97: 1310 | D97: 115 | E97: 1195 | F97: 0 | G97: 215 | H97: 280 | I97: 700 | J97: 0 | K97: XXXX | L97: XXXX | M97: XXXX | N97: XXXX | O97: XXXX | P97: XXXX | Q97: XXXX
A98: 93 | B98: 2013-04-02 | C98: 1260 | D98: 115 | E98: 1145 | F98: 235 | G98: 310 | H98: 600 | I98: 0 | J98: 0 | K98: XXXX | L98: XXXX | M98: XXXX | N98: XXXX | O98: XXXX | P98: XXXX | Q98: XXXX
A99: 94 | B99: 2013-04-03 | C99: 1210 | D99: 115 | E99: 1095 | F99: 0 | G99: 0 | H99: 600 | I99: 0 | J99: 495 | K99: XXXX | L99: XXXX | M99: XXXX | N99: XXXX | O99: XXXX | P99: XXXX | Q99: XXXX
A100: 95 | B100: 2013-04-04 | C100: 1230 | D100: 115 | E100: 1115 | F100: 0 | G100: 0 | H100: 600 | I100: 0 | J100: 515 | K100: XXXX | L100: XXXX | M100: XXXX | N100: XXXX | O100: XXXX | P100: XXXX | Q100: XXXX
A101: 96 | B101: 2013-04-05 | C101: 1350 | D101: 115 | E101: 1235 | F101: 0 | G101: 0 | H101: 320 | I101: 700 | J101: 215 | K101: XXXX | L101: XXXX | M101: XXXX | N101: XXXX | O101: XXXX | P101: XXXX | Q101: XXXX
A102: 97 | B102: 2013-04-06 | C102: 1360 | D102: 115 | E102: 1245 | F102: 0 | G102: 0 | H102: 330 | I102: 700 | J102: 215 | K102: XXXX | L102: XXXX | M102: XXXX | N102: XXXX | O102: XXXX | P102: XXXX | Q102: XXXX
A103: 98 | B103: 2013-04-07 | C103: 1640 | D103: 115 | E103: 1525 | F103: 0 | G103: 0 | H103: 355 | I103: 955 | J103: 215 | K103: XXXX | L103: XXXX | M103: XXXX | N103: XXXX | O103: XXXX | P103: XXXX | Q103: XXXX
A104: 99 | B104: 2013-04-08 | C104: 1740 | D104: 115 | E104: 1625 | F104: 0 | G104: 0 | H104: 405 | I104: 1005 | J104: 215 | K104: XXXX | L104: XXXX | M104: XXXX | N104: XXXX | O104: XXXX | P104: XXXX | Q104: XXXX
A105: 100 | B105: 2013-04-09 | C105: 1560 | D105: 115 | E105: 1445 | F105: 0 | G105: 0 | H105: 530 | I105: 700 | J105: 215 | K105: XXXX | L105: XXXX | M105: XXXX | N105: XXXX | O105: XXXX | P105: XXXX | Q105: XXXX
A106: 101 | B106: 2013-04-10 | C106: 1470 | D106: 115 | E106: 1355 | F106: 0 | G106: 0 | H106: 440 | I106: 700 | J106: 215 | K106: XXXX | L106: XXXX | M106: XXXX | N106: XXXX | O106: XXXX | P106: XXXX | Q106: XXXX
A107: 102 | B107: 2013-04-11 | C107: 1510 | D107: 115 | E107: 1395 | F107: 0 | G107: 0 | H107: 480 | I107: 700 | J107: 215 | K107: XXXX | L107: XXXX | M107: XXXX | N107: XXXX | O107: XXXX | P107: XXXX | Q107: XXXX
A108: 103 | B108: 2013-04-12 | C108: 1650 | D108: 115 | E108: 1535 | F108: 0 | G108: 0 | H108: 360 | I108: 960 | J108: 215 | K108: XXXX | L108: XXXX | M108: XXXX | N108: XXXX | O108: XXXX | P108: XXXX | Q108: XXXX
A109: 104 | B109: 2013-04-13 | C109: 2960 | D109: 115 | E109: 2845 | F109: 0 | G109: 0 | H109: 600 | I109: 1280 | J109: 965 | K109: XXXX | L109: XXXX | M109: XXXX | N109: XXXX | O109: XXXX | P109: XXXX | Q109: XXXX
A110: 105 | B110: 2013-04-14 | C110: 3390 | D110: 115 | E110: 3275 | F110: 320 | G110: 300 | H110: 600 | I110: 1280 | J110: 775 | K110: XXXX | L110: XXXX | M110: XXXX | N110: XXXX | O110: XXXX | P110: XXXX | Q110: XXXX
A111: 106 | B111: 2013-04-15 | C111: 2930 | D111: 115 | E111: 2815 | F111: 320 | G111: 300 | H111: 600 | I111: 1280 | J111: 315 | K111: XXXX | L111: XXXX | M111: XXXX | N111: XXXX | O111: XXXX | P111: XXXX | Q111: XXXX
A112: 107 | B112: 2013-04-16 | C112: 2500 | D112: 115 | E112: 2385 | F112: 205 | G112: 300 | H112: 600 | I112: 1280 | J112: 0 | K112: XXXX | L112: XXXX | M112: XXXX | N112: XXXX | O112: XXXX | P112: XXXX | Q112: XXXX
A113: 108 | B113: 2013-04-17 | C113: 2190 | D113: 115 | E113: 2075 | F113: 0 | G113: 245 | H113: 600 | I113: 1230 | J113: 0 | K113: XXXX | L113: XXXX | M113: XXXX | N113: XXXX | O113: XXXX | P113: XXXX | Q113: XXXX
A114: 109 | B114: 2013-04-18 | C114: 2180 | D114: 115 | E114: 2065 | F114: 0 | G114: 240 | H114: 600 | I114: 1225 | J114: 0 | K114: XXXX | L114: XXXX | M114: XXXX | N114: XXXX | O114: XXXX | P114: XXXX | Q114: XXXX
A115: 110 | B115: 2013-04-19 | C115: 2060 | D115: 115 | E115: 1945 | F115: 0 | G115: 215 | H115: 565 | I115: 1165 | J115: 0 | K115: XXXX | L115: XXXX | M115: XXXX | N115: XXXX | O115: XXXX | P115: XXXX | Q115: XXXX
A116: 111 | B116: 2013-04-20 | C116: 1840 | D116: 115 | E116: 1725 | F116: 0 | G116: 215 | H116: 455 | I116: 1055 | J116: 0 | K116: XXXX | L116: XXXX | M116: XXXX | N116: XXXX | O116: XXXX | P116: XXXX | Q116: XXXX
A117: 112 | B117: 2013-04-21 | C117: 1700 | D117: 115 | E117: 1585 | F117: 0 | G117: 215 | H117: 385 | I117: 985 | J117: 0 | K117: XXXX | L117: XXXX | M117: XXXX | N117: XXXX | O117: XXXX | P117: XXXX | Q117: XXXX
A118: 113 | B118: 2013-04-22 | C118: 1580 | D118: 115 | E118: 1465 | F118: 0 | G118: 215 | H118: 550 | I118: 700 | J118: 0 | K118: XXXX | L118: XXXX | M118: XXXX | N118: XXXX | O118: XXXX | P118: XXXX | Q118: XXXX
A119: 114 | B119: 2013-04-23 | C119: 1570 | D119: 115 | E119: 1455 | F119: 0 | G119: 215 | H119: 540 | I119: 700 | J119: 0 | K119: XXXX | L119: XXXX | M119: XXXX | N119: XXXX | O119: XXXX | P119: XXXX | Q119: XXXX
A120: 115 | B120: 2013-04-24 | C120: 1670 | D120: 115 | E120: 1555 | F120: 0 | G120: 215 | H120: 370 | I120: 970 | J120: 0 | K120: XXXX | L120: XXXX | M120: XXXX | N120: XXXX | O120: XXXX | P120: XXXX | Q120: XXXX
A121: 116 | B121: 2013-04-25 | C121: 1690 | D121: 115 | E121: 1575 | F121: 0 | G121: 215 | H121: 380 | I121: 980 | J121: 0 | K121: XXXX | L121: XXXX | M121: XXXX | N121: XXXX | O121: XXXX | P121: XXXX | Q121: XXXX
A122: 117 | B122: 2013-04-26 | C122: 1580 | D122: 115 | E122: 1465 | F122: 0 | G122: 215 | H122: 550 | I122: 700 | J122: 0 | K122: XXXX | L122: XXXX | M122: XXXX | N122: XXXX | O122: XXXX | P122: XXXX | Q122: XXXX
A123: 118 | B123: 2013-04-27 | C123: 1670 | D123: 115 | E123: 1555 | F123: 0 | G123: 215 | H123: 370 | I123: 970 | J123: 0 | K123: XXXX | L123: XXXX | M123: XXXX | N123: XXXX | O123: XXXX | P123: XXXX | Q123: XXXX
A124: 119 | B124: 2013-04-28 | C124: 2680 | D124: 115 | E124: 2565 | F124: 320 | G124: 300 | H124: 600 | I124: 1280 | J124: 65 | K124: XXXX | L124: XXXX | M124: XXXX | N124: XXXX | O124: XXXX | P124: XXXX | Q124: XXXX
A125: 120 | B125: 2013-04-29 | C125: 4620 | D125: 115 | E125: 4505 | F125: 320 | G125: 300 | H125: 600 | I125: 1280 | J125: 2005 | K125: XXXX | L125: XXXX | M125: XXXX | N125: XXXX | O125: XXXX | P125: XXXX | Q125: XXXX
A126: 121 | B126: 2013-04-30 | C126: 3700 | D126: 115 | E126: 3585 | F126: 320 | G126: 300 | H126: 600 | I126: 1280 | J126: 1085 | K126: XXXX | L126: XXXX | M126: XXXX | N126: XXXX | O126: XXXX | P126: XXXX | Q126: XXXX
A127: 122 | B127: 2013-05-01 | C127: 2930 | D127: 1150 | E127: 1780 | F127: 0 | G127: 215 | H127: 482.5 | I127: 1082.5 | J127: 0 | K127: XXXX | L127: XXXX | M127: XXXX | N127: XXXX | O127: XXXX | P127: XXXX | Q127: XXXX
A128: 123 | B128: 2013-05-02 | C128: 2490 | D128: 1150 | E128: 1340 | F128: 0 | G128: 215 | H128: 425 | I128: 700 | J128: 0 | K128: XXXX | L128: XXXX | M128: XXXX | N128: XXXX | O128: XXXX | P128: XXXX | Q128: XXXX
A129: 124 | B129: 2013-05-03 | C129: 2360 | D129: 1150 | E129: 1210 | F129: 0 | G129: 215 | H129: 295 | I129: 700 | J129: 0 | K129: XXXX | L129: XXXX | M129: XXXX | N129: XXXX | O129: XXXX | P129: XXXX | Q129: XXXX
A130: 125 | B130: 2013-05-04 | C130: 2370 | D130: 1150 | E130: 1220 | F130: 0 | G130: 215 | H130: 305 | I130: 700 | J130: 0 | K130: XXXX | L130: XXXX | M130: XXXX | N130: XXXX | O130: XXXX | P130: XXXX | Q130: XXXX
A131: 126 | B131: 2013-05-05 | C131: 3310 | D131: 1150 | E131: 2160 | F131: 320 | G131: 300 | H131: 0 | I131: 0 | J131: 1540 | K131: XXXX | L131: XXXX | M131: XXXX | N131: XXXX | O131: XXXX | P131: XXXX | Q131: XXXX
A132: 127 | B132: 2013-05-06 | C132: 4250 | D132: 1150 | E132: 3100 | F132: 320 | G132: 300 | H132: 0 | I132: 0 | J132: 2480 | K132: XXXX | L132: XXXX | M132: XXXX | N132: XXXX | O132: XXXX | P132: XXXX | Q132: XXXX
A133: 128 | B133: 2013-05-07 | C133: 4140 | D133: 1150 | E133: 2990 | F133: 320 | G133: 300 | H133: 0 | I133: 0 | J133: 2370 | K133: XXXX | L133: XXXX | M133: XXXX | N133: XXXX | O133: XXXX | P133: XXXX | Q133: XXXX
A134: 129 | B134: 2013-05-08 | C134: 3750 | D134: 1150 | E134: 2600 | F134: 320 | G134: 300 | H134: 0 | I134: 0 | J134: 1980 | K134: XXXX | L134: XXXX | M134: XXXX | N134: XXXX | O134: XXXX | P134: XXXX | Q134: XXXX
A135: 130 | B135: 2013-05-09 | C135: 3120 | D135: 1150 | E135: 1970 | F135: 0 | G135: 215 | H135: 577.5 | I135: 1177.5 | J135: 0 | K135: XXXX | L135: XXXX | M135: XXXX | N135: XXXX | O135: XXXX | P135: XXXX | Q135: XXXX
A136: 131 | B136: 2013-05-10 | C136: 2960 | D136: 1150 | E136: 1810 | F136: 0 | G136: 215 | H136: 497.5 | I136: 1097.5 | J136: 0 | K136: XXXX | L136: XXXX | M136: XXXX | N136: XXXX | O136: XXXX | P136: XXXX | Q136: XXXX
A137: 132 | B137: 2013-05-11 | C137: 3780 | D137: 1150 | E137: 2630 | F137: 320 | G137: 300 | H137: 600 | I137: 1280 | J137: 130 | K137: XXXX | L137: XXXX | M137: XXXX | N137: XXXX | O137: XXXX | P137: XXXX | Q137: XXXX
A138: 133 | B138: 2013-05-12 | C138: 3550 | D138: 1150 | E138: 2400 | F138: 220 | G138: 300 | H138: 600 | I138: 1280 | J138: 0 | K138: XXXX | L138: XXXX | M138: XXXX | N138: XXXX | O138: XXXX | P138: XXXX | Q138: XXXX
A139: 134 | B139: 2013-05-13 | C139: 3020 | D139: 1150 | E139: 1870 | F139: 0 | G139: 215 | H139: 527.5 | I139: 1127.5 | J139: 0 | K139: XXXX | L139: XXXX | M139: XXXX | N139: XXXX | O139: XXXX | P139: XXXX | Q139: XXXX
A140: 135 | B140: 2013-05-14 | C140: 6380 | D140: 1150 | E140: 5230 | F140: 320 | G140: 300 | H140: 600 | I140: 1280 | J140: 2730 | K140: XXXX | L140: XXXX | M140: XXXX | N140: XXXX | O140: XXXX | P140: XXXX | Q140: XXXX
A141: 136 | B141: 2013-05-15 | C141: 9680 | D141: 1150 | E141: 8530 | F141: 320 | G141: 300 | H141: 600 | I141: 1280 | J141: 6030 | K141: XXXX | L141: XXXX | M141: XXXX | N141: XXXX | O141: XXXX | P141: XXXX | Q141: XXXX
A142: 137 | B142: 2013-05-16 | C142: 11600 | D142: 1150 | E142: 10450 | F142: 320 | G142: 300 | H142: 600 | I142: 1280 | J142: 7950 | K142: XXXX | L142: XXXX | M142: XXXX | N142: XXXX | O142: XXXX | P142: XXXX | Q142: XXXX
A143: 138 | B143: 2013-05-17 | C143: 14600 | D143: 1150 | E143: 13450 | F143: 320 | G143: 300 | H143: 600 | I143: 1280 | J143: 10950 | K143: XXXX | L143: XXXX | M143: XXXX | N143: XXXX | O143: XXXX | P143: XXXX | Q143: XXXX
A144: 139 | B144: 2013-05-18 | C144: 14500 | D144: 1150 | E144: 13350 | F144: 320 | G144: 300 | H144: 600 | I144: 1280 | J144: 10850 | K144: XXXX | L144: XXXX | M144: XXXX | N144: XXXX | O144: XXXX | P144: XXXX | Q144: XXXX
A145: 140 | B145: 2013-05-19 | C145: 11600 | D145: 1150 | E145: 10450 | F145: 320 | G145: 300 | H145: 600 | I145: 1280 | J145: 7950 | K145: XXXX | L145: XXXX | M145: XXXX | N145: XXXX | O145: XXXX | P145: XXXX | Q145: XXXX
A146: 141 | B146: 2013-05-20 | C146: 12100 | D146: 1150 | E146: 10950 | F146: 320 | G146: 300 | H146: 600 | I146: 1280 | J146: 8450 | K146: XXXX | L146: XXXX | M146: XXXX | N146: XXXX | O146: XXXX | P146: XXXX | Q146: XXXX
A147: 142 | B147: 2013-05-21 | C147: 10900 | D147: 1150 | E147: 9750 | F147: 320 | G147: 300 | H147: 600 | I147: 1280 | J147: 7250 | K147: XXXX | L147: XXXX | M147: XXXX | N147: XXXX | O147: XXXX | P147: XXXX | Q147: XXXX
A148: 143 | B148: 2013-05-22 | C148: 7920 | D148: 1150 | E148: 6770 | F148: 320 | G148: 300 | H148: 600 | I148: 1280 | J148: 4270 | K148: XXXX | L148: XXXX | M148: XXXX | N148: XXXX | O148: XXXX | P148: XXXX | Q148: XXXX
A149: 144 | B149: 2013-05-23 | C149: 5680 | D149: 1150 | E149: 4530 | F149: 320 | G149: 300 | H149: 600 | I149: 1280 | J149: 2030 | K149: XXXX | L149: XXXX | M149: XXXX | N149: XXXX | O149: XXXX | P149: XXXX | Q149: XXXX
A150: 145 | B150: 2013-05-24 | C150: 5250 | D150: 1150 | E150: 4100 | F150: 320 | G150: 300 | H150: 600 | I150: 1280 | J150: 1600 | K150: XXXX | L150: XXXX | M150: XXXX | N150: XXXX | O150: XXXX | P150: XXXX | Q150: XXXX
A151: 146 | B151: 2013-05-25 | C151: 7300 | D151: 1150 | E151: 6150 | F151: 320 | G151: 300 | H151: 600 | I151: 1280 | J151: 3650 | K151: XXXX | L151: XXXX | M151: XXXX | N151: XXXX | O151: XXXX | P151: XXXX | Q151: XXXX
A152: 147 | B152: 2013-05-26 | C152: 8070 | D152: 1150 | E152: 6920 | F152: 320 | G152: 300 | H152: 600 | I152: 1280 | J152: 4420 | K152: XXXX | L152: XXXX | M152: XXXX | N152: XXXX | O152: XXXX | P152: XXXX | Q152: XXXX
A153: 148 | B153: 2013-05-27 | C153: 8550 | D153: 1150 | E153: 7400 | F153: 320 | G153: 300 | H153: 600 | I153: 1280 | J153: 4900 | K153: XXXX | L153: XXXX | M153: XXXX | N153: XXXX | O153: XXXX | P153: XXXX | Q153: XXXX
A154: 149 | B154: 2013-05-28 | C154: 8160 | D154: 1150 | E154: 7010 | F154: 320 | G154: 300 | H154: 600 | I154: 1280 | J154: 4510 | K154: XXXX | L154: XXXX | M154: XXXX | N154: XXXX | O154: XXXX | P154: XXXX | Q154: XXXX
A155: 150 | B155: 2013-05-29 | C155: 7520 | D155: 1150 | E155: 6370 | F155: 320 | G155: 300 | H155: 600 | I155: 1280 | J155: 3870 | K155: XXXX | L155: XXXX | M155: XXXX | N155: XXXX | O155: XXXX | P155: XXXX | Q155: XXXX
A156: 151 | B156: 2013-05-30 | C156: 5960 | D156: 1150 | E156: 4810 | F156: 320 | G156: 300 | H156: 600 | I156: 1280 | J156: 2310 | K156: XXXX | L156: XXXX | M156: XXXX | N156: XXXX | O156: XXXX | P156: XXXX | Q156: XXXX
A157: 152 | B157: 2013-05-31 | C157: 5320 | D157: 1150 | E157: 4170 | F157: 320 | G157: 300 | H157: 600 | I157: 1280 | J157: 1670 | K157: XXXX | L157: XXXX | M157: XXXX | N157: XXXX | O157: XXXX | P157: XXXX | Q157: XXXX
A158: 153 | B158: 2013-06-01 | C158: 5220 | D158: 1150 | E158: 4070 | F158: 320 | G158: 300 | H158: 600 | I158: 1280 | J158: 1570 | K158: XXXX | L158: XXXX | M158: XXXX | N158: XXXX | O158: XXXX | P158: XXXX | Q158: XXXX
A159: 154 | B159: 2013-06-02 | C159: 4630 | D159: 1150 | E159: 3480 | F159: 320 | G159: 300 | H159: 600 | I159: 1280 | J159: 980 | K159: XXXX | L159: XXXX | M159: XXXX | N159: XXXX | O159: XXXX | P159: XXXX | Q159: XXXX
A160: 155 | B160: 2013-06-03 | C160: 4500 | D160: 1150 | E160: 3350 | F160: 320 | G160: 300 | H160: 600 | I160: 1280 | J160: 850 | K160: XXXX | L160: XXXX | M160: XXXX | N160: XXXX | O160: XXXX | P160: XXXX | Q160: XXXX
A161: 156 | B161: 2013-06-04 | C161: 6860 | D161: 1150 | E161: 5710 | F161: 320 | G161: 300 | H161: 600 | I161: 1280 | J161: 3210 | K161: XXXX | L161: XXXX | M161: XXXX | N161: XXXX | O161: XXXX | P161: XXXX | Q161: XXXX
A162: 157 | B162: 2013-06-05 | C162: 5320 | D162: 1150 | E162: 4170 | F162: 320 | G162: 300 | H162: 600 | I162: 1280 | J162: 1670 | K162: XXXX | L162: XXXX | M162: XXXX | N162: XXXX | O162: XXXX | P162: XXXX | Q162: XXXX
A163: 158 | B163: 2013-06-06 | C163: 6220 | D163: 1150 | E163: 5070 | F163: 320 | G163: 300 | H163: 600 | I163: 1280 | J163: 2570 | K163: XXXX | L163: XXXX | M163: XXXX | N163: XXXX | O163: XXXX | P163: XXXX | Q163: XXXX
A164: 159 | B164: 2013-06-07 | C164: 7230 | D164: 1150 | E164: 6080 | F164: 320 | G164: 300 | H164: 600 | I164: 1280 | J164: 3580 | K164: XXXX | L164: XXXX | M164: XXXX | N164: XXXX | O164: XXXX | P164: XXXX | Q164: XXXX
A165: 160 | B165: 2013-06-08 | C165: 6170 | D165: 1150 | E165: 5020 | F165: 320 | G165: 300 | H165: 600 | I165: 1280 | J165: 2520 | K165: XXXX | L165: XXXX | M165: XXXX | N165: XXXX | O165: XXXX | P165: XXXX | Q165: XXXX
A166: 161 | B166: 2013-06-09 | C166: 5300 | D166: 1150 | E166: 4150 | F166: 320 | G166: 300 | H166: 600 | I166: 1280 | J166: 1650 | K166: XXXX | L166: XXXX | M166: XXXX | N166: XXXX | O166: XXXX | P166: XXXX | Q166: XXXX
A167: 162 | B167: 2013-06-10 | C167: 7180 | D167: 1150 | E167: 6030 | F167: 320 | G167: 300 | H167: 600 | I167: 1280 | J167: 3530 | K167: XXXX | L167: XXXX | M167: XXXX | N167: XXXX | O167: XXXX | P167: XXXX | Q167: XXXX
A168: 163 | B168: 2013-06-11 | C168: 6660 | D168: 1150 | E168: 5510 | F168: 320 | G168: 300 | H168: 600 | I168: 1280 | J168: 3010 | K168: XXXX | L168: XXXX | M168: XXXX | N168: XXXX | O168: XXXX | P168: XXXX | Q168: XXXX
A169: 164 | B169: 2013-06-12 | C169: 5560 | D169: 1150 | E169: 4410 | F169: 320 | G169: 300 | H169: 600 | I169: 1280 | J169: 1910 | K169: XXXX | L169: XXXX | M169: XXXX | N169: XXXX | O169: XXXX | P169: XXXX | Q169: XXXX
A170: 165 | B170: 2013-06-13 | C170: 4990 | D170: 1150 | E170: 3840 | F170: 320 | G170: 300 | H170: 600 | I170: 1280 | J170: 1340 | K170: XXXX | L170: XXXX | M170: XXXX | N170: XXXX | O170: XXXX | P170: XXXX | Q170: XXXX
A171: 166 | B171: 2013-06-14 | C171: 4990 | D171: 1150 | E171: 3840 | F171: 320 | G171: 300 | H171: 600 | I171: 1280 | J171: 1340 | K171: XXXX | L171: XXXX | M171: XXXX | N171: XXXX | O171: XXXX | P171: XXXX | Q171: XXXX
A172: 167 | B172: 2013-06-15 | C172: 4860 | D172: 1150 | E172: 3710 | F172: 320 | G172: 300 | H172: 600 | I172: 1280 | J172: 1210 | K172: XXXX | L172: XXXX | M172: XXXX | N172: XXXX | O172: XXXX | P172: XXXX | Q172: XXXX
A173: 168 | B173: 2013-06-16 | C173: 5000 | D173: 1150 | E173: 3850 | F173: 320 | G173: 300 | H173: 600 | I173: 1280 | J173: 1350 | K173: XXXX | L173: XXXX | M173: XXXX | N173: XXXX | O173: XXXX | P173: XXXX | Q173: XXXX
A174: 169 | B174: 2013-06-17 | C174: 5110 | D174: 1150 | E174: 3960 | F174: 320 | G174: 300 | H174: 600 | I174: 1280 | J174: 1460 | K174: XXXX | L174: XXXX | M174: XXXX | N174: XXXX | O174: XXXX | P174: XXXX | Q174: XXXX
A175: 170 | B175: 2013-06-18 | C175: 4130 | D175: 1150 | E175: 2980 | F175: 320 | G175: 300 | H175: 600 | I175: 1280 | J175: 480 | K175: XXXX | L175: XXXX | M175: XXXX | N175: XXXX | O175: XXXX | P175: XXXX | Q175: XXXX
A176: 171 | B176: 2013-06-19 | C176: 3830 | D176: 1150 | E176: 2680 | F176: 320 | G176: 300 | H176: 600 | I176: 1280 | J176: 180 | K176: XXXX | L176: XXXX | M176: XXXX | N176: XXXX | O176: XXXX | P176: XXXX | Q176: XXXX
A177: 172 | B177: 2013-06-20 | C177: 4150 | D177: 1150 | E177: 3000 | F177: 320 | G177: 300 | H177: 600 | I177: 1280 | J177: 500 | K177: XXXX | L177: XXXX | M177: XXXX | N177: XXXX | O177: XXXX | P177: XXXX | Q177: XXXX
A178: 173 | B178: 2013-06-21 | C178: 5800 | D178: 1150 | E178: 4650 | F178: 320 | G178: 300 | H178: 600 | I178: 1280 | J178: 2150 | K178: XXXX | L178: XXXX | M178: XXXX | N178: XXXX | O178: XXXX | P178: XXXX | Q178: XXXX
A179: 174 | B179: 2013-06-22 | C179: 5680 | D179: 1150 | E179: 4530 | F179: 320 | G179: 300 | H179: 600 | I179: 1280 | J179: 2030 | K179: XXXX | L179: XXXX | M179: XXXX | N179: XXXX | O179: XXXX | P179: XXXX | Q179: XXXX
A180: 175 | B180: 2013-06-23 | C180: 4710 | D180: 1150 | E180: 3560 | F180: 320 | G180: 300 | H180: 600 | I180: 1280 | J180: 1060 | K180: XXXX | L180: XXXX | M180: XXXX | N180: XXXX | O180: XXXX | P180: XXXX | Q180: XXXX
A181: 176 | B181: 2013-06-24 | C181: 4210 | D181: 1150 | E181: 3060 | F181: 320 | G181: 300 | H181: 600 | I181: 1280 | J181: 560 | K181: XXXX | L181: XXXX | M181: XXXX | N181: XXXX | O181: XXXX | P181: XXXX | Q181: XXXX
A182: 177 | B182: 2013-06-25 | C182: 4090 | D182: 1150 | E182: 2940 | F182: 320 | G182: 300 | H182: 600 | I182: 1280 | J182: 440 | K182: XXXX | L182: XXXX | M182: XXXX | N182: XXXX | O182: XXXX | P182: XXXX | Q182: XXXX
A183: 178 | B183: 2013-06-26 | C183: 4180 | D183: 1150 | E183: 3030 | F183: 320 | G183: 300 | H183: 600 | I183: 1280 | J183: 530 | K183: XXXX | L183: XXXX | M183: XXXX | N183: XXXX | O183: XXXX | P183: XXXX | Q183: XXXX
A184: 179 | B184: 2013-06-27 | C184: 4040 | D184: 1150 | E184: 2890 | F184: 320 | G184: 300 | H184: 600 | I184: 1280 | J184: 390 | K184: XXXX | L184: XXXX | M184: XXXX | N184: XXXX | O184: XXXX | P184: XXXX | Q184: XXXX
A185: 180 | B185: 2013-06-28 | C185: 5470 | D185: 1150 | E185: 4320 | F185: 320 | G185: 300 | H185: 600 | I185: 1280 | J185: 1820 | K185: XXXX | L185: XXXX | M185: XXXX | N185: XXXX | O185: XXXX | P185: XXXX | Q185: XXXX
A186: 181 | B186: 2013-06-29 | C186: 6970 | D186: 1150 | E186: 5820 | F186: 320 | G186: 300 | H186: 600 | I186: 1280 | J186: 3320 | K186: XXXX | L186: XXXX | M186: XXXX | N186: XXXX | O186: XXXX | P186: XXXX | Q186: XXXX
A187: 182 | B187: 2013-06-30 | C187: 7390 | D187: 1150 | E187: 6240 | F187: 320 | G187: 300 | H187: 600 | I187: 1280 | J187: 3740 | K187: XXXX | L187: XXXX | M187: XXXX | N187: XXXX | O187: XXXX | P187: XXXX | Q187: XXXX
A188: 183 | B188: 2013-07-01 | C188: 6700 | D188: 115 | E188: 6585 | F188: 320 | G188: 300 | H188: 600 | I188: 1280 | J188: 4085 | K188: XXXX | L188: XXXX | M188: XXXX | N188: XXXX | O188: XXXX | P188: XXXX | Q188: XXXX
A189: 184 | B189: 2013-07-02 | C189: 5910 | D189: 115 | E189: 5795 | F189: 320 | G189: 300 | H189: 600 | I189: 1280 | J189: 3295 | K189: XXXX | L189: XXXX | M189: XXXX | N189: XXXX | O189: XXXX | P189: XXXX | Q189: XXXX
A190: 185 | B190: 2013-07-03 | C190: 6730 | D190: 115 | E190: 6615 | F190: 320 | G190: 300 | H190: 600 | I190: 1280 | J190: 4115 | K190: XXXX | L190: XXXX | M190: XXXX | N190: XXXX | O190: XXXX | P190: XXXX | Q190: XXXX
A191: 186 | B191: 2013-07-04 | C191: 5230 | D191: 230 | E191: 5000 | F191: 320 | G191: 300 | H191: 600 | I191: 1280 | J191: 2500 | K191: XXXX | L191: XXXX | M191: XXXX | N191: XXXX | O191: XXXX | P191: XXXX | Q191: XXXX
A192: 187 | B192: 2013-07-05 | C192: 4020 | D192: 115 | E192: 3905 | F192: 320 | G192: 300 | H192: 600 | I192: 1280 | J192: 1405 | K192: XXXX | L192: XXXX | M192: XXXX | N192: XXXX | O192: XXXX | P192: XXXX | Q192: XXXX
A193: 188 | B193: 2013-07-06 | C193: 4600 | D193: 230 | E193: 4370 | F193: 320 | G193: 300 | H193: 600 | I193: 1280 | J193: 1870 | K193: XXXX | L193: XXXX | M193: XXXX | N193: XXXX | O193: XXXX | P193: XXXX | Q193: XXXX
A194: 189 | B194: 2013-07-07 | C194: 3500 | D194: 230 | E194: 3270 | F194: 320 | G194: 300 | H194: 600 | I194: 1280 | J194: 770 | K194: XXXX | L194: XXXX | M194: XXXX | N194: XXXX | O194: XXXX | P194: XXXX | Q194: XXXX
A195: 190 | B195: 2013-07-08 | C195: 3280 | D195: 115 | E195: 3165 | F195: 320 | G195: 300 | H195: 600 | I195: 1280 | J195: 665 | K195: XXXX | L195: XXXX | M195: XXXX | N195: XXXX | O195: XXXX | P195: XXXX | Q195: XXXX
A196: 191 | B196: 2013-07-09 | C196: 3330 | D196: 115 | E196: 3215 | F196: 320 | G196: 300 | H196: 600 | I196: 1280 | J196: 715 | K196: XXXX | L196: XXXX | M196: XXXX | N196: XXXX | O196: XXXX | P196: XXXX | Q196: XXXX
A197: 192 | B197: 2013-07-10 | C197: 3270 | D197: 115 | E197: 3155 | F197: 320 | G197: 300 | H197: 600 | I197: 1280 | J197: 655 | K197: XXXX | L197: XXXX | M197: XXXX | N197: XXXX | O197: XXXX | P197: XXXX | Q197: XXXX
A198: 193 | B198: 2013-07-11 | C198: 2670 | D198: 115 | E198: 2555 | F198: 320 | G198: 300 | H198: 600 | I198: 1280 | J198: 55 | K198: XXXX | L198: XXXX | M198: XXXX | N198: XXXX | O198: XXXX | P198: XXXX | Q198: XXXX
A199: 194 | B199: 2013-07-12 | C199: 2370 | D199: 115 | E199: 2255 | F199: 75 | G199: 300 | H199: 600 | I199: 1280 | J199: 0 | K199: XXXX | L199: XXXX | M199: XXXX | N199: XXXX | O199: XXXX | P199: XXXX | Q199: XXXX
A200: 195 | B200: 2013-07-13 | C200: 2460 | D200: 230 | E200: 2230 | F200: 50 | G200: 300 | H200: 600 | I200: 1280 | J200: 0 | K200: XXXX | L200: XXXX | M200: XXXX | N200: XXXX | O200: XXXX | P200: XXXX | Q200: XXXX
A201: 196 | B201: 2013-07-14 | C201: 2440 | D201: 230 | E201: 2210 | F201: 30 | G201: 300 | H201: 600 | I201: 1280 | J201: 0 | K201: XXXX | L201: XXXX | M201: XXXX | N201: XXXX | O201: XXXX | P201: XXXX | Q201: XXXX
A202: 197 | B202: 2013-07-15 | C202: 2290 | D202: 115 | E202: 2175 | F202: 0 | G202: 295 | H202: 600 | I202: 1280 | J202: 0 | K202: XXXX | L202: XXXX | M202: XXXX | N202: XXXX | O202: XXXX | P202: XXXX | Q202: XXXX
... 171 more rows

Sheet facility inputs (R)
A1: Snoqualmie Falls annual generation estimate
A2: Facility inputs (unit availability, net head, unit efficiencies, minimum flow)
B5: Unit availability. (1 = unit available, 0 = unit out of service)
B6: Units 1-4 | C6: Unit 5 | D6: Unit 6 | E6: Unit 7 | G6: Minimum flow over falls | J6: average net head (feet)
A7: 2013-01-01 | B7: XXXX | C7: XXXX | D7: XXXX | E7: XXXX | G7: 2013-01-01 | H7: 100 | J7: U1-U4 | K7: 250
A8: 2013-01-02 | B8: XXXX | C8: XXXX | D8: XXXX | E8: XXXX | G8: 2013-01-02 | H8: 100 | J8: U5 | K8: 263
A9: 2013-01-03 | B9: XXXX | C9: XXXX | D9: XXXX | E9: XXXX | G9: 2013-01-03 | H9: 100 | J9: U6 | K9: 268
A10: 2013-01-04 | B10: XXXX | C10: XXXX | D10: XXXX | E10: XXXX | G10: 2013-01-04 | H10: 100 | J10: U7 | K10: 268
A11: 2013-01-05 | B11: XXXX | C11: XXXX | D11: XXXX | E11: XXXX | G11: 2013-01-05 | H11: 100
A12: 2013-01-06 | B12: XXXX | C12: XXXX | D12: XXXX | E12: XXXX | G12: 2013-01-06 | H12: 100 | J12: generator loss factor
A13: 2013-01-07 | B13: XXXX | C13: XXXX | D13: XXXX | E13: XXXX | G13: 2013-01-07 | H13: 100 | J13: U1-U4 | K13: 0.94
A14: 2013-01-08 | B14: XXXX | C14: XXXX | D14: XXXX | E14: XXXX | G14: 2013-01-08 | H14: 100 | J14: U5 | K14: 0.96
A15: 2013-01-09 | B15: XXXX | C15: XXXX | D15: XXXX | E15: XXXX | G15: 2013-01-09 | H15: 100 | J15: U6 | K15: 0.96
A16: 2013-01-10 | B16: XXXX | C16: XXXX | D16: XXXX | E16: XXXX | G16: 2013-01-10 | H16: 100 | J16: U7 | K16: 0.96
A17: 2013-01-11 | B17: XXXX | C17: XXXX | D17: XXXX | E17: XXXX | G17: 2013-01-11 | H17: 100
A18: 2013-01-12 | B18: XXXX | C18: XXXX | D18: XXXX | E18: XXXX | G18: 2013-01-12 | H18: 100
A19: 2013-01-13 | B19: XXXX | C19: XXXX | D19: XXXX | E19: XXXX | G19: 2013-01-13 | H19: 100
A20: 2013-01-14 | B20: XXXX | C20: XXXX | D20: XXXX | E20: XXXX | G20: 2013-01-14 | H20: 100
A21: 2013-01-15 | B21: XXXX | C21: XXXX | D21: XXXX | E21: XXXX | G21: 2013-01-15 | H21: 100
A22: 2013-01-16 | B22: XXXX | C22: XXXX | D22: XXXX | E22: XXXX | G22: 2013-01-16 | H22: 100
A23: 2013-01-17 | B23: XXXX | C23: XXXX | D23: XXXX | E23: XXXX | G23: 2013-01-17 | H23: 100
A24: 2013-01-18 | B24: XXXX | C24: XXXX | D24: XXXX | E24: XXXX | G24: 2013-01-18 | H24: 100
A25: 2013-01-19 | B25: XXXX | C25: XXXX | D25: XXXX | E25: XXXX | G25: 2013-01-19 | H25: 100
A26: 2013-01-20 | B26: XXXX | C26: XXXX | D26: XXXX | E26: XXXX | G26: 2013-01-20 | H26: 100
A27: 2013-01-21 | B27: XXXX | C27: XXXX | D27: XXXX | E27: XXXX | G27: 2013-01-21 | H27: 100
A28: 2013-01-22 | B28: XXXX | C28: XXXX | D28: XXXX | E28: XXXX | G28: 2013-01-22 | H28: 100
A29: 2013-01-23 | B29: XXXX | C29: XXXX | D29: XXXX | E29: XXXX | G29: 2013-01-23 | H29: 100
A30: 2013-01-24 | B30: XXXX | C30: XXXX | D30: XXXX | E30: XXXX | G30: 2013-01-24 | H30: 100
A31: 2013-01-25 | B31: XXXX | C31: XXXX | D31: XXXX | E31: XXXX | G31: 2013-01-25 | H31: 100
A32: 2013-01-26 | B32: XXXX | C32: XXXX | D32: XXXX | E32: XXXX | G32: 2013-01-26 | H32: 100
A33: 2013-01-27 | B33: XXXX | C33: XXXX | D33: XXXX | E33: XXXX | G33: 2013-01-27 | H33: 100
A34: 2013-01-28 | B34: XXXX | C34: XXXX | D34: XXXX | E34: XXXX | G34: 2013-01-28 | H34: 100
A35: 2013-01-29 | B35: XXXX | C35: XXXX | D35: XXXX | E35: XXXX | G35: 2013-01-29 | H35: 100
A36: 2013-01-30 | B36: XXXX | C36: XXXX | D36: XXXX | E36: XXXX | G36: 2013-01-30 | H36: 100
A37: 2013-01-31 | B37: XXXX | C37: XXXX | D37: XXXX | E37: XXXX | G37: 2013-01-31 | H37: 100
A38: 2013-02-01 | B38: XXXX | C38: XXXX | D38: XXXX | E38: XXXX | G38: 2013-02-01 | H38: 100
A39: 2013-02-02 | B39: XXXX | C39: XXXX | D39: XXXX | E39: XXXX | G39: 2013-02-02 | H39: 100
A40: 2013-02-03 | B40: XXXX | C40: XXXX | D40: XXXX | E40: XXXX | G40: 2013-02-03 | H40: 100
A41: 2013-02-04 | B41: XXXX | C41: XXXX | D41: XXXX | E41: XXXX | G41: 2013-02-04 | H41: 100
A42: 2013-02-05 | B42: XXXX | C42: XXXX | D42: XXXX | E42: XXXX | G42: 2013-02-05 | H42: 100
A43: 2013-02-06 | B43: XXXX | C43: XXXX | D43: XXXX | E43: XXXX | G43: 2013-02-06 | H43: 100
A44: 2013-02-07 | B44: XXXX | C44: XXXX | D44: XXXX | E44: XXXX | G44: 2013-02-07 | H44: 100
A45: 2013-02-08 | B45: XXXX | C45: XXXX | D45: XXXX | E45: XXXX | G45: 2013-02-08 | H45: 100
A46: 2013-02-09 | B46: XXXX | C46: XXXX | D46: XXXX | E46: XXXX | G46: 2013-02-09 | H46: 100
A47: 2013-02-10 | B47: XXXX | C47: XXXX | D47: XXXX | E47: XXXX | G47: 2013-02-10 | H47: 100
A48: 2013-02-11 | B48: XXXX | C48: XXXX | D48: XXXX | E48: XXXX | G48: 2013-02-11 | H48: 100
A49: 2013-02-12 | B49: XXXX | C49: XXXX | D49: XXXX | E49: XXXX | G49: 2013-02-12 | H49: 100
A50: 2013-02-13 | B50: XXXX | C50: XXXX | D50: XXXX | E50: XXXX | G50: 2013-02-13 | H50: 100
A51: 2013-02-14 | B51: XXXX | C51: XXXX | D51: XXXX | E51: XXXX | G51: 2013-02-14 | H51: 100
A52: 2013-02-15 | B52: XXXX | C52: XXXX | D52: XXXX | E52: XXXX | G52: 2013-02-15 | H52: 100
A53: 2013-02-16 | B53: XXXX | C53: XXXX | D53: XXXX | E53: XXXX | G53: 2013-02-16 | H53: 100
A54: 2013-02-17 | B54: XXXX | C54: XXXX | D54: XXXX | E54: XXXX | G54: 2013-02-17 | H54: 100
A55: 2013-02-18 | B55: XXXX | C55: XXXX | D55: XXXX | E55: XXXX | G55: 2013-02-18 | H55: 100
A56: 2013-02-19 | B56: XXXX | C56: XXXX | D56: XXXX | E56: XXXX | G56: 2013-02-19 | H56: 100
A57: 2013-02-20 | B57: XXXX | C57: XXXX | D57: XXXX | E57: XXXX | G57: 2013-02-20 | H57: 100
A58: 2013-02-21 | B58: XXXX | C58: XXXX | D58: XXXX | E58: XXXX | G58: 2013-02-21 | H58: 100
A59: 2013-02-22 | B59: XXXX | C59: XXXX | D59: XXXX | E59: XXXX | G59: 2013-02-22 | H59: 100
A60: 2013-02-23 | B60: XXXX | C60: XXXX | D60: XXXX | E60: XXXX | G60: 2013-02-23 | H60: 100
A61: 2013-02-24 | B61: XXXX | C61: XXXX | D61: XXXX | E61: XXXX | G61: 2013-02-24 | H61: 100
A62: 2013-02-25 | B62: XXXX | C62: XXXX | D62: XXXX | E62: XXXX | G62: 2013-02-25 | H62: 100
A63: 2013-02-26 | B63: XXXX | C63: XXXX | D63: XXXX | E63: XXXX | G63: 2013-02-26 | H63: 100
A64: 2013-02-27 | B64: XXXX | C64: XXXX | D64: XXXX | E64: XXXX | G64: 2013-02-27 | H64: 100
A65: 2013-02-28 | B65: XXXX | C65: XXXX | D65: XXXX | E65: XXXX | G65: 2013-02-28 | H65: 100
A66: 2013-03-01 | B66: XXXX | C66: XXXX | D66: XXXX | E66: XXXX | G66: 2013-03-01 | H66: 100
A67: 2013-03-02 | B67: XXXX | C67: XXXX | D67: XXXX | E67: XXXX | G67: 2013-03-02 | H67: 100
A68: 2013-03-03 | B68: XXXX | C68: XXXX | D68: XXXX | E68: XXXX | G68: 2013-03-03 | H68: 100
A69: 2013-03-04 | B69: XXXX | C69: XXXX | D69: XXXX | E69: XXXX | G69: 2013-03-04 | H69: 100
A70: 2013-03-05 | B70: XXXX | C70: XXXX | D70: XXXX | E70: XXXX | G70: 2013-03-05 | H70: 100
A71: 2013-03-06 | B71: XXXX | C71: XXXX | D71: XXXX | E71: XXXX | G71: 2013-03-06 | H71: 100
A72: 2013-03-07 | B72: XXXX | C72: XXXX | D72: XXXX | E72: XXXX | G72: 2013-03-07 | H72: 100
A73: 2013-03-08 | B73: XXXX | C73: XXXX | D73: XXXX | E73: XXXX | G73: 2013-03-08 | H73: 100
A74: 2013-03-09 | B74: XXXX | C74: XXXX | D74: XXXX | E74: XXXX | G74: 2013-03-09 | H74: 100
A75: 2013-03-10 | B75: XXXX | C75: XXXX | D75: XXXX | E75: XXXX | G75: 2013-03-10 | H75: 100
A76: 2013-03-11 | B76: XXXX | C76: XXXX | D76: XXXX | E76: XXXX | G76: 2013-03-11 | H76: 100
A77: 2013-03-12 | B77: XXXX | C77: XXXX | D77: XXXX | E77: XXXX | G77: 2013-03-12 | H77: 100
A78: 2013-03-13 | B78: XXXX | C78: XXXX | D78: XXXX | E78: XXXX | G78: 2013-03-13 | H78: 100
A79: 2013-03-14 | B79: XXXX | C79: XXXX | D79: XXXX | E79: XXXX | G79: 2013-03-14 | H79: 100
A80: 2013-03-15 | B80: XXXX | C80: XXXX | D80: XXXX | E80: XXXX | G80: 2013-03-15 | H80: 100
A81: 2013-03-16 | B81: XXXX | C81: XXXX | D81: XXXX | E81: XXXX | G81: 2013-03-16 | H81: 100
A82: 2013-03-17 | B82: XXXX | C82: XXXX | D82: XXXX | E82: XXXX | G82: 2013-03-17 | H82: 100
A83: 2013-03-18 | B83: XXXX | C83: XXXX | D83: XXXX | E83: XXXX | G83: 2013-03-18 | H83: 100
A84: 2013-03-19 | B84: XXXX | C84: XXXX | D84: XXXX | E84: XXXX | G84: 2013-03-19 | H84: 100
A85: 2013-03-20 | B85: XXXX | C85: XXXX | D85: XXXX | E85: XXXX | G85: 2013-03-20 | H85: 100
A86: 2013-03-21 | B86: XXXX | C86: XXXX | D86: XXXX | E86: XXXX | G86: 2013-03-21 | H86: 100
A87: 2013-03-22 | B87: XXXX | C87: XXXX | D87: XXXX | E87: XXXX | G87: 2013-03-22 | H87: 100
A88: 2013-03-23 | B88: XXXX | C88: XXXX | D88: XXXX | E88: XXXX | G88: 2013-03-23 | H88: 100
A89: 2013-03-24 | B89: XXXX | C89: XXXX | D89: XXXX | E89: XXXX | G89: 2013-03-24 | H89: 100
A90: 2013-03-25 | B90: XXXX | C90: XXXX | D90: XXXX | E90: XXXX | G90: 2013-03-25 | H90: 100
A91: 2013-03-26 | B91: XXXX | C91: XXXX | D91: XXXX | E91: XXXX | G91: 2013-03-26 | H91: 100
A92: 2013-03-27 | B92: XXXX | C92: XXXX | D92: XXXX | E92: XXXX | G92: 2013-03-27 | H92: 100
A93: 2013-03-28 | B93: XXXX | C93: XXXX | D93: XXXX | E93: XXXX | G93: 2013-03-28 | H93: 100
A94: 2013-03-29 | B94: XXXX | C94: XXXX | D94: XXXX | E94: XXXX | G94: 2013-03-29 | H94: 100
A95: 2013-03-30 | B95: XXXX | C95: XXXX | D95: XXXX | E95: XXXX | G95: 2013-03-30 | H95: 100
A96: 2013-03-31 | B96: XXXX | C96: XXXX | D96: XXXX | E96: XXXX | G96: 2013-03-31 | H96: 100
A97: 2013-04-01 | B97: XXXX | C97: XXXX | D97: XXXX | E97: XXXX | G97: 2013-04-01 | H97: 100
A98: 2013-04-02 | B98: XXXX | C98: XXXX | D98: XXXX | E98: XXXX | G98: 2013-04-02 | H98: 100
A99: 2013-04-03 | B99: XXXX | C99: XXXX | D99: XXXX | E99: XXXX | G99: 2013-04-03 | H99: 100
A100: 2013-04-04 | B100: XXXX | C100: XXXX | D100: XXXX | E100: XXXX | G100: 2013-04-04 | H100: 100
A101: 2013-04-05 | B101: XXXX | C101: XXXX | D101: XXXX | E101: XXXX | G101: 2013-04-05 | H101: 100
A102: 2013-04-06 | B102: XXXX | C102: XXXX | D102: XXXX | E102: XXXX | G102: 2013-04-06 | H102: 100
A103: 2013-04-07 | B103: XXXX | C103: XXXX | D103: XXXX | E103: XXXX | G103: 2013-04-07 | H103: 100
A104: 2013-04-08 | B104: XXXX | C104: XXXX | D104: XXXX | E104: XXXX | G104: 2013-04-08 | H104: 100
A105: 2013-04-09 | B105: XXXX | C105: XXXX | D105: XXXX | E105: XXXX | G105: 2013-04-09 | H105: 100
A106: 2013-04-10 | B106: XXXX | C106: XXXX | D106: XXXX | E106: XXXX | G106: 2013-04-10 | H106: 100
A107: 2013-04-11 | B107: XXXX | C107: XXXX | D107: XXXX | E107: XXXX | G107: 2013-04-11 | H107: 100
A108: 2013-04-12 | B108: XXXX | C108: XXXX | D108: XXXX | E108: XXXX | G108: 2013-04-12 | H108: 100
A109: 2013-04-13 | B109: XXXX | C109: XXXX | D109: XXXX | E109: XXXX | G109: 2013-04-13 | H109: 100
A110: 2013-04-14 | B110: XXXX | C110: XXXX | D110: XXXX | E110: XXXX | G110: 2013-04-14 | H110: 100
A111: 2013-04-15 | B111: XXXX | C111: XXXX | D111: XXXX | E111: XXXX | G111: 2013-04-15 | H111: 100
A112: 2013-04-16 | B112: XXXX | C112: XXXX | D112: XXXX | E112: XXXX | G112: 2013-04-16 | H112: 100
A113: 2013-04-17 | B113: XXXX | C113: XXXX | D113: XXXX | E113: XXXX | G113: 2013-04-17 | H113: 100
A114: 2013-04-18 | B114: XXXX | C114: XXXX | D114: XXXX | E114: XXXX | G114: 2013-04-18 | H114: 100
A115: 2013-04-19 | B115: XXXX | C115: XXXX | D115: XXXX | E115: XXXX | G115: 2013-04-19 | H115: 100
A116: 2013-04-20 | B116: XXXX | C116: XXXX | D116: XXXX | E116: XXXX | G116: 2013-04-20 | H116: 100
A117: 2013-04-21 | B117: XXXX | C117: XXXX | D117: XXXX | E117: XXXX | G117: 2013-04-21 | H117: 100
A118: 2013-04-22 | B118: XXXX | C118: XXXX | D118: XXXX | E118: XXXX | G118: 2013-04-22 | H118: 100
A119: 2013-04-23 | B119: XXXX | C119: XXXX | D119: XXXX | E119: XXXX | G119: 2013-04-23 | H119: 100
A120: 2013-04-24 | B120: XXXX | C120: XXXX | D120: XXXX | E120: XXXX | G120: 2013-04-24 | H120: 100
A121: 2013-04-25 | B121: XXXX | C121: XXXX | D121: XXXX | E121: XXXX | G121: 2013-04-25 | H121: 100
A122: 2013-04-26 | B122: XXXX | C122: XXXX | D122: XXXX | E122: XXXX | G122: 2013-04-26 | H122: 100
A123: 2013-04-27 | B123: XXXX | C123: XXXX | D123: XXXX | E123: XXXX | G123: 2013-04-27 | H123: 100
A124: 2013-04-28 | B124: XXXX | C124: XXXX | D124: XXXX | E124: XXXX | G124: 2013-04-28 | H124: 100
A125: 2013-04-29 | B125: XXXX | C125: XXXX | D125: XXXX | E125: XXXX | G125: 2013-04-29 | H125: 100
A126: 2013-04-30 | B126: XXXX | C126: XXXX | D126: XXXX | E126: XXXX | G126: 2013-04-30 | H126: 100
A127: 2013-05-01 | B127: XXXX | C127: XXXX | D127: XXXX | E127: XXXX | G127: 2013-05-01 | H127: 1000
A128: 2013-05-02 | B128: XXXX | C128: XXXX | D128: XXXX | E128: XXXX | G128: 2013-05-02 | H128: 1000
A129: 2013-05-03 | B129: XXXX | C129: XXXX | D129: XXXX | E129: XXXX | G129: 2013-05-03 | H129: 1000
A130: 2013-05-04 | B130: XXXX | C130: XXXX | D130: XXXX | E130: XXXX | G130: 2013-05-04 | H130: 1000
A131: 2013-05-05 | B131: XXXX | C131: XXXX | D131: XXXX | E131: XXXX | G131: 2013-05-05 | H131: 1000
A132: 2013-05-06 | B132: XXXX | C132: XXXX | D132: XXXX | E132: XXXX | G132: 2013-05-06 | H132: 1000
A133: 2013-05-07 | B133: XXXX | C133: XXXX | D133: XXXX | E133: XXXX | G133: 2013-05-07 | H133: 1000
A134: 2013-05-08 | B134: XXXX | C134: XXXX | D134: XXXX | E134: XXXX | G134: 2013-05-08 | H134: 1000
A135: 2013-05-09 | B135: XXXX | C135: XXXX | D135: XXXX | E135: XXXX | G135: 2013-05-09 | H135: 1000
A136: 2013-05-10 | B136: XXXX | C136: XXXX | D136: XXXX | E136: XXXX | G136: 2013-05-10 | H136: 1000
A137: 2013-05-11 | B137: XXXX | C137: XXXX | D137: XXXX | E137: XXXX | G137: 2013-05-11 | H137: 1000
A138: 2013-05-12 | B138: XXXX | C138: XXXX | D138: XXXX | E138: XXXX | G138: 2013-05-12 | H138: 1000
A139: 2013-05-13 | B139: XXXX | C139: XXXX | D139: XXXX | E139: XXXX | G139: 2013-05-13 | H139: 1000
A140: 2013-05-14 | B140: XXXX | C140: XXXX | D140: XXXX | E140: XXXX | G140: 2013-05-14 | H140: 1000
A141: 2013-05-15 | B141: XXXX | C141: XXXX | D141: XXXX | E141: XXXX | G141: 2013-05-15 | H141: 1000
A142: 2013-05-16 | B142: XXXX | C142: XXXX | D142: XXXX | E142: XXXX | G142: 2013-05-16 | H142: 1000
A143: 2013-05-17 | B143: XXXX | C143: XXXX | D143: XXXX | E143: XXXX | G143: 2013-05-17 | H143: 1000
A144: 2013-05-18 | B144: XXXX | C144: XXXX | D144: XXXX | E144: XXXX | G144: 2013-05-18 | H144: 1000
A145: 2013-05-19 | B145: XXXX | C145: XXXX | D145: XXXX | E145: XXXX | G145: 2013-05-19 | H145: 1000
A146: 2013-05-20 | B146: XXXX | C146: XXXX | D146: XXXX | E146: XXXX | G146: 2013-05-20 | H146: 1000
A147: 2013-05-21 | B147: XXXX | C147: XXXX | D147: XXXX | E147: XXXX | G147: 2013-05-21 | H147: 1000
A148: 2013-05-22 | B148: XXXX | C148: XXXX | D148: XXXX | E148: XXXX | G148: 2013-05-22 | H148: 1000
A149: 2013-05-23 | B149: XXXX | C149: XXXX | D149: XXXX | E149: XXXX | G149: 2013-05-23 | H149: 1000
A150: 2013-05-24 | B150: XXXX | C150: XXXX | D150: XXXX | E150: XXXX | G150: 2013-05-24 | H150: 1000
A151: 2013-05-25 | B151: XXXX | C151: XXXX | D151: XXXX | E151: XXXX | G151: 2013-05-25 | H151: 1000
A152: 2013-05-26 | B152: XXXX | C152: XXXX | D152: XXXX | E152: XXXX | G152: 2013-05-26 | H152: 1000
A153: 2013-05-27 | B153: XXXX | C153: XXXX | D153: XXXX | E153: XXXX | G153: 2013-05-27 | H153: 1000
A154: 2013-05-28 | B154: XXXX | C154: XXXX | D154: XXXX | E154: XXXX | G154: 2013-05-28 | H154: 1000
A155: 2013-05-29 | B155: XXXX | C155: XXXX | D155: XXXX | E155: XXXX | G155: 2013-05-29 | H155: 1000
A156: 2013-05-30 | B156: XXXX | C156: XXXX | D156: XXXX | E156: XXXX | G156: 2013-05-30 | H156: 1000
A157: 2013-05-31 | B157: XXXX | C157: XXXX | D157: XXXX | E157: XXXX | G157: 2013-05-31 | H157: 1000
A158: 2013-06-01 | B158: XXXX | C158: XXXX | D158: XXXX | E158: XXXX | G158: 2013-06-01 | H158: 1000
A159: 2013-06-02 | B159: XXXX | C159: XXXX | D159: XXXX | E159: XXXX | G159: 2013-06-02 | H159: 1000
A160: 2013-06-03 | B160: XXXX | C160: XXXX | D160: XXXX | E160: XXXX | G160: 2013-06-03 | H160: 1000
A161: 2013-06-04 | B161: XXXX | C161: XXXX | D161: XXXX | E161: XXXX | G161: 2013-06-04 | H161: 1000
A162: 2013-06-05 | B162: XXXX | C162: XXXX | D162: XXXX | E162: XXXX | G162: 2013-06-05 | H162: 1000
A163: 2013-06-06 | B163: XXXX | C163: XXXX | D163: XXXX | E163: XXXX | G163: 2013-06-06 | H163: 1000
A164: 2013-06-07 | B164: XXXX | C164: XXXX | D164: XXXX | E164: XXXX | G164: 2013-06-07 | H164: 1000
A165: 2013-06-08 | B165: XXXX | C165: XXXX | D165: XXXX | E165: XXXX | G165: 2013-06-08 | H165: 1000
A166: 2013-06-09 | B166: XXXX | C166: XXXX | D166: XXXX | E166: XXXX | G166: 2013-06-09 | H166: 1000
A167: 2013-06-10 | B167: XXXX | C167: XXXX | D167: XXXX | E167: XXXX | G167: 2013-06-10 | H167: 1000
A168: 2013-06-11 | B168: XXXX | C168: XXXX | D168: XXXX | E168: XXXX | G168: 2013-06-11 | H168: 1000
A169: 2013-06-12 | B169: XXXX | C169: XXXX | D169: XXXX | E169: XXXX | G169: 2013-06-12 | H169: 1000
A170: 2013-06-13 | B170: XXXX | C170: XXXX | D170: XXXX | E170: XXXX | G170: 2013-06-13 | H170: 1000
A171: 2013-06-14 | B171: XXXX | C171: XXXX | D171: XXXX | E171: XXXX | G171: 2013-06-14 | H171: 1000
A172: 2013-06-15 | B172: XXXX | C172: XXXX | D172: XXXX | E172: XXXX | G172: 2013-06-15 | H172: 1000
A173: 2013-06-16 | B173: XXXX | C173: XXXX | D173: XXXX | E173: XXXX | G173: 2013-06-16 | H173: 1000
A174: 2013-06-17 | B174: XXXX | C174: XXXX | D174: XXXX | E174: XXXX | G174: 2013-06-17 | H174: 1000
A175: 2013-06-18 | B175: XXXX | C175: XXXX | D175: XXXX | E175: XXXX | G175: 2013-06-18 | H175: 1000
A176: 2013-06-19 | B176: XXXX | C176: XXXX | D176: XXXX | E176: XXXX | G176: 2013-06-19 | H176: 1000
A177: 2013-06-20 | B177: XXXX | C177: XXXX | D177: XXXX | E177: XXXX | G177: 2013-06-20 | H177: 1000
A178: 2013-06-21 | B178: XXXX | C178: XXXX | D178: XXXX | E178: XXXX | G178: 2013-06-21 | H178: 1000
A179: 2013-06-22 | B179: XXXX | C179: XXXX | D179: XXXX | E179: XXXX | G179: 2013-06-22 | H179: 1000
A180: 2013-06-23 | B180: XXXX | C180: XXXX | D180: XXXX | E180: XXXX | G180: 2013-06-23 | H180: 1000
A181: 2013-06-24 | B181: XXXX | C181: XXXX | D181: XXXX | E181: XXXX | G181: 2013-06-24 | H181: 1000
A182: 2013-06-25 | B182: XXXX | C182: XXXX | D182: XXXX | E182: XXXX | G182: 2013-06-25 | H182: 1000
A183: 2013-06-26 | B183: XXXX | C183: XXXX | D183: XXXX | E183: XXXX | G183: 2013-06-26 | H183: 1000
A184: 2013-06-27 | B184: XXXX | C184: XXXX | D184: XXXX | E184: XXXX | G184: 2013-06-27 | H184: 1000
A185: 2013-06-28 | B185: XXXX | C185: XXXX | D185: XXXX | E185: XXXX | G185: 2013-06-28 | H185: 1000
A186: 2013-06-29 | B186: XXXX | C186: XXXX | D186: XXXX | E186: XXXX | G186: 2013-06-29 | H186: 1000
A187: 2013-06-30 | B187: XXXX | C187: XXXX | D187: XXXX | E187: XXXX | G187: 2013-06-30 | H187: 1000
A188: 2013-07-01 | B188: XXXX | C188: XXXX | D188: XXXX | E188: XXXX | G188: 2013-07-01 | H188: 100
A189: 2013-07-02 | B189: XXXX | C189: XXXX | D189: XXXX | E189: XXXX | G189: 2013-07-02 | H189: 100
A190: 2013-07-03 | B190: XXXX | C190: XXXX | D190: XXXX | E190: XXXX | G190: 2013-07-03 | H190: 100
A191: 2013-07-04 | B191: XXXX | C191: XXXX | D191: XXXX | E191: XXXX | G191: 2013-07-04 | H191: 200
A192: 2013-07-05 | B192: XXXX | C192: XXXX | D192: XXXX | E192: XXXX | G192: 2013-07-05 | H192: 100
A193: 2013-07-06 | B193: XXXX | C193: XXXX | D193: XXXX | E193: XXXX | G193: 2013-07-06 | H193: 200
A194: 2013-07-07 | B194: XXXX | C194: XXXX | D194: XXXX | E194: XXXX | G194: 2013-07-07 | H194: 200
A195: 2013-07-08 | B195: XXXX | C195: XXXX | D195: XXXX | E195: XXXX | G195: 2013-07-08 | H195: 100
A196: 2013-07-09 | B196: XXXX | C196: XXXX | D196: XXXX | E196: XXXX | G196: 2013-07-09 | H196: 100
A197: 2013-07-10 | B197: XXXX | C197: XXXX | D197: XXXX | E197: XXXX | G197: 2013-07-10 | H197: 100
A198: 2013-07-11 | B198: XXXX | C198: XXXX | D198: XXXX | E198: XXXX | G198: 2013-07-11 | H198: 100
A199: 2013-07-12 | B199: XXXX | C199: XXXX | D199: XXXX | E199: XXXX | G199: 2013-07-12 | H199: 100
A200: 2013-07-13 | B200: XXXX | C200: XXXX | D200: XXXX | E200: XXXX | G200: 2013-07-13 | H200: 200
A201: 2013-07-14 | B201: XXXX | C201: XXXX | D201: XXXX | E201: XXXX | G201: 2013-07-14 | H201: 200
A202: 2013-07-15 | B202: XXXX | C202: XXXX | D202: XXXX | E202: XXXX | G202: 2013-07-15 | H202: 100
... 169 more rows

Sheet inflow inputs
A1: Snoqualmie annual generation estimate
A2: inflow inputs (average daily cfs)
C4: 1927 | D4: 1928 | E4: 1929 | F4: 1930 | G4: 1931 | H4: 1932 | I4: 1933 | J4: 1934 | K4: 1935 | L4: 1936 | M4: 1937 | N4: 1938 | O4: 1939 | P4: 1940 | Q4: 1941 | R4: 1942 | S4: 1943 | T4: 1944 | U4: 1945 | V4: 1946 | W4: 1947 | X4: 1948 | Y4: 1949 | Z4: 1950 | AA4: 1951 | AB4: 1952 | AC4: 1953 | AD4: 1954 | AE4: 1955 | AF4: 1956 | AG4: 1957 | AH4: 1958 | AI4: 1959 | AJ4: 1960 | AK4: 1961 | AL4: 1962 | AM4: 1963 | AN4: 1964 | AO4: 1965 | AP4: 1966 | AQ4: 1967 | AR4: 1968 | AS4: 1969 | AT4: 1970 | AU4: 1971 | AV4: 1972 | AW4: 1973 | AX4: 1974 | AY4: 1975 | AZ4: 1976 | BA4: 1977 | BB4: 1978 | BC4: 1979 | BD4: 1980 | BE4: 1981 | BF4: 1982 | BG4: 1983 | BH4: 1984 | BI4: 1985 | BJ4: 1986 | BK4: 1987 | BL4: 1988 | BM4: 1989 | BN4: 1990 | BO4: 1991 | BP4: 1992 | BQ4: 1993 | BR4: 1994 | BS4: 1995 | BT4: 1996 | BU4: 1997 | BV4: 1998 | BW4: 1999 | BX4: 2000 | BY4: 2001 | BZ4: 2002 | CA4: 2003 | CB4: 2004 | CC4: 2005 | CD4: 2006 | CE4: 2007 | CF4: 2008 | CG4: 2009 | CH4: 2010 | CI4: AVERAGE
B5: 2013-01-01 | C5: 2685 | D5: 1240 | E5: 1240 | F5: 4997 | G5: 766 | H5: 1340 | I5: 2685 | J5: 5440 | K5: 2080 | L5: 5060 | M5: 1305 | N5: 4340 | O5: 11730 | P5: 5440 | Q5: 1640 | R5: 1340 | S5: 3570 | T5: 1305 | U5: 1036 | V5: 5250 | W5: 1608 | X5: 4100 | Y5: 1298 | Z5: 3570 | AA5: 3600 | AB5: 1167 | AC5: 792 | AD5: 5098 | AE5: 5250 | AF5: 2049 | AG5: 2180 | AH5: 2225 | AI5: 9240 | AJ5: 1340 | AK5: 1460 | AL5: 3850 | AM5: 6370 | AN5: 9970 | AO5: 1700 | AP5: 1090 | AQ5: 4640 | AR5: 3210 | AS5: 2200 | AT5: 1390 | AU5: 2160 | AV5: 1820 | AW5: 2750 | AX5: 1900 | AY5: 2000 | AZ5: 3740 | BA5: 1800 | BB5: 1340 | BC5: 1030 | BD5: 2050 | BE5: 3790 | BF5: 1300 | BG5: 1130 | BH5: 2420 | BI5: 1580 | BJ5: 1080 | BK5: 2380 | BL5: 750 | BM5: 3000 | BN5: 1650 | BO5: 1900 | BP5: 1230 | BQ5: 1280 | BR5: 2840 | BS5: 2630 | BT5: 5290 | BU5: 17400 | BV5: 4400 | BW5: 7090 | BX5: 2830 | BY5: 2240 | BZ5: 1580 | CA5: 1410 | CB5: 1050 | CC5: 1440 | CD5: 5100 | CE5: 1460 | CF5: 1340 | CG5: 2250 | CH5: 2260 | CI5: =AVERAGE(C5:CH5) -> 2983.047619
B6: 2013-01-02 | C6: 2815 | D6: 2180 | E6: 1720 | F6: 3945 | G6: 806 | H6: 1480 | I6: 2815 | J6: 5250 | K6: 2750 | L6: 7820 | M6: 1150 | N6: 3570 | O6: 13200 | P6: 4690 | Q6: 1480 | R6: 1340 | S6: 2880 | T6: 1760 | U6: 1180 | V6: 5250 | W6: 1520 | X6: 7199 | Y6: 1210 | Z6: 2906 | AA6: 5345 | AB6: 1245 | AC6: 1749 | AD6: 3945 | AE6: 3600 | AF6: 1991 | AG6: 2342 | AH6: 2008 | AI6: 5450 | AJ6: 1280 | AK6: 1400 | AL6: 4150 | AM6: 9120 | AN6: 8190 | AO6: 1900 | AP6: 1250 | AQ6: 3370 | AR6: 2700 | AS6: 2600 | AT6: 1290 | AU6: 1670 | AV6: 3410 | AW6: 2860 | AX6: 1750 | AY6: 1890 | AZ6: 3060 | BA6: 1600 | BB6: 1260 | BC6: 980 | BD6: 2240 | BE6: 3050 | BF6: 1240 | BG6: 1160 | BH6: 5090 | BI6: 1500 | BJ6: 1180 | BK6: 2350 | BL6: 716 | BM6: 2710 | BN6: 1610 | BO6: 1750 | BP6: 1960 | BQ6: 1190 | BR6: 3370 | BS6: 2300 | BT6: 4550 | BU6: 15600 | BV6: 5430 | BW6: 4840 | BX6: 2480 | BY6: 1740 | BZ6: 1830 | CA6: 3200 | CB6: 1010 | CC6: 1320 | CD6: 3670 | CE6: 8310 | CF6: 1310 | CG6: 2760 | CH6: 4810 | CI6: =AVERAGE(C6:CH6) -> 3102.345238
B7: 2013-01-03 | C7: 2445 | D7: 9825 | E7: 1760 | F7: 3360 | G7: 870 | H7: 1210 | I7: 2445 | J7: 11160 | K7: 4870 | L7: 5640 | M7: 1030 | N7: 2945 | O7: 8290 | P7: 3870 | Q7: 1340 | R7: 1270 | S7: 2685 | T7: 1520 | U7: 948 | V7: 4510 | W7: 1389 | X7: 5136 | Y7: 1000 | Z7: 2489 | AA7: 6271 | AB7: 915 | AC7: 5980 | AD7: 3645 | AE7: 2750 | AF7: 2324 | AG7: 2144 | AH7: 1765 | AI7: 3850 | AJ7: 1220 | AK7: 1200 | AL7: 15700 | AM7: 9500 | AN7: 4800 | AO7: 1900 | AP7: 1190 | AQ7: 6070 | AR7: 2320 | AS7: 2060 | AT7: 1210 | AU7: 1460 | AV7: 2360 | AW7: 2400 | AX7: 1580 | AY7: 1820 | AZ7: 2750 | BA7: 1470 | BB7: 1420 | BC7: 940 | BD7: 2000 | BE7: 2620 | BF7: 1200 | BG7: 1300 | BH7: 14200 | BI7: 1450 | BJ7: 1220 | BK7: 2780 | BL7: 679 | BM7: 4110 | BN7: 1520 | BO7: 1550 | BP7: 1770 | BQ7: 1180 | BR7: 3940 | BS7: 2050 | BT7: 10000 | BU7: 10600 | BV7: 3530 | BW7: 3810 | BX7: 2290 | BY7: 1630 | BZ7: 2070 | CA7: 4440 | CB7: 977 | CC7: 1230 | CD7: 2990 | CE7: 10900 | CF7: 1360 | CG7: 2160 | CH7: 3700 | CI7: 3336.630952
B8: 2013-01-04 | C8: 3720 | D8: 11750 | E8: 1480 | F8: 3010 | G8: 1030 | H8: 1340 | I8: 3720 | J8: 8770 | K8: 3870 | L8: 7820 | M8: 1210 | N8: 2620 | O8: 5640 | P8: 3150 | Q8: 1270 | R8: 1180 | S8: 2500 | T8: 1305 | U8: 920 | V8: 4965 | W8: 1319 | X8: 4391 | Y8: 959 | Z8: 2280 | AA8: 4180 | AB8: 782 | AC8: 3276 | AD8: 4068 | AE8: 2342 | AF8: 3870 | AG8: 1942 | AH8: 1849 | AI8: 3020 | AJ8: 1140 | AK8: 1220 | AL8: 9620 | AM8: 5520 | AN8: 3810 | AO8: 1600 | AP8: 1140 | AQ8: 4810 | AR8: 2160 | AS8: 9830 | AT8: 1130 | AU8: 1340 | AV8: 1960 | AW8: 2070 | AX8: 1460 | AY8: 1940 | AZ8: 4540 | BA8: 1340 | BB8: 3980 | BC8: 910 | BD8: 1730 | BE8: 2300 | BF8: 1150 | BG8: 2240 | BH8: 23700 | BI8: 1470 | BJ8: 1170 | BK8: 2770 | BL8: 699 | BM8: 8770 | BN8: 2770 | BO8: 1430 | BP8: 1540 | BQ8: 1150 | BR8: 6290 | BS8: 1850 | BT8: 6420 | BU8: 6310 | BV8: 2830 | BW8: 3230 | BX8: 3700 | BY8: 2220 | BZ8: 1940 | CA8: 4380 | CB8: 914 | CC8: 1160 | CD8: 2680 | CE8: 5880 | CF8: 1470 | CG8: 1870 | CH8: 3160 | CI8: 3288.821429
B9: 2013-01-05 | C9: 7820 | D9: 8050 | E9: 1251 | F9: 2500 | G9: 1520 | H9: 1480 | I9: 7820 | J9: 9530 | K9: 4690 | L9: 8530 | M9: 1240 | N9: 2280 | O9: 4100 | P9: 2880 | Q9: 1210 | R9: 1054 | S9: 2180 | T9: 1210 | U9: 2335 | V9: 5440 | W9: 1340 | X9: 3585 | Y9: 959 | Z9: 2090 | AA9: 3500 | AB9: 782 | AC9: 2207 | AD9: 5920 | AE9: 2108 | AF9: 3900 | AG9: 1780 | AH9: 2024 | AI9: 2900 | AJ9: 1110 | AK9: 5040 | AL9: 6130 | AM9: 3970 | AN9: 3170 | AO9: 1550 | AP9: 1330 | AQ9: 3820 | AR9: 2070 | AS9: 34100 | AT9: 1040 | AU9: 1210 | AV9: 1870 | AW9: 1940 | AX9: 1320 | AY9: 2190 | AZ9: 6270 | BA9: 1220 | BB9: 4200 | BC9: 880 | BD9: 1640 | BE9: 2080 | BF9: 1090 | BG9: 16100 | BH9: 16300 | BI9: 1450 | BJ9: 1190 | BK9: 2250 | BL9: 681 | BM9: 4720 | BN9: 4090 | BO9: 1340 | BP9: 1410 | BQ9: 1060 | BR9: 6210 | BS9: 1710 | BT9: 4290 | BU9: 4610 | BV9: 2880 | BW9: 2860 | BX9: 3310 | BY9: 5830 | BZ9: 1780 | CA9: 5980 | CB9: 806 | CC9: 1080 | CD9: 2430 | CE9: 4020 | CF9: 1570 | CG9: 2340 | CH9: 7870 | CI9: 3685.97619
B10: 2013-01-06 | C10: 7590 | D10: 8770 | E10: 1036 | F10: 2080 | G10: 1640 | H10: 2390 | I10: 7590 | J10: 6250 | K10: 4870 | L10: 4690 | M10: 942 | N10: 2080 | O10: 3150 | P10: 2335 | Q10: 1180 | R10: 1000 | S10: 1935 | T10: 1024 | U10: 4260 | V10: 5640 | W10: 1410 | X10: 3990 | Y10: 1120 | Z10: 1962 | AA10: 2893 | AB10: 732 | AC10: 1866 | AD10: 8170 | AE10: 1908 | AF10: 3318 | AG10: 1685 | AH10: 1825 | AI10: 2700 | AJ10: 1270 | AK10: 7850 | AL10: 6970 | AM10: 3080 | AN10: 4330 | AO10: 1460 | AP10: 3810 | AQ10: 2960 | AR10: 1850 | AS10: 13700 | AT10: 1020 | AU10: 1150 | AV10: 2180 | AW10: 1690 | AX10: 1260 | AY10: 2310 | AZ10: 4060 | BA10: 1130 | BB10: 3660 | BC10: 860 | BD10: 1440 | BE10: 1900 | BF10: 991 | BG10: 10000 | BH10: 9400 | BI10: 1440 | BJ10: 1940 | BK10: 1900 | BL10: 657 | BM10: 3410 | BN10: 6490 | BO10: 1280 | BP10: 1300 | BQ10: 968 | BR10: 4100 | BS10: 1590 | BT10: 4160 | BU10: 3980 | BV10: 3860 | BW10: 2600 | BX10: 2610 | BY10: 4590 | BZ10: 2090 | CA10: 3460 | CB10: 811 | CC10: 1100 | CD10: 5770 | CE10: 4330 | CF10: 1450 | CG10: 4600 | CH10: 7090 | CI10: 3237.357143
B11: 2013-01-07 | C11: 11891 | D11: 6040 | E11: 915 | F11: 1760 | G11: 1445 | H11: 2080 | I11: 11891 | J11: 4690 | K11: 3720 | L11: 3430 | M11: 815 | N11: 1935 | O11: 2750 | P11: 1980 | Q11: 1150 | R11: 970 | S11: 1800 | T11: 865 | U11: 20270 | V11: 3870 | W11: 1282 | X11: 4834 | Y11: 2750 | Z11: 1980 | AA11: 2536 | AB11: 782 | AC11: 2729 | AD11: 6208 | AE11: 1725 | AF11: 2919 | AG11: 1701 | AH11: 1908 | AI11: 2450 | AJ11: 1240 | AK11: 5050 | AL11: 14900 | AM11: 2640 | AN11: 3720 | AO11: 1370 | AP11: 5780 | AQ11: 2620 | AR11: 1750 | AS11: 9030 | AT11: 987 | AU11: 1110 | AV11: 2510 | AW11: 1510 | AX11: 1160 | AY11: 2010 | AZ11: 3360 | BA11: 1080 | BB11: 2680 | BC11: 840 | BD11: 1320 | BE11: 1760 | BF11: 1010 | BG11: 15200 | BH11: 7310 | BI11: 1440 | BJ11: 1780 | BK11: 1680 | BL11: 648 | BM11: 2760 | BN11: 9590 | BO11: 1350 | BP11: 1190 | BQ11: 913 | BR11: 2960 | BS11: 1510 | BT11: 15700 | BU11: 9870 | BV11: 3950 | BW11: 2900 | BX11: 2420 | BY11: 3080 | BZ11: 14200 | CA11: 2670 | CB11: 936 | CC11: 1100 | CD11: 6870 | CE11: 5810 | CF11: 1330 | CG11: 43200 | CH11: 4200 | CI11: 4215.178571
B12: 2013-01-08 | C12: 21280 | D12: 6900 | E12: 875 | F12: 1560 | G12: 1240 | H12: 1800 | I12: 21280 | J12: 3795 | K12: 3010 | L12: 3080 | M12: 770 | N12: 1800 | O12: 3360 | P12: 1800 | Q12: 1090 | R12: 994 | S12: 1640 | T12: 1084 | U12: 9020 | V12: 3795 | W12: 1240 | X12: 4726 | Y12: 2919 | Z12: 1854 | AA12: 2324 | AB12: 782 | AC12: 5440 | AD12: 5345 | AE12: 1618 | AF12: 2510 | AG12: 1663 | AH12: 1818 | AI12: 2850 | AJ12: 1170 | AK12: 4160 | AL12: 11100 | AM12: 2450 | AN12: 2860 | AO12: 1370 | AP12: 5020 | AQ12: 3400 | AR12: 1700 | AS12: 5590 | AT12: 977 | AU12: 1810 | AV12: 2390 | AW12: 1300 | AX12: 1100 | AY12: 2120 | AZ12: 3880 | BA12: 1000 | BB12: 4910 | BC12: 825 | BD12: 1270 | BE12: 1630 | BF12: 1000 | BG12: 22400 | BH12: 5650 | BI12: 1430 | BJ12: 1600 | BK12: 1520 | BL12: 642 | BM12: 2480 | BN12: 8260 | BO12: 1890 | BP12: 1110 | BQ12: 917 | BR12: 2600 | BS12: 1470 | BT12: 9810 | BU12: 8110 | BV12: 3090 | BW12: 2770 | BX12: 3030 | BY12: 2420 | BZ12: 17800 | CA12: 2300 | CB12: 1370 | CC12: 1030 | CD12: 5410 | CE12: 6470 | CF12: 1270 | CG12: 45300 | CH12: 3370 | CI12: 4212.059524
B13: 2013-01-09 | C13: 15730 | D13: 8050 | E13: 845 | F13: 1375 | G13: 1150 | H13: 5019 | I13: 15730 | J13: 3430 | K13: 2560 | L13: 2685 | M13: 840 | N13: 1720 | O13: 3570 | P13: 1640 | Q13: 1090 | R13: 1120 | S13: 1600 | T13: 865 | U13: 5640 | V13: 2945 | W13: 1222 | X13: 3645 | Y13: 2040 | Z13: 1696 | AA13: 2110 | AB13: 782 | AC13: 13470 | AD13: 4052 | AE13: 1530 | AF13: 2261 | AG13: 1538 | AH13: 1857 | AI13: 4300 | AJ13: 1130 | AK13: 4580 | AL13: 7270 | AM13: 2610 | AN13: 2640 | AO13: 1310 | AP13: 3660 | AQ13: 4520 | AR13: 1900 | AS13: 4480 | AT13: 1010 | AU13: 7100 | AV13: 3300 | AW13: 1280 | AX13: 1040 | AY13: 1870 | AZ13: 3520 | BA13: 942 | BB13: 4190 | BC13: 810 | BD13: 1210 | BE13: 1540 | BF13: 1080 | BG13: 8650 | BH13: 4140 | BI13: 1350 | BJ13: 1780 | BK13: 1400 | BL13: 659 | BM13: 3610 | BN13: 24100 | BO13: 2080 | BP13: 1100 | BQ13: 883 | BR13: 3360 | BS13: 1540 | BT13: 5650 | BU13: 5190 | BV13: 2480 | BW13: 2490 | BX13: 3330 | BY13: 2110 | BZ13: 9600 | CA13: 2110 | CB13: 1840 | CC13: 983 | CD13: 6420 | CE13: 5010 | CF13: 1250 | CG13: 14900 | CH13: 4800 | CI13: 3618.02381
B14: 2013-01-10 | C14: 9270 | D14: 6250 | E14: 792 | F14: 1210 | G14: 1706 | H14: 4510 | I14: 9270 | J14: 3795 | K14: 2230 | L14: 2750 | M14: 749 | N14: 2750 | O14: 4510 | P14: 1640 | Q14: 1560 | R14: 1480 | S14: 1520 | T14: 784 | U14: 4870 | V14: 2560 | W14: 1760 | X14: 3304 | Y14: 1800 | Z14: 1600 | AA14: 1953 | AB14: 782 | AC14: 8338 | AD14: 3402 | AE14: 1430 | AF14: 2057 | AG14: 1502 | AH14: 1757 | AI14: 4600 | AJ14: 1090 | AK14: 4040 | AL14: 4940 | AM14: 2190 | AN14: 2670 | AO14: 1240 | AP14: 2790 | AQ14: 3760 | AR14: 1800 | AS14: 3700 | AT14: 1000 | AU14: 6040 | AV14: 2550 | AW14: 1280 | AX14: 1000 | AY14: 1650 | AZ14: 3280 | BA14: 906 | BB14: 3390 | BC14: 823 | BD14: 1170 | BE14: 1440 | BF14: 1030 | BG14: 11900 | BH14: 3520 | BI14: 1250 | BJ14: 1800 | BK14: 1340 | BL14: 833 | BM14: 3700 | BN14: 19500 | BO14: 2370 | BP14: 1390 | BQ14: 820 | BR14: 3900 | BS14: 2100 | BT14: 4540 | BU14: 4230 | BV14: 2150 | BW14: 5740 | BX14: 2790 | BY14: 1870 | BZ14: 5420 | CA14: 1830 | CB14: 2550 | CC14: 940 | CD14: 15800 | CE14: 4520 | CF14: 1560 | CG14: 7640 | CH14: 3980 | CI14: 3241.107143
B15: 2013-01-11 | C15: 5840 | D15: 10230 | E15: 770 | F15: 1186 | G15: 4340 | H15: 13826 | I15: 5840 | J15: 3500 | K15: 2080 | L15: 3945 | M15: 654 | N15: 3795 | O15: 4510 | P15: 1480 | Q15: 1305 | R15: 1600 | S15: 1560 | T15: 806 | U15: 4870 | V15: 2230 | W15: 2685 | X15: 3010 | Y15: 1664 | Z15: 1512 | AA15: 1863 | AB15: 782 | AC15: 10964 | AD15: 2880 | AE15: 1245 | AF15: 1991 | AG15: 1530 | AH15: 2480 | AI15: 3780 | AJ15: 1030 | AK15: 3820 | AL15: 3900 | AM15: 1770 | AN15: 2600 | AO15: 1190 | AP15: 3210 | AQ15: 7020 | AR15: 1660 | AS15: 3090 | AT15: 963 | AU15: 3390 | AV15: 3630 | AW15: 1320 | AX15: 960 | AY15: 1500 | AZ15: 4540 | BA15: 935 | BB15: 2810 | BC15: 1070 | BD15: 1140 | BE15: 1340 | BF15: 1770 | BG15: 8500 | BH15: 4050 | BI15: 1180 | BJ15: 2180 | BK15: 1390 | BL15: 846 | BM15: 3050 | BN15: 6810 | BO15: 3730 | BP15: 2020 | BQ15: 760 | BR15: 4730 | BS15: 2240 | BT15: 3740 | BU15: 3790 | BV15: 1860 | BW15: 6590 | BX15: 2420 | BY15: 1670 | BZ15: 4050 | CA15: 1610 | CB15: 2380 | CC15: 906 | CD15: 13600 | CE15: 3360 | CF15: 3280 | CG15: 7240 | CH15: 3950 | CI15: 3182.654762
B16: 2013-01-12 | C16: 4340 | D16: 27660 | E16: 823 | F16: 1090 | G16: 3870 | H16: 11170 | I16: 4340 | J16: 3290 | K16: 1935 | L16: 5060 | M16: 620 | N16: 3290 | O16: 4020 | P16: 1410 | Q16: 1340 | R16: 1560 | S16: 1560 | T16: 1006 | U16: 10330 | V16: 2030 | W16: 2030 | X16: 2560 | Y16: 1528 | Z16: 1424 | AA16: 1760 | AB16: 603 | AC16: 15510 | AD16: 2550 | AE16: 1357 | AF16: 1991 | AG16: 1625 | AH16: 2739 | AI16: 5500 | AJ16: 1010 | AK16: 3960 | AL16: 3200 | AM16: 1740 | AN16: 2230 | AO16: 1140 | AP16: 4250 | AQ16: 4710 | AR16: 1550 | AS16: 2680 | AT16: 940 | AU16: 2530 | AV16: 3600 | AW16: 2740 | AX16: 920 | AY16: 3000 | AZ16: 3490 | BA16: 1300 | BB16: 2480 | BC16: 1020 | BD16: 4160 | BE16: 1270 | BF16: 1750 | BG16: 5470 | BH16: 3300 | BI16: 1130 | BJ16: 1820 | BK16: 2240 | BL16: 820 | BM16: 2720 | BN16: 4580 | BO16: 10900 | BP16: 1670 | BQ16: 771 | BR16: 5310 | BS16: 2040 | BT16: 3150 | BU16: 3280 | BV16: 1690 | BW16: 4540 | BX16: 2150 | BY16: 1510 | BZ16: 4540 | CA16: 2700 | CB16: 2150 | CC16: 896 | CD16: 8150 | CE16: 2690 | CF16: 3020 | CG16: 6840 | CH16: 4380 | CI16: 3357.714286
B17: 2013-01-13 | C17: 3645 | D17: 25910 | E17: 825 | F17: 1060 | G17: 2750 | H17: 5440 | I17: 3645 | J17: 3870 | K17: 1760 | L17: 5440 | M17: 654 | N17: 3795 | O17: 3290 | P17: 1340 | Q17: 1375 | R17: 1720 | S17: 1480 | T17: 1090 | U17: 12020 | V17: 1800 | W17: 1736 | X17: 2260 | Y17: 1410 | Z17: 1333 | AA17: 2280 | AB17: 643 | AC17: 9702 | AD17: 2414 | AE17: 1364 | AF17: 2360 | AG17: 1530 | AH17: 2603 | AI17: 5050 | AJ17: 958 | AK17: 3400 | AL17: 2720 | AM17: 1770 | AN17: 2060 | AO17: 1130 | AP17: 7530 | AQ17: 7560 | AR17: 2480 | AS17: 2410 | AT17: 1140 | AU17: 2060 | AV17: 2560 | AW17: 12600 | AX17: 2150 | AY17: 5610 | AZ17: 2800 | BA17: 1430 | BB17: 2320 | BC17: 1060 | BD17: 4090 | BE17: 1190 | BF17: 1630 | BG17: 4180 | BH17: 2710 | BI17: 1090 | BJ17: 1630 | BK17: 2230 | BL17: 854 | BM17: 2980 | BN17: 3670 | BO17: 13100 | BP17: 1410 | BQ17: 796 | BR17: 5390 | BS17: 2160 | BT17: 2860 | BU17: 2840 | BV17: 1730 | BW17: 4040 | BX17: 1960 | BY17: 1430 | BZ17: 4680 | CA17: 2890 | CB17: 2420 | CC17: 917 | CD17: 7780 | CE17: 2320 | CF17: 3030 | CG17: 6100 | CH17: 4720 | CI17: 3359.154762
B18: 2013-01-14 | C18: 3500 | D18: 9380 | E18: 825 | F18: 1006 | G18: 2390 | H18: 3870 | I18: 3500 | J18: 4260 | K18: 1640 | L18: 3720 | M18: 709 | N18: 8530 | O18: 2880 | P18: 1340 | Q18: 1375 | R18: 1520 | S18: 1520 | T18: 1180 | U18: 7820 | V18: 1680 | W18: 1520 | X18: 2070 | Y18: 1340 | Z18: 1198 | AA18: 3150 | AB18: 686 | AC18: 6946 | AD18: 3290 | AE18: 1385 | AF18: 2288 | AG18: 1430 | AH18: 1495 | AI18: 4000 | AJ18: 920 | AK18: 5230 | AL18: 2460 | AM18: 1720 | AN18: 1960 | AO18: 1350 | AP18: 6820 | AQ18: 10200 | AR18: 4710 | AS18: 2190 | AT18: 6750 | AU18: 1800 | AV18: 2160 | AW18: 14300 | AX18: 10700 | AY18: 4620 | AZ18: 4080 | BA18: 1370 | BB18: 2220 | BC18: 945 | BD18: 2760 | BE18: 1150 | BF18: 3640 | BG18: 3460 | BH18: 2340 | BI18: 1150 | BJ18: 1550 | BK18: 1850 | BL18: 4030 | BM18: 2610 | BN18: 3190 | BO18: 11500 | BP18: 1310 | BQ18: 801 | BR18: 4940 | BS18: 2430 | BT18: 8140 | BU18: 2510 | BV18: 3060 | BW18: 11500 | BX18: 1990 | BY18: 1380 | BZ18: 3420 | CA18: 2390 | CB18: 2930 | CC18: 859 | CD18: 6470 | CE18: 2050 | CF18: 2600 | CG18: 4800 | CH18: 6540 | CI18: 3444.02381
B19: 2013-01-15 | C19: 3150 | D19: 6250 | E19: 840 | F19: 1060 | G19: 2280 | H19: 3010 | I19: 3150 | J19: 3220 | K19: 1560 | L19: 3570 | M19: 865 | N19: 7360 | O19: 2945 | P19: 1270 | Q19: 1340 | R19: 1375 | S19: 2880 | T19: 1410 | U19: 5060 | V19: 1600 | W19: 1375 | X19: 1935 | Y19: 1319 | Z19: 1326 | AA19: 2789 | AB19: 643 | AC19: 6292 | AD19: 3080 | AE19: 1378 | AF19: 2655 | AG19: 1087 | AH19: 8266 | AI19: 3180 | AJ19: 922 | AK19: 11600 | AL19: 2250 | AM19: 1640 | AN19: 2000 | AO19: 2380 | AP19: 4410 | AQ19: 11300 | AR19: 5850 | AS19: 2040 | AT19: 4950 | AU19: 2120 | AV19: 1910 | AW19: 7410 | AX19: 22600 | AY19: 3360 | AZ19: 18100 | BA19: 1780 | BB19: 2200 | BC19: 1000 | BD19: 2440 | BE19: 1090 | BF19: 4610 | BG19: 2940 | BH19: 2040 | BI19: 1890 | BJ19: 1440 | BK19: 1570 | BL19: 6440 | BM19: 2560 | BN19: 2880 | BO19: 12100 | BP19: 1320 | BQ19: 767 | BR19: 3930 | BS19: 2780 | BT19: 10600 | BU19: 2260 | BV19: 3900 | BW19: 11600 | BX19: 2010 | BY19: 1280 | BZ19: 2820 | CA19: 2000 | CB19: 7030 | CC19: 792 | CD19: 4950 | CE19: 1830 | CF19: 3150 | CG19: 3990 | CH19: 6360 | CI19: 3746.559524
B20: 2013-01-16 | C20: 2620 | D20: 4510 | E20: 905 | F20: 690 | G20: 1890 | H20: 2500 | I20: 2620 | J20: 3795 | K20: 1480 | L20: 2880 | M20: 736 | N20: 4690 | O20: 2685 | P20: 1520 | Q20: 1375 | R20: 1305 | S20: 6460 | T20: 2500 | U20: 3795 | V20: 1600 | W20: 1375 | X20: 1800 | Y20: 1126 | Z20: 1176 | AA20: 2524 | AB20: 643 | AC20: 7866 | AD20: 2490 | AE20: 1364 | AF20: 3430 | AG20: 1315 | AH20: 4908 | AI20: 3700 | AJ20: 928 | AK20: 14600 | AL20: 2060 | AM20: 1660 | AN20: 4500 | AO20: 4260 | AP20: 3190 | AQ20: 7250 | AR20: 4410 | AS20: 1930 | AT20: 2870 | AU20: 3970 | AV20: 1800 | AW20: 5610 | AX20: 23400 | AY20: 2860 | AZ20: 18900 | BA20: 3460 | BB20: 2030 | BC20: 861 | BD20: 2820 | BE20: 1040 | BF20: 4890 | BG20: 2650 | BH20: 1870 | BI20: 1740 | BJ20: 1650 | BK20: 1430 | BL20: 3100 | BM20: 5760 | BN20: 2560 | BO20: 7000 | BP20: 3280 | BQ20: 731 | BR20: 3410 | BS20: 2390 | BT20: 10100 | BU20: 2100 | BV20: 2930 | BW20: 6110 | BX20: 1860 | BY20: 1170 | BZ20: 2470 | CA20: 1710 | CB20: 7050 | CC20: 906 | CD20: 4180 | CE20: 1710 | CF20: 2300 | CG20: 3830 | CH20: 6820 | CI20: 3528.440476
B21: 2013-01-17 | C21: 2390 | D21: 3720 | E21: 806 | F21: 686 | G21: 1720 | H21: 2180 | I21: 2390 | J21: 5840 | K21: 1445 | L21: 2500 | M21: 728 | N21: 3795 | O21: 3720 | P21: 1560 | Q21: 2420 | R21: 1445 | S21: 4020 | T21: 3645 | U21: 4340 | V21: 1800 | W21: 1319 | X21: 1736 | Y21: 1150 | Z21: 1072 | AA21: 2500 | AB21: 643 | AC21: 7636 | AD21: 2351 | AE21: 1557 | AF21: 3500 | AG21: 1099 | AH21: 2288 | AI21: 3910 | AJ21: 890 | AK21: 6890 | AL21: 1960 | AM21: 1550 | AN21: 4100 | AO21: 4320 | AP21: 2610 | AQ21: 4790 | AR21: 3180 | AS21: 1790 | AT21: 2320 | AU21: 5030 | AV21: 2370 | AW21: 4390 | AX21: 11900 | AY21: 19200 | AZ21: 9750 | BA21: 9210 | BB21: 1870 | BC21: 860 | BD21: 3320 | BE21: 1000 | BF21: 5450 | BG21: 2540 | BH21: 1690 | BI21: 1950 | BJ21: 2380 | BK21: 1350 | BL21: 2200 | BM21: 6980 | BN21: 2250 | BO21: 5010 | BP21: 2600 | BQ21: 721 | BR21: 2730 | BS21: 2220 | BT21: 5570 | BU21: 3630 | BV21: 4330 | BW21: 5360 | BX21: 1750 | BY21: 1110 | BZ21: 2190 | CA21: 1520 | CB21: 3980 | CC21: 3450 | CD21: 8070 | CE21: 1620 | CF21: 1900 | CG21: 3810 | CH21: 4360 | CI21: 3308.714286
B22: 2013-01-18 | C22: 2180 | D22: 3150 | E22: 855 | F22: 721 | G22: 1520 | H22: 3500 | I22: 2180 | J22: 4020 | K22: 1340 | L22: 2130 | M22: 749 | N22: 3570 | O22: 5440 | P22: 1410 | Q22: 8050 | R22: 1340 | S22: 2815 | T22: 3945 | U22: 4690 | V22: 1935 | W22: 1368 | X22: 1672 | Y22: 1060 | Z22: 1030 | AA22: 2170 | AB22: 603 | AC22: 13050 | AD22: 2099 | AE22: 1315 | AF22: 3150 | AG22: 1117 | AH22: 6020 | AI22: 4820 | AJ22: 825 | AK22: 5000 | AL22: 1730 | AM22: 1430 | AN22: 3350 | AO22: 3790 | AP22: 2310 | AQ22: 3770 | AR22: 2660 | AS22: 1680 | AT22: 7440 | AU22: 5140 | AV22: 2190 | AW22: 3540 | AX22: 7070 | AY22: 36700 | AZ22: 7570 | BA22: 13200 | BB22: 1720 | BC22: 813 | BD22: 2450 | BE22: 1020 | BF22: 3720 | BG22: 2490 | BH22: 1530 | BI22: 2180 | BJ22: 7170 | BK22: 1330 | BL22: 1760 | BM22: 6240 | BN22: 2030 | BO22: 4460 | BP22: 1960 | BQ22: 701 | BR22: 2270 | BS22: 3290 | BT22: 4100 | BU22: 5340 | BV22: 4420 | BW22: 5750 | BX22: 1600 | BY22: 1130 | BZ22: 2010 | CA22: 1450 | CB22: 3080 | CC22: 31100 | CD22: 5410 | CE22: 1560 | CF22: 1670 | CG22: 3870 | CH22: 3430 | CI22: 3898.369048
B23: 2013-01-19 | C23: 1980 | D23: 2750 | E23: 874 | F23: 690 | G23: 1410 | H23: 3945 | I23: 1980 | J23: 6520 | K23: 1270 | L23: 2080 | M23: 620 | N23: 3080 | O23: 7130 | P23: 1305 | Q23: 4260 | R23: 1305 | S23: 2560 | T23: 2815 | U23: 3645 | V23: 2230 | W23: 2390 | X23: 1600 | Y23: 1000 | Z23: 1090 | AA23: 1935 | AB23: 623 | AC23: 10796 | AD23: 1925 | AE23: 1308 | AF23: 2984 | AG23: 1093 | AH23: 4132 | AI23: 3850 | AJ23: 797 | AK23: 3850 | AL23: 1540 | AM23: 1320 | AN23: 2900 | AO23: 3840 | AP23: 2060 | AQ23: 8210 | AR23: 9550 | AS23: 1580 | AT23: 8560 | AU23: 16200 | AV23: 6610 | AW23: 2980 | AX23: 8510 | AY23: 11700 | AZ23: 5350 | BA23: 7540 | BB23: 1600 | BC23: 774 | BD23: 2040 | BE23: 994 | BF23: 2730 | BG23: 2570 | BH23: 1460 | BI23: 2040 | BJ23: 15000 | BK23: 1250 | BL23: 1490 | BM23: 4910 | BN23: 1870 | BO23: 3800 | BP23: 1680 | BQ23: 727 | BR23: 1990 | BS23: 3760 | BT23: 3450 | BU23: 5370 | BV23: 4220 | BW23: 5970 | BX23: 1490 | BY23: 1370 | BZ23: 2440 | CA23: 1440 | CB23: 3010 | CC23: 18000 | CD23: 4170 | CE23: 1610 | CF23: 1600 | CG23: 3870 | CH23: 2870 | CI23: 3593.297619
B24: 2013-01-20 | C24: 1890 | D24: 2445 | E24: 749 | F24: 620 | G24: 1270 | H24: 3010 | I24: 1890 | J24: 10060 | K24: 1270 | L24: 5250 | M24: 544 | N24: 2620 | O24: 4690 | P24: 1210 | Q24: 2880 | R24: 1150 | S24: 2180 | T24: 2130 | U24: 2815 | V24: 1890 | W24: 1908 | X24: 1536 | Y24: 915 | Z24: 5345 | AA24: 1800 | AB24: 623 | AC24: 7176 | AD24: 1725 | AE24: 1322 | AF24: 2820 | AG24: 948 | AH24: 3290 | AI24: 3080 | AJ24: 800 | AK24: 3120 | AL24: 1310 | AM24: 1220 | AN24: 2840 | AO24: 3980 | AP24: 1820 | AQ24: 8690 | AR24: 17500 | AS24: 1500 | AT24: 8500 | AU24: 9160 | AV24: 15400 | AW24: 2620 | AX24: 5360 | AY24: 8600 | AZ24: 4270 | BA24: 4150 | BB24: 1530 | BC24: 1280 | BD24: 1810 | BE24: 956 | BF24: 2240 | BG24: 2500 | BH24: 1360 | BI24: 2340 | BJ24: 5500 | BK24: 1190 | BL24: 1390 | BM24: 3700 | BN24: 1730 | BO24: 3180 | BP24: 1510 | BQ24: 817 | BR24: 1820 | BS24: 2670 | BT24: 3200 | BU24: 5630 | BV24: 3630 | BW24: 4490 | BX24: 1450 | BY24: 1390 | BZ24: 2660 | CA24: 1340 | CB24: 2550 | CC24: 8030 | CD24: 4280 | CE24: 1980 | CF24: 1600 | CG24: 3650 | CH24: 2510 | CI24: 3211.952381
B25: 2013-01-21 | C25: 1800 | D25: 2260 | E25: 745 | F25: 588 | G25: 1240 | H25: 3945 | I25: 1800 | J25: 10600 | K25: 1680 | L25: 4690 | M25: 558 | N25: 3220 | O25: 3430 | P25: 1150 | Q25: 2230 | R25: 1150 | S25: 2080 | T25: 1800 | U25: 2280 | V25: 1760 | W25: 2190 | X25: 1480 | Y25: 890 | Z25: 9790 | AA25: 1990 | AB25: 603 | AC25: 6040 | AD25: 1733 | AE25: 1057 | AF25: 2500 | AG25: 909 | AH25: 2856 | AI25: 2660 | AJ25: 788 | AK25: 2740 | AL25: 1480 | AM25: 1210 | AN25: 2430 | AO25: 4180 | AP25: 1690 | AQ25: 5340 | AR25: 23800 | AS25: 1400 | AT25: 8090 | AU25: 5210 | AV25: 18900 | AW25: 2430 | AX25: 4030 | AY25: 6010 | AZ25: 3630 | BA25: 3020 | BB25: 1810 | BC25: 4480 | BD25: 1640 | BE25: 1010 | BF25: 1930 | BG25: 2210 | BH25: 1420 | BI25: 2190 | BJ25: 5200 | BK25: 1150 | BL25: 1330 | BM25: 3570 | BN25: 1630 | BO25: 2760 | BP25: 1490 | BQ25: 1140 | BR25: 1710 | BS25: 2210 | BT25: 3160 | BU25: 5080 | BV25: 2990 | BW25: 3970 | BX25: 1500 | BY25: 1510 | BZ25: 2610 | CA25: 1370 | CB25: 2130 | CC25: 7610 | CD25: 3800 | CE25: 1690 | CF25: 1420 | CG25: 3240 | CH25: 2230 | CI25: 3134.190476
B26: 2013-01-22 | C26: 1720 | D26: 2030 | E26: 701 | F26: 530 | G26: 2390 | H26: 2280 | I26: 1720 | J26: 12100 | K26: 9900 | L26: 3430 | M26: 604 | N26: 3870 | O26: 2815 | P26: 1090 | Q26: 1890 | R26: 1410 | S26: 1793 | T26: 1445 | U26: 2030 | V26: 3150 | W26: 3598 | X26: 1459 | Y26: 890 | Z26: 10600 | AA26: 1935 | AB26: 603 | AC26: 6208 | AD26: 2057 | AE26: 1187 | AF26: 2500 | AG26: 861 | AH26: 2450 | AI26: 3910 | AJ26: 778 | AK26: 2510 | AL26: 1500 | AM26: 1160 | AN26: 2170 | AO26: 3310 | AP26: 1520 | AQ26: 4020 | AR26: 8730 | AS26: 1340 | AT26: 8180 | AU26: 4310 | AV26: 9030 | AW26: 2120 | AX26: 3800 | AY26: 4470 | AZ26: 3420 | BA26: 2450 | BB26: 2110 | BC26: 2450 | BD26: 1520 | BE26: 1280 | BF26: 1780 | BG26: 2010 | BH26: 2090 | BI26: 1910 | BJ26: 3600 | BK26: 1120 | BL26: 1310 | BM26: 3030 | BN26: 2120 | BO26: 2460 | BP26: 1430 | BQ26: 935 | BR26: 2190 | BS26: 1940 | BT26: 2760 | BU26: 4030 | BV26: 2600 | BW26: 3860 | BX26: 1490 | BY26: 1940 | BZ26: 2180 | CA26: 2670 | CB26: 1860 | CC26: 5200 | CD26: 3270 | CE26: 1640 | CF26: 1280 | CG26: 2840 | CH26: 2020 | CI26: 2796.416667
B27: 2013-01-23 | C27: 1640 | D27: 1935 | E27: 644 | F27: 530 | G27: 6250 | H27: 2030 | I27: 1640 | J27: 22340 | K27: 17630 | L27: 3010 | M27: 604 | N27: 3220 | O27: 2500 | P27: 1036 | Q27: 1680 | R27: 970 | S27: 1785 | T27: 2030 | U27: 1800 | V27: 2880 | W27: 15094 | X27: 2291 | Y27: 815 | Z27: 7038 | AA27: 1744 | AB27: 584 | AC27: 20336 | AD27: 1883 | AE27: 2880 | AF27: 2832 | AG27: 802 | AH27: 2288 | AI27: 15600 | AJ27: 820 | AK27: 2270 | AL27: 1280 | AM27: 1030 | AN27: 1980 | AO27: 2750 | AP27: 1490 | AQ27: 3240 | AR27: 5790 | AS27: 1230 | AT27: 10400 | AU27: 6790 | AV27: 6170 | AW27: 1980 | AX27: 5800 | AY27: 5770 | AZ27: 3510 | BA27: 2070 | BB27: 1770 | BC27: 1660 | BD27: 1490 | BE27: 1490 | BF27: 10200 | BG27: 2150 | BH27: 2960 | BI27: 1730 | BJ27: 3800 | BK27: 1110 | BL27: 1470 | BM27: 2550 | BN27: 2430 | BO27: 2230 | BP27: 7730 | BQ27: 836 | BR27: 2860 | BS27: 1750 | BT27: 2610 | BU27: 3470 | BV27: 3100 | BW27: 3300 | BX27: 1420 | BY27: 1530 | BZ27: 1960 | CA27: 4710 | CB27: 2280 | CC27: 5780 | CD27: 3070 | CE27: 2190 | CF27: 1210 | CG27: 2520 | CH27: 1840 | CI27: 3641.869048
B28: 2013-01-24 | C28: 1600 | D28: 1800 | E28: 709 | F28: 558 | G28: 5352 | H28: 1845 | I28: 1600 | J28: 10615 | K28: 21280 | L28: 2620 | M28: 604 | N28: 2620 | O28: 2500 | P28: 970 | Q28: 1560 | R28: 1072 | S28: 1778 | T28: 2080 | U28: 1680 | V28: 5345 | W28: 19379 | X28: 2750 | Y28: 728 | Z28: 4528 | AA28: 2512 | AB28: 643 | AC28: 13050 | AD28: 1733 | AE28: 2856 | AF28: 2480 | AG28: 718 | AH28: 5440 | AI28: 18600 | AJ28: 1180 | AK28: 2070 | AL28: 1310 | AM28: 1050 | AN28: 2190 | AO28: 2500 | AP28: 1390 | AQ28: 2770 | AR28: 7150 | AS28: 1200 | AT28: 6430 | AU28: 8410 | AV28: 4470 | AW28: 2270 | AX28: 11500 | AY28: 6110 | AZ28: 2930 | BA28: 1800 | BB28: 1580 | BC28: 1520 | BD28: 1560 | BE28: 1830 | BF28: 27500 | BG28: 2170 | BH28: 16100 | BI28: 1610 | BJ28: 3550 | BK28: 1190 | BL28: 1300 | BM28: 2240 | BN28: 1990 | BO28: 2040 | BP28: 12200 | BQ28: 960 | BR28: 2690 | BS28: 1610 | BT28: 2480 | BU28: 3010 | BV28: 4640 | BW28: 2820 | BX28: 1330 | BY28: 1350 | BZ28: 3090 | CA28: 3710 | CB28: 4350 | CC28: 4220 | CD28: 2950 | CE28: 2390 | CF28: 1160 | CG28: 2260 | CH28: 1800 | CI28: 3994.464286
B29: 2013-01-25 | C29: 1520 | D29: 1720 | E29: 815 | F29: 605 | G29: 3645 | H29: 1800 | I29: 1520 | J29: 7360 | K29: 21960 | L29: 2230 | M29: 620 | N29: 2335 | O29: 2815 | P29: 890 | Q29: 1935 | R29: 1480 | S29: 1785 | T29: 1760 | U29: 1520 | V29: 4020 | W29: 11614 | X29: 2291 | Y29: 757 | Z29: 3290 | AA29: 6145 | AB29: 1117 | AC29: 8314 | AD29: 1610 | AE29: 2760 | AF29: 2180 | AG29: 1180 | AH29: 4100 | AI29: 11900 | AJ29: 2170 | AK29: 1940 | AL29: 1720 | AM29: 1070 | AN29: 7100 | AO29: 2200 | AP29: 1350 | AQ29: 2480 | AR29: 5690 | AS29: 1250 | AT29: 5630 | AU29: 6800 | AV29: 3560 | AW29: 2380 | AX29: 12500 | AY29: 4630 | AZ29: 2630 | BA29: 1620 | BB29: 1500 | BC29: 1340 | BD29: 1490 | BE29: 1550 | BF29: 8170 | BG29: 2140 | BH29: 29300 | BI29: 1500 | BJ29: 2920 | BK29: 1300 | BL29: 1190 | BM29: 2020 | BN29: 2010 | BO29: 1880 | BP29: 6240 | BQ29: 20000 | BR29: 2290 | BS29: 1510 | BT29: 2240 | BU29: 2630 | BV29: 4970 | BW29: 2500 | BX29: 1300 | BY29: 1260 | BZ29: 5490 | CA29: 4190 | CB29: 3160 | CC29: 3360 | CD29: 2930 | CE29: 2190 | CF29: 1090 | CG29: 2060 | CH29: 1950 | CI29: 3761.702381
B30: 2013-01-26 | C30: 1445 | D30: 1680 | E30: 1210 | F30: 530 | G30: 4100 | H30: 1720 | I30: 1445 | J30: 13800 | K30: 15350 | L30: 1935 | M30: 637 | N30: 2080 | O30: 2280 | P30: 970 | Q30: 2130 | R30: 1720 | S30: 1485 | T30: 1520 | U30: 1445 | V30: 2815 | W30: 11933 | X30: 1908 | Y30: 792 | Z30: 2763 | AA30: 8626 | AB30: 1117 | AC30: 5820 | AD30: 1530 | AE30: 2360 | AF30: 1991 | AG30: 1161 | AH30: 3220 | AI30: 6750 | AJ30: 3280 | AK30: 1770 | AL30: 3180 | AM30: 969 | AN30: 4490 | AO30: 2290 | AP30: 1260 | AQ30: 2310 | AR30: 4080 | AS30: 1200 | AT30: 4520 | AU30: 10200 | AV30: 2820 | AW30: 1940 | AX30: 7300 | AY30: 3780 | AZ30: 2410 | BA30: 1470 | BB30: 1920 | BC30: 1240 | BD30: 1320 | BE30: 1390 | BF30: 6200 | BG30: 2280 | BH30: 8850 | BI30: 1390 | BJ30: 2390 | BK30: 1470 | BL30: 1130 | BM30: 1860 | BN30: 2080 | BO30: 1740 | BP30: 4550 | BQ30: 13200 | BR30: 1970 | BS30: 1460 | BT30: 2030 | BU30: 2310 | BV30: 4500 | BW30: 2250 | BX30: 1330 | BY30: 1150 | BZ30: 3650 | CA30: 15100 | CB30: 2760 | CC30: 2840 | CD30: 2840 | CE30: 1920 | CF30: 1070 | CG30: 1830 | CH30: 1740 | CI30: 3253.535714
B31: 2013-01-27 | C31: 1480 | D31: 1600 | E31: 932 | F31: 504 | G31: 6560 | H31: 1640 | I31: 1480 | J31: 6680 | K31: 10060 | L31: 1800 | M31: 588 | N31: 1980 | O31: 2280 | P31: 1560 | Q31: 1760 | R31: 1845 | S31: 1340 | T31: 1375 | U31: 1340 | V31: 2335 | W31: 6680 | X31: 1712 | Y31: 770 | Z31: 2390 | AA31: 4708 | AB31: 2041 | AC31: 4708 | AD31: 1460 | AE31: 2099 | AF31: 1803 | AG31: 1117 | AH31: 2760 | AI31: 6050 | AJ31: 2700 | AK31: 1610 | AL31: 3680 | AM31: 935 | AN31: 3600 | AO31: 8070 | AP31: 1350 | AQ31: 4430 | AR31: 3100 | AS31: 1100 | AT31: 4450 | AU31: 7930 | AV31: 2400 | AW31: 1740 | AX31: 6330 | AY31: 3000 | AZ31: 10200 | BA31: 1350 | BB31: 1740 | BC31: 1110 | BD31: 1110 | BE31: 1320 | BF31: 4660 | BG31: 2950 | BH31: 6800 | BI31: 1300 | BJ31: 2100 | BK31: 2060 | BL31: 1160 | BM31: 1930 | BN31: 1920 | BO31: 1630 | BP31: 4640 | BQ31: 8060 | BR31: 1720 | BS31: 1390 | BT31: 1870 | BU31: 2120 | BV31: 3780 | BW31: 2100 | BX31: 1270 | BY31: 1070 | BZ31: 2720 | CA31: 10500 | CB31: 2660 | CC31: 2680 | CD31: 2790 | CE31: 1730 | CF31: 1080 | CG31: 1750 | CH31: 1570 | CI31: 2889.309524
B32: 2013-01-28 | C32: 1375 | D32: 1560 | E32: 728 | F32: 517 | G32: 14860 | H32: 1560 | I32: 1375 | J32: 5440 | K32: 7590 | L32: 1800 | M32: 558 | N32: 1935 | O32: 2685 | P32: 1980 | Q32: 1560 | R32: 1720 | S32: 1340 | T32: 1305 | U32: 1270 | V32: 2030 | W32: 4690 | X32: 1576 | Y32: 745 | Z32: 2130 | AA32: 3262 | AB32: 2016 | AC32: 4834 | AD32: 1460 | AE32: 1925 | AF32: 1725 | AG32: 1167 | AH32: 3705 | AI32: 5230 | AJ32: 2270 | AK32: 1570 | AL32: 2940 | AM32: 956 | AN32: 3380 | AO32: 16300 | AP32: 1440 | AQ32: 9160 | AR32: 2630 | AS32: 1070 | AT32: 3560 | AU32: 5270 | AV32: 2180 | AW32: 1620 | AX32: 7830 | AY32: 2670 | AZ32: 6410 | BA32: 1250 | BB32: 1580 | BC32: 1040 | BD32: 1010 | BE32: 1220 | BF32: 3620 | BG32: 2900 | BH32: 5600 | BI32: 1230 | BJ32: 2200 | BK32: 2240 | BL32: 1540 | BM32: 1780 | BN32: 2790 | BO32: 1600 | BP32: 12100 | BQ32: 5260 | BR32: 1540 | BS32: 1360 | BT32: 1770 | BU32: 2270 | BV32: 3090 | BW32: 2750 | BX32: 1210 | BY32: 1010 | BZ32: 2250 | CA32: 6880 | CB32: 3560 | CC32: 2410 | CD32: 3120 | CE32: 1590 | CF32: 1030 | CG32: 1920 | CH32: 1460 | CI32: 2941.535714
B33: 2013-01-29 | C33: 1340 | D33: 1640 | E33: 665 | F33: 544 | G33: 8530 | H33: 1480 | I33: 1340 | J33: 5060 | K33: 6250 | L33: 1600 | M33: 530 | N33: 1890 | O33: 2620 | P33: 1935 | Q33: 1480 | R33: 1560 | S33: 1305 | T33: 1150 | U33: 1210 | V33: 1890 | W33: 3660 | X33: 1488 | Y33: 690 | Z33: 1863 | AA33: 2596 | AB33: 1908 | AC33: 6812 | AD33: 1445 | AE33: 1765 | AF33: 1625 | AG33: 1136 | AH33: 3705 | AI33: 4300 | AJ33: 6900 | AK33: 2120 | AL33: 2510 | AM33: 808 | AN33: 3940 | AO33: 28600 | AP33: 1730 | AQ33: 6650 | AR33: 2340 | AS33: 1050 | AT33: 2870 | AU33: 4150 | AV33: 2060 | AW33: 1540 | AX33: 6630 | AY33: 2360 | AZ33: 4890 | BA33: 1170 | BB33: 1560 | BC33: 950 | BD33: 1000 | BE33: 1270 | BF33: 3340 | BG33: 2360 | BH33: 4680 | BI33: 1160 | BJ33: 1950 | BK33: 2090 | BL33: 3240 | BM33: 1660 | BN33: 3920 | BO33: 1480 | BP33: 11500 | BQ33: 4000 | BR33: 1410 | BS33: 3130 | BT33: 1630 | BU33: 2790 | BV33: 2970 | BW33: 3570 | BX33: 1160 | BY33: 1010 | BZ33: 1980 | CA33: 4810 | CB33: 14100 | CC33: 2100 | CD33: 3190 | CE33: 1500 | CF33: 1070 | CG33: 1730 | CH33: 1360 | CI33: 3035.714286
B34: 2013-01-30 | C34: 1340 | D34: 2130 | E34: 647 | F34: 544 | G34: 5640 | H34: 1410 | I34: 1340 | J34: 5440 | K34: 5640 | L34: 1480 | M34: 502 | N34: 1720 | O34: 2230 | P34: 1980 | Q34: 1410 | R34: 1410 | S34: 1180 | T34: 1036 | U34: 1150 | V34: 1680 | W34: 3066 | X34: 1477 | Y34: 690 | Z34: 1640 | AA34: 2180 | AB34: 4835 | AC34: 10087 | AD34: 1562 | AE34: 1725 | AF34: 1495 | AG34: 1155 | AH34: 3304 | AI34: 3550 | AJ34: 5230 | AK34: 4570 | AL34: 2460 | AM34: 694 | AN34: 3860 | AO34: 22500 | AP34: 2030 | AQ34: 5600 | AR34: 2210 | AS34: 1030 | AT34: 2470 | AU34: 6190 | AV34: 1870 | AW34: 1490 | AX34: 7020 | AY34: 2140 | AZ34: 3960 | BA34: 1110 | BB34: 1450 | BC34: 860 | BD34: 1000 | BE34: 1170 | BF34: 4100 | BG34: 2070 | BH34: 3790 | BI34: 1070 | BJ34: 2000 | BK34: 1870 | BL34: 3010 | BM34: 2800 | BN34: 2860 | BO34: 1420 | BP34: 9080 | BQ34: 3180 | BR34: 1310 | BS34: 6360 | BT34: 1430 | BU34: 9090 | BV34: 3390 | BW34: 3530 | BX34: 1100 | BY34: 1080 | BZ34: 1920 | CA34: 8650 | CB34: 15700 | CC34: 2030 | CD34: 9940 | CE34: 1420 | CF34: 1080 | CG34: 1620 | CH34: 1330 | CI34: 3164.511905
B35: 2013-01-31 | C35: 1340 | D35: 2280 | E35: 604 | F35: 792 | G35: 4291 | H35: 1305 | I35: 1340 | J35: 5840 | K35: 5060 | L35: 1375 | M35: 517 | N35: 1640 | O35: 2080 | P35: 1980 | Q35: 1680 | R35: 1340 | S35: 720 | T35: 964 | U35: 1084 | V35: 1800 | W35: 2584 | X35: 1396 | Y35: 690 | Z35: 1496 | AA35: 1935 | AB35: 6187 | AC35: 18125 | AD35: 1942 | AE35: 2225 | AF35: 1315 | AG35: 1509 | AH35: 3220 | AI35: 3100 | AJ35: 3490 | AK35: 5390 | AL35: 2620 | AM35: 964 | AN35: 3510 | AO35: 15500 | AP35: 2060 | AQ35: 3990 | AR35: 2060 | AS35: 1020 | AT35: 2470 | AU35: 11700 | AV35: 1750 | AW35: 1470 | AX35: 5850 | AY35: 1970 | AZ35: 3340 | BA35: 1100 | BB35: 1380 | BC35: 790 | BD35: 1050 | BE35: 1100 | BF35: 4640 | BG35: 1910 | BH35: 3160 | BI35: 1030 | BJ35: 2600 | BK35: 2050 | BL35: 2090 | BM35: 6410 | BN35: 2390 | BO35: 1480 | BP35: 8110 | BQ35: 2770 | BR35: 1220 | BS35: 13800 | BT35: 1290 | BU35: 7500 | BV35: 2960 | BW35: 3010 | BX35: 1090 | BY35: 1880 | BZ35: 2050 | CA35: 20500 | CB35: 7120 | CC35: 2000 | CD35: 7220 | CE35: 1350 | CF35: 1190 | CG35: 1750 | CH35: 1320 | CI35: 3264.52381
B36: 2013-02-01 | C36: 1340 | D36: 1935 | E36: 573 | F36: 6216 | G36: 3360 | H36: 1210 | I36: 1340 | J36: 6040 | K36: 4870 | L36: 1270 | M36: 558 | N36: 1560 | O36: 1760 | P36: 1720 | Q36: 3080 | R36: 1600 | S36: 717 | T36: 954 | U36: 1072 | V36: 1890 | W36: 2646 | X36: 1319 | Y36: 654 | Z36: 1424 | AA36: 1776 | AB36: 4965 | AC36: 16086 | AD36: 2153 | AE36: 2450 | AF36: 1315 | AG36: 1554 | AH36: 2772 | AI36: 2760 | AJ36: 2810 | AK36: 4480 | AL36: 2630 | AM36: 1440 | AN36: 4150 | AO36: 7200 | AP36: 1830 | AQ36: 3290 | AR36: 1980 | AS36: 1040 | AT36: 2960 | AU36: 7600 | AV36: 1620 | AW36: 1360 | AX36: 6520 | AY36: 1830 | AZ36: 3070 | BA36: 1140 | BB36: 1380 | BC36: 750 | BD36: 1170 | BE36: 1030 | BF36: 3860 | BG36: 1700 | BH36: 2790 | BI36: 1010 | BJ36: 2600 | BK36: 8830 | BL36: 1670 | BM36: 3640 | BN36: 2160 | BO36: 1970 | BP36: 5950 | BQ36: 2460 | BR36: 1150 | BS36: 16900 | BT36: 1210 | BU36: 7180 | BV36: 2520 | BW36: 2620 | BX36: 3900 | BY36: 1690 | BZ36: 1940 | CA36: 11100 | CB36: 4840 | CC36: 1910 | CD36: 5780 | CE36: 1280 | CF36: 1250 | CG36: 1600 | CH36: 1300 | CI36: 3012.25
B37: 2013-02-02 | C37: 1270 | D37: 1800 | E37: 746 | F37: 6250 | G37: 2685 | H37: 1210 | I37: 1270 | J37: 5440 | K37: 6040 | L37: 1180 | M37: 588 | N37: 1480 | O37: 1680 | P37: 1480 | Q37: 2390 | R37: 1680 | S37: 865 | T37: 948 | U37: 1096 | V37: 2030 | W37: 5960 | X37: 1246 | Y37: 654 | Z37: 1340 | AA37: 2050 | AB37: 4276 | AC37: 8122 | AD37: 2144 | AE37: 2090 | AF37: 1245 | AG37: 915 | AH37: 2432 | AI37: 2460 | AJ37: 2660 | AK37: 5970 | AL37: 3100 | AM37: 1270 | AN37: 3390 | AO37: 4960 | AP37: 1540 | AQ37: 3110 | AR37: 2090 | AS37: 1070 | AT37: 2690 | AU37: 5470 | AV37: 1490 | AW37: 1290 | AX37: 5040 | AY37: 1710 | AZ37: 2900 | BA37: 1080 | BB37: 1880 | BC37: 720 | BD37: 2450 | BE37: 974 | BF37: 3750 | BG37: 1600 | BH37: 2490 | BI37: 955 | BJ37: 2500 | BK37: 5000 | BL37: 1460 | BM37: 2600 | BN37: 2340 | BO37: 4080 | BP37: 4460 | BQ37: 2200 | BR37: 1090 | BS37: 8600 | BT37: 1180 | BU37: 5530 | BV37: 2240 | BW37: 3350 | BX37: 4350 | BY37: 1740 | BZ37: 1810 | CA37: 6080 | CB37: 3760 | CC37: 1700 | CD37: 5510 | CE37: 1230 | CF37: 1190 | CG37: 1490 | CH37: 1250 | CI37: 2612.511905
B38: 2013-02-03 | C38: 1120 | D38: 1760 | E38: 709 | F38: 3870 | G38: 2280 | H38: 1210 | I38: 1120 | J38: 4870 | K38: 5440 | L38: 1150 | M38: 558 | N38: 1410 | O38: 1560 | P38: 1375 | Q38: 1935 | R38: 1560 | S38: 1340 | T38: 1018 | U38: 1252 | V38: 1895 | W38: 4726 | X38: 1138 | Y38: 690 | Z38: 1298 | AA38: 2724 | AB38: 3556 | AC38: 9020 | AD38: 2189 | AE38: 1803 | AF38: 1245 | AG38: 920 | AH38: 2261 | AI38: 2330 | AJ38: 2440 | AK38: 4390 | AL38: 4380 | AM38: 16000 | AN38: 2720 | AO38: 3950 | AP38: 1400 | AQ38: 3400 | AR38: 4050 | AS38: 1170 | AT38: 2560 | AU38: 4260 | AV38: 1420 | AW38: 1350 | AX38: 4830 | AY38: 1610 | AZ38: 2630 | BA38: 1010 | BB38: 3000 | BC38: 700 | BD38: 4760 | BE38: 943 | BF38: 3370 | BG38: 1500 | BH38: 2240 | BI38: 864 | BJ38: 2300 | BK38: 3200 | BL38: 1430 | BM38: 2050 | BN38: 2630 | BO38: 7910 | BP38: 3480 | BQ38: 2020 | BR38: 1030 | BS38: 5380 | BT38: 1170 | BU38: 4170 | BV38: 2030 | BW38: 3510 | BX38: 2860 | BY38: 1760 | BZ38: 1770 | CA38: 4960 | CB38: 3090 | CC38: 1560 | CD38: 5300 | CE38: 1190 | CF38: 1090 | CG38: 1420 | CH38: 1200 | CI38: 2628.440476
B39: 2013-02-04 | C39: 1150 | D39: 1800 | E39: 533 | F39: 5060 | G39: 2030 | H39: 1150 | I39: 1150 | J39: 3870 | K39: 4510 | L39: 1060 | M39: 558 | N39: 1340 | O39: 1480 | P39: 1375 | Q39: 1680 | R39: 2390 | S39: 2180 | T39: 1210 | U39: 1704 | V39: 1600 | W39: 3458 | X39: 1144 | Y39: 654 | Z39: 1389 | AA39: 2270 | AB39: 9020 | AC39: 7498 | AD39: 2450 | AE39: 1685 | AF39: 1180 | AG39: 964 | AH39: 2090 | AI39: 2380 | AJ39: 2090 | AK39: 4390 | AL39: 3910 | AM39: 9050 | AN39: 2700 | AO39: 4060 | AP39: 1330 | AQ39: 8680 | AR39: 9330 | AS39: 1130 | AT39: 2280 | AU39: 3800 | AV39: 1370 | AW39: 1300 | AX39: 5140 | AY39: 1510 | AZ39: 2360 | BA39: 951 | BB39: 3140 | BC39: 920 | BD39: 3270 | BE39: 906 | BF39: 2750 | BG39: 1400 | BH39: 2080 | BI39: 802 | BJ39: 1980 | BK39: 2560 | BL39: 1320 | BM39: 1800 | BN39: 2560 | BO39: 8380 | BP39: 2910 | BQ39: 1880 | BR39: 986 | BS39: 4660 | BT39: 1200 | BU39: 3380 | BV39: 2070 | BW39: 3130 | BX39: 2310 | BY39: 2810 | BZ39: 1720 | CA39: 3810 | CB39: 2930 | CC39: 1820 | CD39: 4970 | CE39: 1190 | CF39: 1020 | CG39: 1420 | CH39: 1150 | CI39: 2602.702381
B40: 2013-02-05 | C40: 1120 | D40: 1845 | E40: 544 | F40: 9800 | G40: 1980 | H40: 1120 | I40: 1120 | J40: 3360 | K40: 3945 | L40: 1060 | M40: 709 | N40: 1305 | O40: 1560 | P40: 1520 | Q40: 1520 | R40: 3360 | S40: 1890 | T40: 1560 | U40: 2412 | V40: 1640 | W40: 2880 | X40: 1060 | Y40: 690 | Z40: 1396 | AA40: 2000 | AB40: 6187 | AC40: 5364 | AD40: 2932 | AE40: 1917 | AF40: 1180 | AG40: 1213 | AH40: 2049 | AI40: 2400 | AJ40: 2190 | AK40: 6730 | AL40: 3040 | AM40: 9050 | AN40: 2970 | AO40: 6390 | AP40: 1420 | AQ40: 6360 | AR40: 5040 | AS40: 1080 | AT40: 2040 | AU40: 3080 | AV40: 1360 | AW40: 1190 | AX40: 4120 | AY40: 1420 | AZ40: 2080 | BA40: 911 | BB40: 3110 | BC40: 1840 | BD40: 2410 | BE40: 864 | BF40: 2360 | BG40: 1330 | BH40: 2060 | BI40: 882 | BJ40: 2240 | BK40: 2410 | BL40: 1230 | BM40: 1850 | BN40: 2400 | BO40: 11600 | BP40: 2540 | BQ40: 1900 | BR40: 942 | BS40: 4850 | BT40: 1650 | BU40: 2880 | BV40: 2230 | BW40: 2970 | BX40: 2000 | BY40: 3400 | BZ40: 1620 | CA40: 3040 | CB40: 2600 | CC40: 2590 | CD40: 4040 | CE40: 1340 | CF40: 1100 | CG40: 1490 | CH40: 1130 | CI40: 2571.511905
B41: 2013-02-06 | C41: 1180 | D41: 2030 | E41: 541 | F41: 5840 | G41: 1845 | H41: 1120 | I41: 1180 | J41: 3010 | K41: 3430 | L41: 1090 | M41: 573 | N41: 1375 | O41: 1600 | P41: 4870 | Q41: 1410 | R41: 2500 | S41: 4690 | T41: 5840 | U41: 2220 | V41: 1935 | W41: 2596 | X41: 815 | Y41: 690 | Z41: 1459 | AA41: 1827 | AB41: 3900 | AC41: 5307 | AD41: 3332 | AE41: 1991 | AF41: 1180 | AG41: 1685 | AH41: 2198 | AI41: 2710 | AJ41: 2940 | AK41: 8900 | AL41: 2510 | AM41: 5710 | AN41: 2480 | AO41: 5720 | AP41: 1480 | AQ41: 4200 | AR41: 3570 | AS41: 1010 | AT41: 1970 | AU41: 2680 | AV41: 1540 | AW41: 1150 | AX41: 3260 | AY41: 1330 | AZ41: 1960 | BA41: 891 | BB41: 3670 | BC41: 3610 | BD41: 2970 | BE41: 827 | BF41: 2110 | BG41: 1310 | BH41: 2130 | BI41: 854 | BJ41: 2000 | BK41: 2330 | BL41: 1220 | BM41: 1750 | BN41: 2200 | BO41: 6550 | BP41: 2250 | BQ41: 1850 | BR41: 910 | BS41: 4320 | BT41: 9230 | BU41: 2540 | BV41: 2140 | BW41: 2840 | BX41: 1890 | BY41: 2450 | BZ41: 1670 | CA41: 2540 | CB41: 2360 | CC41: 2020 | CD41: 3270 | CE41: 1830 | CF41: 1200 | CG41: 1530 | CH41: 1120 | CI41: 2532.869048
B42: 2013-02-07 | C42: 1150 | D42: 1890 | E42: 499 | F42: 5250 | G42: 1640 | H42: 1270 | I42: 1150 | J42: 2880 | K42: 3010 | L42: 915 | M42: 517 | N42: 1305 | O42: 1480 | P42: 5250 | Q42: 1445 | R42: 1980 | S42: 2815 | T42: 4340 | U42: 7060 | V42: 1845 | W42: 2401 | X42: 850 | Y42: 690 | Z42: 1438 | AA42: 3430 | AB42: 3080 | AC42: 8602 | AD42: 3585 | AE42: 9170 | AF42: 1117 | AG42: 1640 | AH42: 2261 | AI42: 2400 | AJ42: 9100 | AK42: 7070 | AL42: 2270 | AM42: 5050 | AN42: 2190 | AO42: 4160 | AP42: 1580 | AQ42: 3300 | AR42: 2880 | AS42: 977 | AT42: 2010 | AU42: 2420 | AV42: 2720 | AW42: 1070 | AX42: 2770 | AY42: 1550 | AZ42: 1850 | BA42: 856 | BB42: 3150 | BC42: 7150 | BD42: 3580 | BE42: 804 | BF42: 1900 | BG42: 1360 | BH42: 2140 | BI42: 844 | BJ42: 1800 | BK42: 2240 | BL42: 2510 | BM42: 1600 | BN42: 1960 | BO42: 4320 | BP42: 2050 | BQ42: 1940 | BR42: 887 | BS42: 3750 | BT42: 23100 | BU42: 2280 | BV42: 2250 | BW42: 3780 | BX42: 2000 | BY42: 1910 | BZ42: 2080 | CA42: 2190 | CB42: 2340 | CC42: 1760 | CD42: 2800 | CE42: 2160 | CF42: 1330 | CG42: 1480 | CH42: 1080 | CI42: 2841.702381
B43: 2013-02-08 | C43: 1120 | D43: 1720 | E43: 620 | F43: 6402 | G43: 1480 | H43: 1445 | I43: 1120 | J43: 3645 | K43: 2620 | L43: 865 | M43: 530 | N43: 1270 | O43: 1305 | P43: 4690 | Q43: 1375 | R43: 1890 | S43: 2180 | T43: 2880 | U43: 16150 | V43: 1640 | W43: 2280 | X43: 1009 | Y43: 690 | Z43: 1480 | AA43: 8895 | AB43: 2718 | AC43: 6526 | AD43: 3690 | AE43: 17960 | AF43: 998 | AG43: 1445 | AH43: 2189 | AI43: 2140 | AJ43: 4740 | AK43: 4800 | AL43: 2120 | AM43: 4240 | AN43: 2000 | AO43: 4340 | AP43: 1530 | AQ43: 2800 | AR43: 2590 | AS43: 1100 | AT43: 2340 | AU43: 2230 | AV43: 3760 | AW43: 1040 | AX43: 2480 | AY43: 1610 | AZ43: 1770 | BA43: 835 | BB43: 3140 | BC43: 3720 | BD43: 2630 | BE43: 782 | BF43: 1760 | BG43: 1280 | BH43: 2020 | BI43: 806 | BJ43: 1630 | BK43: 2180 | BL43: 4840 | BM43: 1500 | BN43: 1890 | BO43: 3630 | BP43: 1940 | BQ43: 2030 | BR43: 820 | BS43: 3220 | BT43: 34500 | BU43: 2080 | BV43: 2180 | BW43: 3170 | BX43: 2770 | BY43: 1650 | BZ43: 2350 | CA43: 1940 | CB43: 2220 | CC43: 1580 | CD43: 2670 | CE43: 2380 | CF43: 1750 | CG43: 1400 | CH43: 1060 | CI43: 3057.261905
B44: 2013-02-09 | C44: 1060 | D44: 1600 | E44: 583 | F44: 3795 | G44: 1375 | H44: 1520 | I44: 1060 | J44: 3500 | K44: 2280 | L44: 806 | M44: 530 | N44: 1210 | O44: 1270 | P44: 8530 | Q44: 1240 | R44: 1980 | S44: 1760 | T44: 2180 | U44: 10770 | V44: 1480 | W44: 2080 | X44: 991 | Y44: 728 | Z44: 1488 | AA44: 26450 | AB44: 2603 | AC44: 4564 | AD44: 3262 | AE44: 7153 | AF44: 887 | AG44: 1655 | AH44: 2378 | AI44: 2140 | AJ44: 3500 | AK44: 4420 | AL44: 2010 | AM44: 3680 | AN44: 1830 | AO44: 3780 | AP44: 1630 | AQ44: 2610 | AR44: 2340 | AS44: 1250 | AT44: 2570 | AU44: 2140 | AV44: 3950 | AW44: 1010 | AX44: 2330 | AY44: 1500 | AZ44: 1690 | BA44: 836 | BB44: 2640 | BC44: 6120 | BD44: 2280 | BE44: 766 | BF44: 1590 | BG44: 1280 | BH44: 2070 | BI44: 784 | BJ44: 1490 | BK44: 2270 | BL44: 6350 | BM44: 1420 | BN44: 2530 | BO44: 3470 | BP44: 1800 | BQ44: 2050 | BR44: 840 | BS44: 2810 | BT44: 30800 | BU44: 1930 | BV44: 2330 | BW44: 2610 | BX44: 3530 | BY44: 1470 | BZ44: 2180 | CA44: 1730 | CB44: 2010 | CC44: 1480 | CD44: 2540 | CE44: 2170 | CF44: 3210 | CG44: 1340 | CH44: 1010 | CI44: 2986.714286
B45: 2013-02-10 | C45: 1000 | D45: 1560 | E45: 558 | F45: 3945 | G45: 1305 | H45: 1630 | I45: 1000 | J45: 2815 | K45: 2030 | L45: 806 | M45: 504 | N45: 1180 | O45: 1180 | P45: 8530 | Q45: 1305 | R45: 2180 | S45: 1800 | T45: 1800 | U45: 6355 | V45: 1410 | W45: 1971 | X45: 927 | Y45: 1720 | Z45: 1424 | AA45: 29300 | AB45: 2634 | AC45: 3645 | AD45: 2760 | AE45: 4180 | AF45: 1180 | AG45: 1546 | AH45: 4132 | AI45: 1880 | AJ45: 3240 | AK45: 4870 | AL45: 1870 | AM45: 2930 | AN45: 1920 | AO45: 3070 | AP45: 1510 | AQ45: 3110 | AR45: 2200 | AS45: 1280 | AT45: 2830 | AU45: 6550 | AV45: 2810 | AW45: 981 | AX45: 2180 | AY45: 1920 | AZ45: 1580 | BA45: 1250 | BB45: 2270 | BC45: 6200 | BD45: 1990 | BE45: 717 | BF45: 1480 | BG45: 1380 | BH45: 2070 | BI45: 850 | BJ45: 1390 | BK45: 2270 | BL45: 5420 | BM45: 1300 | BN45: 14500 | BO45: 3170 | BP45: 1700 | BQ45: 2240 | BR45: 851 | BS45: 2500 | BT45: 9860 | BU45: 1790 | BV45: 2030 | BW45: 2250 | BX45: 2610 | BY45: 1330 | BZ45: 1930 | CA45: 1600 | CB45: 1850 | CC45: 1390 | CD45: 2270 | CE45: 1940 | CF45: 3800 | CG45: 1270 | CH45: 978 | CI45: 2803.440476
B46: 2013-02-11 | C46: 1000 | D46: 1720 | E46: 588 | F46: 5060 | G46: 1240 | H46: 1430 | I46: 1000 | J46: 2500 | K46: 2080 | L46: 792 | M46: 728 | N46: 1150 | O46: 1270 | P46: 5250 | Q46: 1270 | R46: 2390 | S46: 2500 | T46: 1640 | U46: 4408 | V46: 1305 | W46: 2200 | X46: 890 | Y46: 1720 | Z46: 1389 | AA46: 22980 | AB46: 2919 | AC46: 3094 | AD46: 2423 | AE46: 3150 | AF46: 1453 | AG46: 1509 | AH46: 3234 | AI46: 1740 | AJ46: 2850 | AK46: 3910 | AL46: 1910 | AM46: 2500 | AN46: 2280 | AO46: 2670 | AP46: 1580 | AQ46: 2890 | AR46: 1970 | AS46: 2010 | AT46: 2860 | AU46: 8830 | AV46: 2670 | AW46: 1010 | AX46: 2060 | AY46: 1980 | AZ46: 1590 | BA46: 2500 | BB46: 1930 | BC46: 4890 | BD46: 1790 | BE46: 742 | BF46: 1480 | BG46: 1660 | BH46: 2150 | BI46: 1030 | BJ46: 1300 | BK46: 2550 | BL46: 4560 | BM46: 1240 | BN46: 14900 | BO46: 2990 | BP46: 1610 | BQ46: 2040 | BR46: 829 | BS46: 2400 | BT46: 6050 | BU46: 1730 | BV46: 1860 | BW46: 2010 | BX46: 2160 | BY46: 1220 | BZ46: 2030 | CA46: 1480 | CB46: 1750 | CC46: 1320 | CD46: 2060 | CE46: 2060 | CF46: 4270 | CG46: 1200 | CH46: 1050 | CI46: 2600.392857
B47: 2013-02-12 | C47: 1000 | D47: 1600 | E47: 573 | F47: 3430 | G47: 1150 | H47: 1375 | I47: 1000 | J47: 2280 | K47: 2030 | L47: 792 | M47: 1180 | N47: 1120 | O47: 3430 | P47: 3795 | Q47: 1270 | R47: 1980 | S47: 2560 | T47: 1520 | U47: 3960 | V47: 1240 | W47: 3402 | X47: 876 | Y47: 1340 | Z47: 1389 | AA47: 12020 | AB47: 2760 | AC47: 2676 | AD47: 3514 | AE47: 2550 | AF47: 3630 | AG47: 1423 | AH47: 2760 | AI47: 1620 | AJ47: 2460 | AK47: 3480 | AL47: 1750 | AM47: 2310 | AN47: 1990 | AO47: 2500 | AP47: 1890 | AQ47: 2830 | AR47: 2020 | AS47: 2050 | AT47: 2910 | AU47: 6370 | AV47: 4020 | AW47: 1050 | AX47: 1950 | AY47: 3520 | AZ47: 3630 | BA47: 3860 | BB47: 1760 | BC47: 6080 | BD47: 1640 | BE47: 8700 | BF47: 1520 | BG47: 1960 | BH47: 3960 | BI47: 1510 | BJ47: 1190 | BK47: 2600 | BL47: 3860 | BM47: 1190 | BN47: 6920 | BO47: 4670 | BP47: 1560 | BQ47: 1780 | BR47: 806 | BS47: 2170 | BT47: 4650 | BU47: 2000 | BV47: 2310 | BW47: 1830 | BX47: 1910 | BY47: 1130 | BZ47: 1770 | CA47: 1370 | CB47: 1680 | CC47: 1310 | CD47: 1910 | CE47: 2370 | CF47: 3380 | CG47: 1150 | CH47: 1390 | CI47: 2522.27381
B48: 2013-02-13 | C48: 942 | D48: 1480 | E48: 588 | F48: 2815 | G48: 1090 | H48: 1305 | I48: 942 | J48: 2080 | K48: 1935 | L48: 770 | M48: 959 | N48: 1090 | O48: 3080 | P48: 3570 | Q48: 1210 | R48: 1680 | S48: 3220 | T48: 1410 | U48: 3360 | V48: 1180 | W48: 5440 | X48: 1800 | Y48: 1030 | Z48: 1800 | AA48: 7291 | AB48: 2351 | AC48: 2405 | AD48: 4726 | AE48: 2432 | AF48: 2520 | AG48: 1259 | AH48: 4852 | AI48: 1540 | AJ48: 2820 | AK48: 3430 | AL48: 1620 | AM48: 1970 | AN48: 1830 | AO48: 4830 | AP48: 1520 | AQ48: 4070 | AR48: 1830 | AS48: 1670 | AT48: 3540 | AU48: 9050 | AV48: 8160 | AW48: 991 | AX48: 1900 | AY48: 5130 | AZ48: 3160 | BA48: 4480 | BB48: 1610 | BC48: 6540 | BD48: 1520 | BE48: 7450 | BF48: 4280 | BG48: 2560 | BH48: 4740 | BI48: 1190 | BJ48: 1100 | BK48: 2260 | BL48: 3790 | BM48: 1150 | BN48: 4350 | BO48: 4560 | BP48: 1550 | BQ48: 1620 | BR48: 989 | BS48: 1860 | BT48: 4260 | BU48: 2170 | BV48: 3360 | BW48: 1740 | BX48: 1730 | BY48: 1060 | BZ48: 1600 | CA48: 1320 | CB48: 1600 | CC48: 1450 | CD48: 1870 | CE48: 1990 | CF48: 3530 | CG48: 1090 | CH48: 1890 | CI48: 2618.238095
B49: 2013-02-14 | C49: 915 | D49: 1445 | E49: 573 | F49: 3010 | G49: 1042 | H49: 1180 | I49: 915 | J49: 1980 | K49: 1845 | L49: 728 | M49: 865 | N49: 1150 | O49: 3220 | P49: 3010 | Q49: 1120 | R49: 1520 | S49: 3290 | T49: 1375 | U49: 2789 | V49: 1305 | W49: 10060 | X49: 915 | Y49: 1000 | Z49: 2390 | AA49: 5269 | AB49: 2117 | AC49: 2261 | AD49: 3825 | AE49: 2423 | AF49: 2135 | AG49: 1322 | AH49: 3780 | AI49: 1510 | AJ49: 3160 | AK49: 3250 | AL49: 1930 | AM49: 1920 | AN49: 1780 | AO49: 4300 | AP49: 1550 | AQ49: 3220 | AR49: 1700 | AS49: 1430 | AT49: 2960 | AU49: 8490 | AV49: 4760 | AW49: 947 | AX49: 2600 | AY49: 3540 | AZ49: 2590 | BA49: 2520 | BB49: 1470 | BC49: 4980 | BD49: 1390 | BE49: 7610 | BF49: 27800 | BG49: 2610 | BH49: 3330 | BI49: 1090 | BJ49: 1040 | BK49: 2640 | BL49: 3140 | BM49: 1090 | BN49: 3320 | BO49: 6910 | BP49: 1540 | BQ49: 1510 | BR49: 1100 | BS49: 1690 | BT49: 4160 | BU49: 8260 | BV49: 2650 | BW49: 1640 | BX49: 1600 | BY49: 1010 | BZ49: 1470 | CA49: 1270 | CB49: 1650 | CC49: 1350 | CD49: 1870 | CE49: 1820 | CF49: 2740 | CG49: 1060 | CH49: 1870 | CI49: 2781.083333
B50: 2013-02-15 | C50: 915 | D50: 1375 | E50: 604 | F50: 4445 | G50: 1012 | H50: 1120 | I50: 915 | J50: 1890 | K50: 1720 | L50: 698 | M50: 792 | N50: 1120 | O50: 5840 | P50: 2500 | Q50: 1066 | R50: 1410 | S50: 3150 | T50: 1270 | U50: 2357 | V50: 1445 | W50: 9426 | X50: 1890 | Y50: 970 | Z50: 3360 | AA50: 4292 | AB50: 1967 | AC50: 2207 | AD50: 3094 | AE50: 2315 | AF50: 1942 | AG50: 1136 | AH50: 3136 | AI50: 1350 | AJ50: 4480 | AK50: 3460 | AL50: 1930 | AM50: 1780 | AN50: 1720 | AO50: 3570 | AP50: 1360 | AQ50: 2790 | AR50: 1580 | AS50: 1300 | AT50: 3190 | AU50: 9800 | AV50: 6260 | AW50: 957 | AX50: 2470 | AY50: 2650 | AZ50: 2330 | BA50: 1940 | BB50: 1340 | BC50: 3380 | BD50: 1290 | BE50: 8240 | BF50: 22200 | BG50: 2310 | BH50: 2770 | BI50: 1710 | BJ50: 1190 | BK50: 2260 | BL50: 2960 | BM50: 1050 | BN50: 2890 | BO50: 6170 | BP50: 1590 | BQ50: 1390 | BR50: 1110 | BS50: 1690 | BT50: 4080 | BU50: 14300 | BV50: 2380 | BW50: 1520 | BX50: 1550 | BY50: 1020 | BZ50: 1390 | CA50: 1230 | CB50: 1730 | CC50: 1240 | CD50: 1710 | CE50: 4560 | CF50: 2220 | CG50: 1020 | CH50: 1940 | CI50: 2782.452381
B51: 2013-02-16 | C51: 915 | D51: 1270 | E51: 661 | F51: 6680 | G51: 915 | H51: 1060 | I51: 915 | J51: 1800 | K51: 1600 | L51: 654 | M51: 1240 | N51: 1066 | O51: 3645 | P51: 2390 | Q51: 1012 | R51: 1340 | S51: 3010 | T51: 1375 | U51: 2060 | V51: 1410 | W51: 5840 | X51: 3000 | Y51: 2280 | Z51: 4908 | AA51: 3556 | AB51: 1883 | AC51: 2414 | AD51: 3960 | AE51: 2099 | AF51: 1891 | AG51: 1219 | AH51: 3430 | AI51: 1560 | AJ51: 3250 | AK51: 3340 | AL51: 1680 | AM51: 1850 | AN51: 1810 | AO51: 4160 | AP51: 1300 | AQ51: 2600 | AR51: 1480 | AS51: 1320 | AT51: 6560 | AU51: 6690 | AV51: 15800 | AW51: 971 | AX51: 2800 | AY51: 2300 | AZ51: 3100 | BA51: 1700 | BB51: 1310 | BC51: 2730 | BD51: 1250 | BE51: 19300 | BF51: 14500 | BG51: 2540 | BH51: 2400 | BI51: 1490 | BJ51: 2770 | BK51: 2350 | BL51: 2610 | BM51: 1030 | BN51: 2520 | BO51: 5800 | BP51: 1480 | BQ51: 1240 | BR51: 1960 | BS51: 1680 | BT51: 4020 | BU51: 7340 | BV51: 2200 | BW51: 1530 | BX51: 1430 | BY51: 1010 | BZ51: 1390 | CA51: 1280 | CB51: 1720 | CC51: 1170 | CD51: 1590 | CE51: 8560 | CF51: 2300 | CG51: 987 | CH51: 2020 | CI51: 2896.142857
B52: 2013-02-17 | C52: 915 | D52: 1240 | E52: 770 | F52: 6460 | G52: 1150 | H52: 1000 | I52: 915 | J52: 1720 | K52: 1890 | L52: 672 | M52: 1520 | N52: 1018 | O52: 2750 | P52: 2335 | Q52: 900 | R52: 1270 | S52: 3010 | T52: 1445 | U52: 1863 | V52: 1445 | W52: 4228 | X52: 3318 | Y52: 10195 | Z52: 4308 | AA52: 3272 | AB52: 1685 | AC52: 2423 | AD52: 4744 | AE52: 1933 | AF52: 1701 | AG52: 1149 | AH52: 3150 | AI52: 1460 | AJ52: 2610 | AK52: 3040 | AL52: 1490 | AM52: 1840 | AN52: 2050 | AO52: 6000 | AP52: 1230 | AQ52: 3450 | AR52: 1420 | AS52: 1290 | AT52: 5190 | AU52: 4750 | AV52: 9410 | AW52: 1460 | AX52: 2560 | AY52: 2010 | AZ52: 3280 | BA52: 1750 | BB52: 1300 | BC52: 2360 | BD52: 1250 | BE52: 13300 | BF52: 13900 | BG52: 3130 | BH52: 2120 | BI52: 1260 | BJ52: 1910 | BK52: 2510 | BL52: 2270 | BM52: 1080 | BN52: 2210 | BO52: 4550 | BP52: 1370 | BQ52: 1120 | BR52: 2380 | BS52: 3510 | BT52: 4340 | BU52: 5560 | BV52: 1890 | BW52: 1780 | BX52: 1340 | BY52: 965 | BZ52: 1380 | CA52: 1460 | CB52: 1820 | CC52: 1120 | CD52: 1470 | CE52: 4910 | CF52: 2110 | CG52: 961 | CH52: 2180 | CI52: 2708.333333
B53: 2013-02-18 | C53: 915 | D53: 1240 | E53: 728 | F53: 6250 | G53: 8014 | H53: 865 | I53: 915 | J53: 2750 | K53: 2685 | L53: 840 | M53: 1480 | N53: 982 | O53: 2445 | P53: 2180 | Q53: 900 | R53: 1150 | S53: 2945 | T53: 1305 | U53: 1752 | V53: 1520 | W53: 3500 | X53: 4244 | Y53: 5840 | Z53: 3374 | AA53: 2841 | AB53: 1594 | AC53: 2180 | AD53: 3855 | AE53: 1780 | AF53: 1350 | AG53: 1180 | AH53: 3645 | AI53: 1190 | AJ53: 2180 | AK53: 2730 | AL53: 1590 | AM53: 2370 | AN53: 2690 | AO53: 5250 | AP53: 1260 | AQ53: 4660 | AR53: 5430 | AS53: 1260 | AT53: 4150 | AU53: 4020 | AV53: 8130 | AW53: 1480 | AX53: 2630 | AY53: 1860 | AZ53: 3130 | BA53: 2520 | BB53: 1300 | BC53: 2390 | BD53: 1670 | BE53: 8680 | BF53: 9790 | BG53: 3670 | BH53: 1900 | BI53: 1150 | BJ53: 1540 | BK53: 2070 | BL53: 2220 | BM53: 1090 | BN53: 1980 | BO53: 3750 | BP53: 1520 | BQ53: 1080 | BR53: 2240 | BS53: 4870 | BT53: 8930 | BU53: 4950 | BV53: 1730 | BW53: 1750 | BX53: 1260 | BY53: 947 | BZ53: 1670 | CA53: 1360 | CB53: 1860 | CC53: 1070 | CD53: 1360 | CE53: 4340 | CF53: 1900 | CG53: 938 | CH53: 1760 | CI53: 2672.72619
B54: 2013-02-19 | C54: 915 | D54: 1210 | E54: 690 | F54: 9020 | G54: 7360 | H54: 915 | I54: 915 | J54: 1720 | K54: 2180 | L54: 770 | M54: 1210 | N54: 964 | O54: 2230 | P54: 2230 | Q54: 870 | R54: 1000 | S54: 3010 | T54: 1270 | U54: 1584 | V54: 1410 | W54: 2997 | X54: 3108 | Y54: 3514 | Z54: 3318 | AA54: 2596 | AB54: 1481 | AC54: 1983 | AD54: 4340 | AE54: 1725 | AF54: 1226 | AG54: 1315 | AH54: 3960 | AI54: 1240 | AJ54: 1910 | AK54: 4620 | AL54: 1560 | AM54: 4240 | AN54: 3470 | AO54: 5280 | AP54: 1230 | AQ54: 3300 | AR54: 18600 | AS54: 1240 | AT54: 3250 | AU54: 3740 | AV54: 6600 | AW54: 1220 | AX54: 3660 | AY54: 2180 | AZ54: 2530 | BA54: 2020 | BB54: 1580 | BC54: 2240 | BD54: 3240 | BE54: 9730 | BF54: 9790 | BG54: 2920 | BH54: 1750 | BI54: 1150 | BJ54: 1330 | BK54: 1900 | BL54: 1970 | BM54: 1090 | BN54: 1840 | BO54: 17500 | BP54: 1570 | BQ54: 1050 | BR54: 1760 | BS54: 27300 | BT54: 7450 | BU54: 5590 | BV54: 2020 | BW54: 1930 | BX54: 1210 | BY54: 913 | BZ54: 1920 | CA54: 1270 | CB54: 2350 | CC54: 1040 | CD54: 1330 | CE54: 4010 | CF54: 1910 | CG54: 902 | CH54: 1530 | CI54: 3214.416667
B55: 2013-02-20 | C55: 970 | D55: 1180 | E55: 792 | F55: 7590 | G55: 3870 | H55: 1120 | I55: 970 | J55: 1680 | K55: 2335 | L55: 770 | M55: 1054 | N55: 1000 | O55: 1890 | P55: 1980 | Q55: 845 | R55: 964 | S55: 3150 | T55: 1180 | U55: 1536 | V55: 1340 | W55: 2608 | X55: 2260 | Y55: 2572 | Z55: 2789 | AA55: 2646 | AB55: 1280 | AC55: 1833 | AD55: 8290 | AE55: 1625 | AF55: 998 | AG55: 1315 | AH55: 3402 | AI55: 1460 | AJ55: 1650 | AK55: 9610 | AL55: 1380 | AM55: 5500 | AN55: 2610 | AO55: 5210 | AP55: 1490 | AQ55: 2720 | AR55: 13700 | AS55: 1190 | AT55: 2760 | AU55: 3080 | AV55: 5700 | AW55: 1120 | AX55: 2990 | AY55: 2780 | AZ55: 2320 | BA55: 1710 | BB55: 1600 | BC55: 1970 | BD55: 2650 | BE55: 6870 | BF55: 14300 | BG55: 2840 | BH55: 1910 | BI55: 1330 | BJ55: 1230 | BK55: 1780 | BL55: 1840 | BM55: 1110 | BN55: 2020 | BO55: 19600 | BP55: 1580 | BQ55: 1010 | BR55: 1480 | BS55: 16400 | BT55: 5520 | BU55: 4640 | BV55: 2020 | BW55: 1790 | BX55: 1160 | BY55: 880 | BZ55: 2090 | CA55: 1740 | CB55: 2090 | CC55: 993 | CD55: 1290 | CE55: 6160 | CF55: 1940 | CG55: 885 | CH55: 1380 | CI55: 3010.857143
B56: 2013-02-21 | C56: 1060 | D56: 1180 | E56: 1030 | F56: 5060 | G56: 2826 | H56: 1560 | I56: 1060 | J56: 1720 | K56: 2620 | L56: 806 | M56: 3290 | N56: 1078 | O56: 1720 | P56: 1800 | Q56: 830 | R56: 937 | S56: 3150 | T56: 1018 | U56: 1452 | V56: 1375 | W56: 2633 | X56: 2250 | Y56: 2280 | Z56: 2456 | AA56: 2368 | AB56: 1213 | AC56: 1733 | AD56: 8050 | AE56: 1562 | AF56: 998 | AG56: 1051 | AH56: 2906 | AI56: 1220 | AJ56: 1920 | AK56: 20000 | AL56: 1300 | AM56: 3500 | AN56: 2240 | AO56: 4070 | AP56: 1900 | AQ56: 2450 | AR56: 9280 | AS56: 1140 | AT56: 2490 | AU56: 2770 | AV56: 4490 | AW56: 1040 | AX56: 2610 | AY56: 2130 | AZ56: 2050 | BA56: 1700 | BB56: 1620 | BC56: 1770 | BD56: 2150 | BE56: 4670 | BF56: 14400 | BG56: 2730 | BH56: 2370 | BI56: 1380 | BJ56: 1230 | BK56: 1650 | BL56: 1840 | BM56: 1170 | BN56: 2730 | BO56: 7790 | BP56: 2600 | BQ56: 963 | BR56: 1390 | BS56: 9660 | BT56: 4410 | BU56: 3620 | BV56: 2510 | BW56: 1600 | BX56: 1190 | BY56: 862 | BZ56: 4880 | CA56: 4560 | CB56: 1810 | CC56: 950 | CD56: 1260 | CE56: 3850 | CF56: 1890 | CG56: 880 | CH56: 1270 | CI56: 2750.321429
B57: 2013-02-22 | C57: 1600 | D57: 1150 | E57: 890 | F57: 3820 | G57: 2390 | H57: 1720 | I57: 1600 | J57: 1680 | K57: 3870 | L57: 1180 | M57: 8290 | N57: 1078 | O57: 1600 | P57: 1680 | Q57: 825 | R57: 926 | S57: 2620 | T57: 964 | U57: 1473 | V57: 1560 | W57: 2880 | X57: 5060 | Y57: 4036 | Z57: 3528 | AA57: 2130 | AB57: 1057 | AC57: 1717 | AD57: 6020 | AE57: 1546 | AF57: 998 | AG57: 1028 | AH57: 3645 | AI57: 1200 | AJ57: 1730 | AK57: 10900 | AL57: 1310 | AM57: 2680 | AN57: 2070 | AO57: 3520 | AP57: 1740 | AQ57: 2260 | AR57: 9230 | AS57: 1110 | AT57: 2270 | AU57: 2610 | AV57: 3920 | AW57: 1030 | AX57: 2390 | AY57: 1890 | AZ57: 1890 | BA57: 1670 | BB57: 1640 | BC57: 1620 | BD57: 1810 | BE57: 3800 | BF57: 7250 | BG57: 2900 | BH57: 2190 | BI57: 2900 | BJ57: 1420 | BK57: 1590 | BL57: 1750 | BM57: 1430 | BN57: 2490 | BO57: 5090 | BP57: 4020 | BQ57: 925 | BR57: 1340 | BS57: 6140 | BT57: 3610 | BU57: 3000 | BV57: 2500 | BW57: 1840 | BX57: 1490 | BY57: 895 | BZ57: 12200 | CA57: 5340 | CB57: 1630 | CC57: 919 | CD57: 1310 | CE57: 2950 | CF57: 1830 | CG57: 879 | CH57: 1180 | CI57: 2641.178571
B58: 2013-02-23 | C58: 2030 | D58: 1090 | E58: 1078 | F58: 3150 | G58: 2230 | H58: 1560 | I58: 2030 | J58: 1560 | K58: 3290 | L58: 1340 | M58: 5840 | N58: 1060 | O58: 1520 | P58: 1680 | Q58: 775 | R58: 875 | S58: 2560 | T58: 880 | U58: 1552 | V58: 2560 | W58: 2880 | X58: 4308 | Y58: 6334 | Z58: 3975 | AA58: 2060 | AB58: 970 | AC58: 1633 | AD58: 4276 | AE58: 1453 | AF58: 998 | AG58: 1167 | AH58: 4984 | AI58: 1200 | AJ58: 1640 | AK58: 6130 | AL58: 1420 | AM58: 2310 | AN58: 1930 | AO58: 2890 | AP58: 1800 | AQ58: 1920 | AR58: 9430 | AS58: 1060 | AT58: 2110 | AU58: 2510 | AV58: 3300 | AW58: 1020 | AX58: 2100 | AY58: 1910 | AZ58: 1860 | BA58: 1660 | BB58: 1800 | BC58: 1530 | BD58: 1600 | BE58: 3240 | BF58: 5100 | BG58: 4220 | BH58: 2110 | BI58: 2820 | BJ58: 6510 | BK58: 1520 | BL58: 1620 | BM58: 1810 | BN58: 2450 | BO58: 3900 | BP58: 3050 | BQ58: 882 | BR58: 1990 | BS58: 4480 | BT58: 3280 | BU58: 2630 | BV58: 2140 | BW58: 2390 | BX58: 1940 | BY58: 897 | BZ58: 9430 | CA58: 3400 | CB58: 1510 | CC58: 894 | CD58: 1990 | CE58: 2470 | CF58: 1810 | CG58: 926 | CH58: 1120 | CI58: 2492.345238
B59: 2013-02-24 | C59: 1640 | D59: 1030 | E59: 1120 | F59: 2560 | G59: 1935 | H59: 2030 | I59: 1640 | J59: 1410 | K59: 2500 | L59: 959 | M59: 4020 | N59: 1150 | O59: 1445 | P59: 1600 | Q59: 757 | R59: 885 | S59: 2080 | T59: 860 | U59: 1445 | V59: 4510 | W59: 2724 | X59: 3010 | Y59: 4870 | Z59: 9478 | AA59: 1863 | AB59: 942 | AC59: 1538 | AD59: 6040 | AE59: 1523 | AF59: 998 | AG59: 4493 | AH59: 6145 | AI59: 1180 | AJ59: 1450 | AK59: 5670 | AL59: 1180 | AM59: 2030 | AN59: 1940 | AO59: 2570 | AP59: 1680 | AQ59: 1990 | AR59: 8930 | AS59: 1020 | AT59: 1970 | AU59: 3420 | AV59: 2920 | AW59: 1010 | AX59: 1920 | AY59: 2950 | AZ59: 1970 | BA59: 1470 | BB59: 2160 | BC59: 1720 | BD59: 1470 | BE59: 2940 | BF59: 4070 | BG59: 4790 | BH59: 2030 | BI59: 4010 | BJ59: 25400 | BK59: 1410 | BL59: 1510 | BM59: 1620 | BN59: 3120 | BO59: 3250 | BP59: 2950 | BQ59: 842 | BR59: 1690 | BS59: 3900 | BT59: 2880 | BU59: 2400 | BV59: 1850 | BW59: 4000 | BX59: 1610 | BY59: 947 | BZ59: 6470 | CA59: 2380 | CB59: 1450 | CC59: 879 | CD59: 1940 | CE59: 2210 | CF59: 1760 | CG59: 1200 | CH59: 1190 | CI59: 2720.452381
B60: 2013-02-25 | C60: 1520 | D60: 994 | E60: 1375 | F60: 2230 | G60: 1800 | H60: 5039 | I60: 1520 | J60: 1410 | K60: 2130 | L60: 865 | M60: 3430 | N60: 1210 | O60: 1560 | P60: 1980 | Q60: 880 | R60: 779 | S60: 1890 | T60: 920 | U60: 1361 | V60: 5540 | W60: 2412 | X60: 3290 | Y60: 3885 | Z60: 8626 | AA60: 1768 | AB60: 1028 | AC60: 1474 | AD60: 4654 | AE60: 1488 | AF60: 1057 | AG60: 6992 | AH60: 6460 | AI60: 2620 | AJ60: 1360 | AK60: 4820 | AL60: 1100 | AM60: 1920 | AN60: 1770 | AO60: 2360 | AP60: 1570 | AQ60: 1900 | AR60: 5630 | AS60: 992 | AT60: 1860 | AU60: 3240 | AV60: 2660 | AW60: 1150 | AX60: 1940 | AY60: 2530 | AZ60: 1980 | BA60: 1420 | BB60: 2000 | BC60: 2650 | BD60: 1440 | BE60: 2920 | BF60: 3400 | BG60: 3970 | BH60: 1920 | BI60: 3720 | BJ60: 15400 | BK60: 1310 | BL60: 1450 | BM60: 1490 | BN60: 3710 | BO60: 2840 | BP60: 3100 | BQ60: 804 | BR60: 1480 | BS60: 3900 | BT60: 2540 | BU60: 2320 | BV60: 1740 | BW60: 4890 | BX60: 1450 | BY60: 909 | BZ60: 4290 | CA60: 1930 | CB60: 1420 | CC60: 869 | CD60: 1570 | CE60: 2010 | CF60: 1730 | CG60: 2010 | CH60: 1530 | CI60: 2536.916667
B61: 2013-02-26 | C61: 2620 | D61: 970 | E61: 1180 | F61: 1980 | G61: 1680 | H61: 23910 | I61: 2620 | J61: 1340 | K61: 1890 | L61: 1180 | M61: 2750 | N61: 1240 | O61: 1410 | P61: 3220 | Q61: 770 | R61: 825 | S61: 1720 | T61: 959 | U61: 1375 | V61: 3720 | W61: 2180 | X61: 6790 | Y61: 3735 | Z61: 8314 | AA61: 1672 | AB61: 2033 | AC61: 1408 | AD61: 4148 | AE61: 1393 | AF61: 1117 | AG61: 9624 | AH61: 4708 | AI61: 3300 | AJ61: 1230 | AK61: 3980 | AL61: 984 | AM61: 7380 | AN61: 1690 | AO61: 2620 | AP61: 1500 | AQ61: 1870 | AR61: 4300 | AS61: 961 | AT61: 1770 | AU61: 2650 | AV61: 2440 | AW61: 1660 | AX61: 2000 | AY61: 2200 | AZ61: 1790 | BA61: 1430 | BB61: 1930 | BC61: 3450 | BD61: 3270 | BE61: 2560 | BF61: 2950 | BG61: 3190 | BH61: 1740 | BI61: 2590 | BJ61: 9650 | BK61: 1250 | BL61: 1570 | BM61: 1380 | BN61: 3100 | BO61: 2590 | BP61: 3250 | BQ61: 787 | BR61: 1560 | BS61: 3530 | BT61: 2310 | BU61: 2500 | BV61: 1700 | BW61: 3350 | BX61: 1430 | BY61: 844 | BZ61: 3330 | CA61: 1700 | CB61: 1350 | CC61: 857 | CD61: 1430 | CE61: 1880 | CF61: 1710 | CG61: 1810 | CH61: 1630 | CI61: 2719.214286
B62: 2013-02-27 | C62: 2390 | D62: 970 | E62: 1180 | F62: 1800 | G62: 1680 | H62: 23942 | I62: 2390 | J62: 1560 | K62: 1720 | L62: 4340 | M62: 2390 | N62: 1340 | O62: 1445 | P62: 3360 | Q62: 797 | R62: 784 | S62: 1640 | T62: 792 | U62: 1396 | V62: 5060 | W62: 1971 | X62: 5680 | Y62: 3735 | Z62: 6334 | AA62: 1204 | AB62: 1803 | AC62: 1502 | AD62: 3416 | AE62: 1301 | AF62: 1117 | AG62: 8098 | AH62: 3585 | AI62: 2310 | AJ62: 1150 | AK62: 3610 | AL62: 997 | AM62: 4150 | AN62: 1570 | AO62: 4740 | AP62: 1620 | AQ62: 1770 | AR62: 3690 | AS62: 940 | AT62: 1710 | AU62: 2400 | AV62: 9210 | AW62: 2270 | AX62: 1920 | AY62: 2090 | AZ62: 1780 | BA62: 1840 | BB62: 1580 | BC62: 3250 | BD62: 8420 | BE62: 2220 | BF62: 2760 | BG62: 2750 | BH62: 1610 | BI62: 2110 | BJ62: 5570 | BK62: 1210 | BL62: 1910 | BM62: 1280 | BN62: 2710 | BO62: 2420 | BP62: 3210 | BQ62: 772 | BR62: 2040 | BS62: 2990 | BT62: 2080 | BU62: 2480 | BV62: 1540 | BW62: 3450 | BX62: 1540 | BY62: 805 | BZ62: 2790 | CA62: 1540 | CB62: 1350 | CC62: 852 | CD62: 1640 | CE62: 1700 | CF62: 1730 | CG62: 1390 | CH62: 1860 | CI62: 2691.047619
B63: 2013-02-28 | C63: 1890 | D63: 890 | E63: 1060 | F63: 1640 | G63: 1680 | H63: 13575 | I63: 1890 | J63: 2080 | K63: 1640 | L63: 4340 | M63: 2130 | N63: 1520 | O63: 1375 | P63: 3570 | Q63: 1480 | R63: 815 | S63: 1640 | T63: 820 | U63: 1305 | V63: 5540 | W63: 1800 | X63: 3855 | Y63: 3615 | Z63: 4510 | AA63: 1466 | AB63: 1594 | AC63: 1655 | AD63: 3010 | AE63: 1287 | AF63: 1245 | AG63: 5212 | AH63: 2844 | AI63: 3840 | AJ63: 1130 | AK63: 3250 | AL63: 988 | AM63: 3070 | AN63: 1550 | AO63: 3640 | AP63: 1670 | AQ63: 2020 | AR63: 3220 | AS63: 923 | AT63: 1610 | AU63: 2170 | AV63: 28600 | AW63: 1910 | AX63: 2000 | AY63: 2750 | AZ63: 1770 | BA63: 2290 | BB63: 1480 | BC63: 2510 | BD63: 7530 | BE63: 2020 | BF63: 2520 | BG63: 2400 | BH63: 1590 | BI63: 1870 | BJ63: 4400 | BK63: 1200 | BL63: 2260 | BM63: 1260 | BN63: 2490 | BO63: 2320 | BP63: 2990 | BQ63: 757 | BR63: 3880 | BS63: 2600 | BT63: 1900 | BU63: 2180 | BV63: 1450 | BW63: 5700 | BX63: 1830 | BY63: 795 | BZ63: 2450 | CA63: 1450 | CB63: 1390 | CC63: 879 | CD63: 2240 | CE63: 1640 | CF63: 2080 | CG63: 1240 | CH63: 1690 | CI63: 2694.821429
B64: 2013-03-01 | C64: 1720 | D64: 865 | E64: 1180 | F64: 1537 | G64: 2180 | H64: 5640 | I64: 1720 | J64: 4270 | K64: 1560 | L64: 5440 | M64: 2180 | N64: 1640 | O64: 1340 | P64: 4690 | Q64: 1935 | R64: 830 | S64: 1560 | T64: 736 | U64: 1340 | V64: 4100 | W64: 1688 | X64: 2080 | Y64: 3472 | Z64: 3570 | AA64: 1410 | AB64: 1481 | AC64: 1610 | AD64: 2655 | AE64: 1280 | AF64: 2180 | AG64: 3855 | AH64: 2634 | AI64: 7720 | AJ64: 988 | AK64: 6070 | AL64: 992 | AM64: 3460 | AN64: 1950 | AO64: 2850 | AP64: 1430 | AQ64: 2630 | AR64: 2860 | AS64: 927 | AT64: 1490 | AU64: 1950 | AV64: 8380 | AW64: 2110 | AX64: 1960 | AY64: 4410 | AZ64: 1520 | BA64: 2100 | BB64: 1380 | BC64: 2070 | BD64: 3930 | BE64: 1850 | BF64: 3440 | BG64: 2160 | BH64: 1660 | BI64: 1780 | BJ64: 3830 | BK64: 1280 | BL64: 2580 | BM64: 1260 | BN64: 2360 | BO64: 2280 | BP64: 2460 | BQ64: 759 | BR64: 5600 | BS64: 2310 | BT64: 1680 | BU64: 2510 | BV64: 1670 | BW64: 4750 | BX64: 2160 | BY64: 863 | BZ64: 2160 | CA64: 1370 | CB64: 1310 | CC64: 1030 | CD64: 2030 | CE64: 1550 | CF64: 3870 | CG64: 1200 | CH64: 1490 | CI64: 2414.369048
B65: 2013-03-02 | C65: 1560 | D65: 840 | E65: 2338 | F65: 1410 | G65: 2685 | H65: 4690 | I65: 1560 | J65: 11730 | K65: 1480 | L65: 4510 | M65: 3570 | N65: 1890 | O65: 1410 | P65: 7130 | Q65: 2620 | R65: 1180 | S65: 1600 | T65: 720 | U65: 1270 | V65: 3795 | W65: 1640 | X65: 2390 | Y65: 3178 | Z65: 3080 | AA65: 1333 | AB65: 1280 | AC65: 1481 | AD65: 2387 | AE65: 1245 | AF65: 3290 | AG65: 3150 | AH65: 2510 | AI65: 4660 | AJ65: 984 | AK65: 4940 | AL65: 984 | AM65: 2900 | AN65: 1800 | AO65: 2530 | AP65: 1310 | AQ65: 2200 | AR65: 2850 | AS65: 914 | AT65: 1400 | AU65: 1900 | AV65: 6310 | AW65: 2190 | AX65: 2010 | AY65: 5690 | AZ65: 1390 | BA65: 1790 | BB65: 1340 | BC65: 1840 | BD65: 3260 | BE65: 1720 | BF65: 3450 | BG65: 2080 | BH65: 1710 | BI65: 1630 | BJ65: 3190 | BK65: 1940 | BL65: 2510 | BM65: 1180 | BN65: 2300 | BO65: 2530 | BP65: 2290 | BQ65: 791 | BR65: 5890 | BS65: 2100 | BT65: 1610 | BU65: 2830 | BV65: 2100 | BW65: 3600 | BX65: 2060 | BY65: 1040 | BZ65: 1960 | CA65: 1330 | CB65: 1240 | CC65: 1010 | CD65: 1850 | CE65: 1440 | CF65: 3090 | CG65: 1420 | CH65: 1430 | CI65: 2422.202381
B66: 2013-03-03 | C66: 1640 | D66: 835 | E66: 2130 | F66: 1340 | G66: 3150 | H66: 3720 | I66: 1640 | J66: 6460 | K66: 1410 | L66: 6040 | M66: 4100 | N66: 1640 | O66: 1480 | P66: 4690 | Q66: 1890 | R66: 1520 | S66: 1480 | T66: 736 | U66: 1375 | V66: 3430 | W66: 1800 | X66: 2100 | Y66: 3206 | Z66: 4744 | AA66: 1333 | AB66: 1149 | AC66: 1393 | AD66: 2180 | AE66: 1245 | AF66: 2708 | AG66: 2750 | AH66: 2288 | AI66: 3610 | AJ66: 925 | AK66: 3780 | AL66: 920 | AM66: 2500 | AN66: 1710 | AO66: 2330 | AP66: 1200 | AQ66: 1880 | AR66: 2770 | AS66: 952 | AT66: 1390 | AU66: 1960 | AV66: 5040 | AW66: 1790 | AX66: 1840 | AY66: 5890 | AZ66: 1330 | BA66: 1860 | BB66: 1210 | BC66: 1690 | BD66: 2800 | BE66: 1720 | BF66: 2940 | BG66: 1990 | BH66: 1620 | BI66: 1480 | BJ66: 2770 | BK66: 8640 | BL66: 3250 | BM66: 1090 | BN66: 2300 | BO66: 3560 | BP66: 2090 | BQ66: 837 | BR66: 8470 | BS66: 1940 | BT66: 1690 | BU66: 2500 | BV66: 2040 | BW66: 3000 | BX66: 2160 | BY66: 956 | BZ66: 1810 | CA66: 1380 | CB66: 1270 | CC66: 1000 | CD66: 1730 | CE66: 1550 | CF66: 2530 | CG66: 1690 | CH66: 1990 | CI66: 2368.714286
B67: 2013-03-04 | C67: 1560 | D67: 865 | E67: 1935 | F67: 1270 | G67: 2880 | H67: 3645 | I67: 1560 | J67: 4510 | K67: 1375 | L67: 4690 | M67: 3645 | N67: 1480 | O67: 1375 | P67: 4020 | Q67: 1560 | R67: 1180 | S67: 1410 | T67: 724 | U67: 1375 | V67: 2880 | W67: 2130 | X67: 1881 | Y67: 3444 | Z67: 18628 | AA67: 1354 | AB67: 1057 | AC67: 1343 | AD67: 2057 | AE67: 1117 | AF67: 2270 | AG67: 2450 | AH67: 2074 | AI67: 2860 | AJ67: 946 | AK67: 3040 | AL67: 981 | AM67: 2190 | AN67: 2500 | AO67: 2240 | AP67: 1080 | AQ67: 1780 | AR67: 3030 | AS67: 955 | AT67: 1310 | AU67: 1800 | AV67: 4170 | AW67: 1570 | AX67: 2110 | AY67: 4090 | AZ67: 1240 | BA67: 1570 | BB67: 1180 | BC67: 2730 | BD67: 3020 | BE67: 1920 | BF67: 2970 | BG67: 1930 | BH67: 1470 | BI67: 1420 | BJ67: 2670 | BK67: 11100 | BL67: 2750 | BM67: 1040 | BN67: 2240 | BO67: 4590 | BP67: 1960 | BQ67: 1330 | BR67: 7180 | BS67: 1880 | BT67: 2050 | BU67: 2330 | BV67: 1800 | BW67: 2660 | BX67: 2510 | BY67: 885 | BZ67: 1720 | CA67: 1280 | CB67: 1920 | CC67: 941 | CD67: 1590 | CE67: 1750 | CF67: 2810 | CG67: 1680 | CH67: 1810 | CI67: 2432.404762
B68: 2013-03-05 | C68: 1445 | D68: 1935 | E68: 2230 | F68: 1270 | G68: 2230 | H68: 11996 | I68: 1445 | J68: 4550 | K68: 1305 | L68: 3430 | M68: 4340 | N68: 1520 | O68: 1270 | P68: 5060 | Q68: 1375 | R68: 1210 | S68: 1340 | T68: 701 | U68: 1305 | V68: 2750 | W68: 1784 | X68: 1752 | Y68: 3542 | Z68: 12020 | AA68: 1298 | AB68: 1245 | AC68: 1385 | AD68: 1967 | AE68: 998 | AF68: 1908 | AG68: 2360 | AH68: 2135 | AI68: 2570 | AJ68: 986 | AK68: 2710 | AL68: 1080 | AM68: 2010 | AN68: 2810 | AO68: 2170 | AP68: 1090 | AQ68: 1640 | AR68: 3960 | AS68: 1400 | AT68: 1240 | AU68: 1670 | AV68: 11000 | AW68: 1560 | AX68: 4090 | AY68: 3120 | AZ68: 1190 | BA68: 1460 | BB68: 1130 | BC68: 8630 | BD68: 3200 | BE68: 1670 | BF68: 2690 | BG68: 1870 | BH68: 1390 | BI68: 1340 | BJ68: 2640 | BK68: 6760 | BL68: 2770 | BM68: 1130 | BN68: 2310 | BO68: 3270 | BP68: 1810 | BQ68: 3650 | BR68: 5030 | BS68: 1770 | BT68: 1860 | BU68: 2130 | BV68: 1600 | BW68: 2370 | BX68: 2210 | BY68: 849 | BZ68: 1800 | CA68: 1300 | CB68: 2000 | CC68: 898 | CD68: 1490 | CE68: 2020 | CF68: 2310 | CG68: 1750 | CH68: 1550 | CI68: 2524.452381
B69: 2013-03-06 | C69: 1800 | D69: 2180 | E69: 2280 | F69: 1240 | G69: 1935 | H69: 10330 | I69: 1800 | J69: 8050 | K69: 1240 | L69: 2815 | M69: 5440 | N69: 1600 | O69: 1340 | P69: 3645 | Q69: 1305 | R69: 1410 | S69: 1305 | T69: 713 | U69: 1180 | V69: 4020 | W69: 1624 | X69: 1752 | Y69: 3402 | Z69: 8530 | AA69: 1240 | AB69: 998 | AC69: 1430 | AD69: 1891 | AE69: 987 | AF69: 1685 | AG69: 2225 | AH69: 2041 | AI69: 2320 | AJ69: 1120 | AK69: 2610 | AL69: 1130 | AM69: 1830 | AN69: 2380 | AO69: 2170 | AP69: 1070 | AQ69: 1530 | AR69: 3330 | AS69: 1580 | AT69: 1360 | AU69: 1610 | AV69: 19200 | AW69: 1440 | AX69: 3060 | AY69: 2630 | AZ69: 1170 | BA69: 1440 | BB69: 1090 | BC69: 12600 | BD69: 2510 | BE69: 1520 | BF69: 2410 | BG69: 2010 | BH69: 1440 | BI69: 1240 | BJ69: 2400 | BK69: 6370 | BL69: 2470 | BM69: 2490 | BN69: 2580 | BO69: 2770 | BP69: 1710 | BQ69: 4030 | BR69: 3490 | BS69: 1640 | BT69: 1870 | BU69: 2530 | BV69: 1470 | BW69: 2100 | BX69: 1890 | BY69: 929 | BZ69: 1720 | CA69: 1450 | CB69: 2040 | CC69: 878 | CD69: 1410 | CE69: 2330 | CF69: 1990 | CG69: 1600 | CH69: 1390 | CI69: 2580.714286
B70: 2013-03-07 | C70: 4020 | D70: 2390 | E70: 1935 | F70: 1210 | G70: 1727 | H70: 6040 | I70: 4020 | J70: 5250 | K70: 1210 | L70: 2390 | M70: 3795 | N70: 1410 | O70: 1270 | P70: 4690 | Q70: 1270 | R70: 1305 | S70: 1150 | T70: 698 | U70: 1090 | V70: 3945 | W70: 1552 | X70: 1818 | Y70: 3150 | Z70: 5840 | AA70: 1180 | AB70: 887 | AC70: 1445 | AD70: 1818 | AE70: 942 | AF70: 1709 | AG70: 6082 | AH70: 1788 | AI70: 2220 | AJ70: 1130 | AK70: 2530 | AL70: 1150 | AM70: 1700 | AN70: 2040 | AO70: 2240 | AP70: 1190 | AQ70: 1560 | AR70: 2600 | AS70: 1340 | AT70: 4200 | AU70: 2040 | AV70: 8680 | AW70: 1330 | AX70: 2340 | AY70: 2300 | AZ70: 1150 | BA70: 1800 | BB70: 1470 | BC70: 12000 | BD70: 2140 | BE70: 1420 | BF70: 2210 | BG70: 2190 | BH70: 1640 | BI70: 1170 | BJ70: 3520 | BK70: 4400 | BL70: 2130 | BM70: 2460 | BN70: 3380 | BO70: 2500 | BP70: 1620 | BQ70: 2940 | BR70: 2750 | BS70: 1540 | BT70: 1870 | BU70: 3920 | BV70: 1350 | BW70: 1910 | BX70: 1670 | BY70: 1120 | BZ70: 1560 | CA70: 1420 | CB70: 2130 | CC70: 918 | CD70: 1480 | CE70: 2880 | CF70: 1840 | CG70: 1450 | CH70: 1310 | CI70: =AVERAGE(C70:CH70) -> 2391.357143
B71: 2013-03-08 | C71: 2945 | D71: 3430 | E71: 1760 | F71: 1246 | G71: 1600 | H71: 4510 | I71: 2945 | J71: 3870 | K71: 1180 | L71: 3010 | M71: 3010 | N71: 1340 | O71: 1210 | P71: 6250 | Q71: 1305 | R71: 1210 | S71: 1090 | T71: 766 | U71: 1150 | V71: 3150 | W71: 1568 | X71: 1748 | Y71: 3010 | Z71: 4510 | AA71: 1144 | AB71: 1028 | AC71: 1594 | AD71: 2099 | AE71: 1016 | AF71: 1942 | AG71: 5117 | AH71: 1833 | AI71: 2200 | AJ71: 1380 | AK71: 2410 | AL71: 1180 | AM71: 1610 | AN71: 1870 | AO71: 2310 | AP71: 1350 | AQ71: 1580 | AR71: 2230 | AS71: 1190 | AT71: 2750 | AU71: 2010 | AV71: 5930 | AW71: 1280 | AX71: 2000 | AY71: 2140 | AZ71: 1110 | BA71: 2710 | BB71: 2690 | BC71: 6830 | BD71: 1970 | BE71: 1350 | BF71: 2110 | BG71: 3210 | BH71: 1780 | BI71: 1120 | BJ71: 5240 | BK71: 3350 | BL71: 2290 | BM71: 1980 | BN71: 3820 | BO71: 2410 | BP71: 1560 | BQ71: 2530 | BR71: 2310 | BS71: 1610 | BT71: 1930 | BU71: 3150 | BV71: 1300 | BW71: 1770 | BX71: 1520 | BY71: 1590 | BZ71: 1470 | CA71: 1380 | CB71: 4140 | CC71: 1080 | CD71: 1670 | CE71: 3430 | CF71: 1950 | CG71: 1370 | CH71: 1380 | CI71: 2263.285714
B72: 2013-03-09 | C72: 2280 | D72: 3945 | E72: 1657 | F72: 1270 | G72: 1560 | H72: 3570 | I72: 2280 | J72: 3150 | K72: 1120 | L72: 4870 | M72: 2880 | N72: 1375 | O72: 1150 | P72: 4260 | Q72: 1305 | R72: 4300 | S72: 1078 | T72: 4180 | U72: 1305 | V72: 2620 | W72: 1576 | X72: 1608 | Y72: 2750 | Z72: 3780 | AA72: 1132 | AB72: 1149 | AC72: 2117 | AD72: 4476 | AE72: 1161 | AF72: 1717 | AG72: 4927 | AH72: 1825 | AI72: 2230 | AJ72: 1290 | AK72: 2400 | AL72: 1290 | AM72: 1520 | AN72: 1910 | AO72: 2360 | AP72: 3480 | AQ72: 1940 | AR72: 1980 | AS72: 1090 | AT72: 2140 | AU72: 1800 | AV72: 5020 | AW72: 1390 | AX72: 2080 | AY72: 2270 | AZ72: 1130 | BA72: 2950 | BB72: 1970 | BC72: 4520 | BD72: 1800 | BE72: 1270 | BF72: 7390 | BG72: 7410 | BH72: 2050 | BI72: 1080 | BJ72: 3760 | BK72: 2810 | BL72: 4710 | BM72: 1790 | BN72: 3160 | BO72: 2280 | BP72: 1460 | BQ72: 2320 | BR72: 2050 | BS72: 2520 | BT72: 2490 | BU72: 3590 | BV72: 1690 | BW72: 1710 | BX72: 1410 | BY72: 1790 | BZ72: 1400 | CA72: 2290 | CB72: 4900 | CC72: 1100 | CD72: 1800 | CE72: 2980 | CF72: 2070 | CG72: 1270 | CH72: 1240 | CI72: 2437.178571
B73: 2013-03-10 | C73: 2030 | D73: 5820 | E73: 1935 | F73: 1240 | G73: 2500 | H73: 3010 | I73: 2030 | J73: 2815 | K73: 1060 | L73: 3430 | M73: 2815 | N73: 1305 | O73: 1120 | P73: 3430 | Q73: 1240 | R73: 5060 | S73: 988 | T73: 5250 | U73: 3570 | V73: 2445 | W73: 2030 | X73: 1496 | Y73: 2412 | Z73: 3318 | AA73: 1096 | AB73: 1788 | AC73: 2252 | AD73: 5022 | AE73: 1385 | AF73: 1602 | AG73: 3960 | AH73: 1685 | AI73: 2230 | AJ73: 1230 | AK73: 2240 | AL73: 1150 | AM73: 1450 | AN73: 1960 | AO73: 2590 | AP73: 3510 | AQ73: 1670 | AR73: 1820 | AS73: 1030 | AT73: 1860 | AU73: 2340 | AV73: 6470 | AW73: 2200 | AX73: 2390 | AY73: 2050 | AZ73: 1260 | BA73: 2340 | BB73: 1690 | BC73: 3600 | BD73: 1840 | BE73: 1210 | BF73: 8020 | BG73: 6910 | BH73: 2220 | BI73: 1070 | BJ73: 3010 | BK73: 2820 | BL73: 3290 | BM73: 2280 | BN73: 3860 | BO73: 2230 | BP73: 1400 | BQ73: 2010 | BR73: 2240 | BS73: 4520 | BT73: 3560 | BU73: 3970 | BV73: 2260 | BW73: 1580 | BX73: 1330 | BY73: 1450 | BZ73: 1430 | CA73: 5230 | CB73: 4130 | CC73: 1210 | CD73: 1560 | CE73: 2730 | CF73: 2010 | CG73: 1170 | CH73: 1170 | CI73: 2523.083333
B74: 2013-03-11 | C74: 2335 | D74: 6900 | E74: 1935 | F74: 1240 | G74: 2685 | H74: 2620 | I74: 2335 | J74: 2685 | K74: 1090 | L74: 2750 | M74: 2620 | N74: 1270 | O74: 1240 | P74: 2880 | Q74: 1210 | R74: 3150 | S74: 994 | T74: 2815 | U74: 2030 | V74: 2560 | W74: 2646 | X74: 1459 | Y74: 2190 | Z74: 2851 | AA74: 1054 | AB74: 1788 | AC74: 2306 | AD74: 3542 | AE74: 1610 | AF74: 1516 | AG74: 3150 | AH74: 1523 | AI74: 2040 | AJ74: 1190 | AK74: 2280 | AL74: 1100 | AM74: 1440 | AN74: 2400 | AO74: 2800 | AP74: 2460 | AQ74: 1400 | AR74: 1700 | AS74: 997 | AT74: 1700 | AU74: 3700 | AV74: 7630 | AW74: 2050 | AX74: 2830 | AY74: 1850 | AZ74: 1540 | BA74: 1890 | BB74: 1560 | BC74: 3190 | BD74: 2670 | BE74: 1200 | BF74: 7170 | BG74: 5070 | BH74: 2560 | BI74: 1050 | BJ74: 2730 | BK74: 2740 | BL74: 2570 | BM74: 3000 | BN74: 3030 | BO74: 2090 | BP74: 1360 | BQ74: 1770 | BR74: 2570 | BS74: 3990 | BT74: 3610 | BU74: 3070 | BV74: 2100 | BW74: 1480 | BX74: 1410 | BY74: 1300 | BZ74: 4180 | CA74: 7580 | CB74: 3120 | CC74: 1100 | CD74: 1420 | CE74: 8660 | CF74: 3170 | CG74: 1080 | CH74: 1280 | CI74: 2510.190476
B75: 2013-03-12 | C75: 3720 | D75: 4510 | E75: 1680 | F75: 1410 | G75: 3290 | H75: 2335 | I75: 3720 | J75: 2750 | K75: 3000 | L75: 3570 | M75: 2880 | N75: 1340 | O75: 1340 | P75: 2560 | Q75: 1012 | R75: 2620 | S75: 1024 | T75: 2130 | U75: 2230 | V75: 3360 | W75: 2230 | X75: 1396 | Y75: 2150 | Z75: 2512 | AA75: 942 | AB75: 1570 | AC75: 2360 | AD75: 2844 | AE75: 1530 | AF75: 1180 | AG75: 2687 | AH75: 1371 | AI75: 2220 | AJ75: 1140 | AK75: 2390 | AL75: 867 | AM75: 1390 | AN75: 2360 | AO75: 2770 | AP75: 2080 | AQ75: 1400 | AR75: 1650 | AS75: 974 | AT75: 1660 | AU75: 3030 | AV75: 9950 | AW75: 1850 | AX75: 2900 | AY75: 1760 | AZ75: 1350 | BA75: 1810 | BB75: 1550 | BC75: 3190 | BD75: 2400 | BE75: 1200 | BF75: 5050 | BG75: 3780 | BH75: 2690 | BI75: 1050 | BJ75: 2630 | BK75: 3340 | BL75: 2210 | BM75: 3410 | BN75: 2500 | BO75: 2130 | BP75: 1370 | BQ75: 1570 | BR75: 2090 | BS75: 4880 | BT75: 3330 | BU75: 2680 | BV75: 2410 | BW75: 1430 | BX75: 1350 | BY75: 1230 | BZ75: 5310 | CA75: 10500 | CB75: 2770 | CC75: 1070 | CD75: 1320 | CE75: 18000 | CF75: 3010 | CG75: 1040 | CH75: 1630 | CI75: 2630.047619
B76: 2013-03-13 | C76: 3645 | D76: 3795 | E76: 1520 | F76: 1305 | G76: 2750 | H76: 2180 | I76: 3645 | J76: 2945 | K76: 8530 | L76: 3290 | M76: 3870 | N76: 1680 | O76: 1410 | P76: 2280 | Q76: 988 | R76: 2130 | S76: 5440 | T76: 1720 | U76: 2335 | V76: 3010 | W76: 1935 | X76: 1333 | Y76: 2789 | Z76: 2291 | AA76: 1744 | AB76: 1495 | AC76: 2074 | AD76: 2450 | AE76: 1430 | AF76: 1161 | AG76: 2360 | AH76: 1378 | AI76: 2290 | AJ76: 1120 | AK76: 2980 | AL76: 1010 | AM76: 1290 | AN76: 1970 | AO76: 2530 | AP76: 3020 | AQ76: 1320 | AR76: 1610 | AS76: 960 | AT76: 1870 | AU76: 2650 | AV76: 12700 | AW76: 1970 | AX76: 2610 | AY76: 1740 | AZ76: 1280 | BA76: 1730 | BB76: 1590 | BC76: 2970 | BD76: 2510 | BE76: 1200 | BF76: 4460 | BG76: 3370 | BH76: 2880 | BI76: 1030 | BJ76: 2330 | BK76: 3940 | BL76: 1990 | BM76: 3440 | BN76: 2200 | BO76: 2020 | BP76: 1440 | BQ76: 1420 | BR76: 2080 | BS76: 3850 | BT76: 2720 | BU76: 2360 | BV76: 3130 | BW76: 1610 | BX76: 1270 | BY76: 1350 | BZ76: 3590 | CA76: 13700 | CB76: 2420 | CC76: 999 | CD76: 1250 | CE76: 8950 | CF76: 2450 | CG76: 1020 | CH76: 1690 | CI76: 2628.416667
B77: 2013-03-14 | C77: 3010 | D77: 3010 | E77: 1410 | F77: 1210 | G77: 2280 | H77: 2620 | I77: 3010 | J77: 3150 | K77: 5840 | L77: 3080 | M77: 3290 | N77: 3010 | O77: 1270 | P77: 2130 | Q77: 920 | R77: 1845 | S77: 1480 | T77: 1520 | U77: 2280 | V77: 2500 | W77: 2130 | X77: 1298 | Y77: 2854 | Z77: 2120 | AA77: 1863 | AB77: 1315 | AC77: 1840 | AD77: 2216 | AE77: 1315 | AF77: 1075 | AG77: 2144 | AH77: 1308 | AI77: 1840 | AJ77: 1130 | AK77: 4300 | AL77: 943 | AM77: 1250 | AN77: 2110 | AO77: 2330 | AP77: 4070 | AQ77: 1180 | AR77: 1550 | AS77: 965 | AT77: 2230 | AU77: 2330 | AV77: 10600 | AW77: 1710 | AX77: 2190 | AY77: 1610 | AZ77: 1200 | BA77: 1560 | BB77: 1780 | BC77: 2820 | BD77: 2430 | BE77: 1180 | BF77: 3910 | BG77: 3000 | BH77: 2440 | BI77: 1040 | BJ77: 2200 | BK77: 4050 | BL77: 1840 | BM77: 2910 | BN77: 2610 | BO77: 1890 | BP77: 1610 | BQ77: 1560 | BR77: 2370 | BS77: 3740 | BT77: 2320 | BU77: 2140 | BV77: 3240 | BW77: 2350 | BX77: 1910 | BY77: 1760 | BZ77: 2960 | CA77: 8280 | CB77: 2230 | CC77: 898 | CD77: 1210 | CE77: 5180 | CF77: 2380 | CG77: 1100 | CH77: 1470 | CI77: 2360.107143
B78: 2013-03-15 | C78: 2620 | D78: 2500 | E78: 1410 | F78: 1140 | G78: 2030 | H78: 3150 | I78: 2620 | J78: 2945 | K78: 4180 | L78: 2815 | M78: 2815 | N78: 3010 | O78: 1270 | P78: 2180 | Q78: 880 | R78: 1640 | S78: 1350 | T78: 1410 | U78: 2180 | V78: 2445 | W78: 2633 | X78: 1156 | Y78: 2584 | Z78: 2040 | AA78: 3010 | AB78: 1213 | AC78: 1741 | AD78: 2049 | AE78: 1213 | AF78: 1057 | AG78: 2090 | AH78: 1273 | AI78: 1750 | AJ78: 1600 | AK78: 5430 | AL78: 1130 | AM78: 1220 | AN78: 4220 | AO78: 2220 | AP78: 3650 | AQ78: 1330 | AR78: 1960 | AS78: 988 | AT78: 3820 | AU78: 2130 | AV78: 7610 | AW78: 1640 | AX78: 3000 | AY78: 1540 | AZ78: 1160 | BA78: 1470 | BB78: 1610 | BC78: 3090 | BD78: 2140 | BE78: 1170 | BF78: 3130 | BG78: 2790 | BH78: 2570 | BI78: 1050 | BJ78: 1950 | BK78: 3110 | BL78: 1700 | BM78: 2560 | BN78: 2770 | BO78: 1770 | BP78: 1930 | BQ78: 7970 | BR78: 2510 | BS78: 4190 | BT78: 2520 | BU78: 2230 | BV78: 2880 | BW78: 2270 | BX78: 1820 | BY78: 1560 | BZ78: 2610 | CA78: 5730 | CB78: 2220 | CC78: 826 | CD78: 1190 | CE78: 3770 | CF78: 2400 | CG78: 1400 | CH78: 1370 | CI78: 2349.083333
B79: 2013-03-16 | C79: 2685 | D79: 2815 | E79: 1476 | F79: 1090 | G79: 2945 | H79: 2880 | I79: 2685 | J79: 2880 | K79: 3290 | L79: 2390 | M79: 2560 | N79: 3080 | O79: 1410 | P79: 3570 | Q79: 910 | R79: 1560 | S79: 1240 | T79: 1375 | U79: 1890 | V79: 2620 | W79: 3262 | X79: 1222 | Y79: 2584 | Z79: 2200 | AA79: 3514 | AB79: 1149 | AC79: 2315 | AD79: 1983 | AE79: 1167 | AF79: 998 | AG79: 1983 | AH79: 1193 | AI79: 1870 | AJ79: 1490 | AK79: 5370 | AL79: 1070 | AM79: 1140 | AN79: 3140 | AO79: 2130 | AP79: 2930 | AQ79: 1830 | AR79: 2600 | AS79: 1280 | AT79: 4350 | AU79: 1900 | AV79: 7530 | AW79: 1700 | AX79: 6730 | AY79: 1670 | AZ79: 1150 | BA79: 1410 | BB79: 1530 | BC79: 3210 | BD79: 1900 | BE79: 1470 | BF79: 2750 | BG79: 2470 | BH79: 2350 | BI79: 1090 | BJ79: 1760 | BK79: 2720 | BL79: 1580 | BM79: 2330 | BN79: 2450 | BO79: 1670 | BP79: 2020 | BQ79: 4230 | BR79: 2700 | BS79: 3640 | BT79: 2460 | BU79: 3400 | BV79: 3110 | BW79: 2000 | BX79: 1850 | BY79: 1650 | BZ79: 2340 | CA79: 4650 | CB79: 2050 | CC79: 887 | CD79: 1150 | CE79: 3420 | CF79: 2140 | CG79: 1430 | CH79: 1460 | CI79: 2334.261905
B80: 2013-03-17 | C80: 2620 | D80: 3080 | E80: 1560 | F80: 1060 | G80: 2880 | H80: 4910 | I80: 2620 | J80: 2620 | K80: 2750 | L80: 2230 | M80: 2280 | N80: 2390 | O80: 1720 | P80: 3220 | Q80: 905 | R80: 1520 | S80: 1090 | T80: 1720 | U80: 1680 | V80: 1935 | W80: 3945 | X80: 1156 | Y80: 2828 | Z80: 5560 | AA80: 2368 | AB80: 1028 | AC80: 2360 | AD80: 1866 | AE80: 942 | AF80: 1039 | AG80: 1874 | AH80: 1167 | AI80: 1940 | AJ80: 1480 | AK80: 4140 | AL80: 1140 | AM80: 1090 | AN80: 3470 | AO80: 1940 | AP80: 2370 | AQ80: 2370 | AR80: 2420 | AS80: 3420 | AT80: 3460 | AU80: 1770 | AV80: 7930 | AW80: 1720 | AX80: 8740 | AY80: 1900 | AZ80: 1400 | BA80: 1290 | BB80: 1580 | BC80: 2700 | BD80: 2110 | BE80: 1320 | BF80: 2430 | BG80: 2190 | BH80: 2170 | BI80: 1260 | BJ80: 1670 | BK80: 2950 | BL80: 1520 | BM80: 2190 | BN80: 2600 | BO80: 1600 | BP80: 1930 | BQ80: 2900 | BR80: 2710 | BS80: 3000 | BT80: 2140 | BU80: 3620 | BV80: 2760 | BW80: 1790 | BX80: 2090 | BY80: 1450 | BZ80: 2080 | CA80: 3810 | CB80: 1990 | CC80: 1120 | CD80: 1120 | CE80: 3770 | CF80: 2070 | CG80: 1470 | CH80: 1770 | CI80: 2342.77381
B81: 2013-03-18 | C81: 2335 | D81: 3360 | E81: 1520 | F81: 1090 | G81: 4020 | H81: 10895 | I81: 2335 | J81: 2130 | K81: 2445 | L81: 1980 | M81: 2130 | N81: 2620 | O81: 2080 | P81: 2560 | Q81: 1054 | R81: 1520 | S81: 932 | T81: 1980 | U81: 1760 | V81: 1800 | W81: 4005 | X81: 1150 | Y81: 3038 | Z81: 6570 | AA81: 1971 | AB81: 1226 | AC81: 2024 | AD81: 2634 | AE81: 998 | AF81: 1180 | AG81: 1788 | AH81: 1105 | AI81: 2600 | AJ81: 1570 | AK81: 3540 | AL81: 1150 | AM81: 1060 | AN81: 4170 | AO81: 1750 | AP81: 2130 | AQ81: 2040 | AR81: 2120 | AS81: 3870 | AT81: 2670 | AU81: 1650 | AV81: 7830 | AW81: 1520 | AX81: 5110 | AY81: 2370 | AZ81: 2210 | BA81: 1270 | BB81: 1780 | BC81: 2410 | BD81: 2480 | BE81: 1190 | BF81: 2210 | BG81: 2020 | BH81: 2210 | BI81: 1370 | BJ81: 1820 | BK81: 2890 | BL81: 1480 | BM81: 2060 | BN81: 3310 | BO81: 1560 | BP81: 1890 | BQ81: 3560 | BR81: 3630 | BS81: 2920 | BT81: 1960 | BU81: 5930 | BV81: 2300 | BW81: 1650 | BX81: 2350 | BY81: 2300 | BZ81: 1890 | CA81: 3090 | CB81: 2210 | CC81: 1040 | CD81: 1140 | CE81: 7510 | CF81: 2070 | CG81: 1400 | CH81: 1560 | CI81: 2476.845238
B82: 2013-03-19 | C82: 2180 | D82: 4020 | E82: 1520 | F82: 1120 | G82: 5840 | H82: 11460 | I82: 2180 | J82: 1980 | K82: 2230 | L82: 1800 | M82: 1890 | N82: 2560 | O82: 2620 | P82: 2280 | Q82: 1270 | R82: 1410 | S82: 915 | T82: 1890 | U82: 2180 | V82: 1680 | W82: 3630 | X82: 1222 | Y82: 4196 | Z82: 6040 | AA82: 1827 | AB82: 1245 | AC82: 1900 | AD82: 1663 | AE82: 998 | AF82: 1648 | AG82: 1795 | AH82: 987 | AI82: 2640 | AJ82: 1460 | AK82: 3540 | AL82: 1160 | AM82: 1290 | AN82: 3030 | AO82: 1620 | AP82: 2130 | AQ82: 1880 | AR82: 1840 | AS82: 2970 | AT82: 2300 | AU82: 1570 | AV82: 9250 | AW82: 1540 | AX82: 3840 | AY82: 2590 | AZ82: 2210 | BA82: 1390 | BB82: 1830 | BC82: 2210 | BD82: 2370 | BE82: 1100 | BF82: 2030 | BG82: 1850 | BH82: 2310 | BI82: 1370 | BJ82: 2940 | BK82: 2630 | BL82: 1530 | BM82: 2230 | BN82: 3540 | BO82: 1640 | BP82: 1570 | BQ82: 3030 | BR82: 2970 | BS82: 4250 | BT82: 1900 | BU82: 24600 | BV82: 2060 | BW82: 1650 | BX82: 3180 | BY82: 7480 | BZ82: 2060 | CA82: 2610 | CB82: 2340 | CC82: 954 | CD82: 1110 | CE82: 6450 | CF82: 1920 | CG82: 1370 | CH82: 1380 | CI82: 2748.690476
B83: 2013-03-20 | C83: 2750 | D83: 4690 | E83: 2280 | F83: 1240 | G83: 5640 | H83: 7360 | I83: 2750 | J83: 1935 | K83: 2080 | L83: 1760 | M83: 1720 | N83: 2030 | O83: 3150 | P83: 2180 | Q83: 1210 | R83: 1305 | S83: 1180 | T83: 1760 | U83: 5060 | V83: 1560 | W83: 3416 | X83: 1162 | Y83: 5880 | Z83: 4744 | AA83: 2090 | AB83: 782 | AC83: 1757 | AD83: 1625 | AE83: 998 | AF83: 1725 | AG83: 1967 | AH83: 1045 | AI83: 2280 | AJ83: 2140 | AK83: 4100 | AL83: 1190 | AM83: 1780 | AN83: 2510 | AO83: 1530 | AP83: 1960 | AQ83: 1830 | AR83: 1750 | AS83: 2550 | AT83: 2090 | AU83: 1550 | AV83: 6670 | AW83: 1480 | AX83: 3220 | AY83: 2180 | AZ83: 1860 | BA83: 1380 | BB83: 1780 | BC83: 2160 | BD83: 2350 | BE83: 1060 | BF83: 1890 | BG83: 1730 | BH83: 4320 | BI83: 1400 | BJ83: 2610 | BK83: 2390 | BL83: 1770 | BM83: 2020 | BN83: 3940 | BO83: 1580 | BP83: 1410 | BQ83: 2620 | BR83: 2510 | BS83: 3680 | BT83: 1920 | BU83: 20800 | BV83: 1950 | BW83: 2260 | BX83: 2390 | BY83: 3910 | BZ83: 2610 | CA83: 2620 | CB83: 2000 | CC83: 1280 | CD83: 1070 | CE83: 6480 | CF83: 1820 | CG83: 1650 | CH83: 1270 | CI83: 2620.607143
B84: 2013-03-21 | C84: 2880 | D84: 5060 | E84: 5840 | F84: 2620 | G84: 8050 | H84: 5440 | I84: 2880 | J84: 1980 | K84: 1890 | L84: 1890 | M84: 1600 | N84: 1800 | O84: 3720 | P84: 2080 | Q84: 1048 | R84: 1240 | S84: 855 | T84: 1560 | U84: 5640 | V84: 1520 | W84: 3458 | X84: 1552 | Y84: 6000 | Z84: 3810 | AA84: 2434 | AB84: 732 | AC84: 1648 | AD84: 1562 | AE84: 998 | AF84: 1933 | AG84: 2082 | AH84: 1357 | AI84: 2540 | AJ84: 3370 | AK84: 3260 | AL84: 1290 | AM84: 1780 | AN84: 2220 | AO84: 1460 | AP84: 1870 | AQ84: 2080 | AR84: 1680 | AS84: 2270 | AT84: 1970 | AU84: 1480 | AV84: 5330 | AW84: 1360 | AX84: 2820 | AY84: 1890 | AZ84: 1720 | BA84: 1450 | BB84: 1790 | BC84: 2190 | BD84: 2240 | BE84: 1020 | BF84: 1750 | BG84: 1650 | BH84: 6290 | BI84: 1440 | BJ84: 2880 | BK84: 2150 | BL84: 2510 | BM84: 2330 | BN84: 4230 | BO84: 1560 | BP84: 1330 | BQ84: 2490 | BR84: 2750 | BS84: 3230 | BT84: 1730 | BU84: 9020 | BV84: 2190 | BW84: 3580 | BX84: 2000 | BY84: 2820 | BZ84: 2180 | CA84: 3670 | CB84: 1840 | CC84: 1870 | CD84: 1050 | CE84: 4580 | CF84: 1710 | CG84: 2280 | CH84: 1520 | CI84: 2557.964286
B85: 2013-03-22 | C85: 2390 | D85: 6900 | E85: 4180 | F85: 4771 | G85: 6680 | H85: 4340 | I85: 2390 | J85: 1935 | K85: 1720 | L85: 1760 | M85: 1640 | N85: 1640 | O85: 4690 | P85: 2080 | Q85: 1018 | R85: 1340 | S85: 920 | T85: 1445 | U85: 3945 | V85: 1640 | W85: 6834 | X85: 4984 | Y85: 4654 | Z85: 3528 | AA85: 2346 | AB85: 782 | AC85: 1625 | AD85: 1495 | AE85: 1709 | AF85: 2844 | AG85: 1991 | AH85: 1780 | AI85: 2680 | AJ85: 3970 | AK85: 2840 | AL85: 1220 | AM85: 2360 | AN85: 2020 | AO85: 1670 | AP85: 1620 | AQ85: 2950 | AR85: 1620 | AS85: 2280 | AT85: 1800 | AU85: 1510 | AV85: 5330 | AW85: 1280 | AX85: 2600 | AY85: 1720 | AZ85: 1700 | BA85: 1740 | BB85: 2170 | BC85: 2160 | BD85: 2040 | BE85: 1110 | BF85: 1700 | BG85: 1690 | BH85: 4900 | BI85: 1380 | BJ85: 2880 | BK85: 1970 | BL85: 2170 | BM85: 2740 | BN85: 3590 | BO85: 1570 | BP85: 1290 | BQ85: 4080 | BR85: 2280 | BS85: 2730 | BT85: 1860 | BU85: 5710 | BV85: 3650 | BW85: 3360 | BX85: 2210 | BY85: 2350 | BZ85: 1960 | CA85: 8840 | CB85: 2060 | CC85: 1390 | CD85: 1050 | CE85: 3690 | CF85: 1560 | CG85: 1890 | CH85: 2530 | CI85: 2636.5
B86: 2013-03-23 | C86: 2080 | D86: 5440 | E86: 2915 | F86: 2945 | G86: 4690 | H86: 4180 | I86: 2080 | J86: 1800 | K86: 1600 | L86: 1640 | M86: 1520 | N86: 1760 | O86: 6040 | P86: 1980 | Q86: 1180 | R86: 1340 | S86: 880 | T86: 2130 | U86: 3010 | V86: 1760 | W86: 4425 | X86: 2997 | Y86: 3720 | Z86: 3094 | AA86: 2010 | AB86: 861 | AC86: 1891 | AD86: 1530 | AE86: 1678 | AF86: 4132 | AG86: 1833 | AH86: 1780 | AI86: 2360 | AJ86: 3730 | AK86: 2880 | AL86: 1290 | AM86: 2020 | AN86: 1850 | AO86: 1520 | AP86: 1530 | AQ86: 5030 | AR86: 1710 | AS86: 2870 | AT86: 1700 | AU86: 2060 | AV86: 5850 | AW86: 1190 | AX86: 2380 | AY86: 1670 | AZ86: 1780 | BA86: 2150 | BB86: 2760 | BC86: 2190 | BD86: 2030 | BE86: 1180 | BF86: 1710 | BG86: 1770 | BH86: 4410 | BI86: 1540 | BJ86: 2450 | BK86: 1820 | BL86: 3500 | BM86: 2300 | BN86: 3360 | BO86: 1500 | BP86: 1250 | BQ86: 11500 | BR86: 1990 | BS86: 2420 | BT86: 1780 | BU86: 4530 | BV86: 5790 | BW86: 3230 | BX86: 3220 | BY86: 2080 | BZ86: 1890 | CA86: 6060 | CB86: 2650 | CC86: 1170 | CD86: 1080 | CE86: 3850 | CF86: 1620 | CG86: 1650 | CH86: 1970 | CI86: 2604.059524
B87: 2013-03-24 | C87: 1845 | D87: 4540 | E87: 2390 | F87: 5440 | G87: 3645 | H87: 5840 | I87: 1845 | J87: 1680 | K87: 1680 | L87: 1520 | M87: 1410 | N87: 1845 | O87: 6680 | P87: 2880 | Q87: 1054 | R87: 1240 | S87: 1480 | T87: 2230 | U87: 2390 | V87: 1760 | W87: 3514 | X87: 2313 | Y87: 3080 | Z87: 2776 | AA87: 1890 | AB87: 2049 | AC87: 2603 | AD87: 1502 | AE87: 1467 | AF87: 4180 | AG87: 2024 | AH87: 1925 | AI87: 1990 | AJ87: 3520 | AK87: 2920 | AL87: 1980 | AM87: 1810 | AN87: 1680 | AO87: 1370 | AP87: 1500 | AQ87: 3570 | AR87: 2030 | AS87: 2320 | AT87: 2250 | AU87: 3600 | AV87: 4720 | AW87: 1180 | AX87: 2270 | AY87: 1550 | AZ87: 2560 | BA87: 1990 | BB87: 3630 | BC87: 2320 | BD87: 1840 | BE87: 1220 | BF87: 1670 | BG87: 1680 | BH87: 4320 | BI87: 1570 | BJ87: 3190 | BK87: 1720 | BL87: 3000 | BM87: 2000 | BN87: 2940 | BO87: 1490 | BP87: 1220 | BQ87: 6690 | BR87: 1780 | BS87: 2310 | BT87: 1680 | BU87: 3880 | BV87: 5380 | BW87: 3100 | BX87: 2560 | BY87: 2090 | BZ87: 1880 | CA87: 4220 | CB87: 2830 | CC87: 1040 | CD87: 1260 | CE87: 15900 | CF87: 1980 | CG87: 1780 | CH87: 1690 | CI87: 2659.369048
B88: 2013-03-25 | C88: 1720 | D88: 3795 | E88: 2130 | F88: 7820 | G88: 3290 | H88: 6680 | I88: 1720 | J88: 1600 | K88: 1800 | L88: 1410 | M88: 1340 | N88: 2030 | O88: 7130 | P88: 3010 | Q88: 1006 | R88: 1150 | S88: 3720 | T88: 1845 | U88: 2030 | V88: 1980 | W88: 2906 | X88: 2060 | Y88: 2776 | Z88: 2536 | AA88: 1953 | AB88: 3290 | AC88: 3150 | AD88: 1438 | AE88: 1315 | AF88: 3990 | AG88: 2153 | AH88: 2144 | AI88: 1870 | AJ88: 3960 | AK88: 2710 | AL88: 3150 | AM88: 1660 | AN88: 1620 | AO88: 1310 | AP88: 1570 | AQ88: 2790 | AR88: 1970 | AS88: 2050 | AT88: 1930 | AU88: 2750 | AV88: 3960 | AW88: 1260 | AX88: 2300 | AY88: 1430 | AZ88: 2640 | BA88: 1780 | BB88: 4940 | BC88: 2360 | BD88: 1670 | BE88: 1360 | BF88: 1720 | BG88: 1570 | BH88: 3660 | BI88: 1390 | BJ88: 2610 | BK88: 1650 | BL88: 3030 | BM88: 2100 | BN88: 2580 | BO88: 1480 | BP88: 1240 | BQ88: 4260 | BR88: 1650 | BS88: 2070 | BT88: 1500 | BU88: 3400 | BV88: 4850 | BW88: 3070 | BX88: 2190 | BY88: 3000 | BZ88: 1970 | CA88: 3550 | CB88: 2710 | CC88: 1000 | CD88: 1390 | CE88: 18900 | CF88: 1690 | CG88: 3040 | CH88: 1690 | CI88: 2677.583333
B89: 2013-03-26 | C89: 1640 | D89: 3150 | E89: 3025 | F89: 6040 | G89: 2280 | H89: 5128 | I89: 1640 | J89: 1520 | K89: 1720 | L89: 1560 | M89: 1340 | N89: 1890 | O89: 7360 | P89: 3080 | Q89: 954 | R89: 1120 | S89: 4340 | T89: 2750 | U89: 1845 | V89: 3290 | W89: 2560 | X89: 1827 | Y89: 2560 | Z89: 2357 | AA89: 2456 | AB89: 3645 | AC89: 2520 | AD89: 1610 | AE89: 1213 | AF89: 4180 | AG89: 1883 | AH89: 2108 | AI89: 2160 | AJ89: 4460 | AK89: 2550 | AL89: 2500 | AM89: 1690 | AN89: 1630 | AO89: 1230 | AP89: 1850 | AQ89: 2460 | AR89: 2000 | AS89: 2170 | AT89: 1790 | AU89: 2400 | AV89: 3330 | AW89: 1290 | AX89: 2920 | AY89: 1350 | AZ89: 2140 | BA89: 1950 | BB89: 5120 | BC89: 2120 | BD89: 1680 | BE89: 1450 | BF89: 1900 | BG89: 1510 | BH89: 3580 | BI89: 1260 | BJ89: 2550 | BK89: 1750 | BL89: 10900 | BM89: 2700 | BN89: 2310 | BO89: 1410 | BP89: 1280 | BQ89: 3230 | BR89: 1590 | BS89: 1900 | BT89: 1410 | BU89: 4580 | BV89: 4760 | BW89: 2840 | BX89: 1930 | BY89: 3530 | BZ89: 2050 | CA89: 3400 | CB89: 2480 | CC89: 1890 | CD89: 1280 | CE89: 8110 | CF89: 1610 | CG89: 2340 | CH89: 2370 | CI89: 2610.488095
B90: 2013-03-27 | C90: 1600 | D90: 2750 | E90: 4690 | F90: 4870 | G90: 2180 | H90: 4260 | I90: 1600 | J90: 2220 | K90: 1560 | L90: 2030 | M90: 1410 | N90: 1800 | O90: 3720 | P90: 4340 | Q90: 1560 | R90: 1036 | S90: 8770 | T90: 1560 | U90: 1720 | V90: 3570 | W90: 2270 | X90: 1704 | Y90: 2478 | Z90: 2368 | AA90: 2423 | AB90: 3150 | AC90: 2252 | AD90: 1857 | AE90: 1213 | AF90: 3136 | AG90: 1757 | AH90: 1908 | AI90: 2070 | AJ90: 3840 | AK90: 2520 | AL90: 2260 | AM90: 1890 | AN90: 1590 | AO90: 1210 | AP90: 2570 | AQ90: 2240 | AR90: 3550 | AS90: 2880 | AT90: 1680 | AU90: 2280 | AV90: 2870 | AW90: 1260 | AX90: 3710 | AY90: 1250 | AZ90: 1960 | BA90: 3300 | BB90: 3970 | BC90: 1920 | BD90: 1840 | BE90: 1260 | BF90: 1900 | BG90: 1520 | BH90: 2970 | BI90: 1190 | BJ90: 2470 | BK90: 1610 | BL90: 6170 | BM90: 2900 | BN90: 2210 | BO90: 1330 | BP90: 1410 | BQ90: 2690 | BR90: 1760 | BS90: 1800 | BT90: 1340 | BU90: 4850 | BV90: 3830 | BW90: 2570 | BX90: 1840 | BY90: 2750 | BZ90: 2110 | CA90: 3380 | CB90: 2550 | CC90: 5490 | CD90: 1210 | CE90: 5470 | CF90: 1540 | CG90: 1940 | CH90: 2200 | CI90: 2531.928571
B91: 2013-03-28 | C91: 1760 | D91: 2750 | E91: 5840 | F91: 4870 | G91: 2130 | H91: 6680 | I91: 1760 | J91: 6985 | K91: 1600 | L91: 1680 | M91: 1340 | N91: 2030 | O91: 3010 | P91: 4340 | Q91: 1340 | R91: 885 | S91: 10880 | T91: 1445 | U91: 1935 | V91: 2880 | W91: 2070 | X91: 1917 | Y91: 2210 | Z91: 2200 | AA91: 2090 | AB91: 3010 | AC91: 2306 | AD91: 1670 | AE91: 2145 | AF91: 2603 | AG91: 1749 | AH91: 1741 | AI91: 2000 | AJ91: 3740 | AK91: 2240 | AL91: 1900 | AM91: 2460 | AN91: 1580 | AO91: 1220 | AP91: 2940 | AQ91: 1990 | AR91: 5230 | AS91: 2910 | AT91: 2000 | AU91: 2170 | AV91: 2600 | AW91: 1190 | AX91: 4910 | AY91: 1190 | AZ91: 1950 | BA91: 2420 | BB91: 3870 | BC91: 1790 | BD91: 1690 | BE91: 1170 | BF91: 1790 | BG91: 1580 | BH91: 2810 | BI91: 1130 | BJ91: 2690 | BK91: 1490 | BL91: 3970 | BM91: 3400 | BN91: 2240 | BO91: 1300 | BP91: 1320 | BQ91: 2340 | BR91: 2210 | BS91: 1750 | BT91: 1260 | BU91: 4240 | BV91: 3040 | BW91: 2330 | BX91: 2150 | BY91: 3760 | BZ91: 2720 | CA91: 2990 | CB91: 2530 | CC91: 5190 | CD91: 1220 | CE91: 4190 | CF91: 1440 | CG91: 1880 | CH91: 2040 | CI91: 2595.369048
B92: 2013-03-29 | C92: 2130 | D92: 3150 | E92: 4690 | F92: 5548 | G92: 2080 | H92: 6680 | I92: 2130 | J92: 10880 | K92: 2880 | L92: 1480 | M92: 1340 | N92: 1760 | O92: 2685 | P92: 3720 | Q92: 1480 | R92: 1054 | S92: 6900 | T92: 1410 | U92: 1980 | V92: 2390 | W92: 2010 | X92: 2291 | Y92: 1980 | Z92: 2010 | AA92: 2100 | AB92: 2708 | AC92: 2126 | AD92: 1570 | AE92: 1810 | AF92: 2655 | AG92: 1925 | AH92: 1648 | AI92: 2390 | AJ92: 3820 | AK92: 2130 | AL92: 1800 | AM92: 2640 | AN92: 1710 | AO92: 1250 | AP92: 3770 | AQ92: 1880 | AR92: 5310 | AS92: 2870 | AT92: 1930 | AU92: 3840 | AV92: 2400 | AW92: 1130 | AX92: 5650 | AY92: 1160 | AZ92: 1770 | BA92: 2070 | BB92: 3710 | BC92: 1690 | BD92: 1910 | BE92: 1230 | BF92: 1660 | BG92: 3520 | BH92: 2670 | BI92: 1180 | BJ92: 3070 | BK92: 1420 | BL92: 3560 | BM92: 3000 | BN92: 2370 | BO92: 1320 | BP92: 1160 | BQ92: 2160 | BR92: 2690 | BS92: 1720 | BT92: 1270 | BU92: 3630 | BV92: 2560 | BW92: 2240 | BX92: 2040 | BY92: 3660 | BZ92: 2830 | CA92: 2610 | CB92: 2350 | CC92: 4100 | CD92: 1310 | CE92: 3410 | CF92: 1440 | CG92: 1860 | CH92: 3800 | CI92: 2617.5
B93: 2013-03-30 | C93: 2335 | D93: 4690 | E93: 3448 | F93: 4260 | G93: 2500 | H93: 6460 | I93: 2335 | J93: 8770 | K93: 2280 | L93: 1375 | M93: 1520 | N93: 1560 | O93: 2620 | P93: 4690 | Q93: 1760 | R93: 1180 | S93: 5060 | T93: 1480 | U93: 1720 | V93: 2080 | W93: 2685 | X93: 2170 | Y93: 1890 | Z93: 2080 | AA93: 2120 | AB93: 2530 | AC93: 2135 | AD93: 1474 | AE93: 2090 | AF93: 2997 | AG93: 2470 | AH93: 1570 | AI93: 2650 | AJ93: 4400 | AK93: 2200 | AL93: 1720 | AM93: 2560 | AN93: 2330 | AO93: 1210 | AP93: 5850 | AQ93: 1740 | AR93: 4260 | AS93: 3560 | AT93: 1730 | AU93: 5540 | AV93: 2280 | AW93: 1150 | AX93: 4610 | AY93: 1460 | AZ93: 1650 | BA93: 1720 | BB93: 3560 | BC93: 1650 | BD93: 1960 | BE93: 1630 | BF93: 1540 | BG93: 4580 | BH93: 2360 | BI93: 2380 | BJ93: 4040 | BK93: 1360 | BL93: 3100 | BM93: 2500 | BN93: 2470 | BO93: 1270 | BP93: 1080 | BQ93: 1950 | BR93: 2710 | BS93: 1700 | BT93: 1290 | BU93: 3200 | BV93: 2250 | BW93: 2120 | BX93: 1810 | BY93: 3370 | BZ93: 2630 | CA93: 3020 | CB93: 2820 | CC93: 4220 | CD93: 1280 | CE93: 3010 | CF93: 1430 | CG93: 1660 | CH93: 3810 | CI93: 2627.547619
B94: 2013-03-31 | C94: 2945 | D94: 5130 | E94: 2750 | F94: 3570 | G94: 7820 | H94: 6680 | I94: 2945 | J94: 7130 | K94: 1935 | L94: 1305 | M94: 3220 | N94: 1410 | O94: 2815 | P94: 3795 | Q94: 1760 | R94: 1720 | S94: 4870 | T94: 1720 | U94: 3500 | V94: 1845 | W94: 3318 | X94: 1935 | Y94: 1748 | Z94: 2030 | AA94: 1908 | AB94: 2297 | AC94: 2153 | AD94: 1453 | AE94: 2369 | AF94: 3010 | AG94: 4020 | AH94: 1460 | AI94: 4520 | AJ94: 3610 | AK94: 2390 | AL94: 1640 | AM94: 2350 | AN94: 3450 | AO94: 1250 | AP94: 6700 | AQ94: 1600 | AR94: 3190 | AS94: 4880 | AT94: 1560 | AU94: 3890 | AV94: 2220 | AW94: 1190 | AX94: 4190 | AY94: 1500 | AZ94: 1930 | BA94: 1620 | BB94: 3490 | BC94: 1720 | BD94: 1760 | BE94: 2560 | BF94: 1470 | BG94: 3450 | BH94: 2210 | BI94: 5080 | BJ94: 3460 | BK94: 1370 | BL94: 2730 | BM94: 2440 | BN94: 2650 | BO94: 1490 | BP94: 1060 | BQ94: 1780 | BR94: 2560 | BS94: 1770 | BT94: 1230 | BU94: 3020 | BV94: 2080 | BW94: 1890 | BX94: 1700 | BY94: 4150 | BZ94: 2510 | CA94: 6860 | CB94: 2910 | CC94: 3110 | CD94: 1300 | CE94: 3130 | CF94: 1350 | CG94: 2130 | CH94: 3070 | CI94: 2782.571429
B95: 2013-04-01 | C95: 2390 | D95: 3945 | E95: 2335 | F95: 3220 | G95: 8770 | H95: 7130 | I95: 2390 | J95: 6680 | K95: 1720 | L95: 1210 | M95: 3080 | N95: 1340 | O95: 3430 | P95: 3080 | Q95: 1980 | R95: 3570 | S95: 7130 | T95: 1935 | U95: 3010 | V95: 1720 | W95: 3585 | X95: 1872 | Y95: 1688 | Z95: 4068 | AA95: 1845 | AB95: 1983 | AC95: 1967 | AD95: 1400 | AE95: 3318 | AF95: 2520 | AG95: 3570 | AH95: 1371 | AI95: 13700 | AJ95: 3080 | AK95: 2860 | AL95: 2000 | AM95: 2050 | AN95: 4700 | AO95: 1690 | AP95: 5290 | AQ95: 1460 | AR95: 2680 | AS95: 4640 | AT95: 1660 | AU95: 2910 | AV95: 5250 | AW95: 1180 | AX95: 3880 | AY95: 1330 | AZ95: 1680 | BA95: 1920 | BB95: 2810 | BC95: 1580 | BD95: 1610 | BE95: 2460 | BF95: 1380 | BG95: 2830 | BH95: 2070 | BI95: 4990 | BJ95: 2720 | BK95: 1460 | BL95: 2700 | BM95: 2330 | BN95: 2900 | BO95: 2110 | BP95: 1160 | BQ95: 2040 | BR95: 2460 | BS95: 1970 | BT95: 1520 | BU95: 2830 | BV95: 1890 | BW95: 1740 | BX95: 1800 | BY95: 4750 | BZ95: 2450 | CA95: 5210 | CB95: 2360 | CC95: 3600 | CD95: 1620 | CE95: 3130 | CF95: 1310 | CG95: 2330 | CH95: 2550 | CI95: 2903.357143
B96: 2013-04-02 | C96: 2080 | D96: 3150 | E96: 2080 | F96: 2880 | G96: 5060 | H96: 6851 | I96: 2080 | J96: 5060 | K96: 1560 | L96: 1150 | M96: 2445 | N96: 1340 | O96: 3570 | P96: 2880 | Q96: 2620 | R96: 3430 | S96: 7590 | T96: 2180 | U96: 2180 | V96: 1640 | W96: 3500 | X96: 1872 | Y96: 1688 | Z96: 4276 | AA96: 2100 | AB96: 2033 | AC96: 1833 | AD96: 1495 | AE96: 2708 | AF96: 2270 | AG96: 2880 | AH96: 1453 | AI96: 14800 | AJ96: 3640 | AK96: 5350 | AL96: 2100 | AM96: 1780 | AN96: 3750 | AO96: 1660 | AP96: 5620 | AQ96: 1420 | AR96: 2760 | AS96: 4140 | AT96: 2810 | AU96: 2580 | AV96: 5410 | AW96: 1100 | AX96: 3720 | AY96: 1400 | AZ96: 1560 | BA96: 1750 | BB96: 2440 | BC96: 1590 | BD96: 1550 | BE96: 2030 | BF96: 1330 | BG96: 2970 | BH96: 1940 | BI96: 4830 | BJ96: 2420 | BK96: 1920 | BL96: 4870 | BM96: 2530 | BN96: 3530 | BO96: 2190 | BP96: 1350 | BQ96: 2530 | BR96: 2420 | BS96: 1980 | BT96: 2910 | BU96: 2540 | BV96: 1740 | BW96: 1670 | BX96: 2330 | BY96: 3320 | BZ96: 2490 | CA96: 3740 | CB96: 2060 | CC96: 3610 | CD96: 1680 | CE96: 2700 | CF96: 1260 | CG96: 3030 | CH96: 2380 | CI96: 2847.190476
B97: 2013-04-03 | C97: 2750 | D97: 2620 | E97: 1845 | F97: 2620 | G97: 3720 | H97: 6250 | I97: 2750 | J97: 3945 | K97: 1480 | L97: 1150 | M97: 2130 | N97: 1410 | O97: 3720 | P97: 2500 | Q97: 1980 | R97: 2500 | S97: 6460 | T97: 3150 | U97: 1980 | V97: 1600 | W97: 2854 | X97: 1872 | Y97: 1656 | Z97: 3570 | AA97: 2750 | AB97: 2049 | AC97: 1725 | AD97: 2624 | AE97: 2270 | AF97: 2082 | AG97: 2634 | AH97: 1438 | AI97: 6840 | AJ97: 4360 | AK97: 9410 | AL97: 1770 | AM97: 1690 | AN97: 2880 | AO97: 1480 | AP97: 4060 | AQ97: 1530 | AR97: 2470 | AS97: 3100 | AT97: 2310 | AU97: 2320 | AV97: 4000 | AW97: 1070 | AX97: 3490 | AY97: 1380 | AZ97: 1490 | BA97: 1540 | BB97: 2280 | BC97: 1540 | BD97: 1510 | BE97: 2130 | BF97: 1320 | BG97: 2700 | BH97: 1860 | BI97: 5630 | BJ97: 2170 | BK97: 2420 | BL97: 7460 | BM97: 2400 | BN97: 3570 | BO97: 2430 | BP97: 1880 | BQ97: 3160 | BR97: 2660 | BS97: 1850 | BT97: 2100 | BU97: 2580 | BV97: 1650 | BW97: 1720 | BX97: 2960 | BY97: 2680 | BZ97: 2230 | CA97: 3130 | CB97: 1990 | CC97: 2930 | CD97: 1520 | CE97: 2380 | CF97: 1210 | CG97: 3270 | CH97: 2430 | CI97: 2678.857143
B98: 2013-04-04 | C98: 2945 | D98: 2390 | E98: 1720 | F98: 2685 | G98: 3150 | H98: 5060 | I98: 2945 | J98: 3570 | K98: 1410 | L98: 1120 | M98: 2130 | N98: 1560 | O98: 3430 | P98: 2180 | Q98: 1640 | R98: 2390 | S98: 4510 | T98: 4020 | U98: 1760 | V98: 1560 | W98: 2608 | X98: 1720 | Y98: 1696 | Z98: 2880 | AA98: 3542 | AB98: 1908 | AC98: 1655 | AD98: 4600 | AE98: 2008 | AF98: 2270 | AG98: 3010 | AH98: 1357 | AI98: 4880 | AJ98: 4480 | AK98: 6280 | AL98: 2110 | AM98: 4310 | AN98: 2650 | AO98: 1430 | AP98: 3470 | AQ98: 1630 | AR98: 2280 | AS98: 2590 | AT98: 2030 | AU98: 2190 | AV98: 3610 | AW98: 1060 | AX98: 3110 | AY98: 1290 | AZ98: 1610 | BA98: 1680 | BB98: 2170 | BC98: 2760 | BD98: 1560 | BE98: 1890 | BF98: 1410 | BG98: 2380 | BH98: 1840 | BI98: 4160 | BJ98: 1990 | BK98: 2370 | BL98: 4770 | BM98: 2400 | BN98: 3330 | BO98: 8590 | BP98: 1800 | BQ98: 3280 | BR98: 3050 | BS98: 2110 | BT98: 1760 | BU98: 2500 | BV98: 1610 | BW98: 1610 | BX98: 3900 | BY98: 2260 | BZ98: 2220 | CA98: 2700 | CB98: 2330 | CC98: 2740 | CD98: 1880 | CE98: 2170 | CF98: 1230 | CG98: 2500 | CH98: 2160 | CI98: 2613.678571
B99: 2013-04-05 | C99: 2620 | D99: 2390 | E99: 1600 | F99: 2560 | G99: 3080 | H99: 4510 | I99: 2620 | J99: 3220 | K99: 1445 | L99: 1084 | M99: 2080 | N99: 1640 | O99: 2750 | P99: 2030 | Q99: 1480 | R99: 2560 | S99: 3500 | T99: 4260 | U99: 1935 | V99: 1480 | W99: 2379 | X99: 1576 | Y99: 2313 | Z99: 2633 | AA99: 3444 | AB99: 2582 | AC99: 1780 | AD99: 5580 | AE99: 1840 | AF99: 2360 | AG99: 7820 | AH99: 1232 | AI99: 4160 | AJ99: 4750 | AK99: 4270 | AL99: 1710 | AM99: 4360 | AN99: 2620 | AO99: 1510 | AP99: 3490 | AQ99: 1600 | AR99: 2630 | AS99: 2550 | AT99: 3600 | AU99: 2370 | AV99: 5270 | AW99: 1400 | AX99: 3060 | AY99: 1220 | AZ99: 1970 | BA99: 2090 | BB99: 2250 | BC99: 3670 | BD99: 1900 | BE99: 2140 | BF99: 1400 | BG99: 2200 | BH99: 1850 | BI99: 3310 | BJ99: 1850 | BK99: 2120 | BL99: 3890 | BM99: 10500 | BN99: 3350 | BO99: 16400 | BP99: 1600 | BQ99: 2490 | BR99: 2380 | BS99: 2200 | BT99: 1770 | BU99: 2270 | BV99: 1570 | BW99: 1530 | BX99: 3090 | BY99: 2060 | BZ99: 2720 | CA99: 2440 | CB99: 2390 | CC99: 2360 | CD99: 1910 | CE99: 2060 | CF99: 1350 | CG99: 2160 | CH99: 2020 | CI99: 2812.059524
B100: 2013-04-06 | C100: 2500 | D100: 2130 | E100: 1452 | F100: 2685 | G100: 3500 | H100: 3945 | I100: 2500 | J100: 3080 | K100: 1375 | L100: 1120 | M100: 2080 | N100: 1560 | O100: 2390 | P100: 1980 | Q100: 1890 | R100: 2445 | S100: 3150 | T100: 3290 | U100: 2130 | V100: 1560 | W100: 2280 | X100: 1488 | Y100: 3150 | Z100: 2672 | AA100: 3066 | AB100: 4260 | AC100: 1795 | AD100: 4052 | AE100: 1967 | AF100: 2074 | AG100: 6103 | AH100: 1226 | AI100: 3790 | AJ100: 4580 | AK100: 3370 | AL100: 6150 | AM100: 5410 | AN100: 2350 | AO100: 1450 | AP100: 3810 | AQ100: 1490 | AR100: 2520 | AS100: 2580 | AT100: 4680 | AU100: 2960 | AV100: 7630 | AW100: 1440 | AX100: 4250 | AY100: 1170 | AZ100: 2910 | BA100: 3380 | BB100: 2040 | BC100: 3130 | BD100: 2340 | BE100: 2300 | BF100: 1300 | BG100: 2120 | BH100: 1940 | BI100: 2960 | BJ100: 1730 | BK100: 2180 | BL100: 11700 | BM100: 14900 | BN100: 3610 | BO100: 7650 | BP100: 1400 | BQ100: 2150 | BR100: 2470 | BS100: 2030 | BT100: 2170 | BU100: 2140 | BV100: 1540 | BW100: 1460 | BX100: 2700 | BY100: 2120 | BZ100: 3580 | CA100: 2380 | CB100: 2160 | CC100: 2190 | CD100: 1900 | CE100: 2190 | CF100: 1360 | CG100: 2230 | CH100: 2050 | CI100: 2939.702381
B101: 2013-04-07 | C101: 2335 | D101: 1935 | E101: 1410 | F101: 3795 | G101: 5840 | H101: 3430 | I101: 2335 | J101: 3220 | K101: 1305 | L101: 1180 | M101: 2030 | N101: 1480 | O101: 2280 | P101: 1980 | Q101: 1720 | R101: 2390 | S101: 3430 | T101: 2945 | U101: 2080 | V101: 1480 | W101: 2100 | X101: 1438 | Y101: 3164 | Z101: 2445 | AA101: 3346 | AB101: 3500 | AC101: 1693 | AD101: 3024 | AE101: 2441 | AF101: 2016 | AG101: 4005 | AH101: 1226 | AI101: 3070 | AJ101: 5000 | AK101: 2850 | AL101: 10100 | AM101: 4420 | AN101: 2410 | AO101: 1350 | AP101: 4430 | AQ101: 1500 | AR101: 2560 | AS101: 2350 | AT101: 3680 | AU101: 2930 | AV101: 5630 | AW101: 1280 | AX101: 3740 | AY101: 1150 | AZ101: 2760 | BA101: 4740 | BB101: 1800 | BC101: 2920 | BD101: 2010 | BE101: 2030 | BF101: 1250 | BG101: 2120 | BH101: 2040 | BI101: 3170 | BJ101: 1700 | BK101: 2090 | BL101: 8390 | BM101: 9820 | BN101: 3760 | BO101: 4570 | BP101: 1280 | BQ101: 2500 | BR101: 2940 | BS101: 1970 | BT101: 4290 | BU101: 2070 | BV101: 1490 | BW101: 1410 | BX101: 2270 | BY101: 1940 | BZ101: 5260 | CA101: 2300 | CB101: 2290 | CC101: 2760 | CD101: 1780 | CE101: 3020 | CF101: 1640 | CG101: 2710 | CH101: 2090 | CI101: 2840.809524
B102: 2013-04-08 | C102: 2130 | D102: 1800 | E102: 1410 | F102: 6040 | G102: 4690 | H102: 3220 | I102: 2130 | J102: 3290 | K102: 1240 | L102: 1375 | M102: 1890 | N102: 1760 | O102: 2620 | P102: 2815 | Q102: 1560 | R102: 2180 | S102: 3720 | T102: 2815 | U102: 1980 | V102: 1445 | W102: 1990 | X102: 1347 | Y102: 3066 | Z102: 2280 | AA102: 2997 | AB102: 2718 | AC102: 1610 | AD102: 2784 | AE102: 3374 | AF102: 2074 | AG102: 3276 | AH102: 1294 | AI102: 2750 | AJ102: 5370 | AK102: 2960 | AL102: 5250 | AM102: 3430 | AN102: 2660 | AO102: 1290 | AP102: 4490 | AQ102: 1550 | AR102: 2290 | AS102: 2160 | AT102: 2860 | AU102: 2800 | AV102: 4390 | AW102: 1180 | AX102: 3220 | AY102: 1130 | AZ102: 3870 | BA102: 5340 | BB102: 1690 | BC102: 2600 | BD102: 1840 | BE102: 2330 | BF102: 1190 | BG102: 1990 | BH102: 2140 | BI102: 3820 | BJ102: 1940 | BK102: 2590 | BL102: 5030 | BM102: 6330 | BN102: 3790 | BO102: 3530 | BP102: 1190 | BQ102: 2670 | BR102: 3430 | BS102: 2370 | BT102: 4250 | BU102: 2100 | BV102: 1500 | BW102: 1450 | BX102: 2090 | BY102: 1810 | BZ102: 3970 | CA102: 2720 | CB102: 2280 | CC102: 3140 | CD102: 1920 | CE102: 3720 | CF102: 1740 | CG102: 3310 | CH102: 2560 | CI102: 2701.666667
B103: 2013-04-09 | C103: 1890 | D103: 1800 | E103: 1375 | F103: 3945 | G103: 3570 | H103: 2956 | I103: 1890 | J103: 2880 | K103: 1210 | L103: 1340 | M103: 2080 | N103: 2945 | O103: 3010 | P103: 3360 | Q103: 1520 | R103: 2130 | S103: 3570 | T103: 2445 | U103: 1890 | V103: 1460 | W103: 2445 | X103: 1568 | Y103: 2971 | Z103: 2190 | AA103: 2646 | AB103: 2378 | AC103: 1538 | AD103: 2739 | AE103: 6680 | AF103: 2135 | AG103: 3108 | AH103: 1393 | AI103: 2600 | AJ103: 4940 | AK103: 4040 | AL103: 3670 | AM103: 2780 | AN103: 2810 | AO103: 1420 | AP103: 4570 | AQ103: 1630 | AR103: 2170 | AS103: 2260 | AT103: 7370 | AU103: 3100 | AV103: 3670 | AW103: 1190 | AX103: 3050 | AY103: 1130 | AZ103: 4320 | BA103: 3760 | BB103: 1590 | BC103: 2700 | BD103: 2860 | BE103: 2640 | BF103: 1150 | BG103: 1830 | BH103: 2060 | BI103: 4650 | BJ103: 2030 | BK103: 2250 | BL103: 3830 | BM103: 4620 | BN103: 3170 | BO103: 3400 | BP103: 1150 | BQ103: 4460 | BR103: 4090 | BS103: 2440 | BT103: 4160 | BU103: 2230 | BV103: 1400 | BW103: 1420 | BX103: 2290 | BY103: 1660 | BZ103: 3420 | CA103: 3350 | CB103: 2290 | CC103: 2470 | CD103: 3140 | CE103: 4400 | CF103: 1560 | CG103: 2930 | CH103: 2370 | CI103: 2732.702381
B104: 2013-04-10 | C104: 1720 | D104: 1890 | E104: 1270 | F104: 3010 | G104: 3150 | H104: 2880 | I104: 1720 | J104: 2750 | K104: 1210 | L104: 1480 | M104: 2445 | N104: 2620 | O104: 2880 | P104: 3220 | Q104: 1640 | R104: 2500 | S104: 3010 | T104: 2230 | U104: 1845 | V104: 1600 | W104: 3010 | X104: 1431 | Y104: 3276 | Z104: 2040 | AA104: 2434 | AB104: 2243 | AC104: 1474 | AD104: 2387 | AE104: 6460 | AF104: 2571 | AG104: 3332 | AH104: 1701 | AI104: 2520 | AJ104: 3540 | AK104: 3250 | AL104: 2840 | AM104: 2450 | AN104: 3520 | AO104: 1580 | AP104: 5010 | AQ104: 1560 | AR104: 2300 | AS104: 2700 | AT104: 8760 | AU104: 3250 | AV104: 3100 | AW104: 1420 | AX104: 3170 | AY104: 1120 | AZ104: 3730 | BA104: 2810 | BB104: 1590 | BC104: 2620 | BD104: 3030 | BE104: 2210 | BF104: 1170 | BG104: 1740 | BH104: 2290 | BI104: 5790 | BJ104: 1930 | BK104: 2200 | BL104: 3320 | BM104: 3950 | BN104: 2810 | BO104: 3100 | BP104: 1240 | BQ104: 3850 | BR104: 3570 | BS104: 2230 | BT104: 4080 | BU104: 2160 | BV104: 1410 | BW104: 1350 | BX104: 2380 | BY104: 1740 | BZ104: 5050 | CA104: 2940 | CB104: 2460 | CC104: 2100 | CD104: 2620 | CE104: 3720 | CF104: 1470 | CG104: 2690 | CH104: 2040 | CI104: 2653.678571
B105: 2013-04-11 | C105: 1720 | D105: 1890 | E105: 1210 | F105: 2560 | G105: 2815 | H105: 3430 | I105: 1720 | J105: 2815 | K105: 1340 | L105: 2620 | M105: 2280 | N105: 2280 | O105: 2685 | P105: 2620 | Q105: 1600 | R105: 3290 | S105: 2815 | T105: 2180 | U105: 2130 | V105: 3430 | W105: 3178 | X105: 1480 | Y105: 4391 | Z105: 2000 | AA105: 2423 | AB105: 2198 | AC105: 1453 | AD105: 2207 | AE105: 4308 | AF105: 3855 | AG105: 3122 | AH105: 2000 | AI105: 2720 | AJ105: 2810 | AK105: 2840 | AL105: 2450 | AM105: 2270 | AN105: 3780 | AO105: 1460 | AP105: 6840 | AQ105: 1360 | AR105: 3030 | AS105: 2560 | AT105: 5040 | AU105: 2750 | AV105: 2830 | AW105: 1620 | AX105: 4880 | AY105: 1190 | AZ105: 4530 | BA105: 2580 | BB105: 2160 | BC105: 2460 | BD105: 2470 | BE105: 2230 | BF105: 1630 | BG105: 1690 | BH105: 2300 | BI105: 5600 | BJ105: 1770 | BK105: 2840 | BL105: 3440 | BM105: 3770 | BN105: 3240 | BO105: 2620 | BP105: 1150 | BQ105: 3530 | BR105: 2990 | BS105: 2590 | BT105: 3840 | BU105: 2140 | BV105: 1610 | BW105: 1290 | BX105: 2630 | BY105: 1830 | BZ105: 5930 | CA105: 2930 | CB105: 2900 | CC105: 2330 | CD105: 2230 | CE105: 2920 | CF105: 1510 | CG105: 2550 | CH105: 1810 | CI105: 2672.797619
B106: 2013-04-12 | C106: 1980 | D106: 3010 | E106: 1210 | F106: 2620 | G106: 2445 | H106: 4340 | I106: 1980 | J106: 3080 | K106: 1800 | L106: 4260 | M106: 2180 | N106: 2230 | O106: 2815 | P106: 2815 | Q106: 1520 | R106: 3720 | S106: 3795 | T106: 2280 | U106: 2180 | V106: 5440 | W106: 2685 | X106: 1504 | Y106: 4324 | Z106: 3108 | AA106: 3276 | AB106: 2144 | AC106: 1578 | AD106: 2306 | AE106: 3416 | AF106: 4068 | AG106: 3052 | AH106: 1849 | AI106: 2630 | AJ106: 2580 | AK106: 3410 | AL106: 2310 | AM106: 2160 | AN106: 3240 | AO106: 1410 | AP106: 5190 | AQ106: 1490 | AR106: 2670 | AS106: 2940 | AT106: 3740 | AU106: 2420 | AV106: 2720 | AW106: 1810 | AX106: 4740 | AY106: 1460 | AZ106: 3730 | BA106: 2350 | BB106: 1890 | BC106: 2340 | BD106: 2460 | BE106: 2110 | BF106: 4160 | BG106: 1570 | BH106: 2450 | BI106: 6860 | BJ106: 1780 | BK106: 2620 | BL106: 4070 | BM106: 3850 | BN106: 4020 | BO106: 2380 | BP106: 1150 | BQ106: 3160 | BR106: 3360 | BS106: 2300 | BT106: 3620 | BU106: 2020 | BV106: 1560 | BW106: 1360 | BX106: 2920 | BY106: 1710 | BZ106: 9020 | CA106: 2970 | CB106: 3410 | CC106: 2240 | CD106: 2270 | CE106: 2430 | CF106: 1650 | CG106: 3200 | CH106: 1750 | CI106: 2817.5
B107: 2013-04-13 | C107: 1720 | D107: 2880 | E107: 1229 | F107: 3010 | G107: 2390 | H107: 5440 | I107: 1720 | J107: 3500 | K107: 2500 | L107: 4690 | M107: 5060 | N107: 2030 | O107: 2445 | P107: 3720 | Q107: 1375 | R107: 3010 | S107: 5440 | T107: 2335 | U107: 2080 | V107: 4690 | W107: 2984 | X107: 1438 | Y107: 3600 | Z107: 4459 | AA107: 4244 | AB107: 2450 | AC107: 1857 | AD107: 5098 | AE107: 3206 | AF107: 4726 | AG107: 3262 | AH107: 2198 | AI107: 2460 | AJ107: 2630 | AK107: 5040 | AL107: 2670 | AM107: 2110 | AN107: 2810 | AO107: 1570 | AP107: 3720 | AQ107: 1570 | AR107: 2280 | AS107: 4000 | AT107: 2980 | AU107: 2240 | AV107: 2570 | AW107: 2020 | AX107: 3510 | AY107: 1660 | AZ107: 2940 | BA107: 2530 | BB107: 1700 | BC107: 3360 | BD107: 3420 | BE107: 1900 | BF107: 3810 | BG107: 1470 | BH107: 2480 | BI107: 5710 | BJ107: 1640 | BK107: 2310 | BL107: 5460 | BM107: 4370 | BN107: 3750 | BO107: 2360 | BP107: 1260 | BQ107: 2680 | BR107: 3450 | BS107: 2620 | BT107: 3350 | BU107: 2420 | BV107: 1450 | BW107: 1460 | BX107: 3580 | BY107: 1610 | BZ107: 11600 | CA107: 3460 | CB107: 3350 | CC107: 1970 | CD107: 2560 | CE107: 2200 | CF107: 2960 | CG107: 6760 | CH107: 1860 | CI107: 3052.809524
B108: 2013-04-14 | C108: 1800 | D108: 3010 | E108: 2230 | F108: 3220 | G108: 2500 | H108: 7360 | I108: 1800 | J108: 3220 | K108: 2180 | L108: 4180 | M108: 8050 | N108: 1890 | O108: 2230 | P108: 3570 | Q108: 1340 | R108: 3290 | S108: 6460 | T108: 2180 | U108: 1890 | V108: 4100 | W108: 3585 | X108: 1410 | Y108: 3178 | Z108: 3645 | AA108: 4052 | AB108: 3290 | AC108: 1983 | AD108: 4870 | AE108: 2666 | AF108: 5780 | AG108: 3660 | AH108: 2613 | AI108: 2270 | AJ108: 2760 | AK108: 4090 | AL108: 3780 | AM108: 2660 | AN108: 2580 | AO108: 1570 | AP108: 3220 | AQ108: 1480 | AR108: 2450 | AS108: 3100 | AT108: 2580 | AU108: 2330 | AV108: 2460 | AW108: 1950 | AX108: 3010 | AY108: 1540 | AZ108: 2610 | BA108: 2430 | BB108: 1590 | BC108: 3120 | BD108: 4680 | BE108: 1740 | BF108: 3130 | BG108: 1420 | BH108: 2260 | BI108: 5420 | BJ108: 1490 | BK108: 2520 | BL108: 5660 | BM108: 5890 | BN108: 5220 | BO108: 2450 | BP108: 1590 | BQ108: 2400 | BR108: 2960 | BS108: 2720 | BT108: 2980 | BU108: 2840 | BV108: 1360 | BW108: 1400 | BX108: 8670 | BY108: 1500 | BZ108: 19400 | CA108: 3530 | CB108: 3010 | CC108: 1870 | CD108: 3670 | CE108: 2390 | CF108: 3390 | CG108: 4350 | CH108: 1980 | CI108: 3270.261905
B109: 2013-04-15 | C109: 2030 | D109: 3010 | E109: 2815 | F109: 3720 | G109: 2335 | H109: 6040 | I109: 2030 | J109: 3010 | K109: 2030 | L109: 4510 | M109: 8770 | N109: 1935 | O109: 2080 | P109: 2880 | Q109: 1800 | R109: 3150 | S109: 6250 | T109: 2080 | U109: 2030 | V109: 3720 | W109: 4308 | X109: 1908 | Y109: 3108 | Z109: 3900 | AA109: 3660 | AB109: 3178 | AC109: 1866 | AD109: 3444 | AE109: 2279 | AF109: 5700 | AG109: 4442 | AH109: 3136 | AI109: 2120 | AJ109: 2670 | AK109: 3200 | AL109: 4460 | AM109: 3680 | AN109: 5430 | AO109: 1950 | AP109: 3300 | AQ109: 1400 | AR109: 3040 | AS109: 2550 | AT109: 2300 | AU109: 2440 | AV109: 3550 | AW109: 1780 | AX109: 2960 | AY109: 1430 | AZ109: 2530 | BA109: 2220 | BB109: 1520 | BC109: 2580 | BD109: 5360 | BE109: 1880 | BF109: 2540 | BG109: 1410 | BH109: 3670 | BI109: 5070 | BJ109: 1500 | BK109: 6240 | BL109: 4720 | BM109: 6440 | BN109: 5830 | BO109: 2510 | BP109: 1650 | BQ109: 2320 | BR109: 2430 | BS109: 2500 | BT109: 2660 | BU109: 3080 | BV109: 1310 | BW109: 1410 | BX109: 9620 | BY109: 1400 | BZ109: 9660 | CA109: 2930 | CB109: 2710 | CC109: 1810 | CD109: 3540 | CE109: 2530 | CF109: 2930 | CG109: 3310 | CH109: 2040 | CI109: 3229.452381
B110: 2013-04-16 | C110: 1980 | D110: 3010 | E110: 2500 | F110: 3220 | G110: 2130 | H110: 4870 | I110: 1980 | J110: 4870 | K110: 2335 | L110: 7130 | M110: 5640 | N110: 3430 | O110: 2130 | P110: 2390 | Q110: 1800 | R110: 2814 | S110: 5440 | T110: 1980 | U110: 2445 | V110: 3645 | W110: 4052 | X110: 5117 | Y110: 3690 | Z110: 6946 | AA110: 3660 | AB110: 2832 | AC110: 1933 | AD110: 2984 | AE110: 2270 | AF110: 4564 | AG110: 3388 | AH110: 4442 | AI110: 1840 | AJ110: 2440 | AK110: 2980 | AL110: 3240 | AM110: 2690 | AN110: 3940 | AO110: 3080 | AP110: 3450 | AQ110: 1260 | AR110: 2610 | AS110: 2380 | AT110: 2110 | AU110: 2280 | AV110: 3060 | AW110: 2120 | AX110: 2990 | AY110: 1420 | AZ110: 2160 | BA110: 2760 | BB110: 1720 | BC110: 2280 | BD110: 3890 | BE110: 2520 | BF110: 2300 | BG110: 1500 | BH110: 3600 | BI110: 6290 | BJ110: 1680 | BK110: 4670 | BL110: 4610 | BM110: 5050 | BN110: 6790 | BO110: 2450 | BP110: 1950 | BQ110: 2430 | BR110: 2570 | BS110: 2280 | BT110: 3340 | BU110: 3810 | BV110: 1280 | BW110: 1740 | BX110: 5750 | BY110: 1420 | BZ110: 6340 | CA110: 2690 | CB110: 2400 | CC110: 3060 | CD110: 2750 | CE110: 2270 | CF110: 2500 | CG110: 2780 | CH110: 2220 | CI110: 3135.202381
B111: 2013-04-17 | C111: 1800 | D111: 3290 | E111: 2280 | F111: 2560 | G111: 2280 | H111: 5250 | I111: 1800 | J111: 3870 | K111: 2080 | L111: 8050 | M111: 4260 | N111: 14100 | O111: 2390 | P111: 2080 | Q111: 1640 | R111: 3290 | S111: 4340 | T111: 1800 | U111: 2130 | V111: 3795 | W111: 4326 | X111: 5002 | Y111: 4510 | Z111: 7751 | AA111: 3900 | AB111: 3220 | AC111: 2343 | AD111: 4228 | AE111: 2090 | AF111: 3735 | AG111: 2844 | AH111: 4459 | AI111: 1850 | AJ111: 2350 | AK111: 3940 | AL111: 2740 | AM111: 2250 | AN111: 2980 | AO111: 2890 | AP111: 3210 | AQ111: 1360 | AR111: 2280 | AS111: 2730 | AT111: 1970 | AU111: 2060 | AV111: 2680 | AW111: 2520 | AX111: 2820 | AY111: 1450 | AZ111: 1980 | BA111: 2430 | BB111: 1750 | BC111: 2230 | BD111: 3740 | BE111: 2660 | BF111: 2140 | BG111: 1620 | BH111: 2730 | BI111: 4850 | BJ111: 1760 | BK111: 5130 | BL111: 4480 | BM111: 3900 | BN111: 6450 | BO111: 2530 | BP111: 6190 | BQ111: 2390 | BR111: 3680 | BS111: 2130 | BT111: 3410 | BU111: 4620 | BV111: 1220 | BW111: 2590 | BX111: 4240 | BY111: 2140 | BZ111: 4790 | CA111: 2690 | CB111: 2190 | CC111: 3480 | CD111: 2280 | CE111: 2520 | CF111: 2190 | CG111: 2970 | CH111: 2990 | CI111: 3245.988095
B112: 2013-04-18 | C112: 1680 | D112: 3150 | E112: 1980 | F112: 2390 | G112: 2230 | H112: 7130 | I112: 1680 | J112: 3010 | K112: 1890 | L112: 8050 | M112: 3500 | N112: 23660 | O112: 3290 | P112: 2500 | Q112: 1560 | R112: 2560 | S112: 3870 | T112: 1680 | U112: 2030 | V112: 4690 | W112: 9170 | X112: 3870 | Y112: 5041 | Z112: 5440 | AA112: 3705 | AB112: 4528 | AC112: 2324 | AD112: 4100 | AE112: 2000 | AF112: 3570 | AG112: 2739 | AH112: 5117 | AI112: 1790 | AJ112: 2290 | AK112: 3310 | AL112: 3020 | AM112: 2190 | AN112: 2560 | AO112: 2340 | AP112: 2730 | AQ112: 1290 | AR112: 2160 | AS112: 4690 | AT112: 1910 | AU112: 1880 | AV112: 2420 | AW112: 2440 | AX112: 2980 | AY112: 1430 | AZ112: 2030 | BA112: 2150 | BB112: 1910 | BC112: 2120 | BD112: 3730 | BE112: 2530 | BF112: 2060 | BG112: 1930 | BH112: 2410 | BI112: 3860 | BJ112: 2240 | BK112: 3590 | BL112: 4310 | BM112: 3560 | BN112: 4840 | BO112: 2640 | BP112: 6020 | BQ112: 3070 | BR112: 4710 | BS112: 2160 | BT112: 3050 | BU112: 3730 | BV112: 1290 | BW112: 3540 | BX112: 4060 | BY112: 2390 | BZ112: 3890 | CA112: 2740 | CB112: 2040 | CC112: 2900 | CD112: 2050 | CE112: 2550 | CF112: 2180 | CG112: 3460 | CH112: 3510 | CI112: 3343.02381
B113: 2013-04-19 | C113: 1560 | D113: 2815 | E113: 1935 | F113: 2280 | G113: 1980 | H113: 7130 | I113: 1560 | J113: 3010 | K113: 2030 | L113: 6250 | M113: 3290 | N113: 10060 | O113: 4020 | P113: 2500 | Q113: 1520 | R113: 2445 | S113: 4690 | T113: 1640 | U113: 2335 | V113: 4780 | W113: 10465 | X113: 3416 | Y113: 4690 | Z113: 4276 | AA113: 3150 | AB113: 5740 | AC113: 2832 | AD113: 3430 | AE113: 1840 | AF113: 4690 | AG113: 2718 | AH113: 4476 | AI113: 1720 | AJ113: 2270 | AK113: 2810 | AL113: 3910 | AM113: 2180 | AN113: 2360 | AO113: 3520 | AP113: 2460 | AQ113: 1390 | AR113: 2140 | AS113: 4540 | AT113: 2160 | AU113: 1770 | AV113: 2180 | AW113: 2170 | AX113: 3220 | AY113: 1800 | AZ113: 1950 | BA113: 1860 | BB113: 2120 | BC113: 2000 | BD113: 5980 | BE113: 2870 | BF113: 1840 | BG113: 2370 | BH113: 2390 | BI113: 3360 | BJ113: 1870 | BK113: 2810 | BL113: 3730 | BM113: 4150 | BN113: 4030 | BO113: 2690 | BP113: 3460 | BQ113: 3080 | BR113: 5510 | BS113: 2080 | BT113: 2830 | BU113: 3810 | BV113: 1610 | BW113: 3550 | BX113: 4180 | BY113: 2190 | BZ113: 3390 | CA113: 2410 | CB113: 1910 | CC113: 2530 | CD113: 1930 | CE113: 2350 | CF113: 2060 | CG113: 3130 | CH113: 3620 | CI113: 3140.511905
B114: 2013-04-20 | C114: 1680 | D114: 2500 | E114: 2309 | F114: 2620 | G114: 1890 | H114: 5440 | I114: 1680 | J114: 3645 | K114: 3010 | L114: 5640 | M114: 4180 | N114: 5840 | O114: 3645 | P114: 2335 | Q114: 1480 | R114: 3290 | S114: 4870 | T114: 1890 | U114: 2880 | V114: 4600 | W114: 8770 | X114: 3472 | Y114: 4618 | Z114: 4292 | AA114: 2548 | AB114: 3915 | AC114: 4100 | AD114: 2893 | AE114: 1833 | AF114: 6900 | AG114: 2510 | AH114: 9676 | AI114: 1730 | AJ114: 3550 | AK114: 2530 | AL114: 3420 | AM114: 2110 | AN114: 2360 | AO114: 11900 | AP114: 2440 | AQ114: 1350 | AR114: 2000 | AS114: 3680 | AT114: 2330 | AU114: 1900 | AV114: 2100 | AW114: 1820 | AX114: 3500 | AY114: 1750 | AZ114: 3150 | BA114: 1690 | BB114: 2400 | BC114: 1850 | BD114: 7370 | BE114: 3570 | BF114: 1720 | BG114: 2690 | BH114: 2310 | BI114: 2860 | BJ114: 1820 | BK114: 2410 | BL114: 3660 | BM114: 5120 | BN114: 3730 | BO114: 2930 | BP114: 2600 | BQ114: 2610 | BR114: 4570 | BS114: 1950 | BT114: 2590 | BU114: 11600 | BV114: 1670 | BW114: 3630 | BX114: 3690 | BY114: 1950 | BZ114: 3140 | CA114: 2180 | CB114: 2060 | CC114: 2480 | CD114: 2040 | CE114: 2110 | CF114: 1840 | CG114: 3840 | CH114: 4180 | CI114: 3350.369048
B115: 2013-04-21 | C115: 2080 | D115: 2280 | E115: 3010 | F115: 3460 | G115: 1890 | H115: 4180 | I115: 2080 | J115: 3720 | K115: 2945 | L115: 6040 | M115: 5060 | N115: 4510 | O115: 4260 | P115: 2230 | Q115: 1520 | R115: 4340 | S115: 5250 | T115: 1760 | U115: 4100 | V115: 3720 | W115: 5250 | X115: 4493 | Y115: 4984 | Z115: 4324 | AA115: 2180 | AB115: 3234 | AC115: 4816 | AD115: 2603 | AE115: 1840 | AF115: 9452 | AG115: 2378 | AH115: 6460 | AI115: 2020 | AJ115: 3480 | AK115: 2350 | AL115: 3070 | AM115: 2000 | AN115: 2240 | AO115: 8250 | AP115: 2810 | AQ115: 1420 | AR115: 1850 | AS115: 3010 | AT115: 2060 | AU115: 1910 | AV115: 2610 | AW115: 1680 | AX115: 3590 | AY115: 1570 | AZ115: 2930 | BA115: 1630 | BB115: 2350 | BC115: 1780 | BD115: 4970 | BE115: 3540 | BF115: 1710 | BG115: 2830 | BH115: 2140 | BI115: 2490 | BJ115: 2400 | BK115: 2160 | BL115: 3910 | BM115: 5280 | BN115: 3750 | BO115: 3300 | BP115: 2230 | BQ115: 2490 | BR115: 4460 | BS115: 1840 | BT115: 2370 | BU115: 8040 | BV115: 1870 | BW115: 3070 | BX115: 3600 | BY115: 1910 | BZ115: 2910 | CA115: 2310 | CB115: 2070 | CC115: 2660 | CD115: 2640 | CE115: 1920 | CF115: 1700 | CG115: 5480 | CH115: 5190 | CI115: 3241.654762
B116: 2013-04-22 | C116: 2815 | D116: 2500 | E116: 2685 | F116: 4340 | G116: 2080 | H116: 3570 | I116: 2815 | J116: 3795 | K116: 2560 | L116: 7130 | M116: 3570 | N116: 4180 | O116: 4100 | P116: 2080 | Q116: 1520 | R116: 3430 | S116: 3945 | T116: 1680 | U116: 3570 | V116: 3010 | W116: 4020 | X116: 4889 | Y116: 4408 | Z116: 3900 | AA116: 1980 | AB116: 3220 | AC116: 5900 | AD116: 2510 | AE116: 2049 | AF116: 9348 | AG116: 2306 | AH116: 4908 | AI116: 2650 | AJ116: 2690 | AK116: 2260 | AL116: 3130 | AM116: 2020 | AN116: 2940 | AO116: 5500 | AP116: 2630 | AQ116: 1370 | AR116: 1810 | AS116: 3660 | AT116: 1890 | AU116: 1790 | AV116: 2360 | AW116: 2290 | AX116: 3410 | AY116: 1580 | AZ116: 2490 | BA116: 1960 | BB116: 2450 | BC116: 1930 | BD116: 3890 | BE116: 8620 | BF116: 2050 | BG116: 2540 | BH116: 2360 | BI116: 2250 | BJ116: 2960 | BK116: 2220 | BL116: 3530 | BM116: 3850 | BN116: 3620 | BO116: 3610 | BP116: 2010 | BQ116: 2780 | BR116: 4110 | BS116: 1810 | BT116: 2210 | BU116: 5280 | BV116: 2570 | BW116: 2540 | BX116: 4210 | BY116: 1970 | BZ116: 2980 | CA116: 2370 | CB116: 1890 | CC116: 3100 | CD116: 2400 | CE116: 1840 | CF116: 1580 | CG116: 6190 | CH116: 4040 | CI116: 3154.797619
B117: 2013-04-23 | C117: 3430 | D117: 3720 | E117: 3080 | F117: 3795 | G117: 1980 | H117: 3156 | I117: 3430 | J117: 3720 | K117: 2685 | L117: 5640 | M117: 3080 | N117: 4180 | O117: 3430 | P117: 3430 | Q117: 1560 | R117: 2560 | S117: 3360 | T117: 2180 | U117: 3220 | V117: 2620 | W117: 3542 | X117: 4816 | Y117: 3900 | Z117: 3500 | AA117: 1890 | AB117: 2932 | AC117: 7705 | AD117: 2423 | AE117: 2378 | AF117: 7222 | AG117: 2288 | AH117: 3975 | AI117: 2850 | AJ117: 2320 | AK117: 2070 | AL117: 3240 | AM117: 2560 | AN117: 2580 | AO117: 4170 | AP117: 2550 | AQ117: 1360 | AR117: 1960 | AS117: 5210 | AT117: 1870 | AU117: 1770 | AV117: 2160 | AW117: 2820 | AX117: 3420 | AY117: 1670 | AZ117: 2210 | BA117: 3330 | BB117: 2530 | BC117: 2170 | BD117: 3990 | BE117: 8900 | BF117: 2840 | BG117: 2320 | BH117: 2190 | BI117: 2540 | BJ117: 2400 | BK117: 2290 | BL117: 3110 | BM117: 3380 | BN117: 4750 | BO117: 3240 | BP117: 1890 | BQ117: 3090 | BR117: 3180 | BS117: 1930 | BT117: 6090 | BU117: 5380 | BV117: 4260 | BW117: 2490 | BX117: 3690 | BY117: 2260 | BZ117: 3130 | CA117: 2260 | CB117: 2080 | CC117: 3620 | CD117: 2150 | CE117: 1880 | CF117: 1570 | CG117: 4570 | CH117: 3070 | CI117: 3168.892857
B118: 2013-04-24 | C118: 3645 | D118: 5060 | E118: 3430 | F118: 3430 | G118: 2080 | H118: 2880 | I118: 3645 | J118: 3080 | K118: 2335 | L118: 5250 | M118: 2685 | N118: 3870 | O118: 3010 | P118: 5640 | Q118: 1520 | R118: 2390 | S118: 2280 | T118: 3430 | U118: 4260 | V118: 3010 | W118: 3388 | X118: 4425 | Y118: 4324 | Z118: 2997 | AA118: 1899 | AB118: 3276 | AC118: 6460 | AD118: 2360 | AE118: 2171 | AF118: 5640 | AG118: 2520 | AH118: 3458 | AI118: 2810 | AJ118: 2160 | AK118: 2100 | AL118: 4000 | AM118: 2280 | AN118: 2340 | AO118: 4340 | AP118: 2550 | AQ118: 1420 | AR118: 2180 | AS118: 4770 | AT118: 2490 | AU118: 1810 | AV118: 2390 | AW118: 2370 | AX118: 3470 | AY118: 2010 | AZ118: 2530 | BA118: 5060 | BB118: 2360 | BC118: 2410 | BD118: 4160 | BE118: 8300 | BF118: 2630 | BG118: 2810 | BH118: 1970 | BI118: 2310 | BJ118: 1950 | BK118: 2580 | BL118: 3150 | BM118: 3190 | BN118: 5860 | BO118: 3320 | BP118: 1740 | BQ118: 3130 | BR118: 2920 | BS118: 2240 | BT118: 9580 | BU118: 5310 | BV118: 4700 | BW118: 3200 | BX118: 3150 | BY118: 2620 | BZ118: 2770 | CA118: 2880 | CB118: 2380 | CC118: 4060 | CD118: 2250 | CE118: 2010 | CF118: 1670 | CG118: 3430 | CH118: 2850 | CI118: 3247.833333
B119: 2013-04-25 | C119: 3720 | D119: 4020 | E119: 3870 | F119: 3080 | G119: 2280 | H119: 2750 | I119: 3720 | J119: 2750 | K119: 2180 | L119: 6040 | M119: 2750 | N119: 3570 | O119: 3010 | P119: 3870 | Q119: 1520 | R119: 2750 | S119: 2445 | T119: 3290 | U119: 4260 | V119: 5060 | W119: 3136 | X119: 4853 | Y119: 3990 | Z119: 2737 | AA119: 2030 | AB119: 3855 | AC119: 4852 | AD119: 2306 | AE119: 1925 | AF119: 5022 | AG119: 2342 | AH119: 3066 | AI119: 2610 | AJ119: 2220 | AK119: 2120 | AL119: 3660 | AM119: 2030 | AN119: 2250 | AO119: 4400 | AP119: 2830 | AQ119: 1470 | AR119: 2610 | AS119: 3540 | AT119: 2310 | AU119: 1750 | AV119: 3030 | AW119: 2080 | AX119: 3740 | AY119: 2550 | AZ119: 2600 | BA119: 6210 | BB119: 2460 | BC119: 2620 | BD119: 3560 | BE119: 4810 | BF119: 2250 | BG119: 2460 | BH119: 1760 | BI119: 2220 | BJ119: 1880 | BK119: 2400 | BL119: 2800 | BM119: 3370 | BN119: 4630 | BO119: 2910 | BP119: 1580 | BQ119: 4340 | BR119: 2600 | BS119: 2390 | BT119: 5610 | BU119: 4370 | BV119: 3360 | BW119: 4600 | BX119: 2730 | BY119: 3330 | BZ119: 2570 | CA119: 2800 | CB119: 2050 | CC119: 3850 | CD119: 2430 | CE119: 2450 | CF119: 1690 | CG119: 2880 | CH119: 2660 | CI119: 3089.035714
B120: 2013-04-26 | C120: 3290 | D120: 3645 | E120: 4340 | F120: 2945 | G120: 2390 | H120: 3150 | I120: 3290 | J120: 2445 | K120: 2445 | L120: 5440 | M120: 3290 | N120: 3430 | O120: 2685 | P120: 3570 | Q120: 1520 | R120: 2445 | S120: 2230 | T120: 2815 | U120: 3720 | V120: 7360 | W120: 3472 | X120: 3750 | Y120: 3585 | Z120: 2467 | AA120: 2160 | AB120: 5345 | AC120: 4946 | AD120: 2189 | AE120: 1917 | AF120: 5421 | AG120: 2117 | AH120: 2697 | AI120: 2780 | AJ120: 2070 | AK120: 2100 | AL120: 2850 | AM120: 2030 | AN120: 2630 | AO120: 4570 | AP120: 2940 | AQ120: 1480 | AR120: 3450 | AS120: 2840 | AT120: 2030 | AU120: 2360 | AV120: 2740 | AW120: 2220 | AX120: 3260 | AY120: 2180 | AZ120: 2290 | BA120: 5610 | BB120: 3200 | BC120: 2970 | BD120: 3210 | BE120: 3630 | BF120: 2150 | BG120: 2110 | BH120: 1630 | BI120: 2120 | BJ120: 1890 | BK120: 2300 | BL120: 2520 | BM120: 3170 | BN120: 4480 | BO120: 2480 | BP120: 1620 | BQ120: 4630 | BR120: 2290 | BS120: 2500 | BT120: 5060 | BU120: 4830 | BV120: 2630 | BW120: 4250 | BX120: 2690 | BY120: 4490 | BZ120: 2590 | CA120: 2420 | CB120: 2360 | CC120: 3820 | CD120: 2720 | CE120: 2780 | CF120: 1580 | CG120: 2470 | CH120: 2390 | CI120: 3034.77381
B121: 2013-04-27 | C121: 4020 | D121: 3010 | E121: 4615 | F121: 3220 | G121: 3290 | H121: 4100 | I121: 4020 | J121: 2500 | K121: 2500 | L121: 4690 | M121: 3150 | N121: 3080 | O121: 2680 | P121: 3430 | Q121: 1480 | R121: 2130 | S121: 2030 | T121: 2685 | U121: 3290 | V121: 4870 | W121: 4374 | X121: 2982 | Y121: 3765 | Z121: 2456 | AA121: 2302 | AB121: 5640 | AC121: 6040 | AD121: 2033 | AE121: 1780 | AF121: 5060 | AG121: 2065 | AH121: 2405 | AI121: 3940 | AJ121: 2070 | AK121: 2050 | AL121: 3730 | AM121: 2010 | AN121: 2620 | AO121: 5490 | AP121: 2530 | AQ121: 1520 | AR121: 2760 | AS121: 2610 | AT121: 1850 | AU121: 3330 | AV121: 2780 | AW121: 2710 | AX121: 3130 | AY121: 2140 | AZ121: 2120 | BA121: 4030 | BB121: 4540 | BC121: 4060 | BD121: 4150 | BE121: 3040 | BF121: 2290 | BG121: 1940 | BH121: 1540 | BI121: 5990 | BJ121: 2540 | BK121: 2800 | BL121: 2460 | BM121: 2970 | BN121: 3740 | BO121: 2310 | BP121: 2250 | BQ121: 5190 | BR121: 2240 | BS121: 2740 | BT121: 4530 | BU121: 7740 | BV121: 2450 | BW121: 3290 | BX121: 2670 | BY121: 4640 | BZ121: 2560 | CA121: 2200 | CB121: 3380 | CC121: 3600 | CD121: 2440 | CE121: 2790 | CF121: 1670 | CG121: 2260 | CH121: 2560 | CI121: 3150.97619
B122: 2013-04-28 | C122: 5250 | D122: 4300 | E122: 4180 | F122: 3290 | G122: 4340 | H122: 4020 | I122: 5250 | J122: 2685 | K122: 2445 | L122: 4180 | M122: 2750 | N122: 3080 | O122: 3290 | P122: 4340 | Q122: 1410 | R122: 1890 | S122: 2080 | T122: 3430 | U122: 3010 | V122: 3720 | W122: 4510 | X122: 2500 | Y122: 4442 | Z122: 2335 | AA122: 3164 | AB122: 6482 | AC122: 6878 | AD122: 1883 | AE122: 1701 | AF122: 4442 | AG122: 2697 | AH122: 2270 | AI122: 6540 | AJ122: 2230 | AK122: 2170 | AL122: 3660 | AM122: 1860 | AN122: 2550 | AO122: 6130 | AP122: 2340 | AQ122: 1600 | AR122: 3120 | AS122: 3050 | AT122: 1700 | AU122: 3190 | AV122: 4570 | AW122: 2270 | AX122: 3230 | AY122: 2030 | AZ122: 2350 | BA122: 3600 | BB122: 4330 | BC122: 4700 | BD122: 5380 | BE122: 13200 | BF122: 3090 | BG122: 1850 | BH122: 1540 | BI122: 8190 | BJ122: 3470 | BK122: 4400 | BL122: 2830 | BM122: 3040 | BN122: 3880 | BO122: 2190 | BP122: 2850 | BQ122: 3940 | BR122: 2190 | BS122: 2800 | BT122: 3740 | BU122: 6980 | BV122: 3050 | BW122: 2710 | BX122: 3360 | BY122: 4310 | BZ122: 2420 | CA122: 2110 | CB122: 3260 | CC122: 3270 | CD122: 3180 | CE122: 3430 | CF122: 2680 | CG122: 2260 | CH122: 3330 | CI122: 3504.690476
B123: 2013-04-29 | C123: 5060 | D123: 3570 | E123: 4180 | F123: 2620 | G123: 5060 | H123: 3645 | I123: 5060 | J123: 2500 | K123: 2380 | L123: 4020 | M123: 2335 | N123: 3870 | O123: 4870 | P123: 4020 | Q123: 1410 | R123: 1800 | S123: 2500 | T123: 3870 | U123: 2815 | V123: 4260 | W123: 4870 | X123: 2260 | Y123: 4870 | Z123: 2270 | AA123: 3010 | AB123: 4052 | AC123: 4636 | AD123: 1749 | AE123: 1640 | AF123: 4052 | AG123: 6292 | AH123: 2252 | AI123: 16300 | AJ123: 2330 | AK123: 3920 | AL123: 2910 | AM123: 2170 | AN123: 2660 | AO123: 4920 | AP123: 2310 | AQ123: 1500 | AR123: 4800 | AS123: 3500 | AT123: 1740 | AU123: 2900 | AV123: 4020 | AW123: 1910 | AX123: 2940 | AY123: 1780 | AZ123: 2720 | BA123: 3810 | BB123: 3520 | BC123: 4790 | BD123: 4440 | BE123: 10800 | BF123: 2870 | BG123: 1950 | BH123: 1550 | BI123: 4720 | BJ123: 2550 | BK123: 4700 | BL123: 4150 | BM123: 3170 | BN123: 3470 | BO123: 2090 | BP123: 3690 | BQ123: 5310 | BR123: 2400 | BS123: 2530 | BT123: 3190 | BU123: 6390 | BV123: 4300 | BW123: 2370 | BX123: 2970 | BY123: 3940 | BZ123: 2600 | CA123: 2140 | CB123: 2680 | CC123: 2670 | CD123: 4640 | CE123: 3490 | CF123: 4620 | CG123: 2220 | CH123: 3580 | CI123: 3588.547619
B124: 2013-04-30 | C124: 4020 | D124: 5060 | E124: 3570 | F124: 2180 | G124: 5440 | H124: 4133 | I124: 4020 | J124: 2180 | K124: 2560 | L124: 4180 | M124: 2130 | N124: 4340 | O124: 3945 | P124: 3570 | Q124: 1520 | R124: 1800 | S124: 2500 | T124: 3720 | U124: 3645 | V124: 3795 | W124: 4180 | X124: 2090 | Y124: 4564 | Z124: 2379 | AA124: 2335 | AB124: 3472 | AC124: 4084 | AD124: 1663 | AE124: 1610 | AF124: 3570 | AG124: 9270 | AH124: 2342 | AI124: 17600 | AJ124: 2550 | AK124: 5390 | AL124: 2630 | AM124: 2770 | AN124: 2560 | AO124: 4050 | AP124: 2330 | AQ124: 1470 | AR124: 5270 | AS124: 3070 | AT124: 2000 | AU124: 2730 | AV124: 3120 | AW124: 1700 | AX124: 3410 | AY124: 1810 | AZ124: 3790 | BA124: 3490 | BB124: 2940 | BC124: 4690 | BD124: 3220 | BE124: 8300 | BF124: 2390 | BG124: 2100 | BH124: 1550 | BI124: 3800 | BJ124: 2150 | BK124: 5240 | BL124: 3700 | BM124: 3590 | BN124: 3140 | BO124: 1960 | BP124: 5670 | BQ124: 9760 | BR124: 3050 | BS124: 2380 | BT124: 2990 | BU124: 6030 | BV124: 5620 | BW124: 2470 | BX124: 2610 | BY124: 5730 | BZ124: 3170 | CA124: 2240 | CB124: 2620 | CC124: 2330 | CD124: 3960 | CE124: 2750 | CF124: 3700 | CG124: 2090 | CH124: 3150 | CI124: 3603.535714
B125: 2013-05-01 | C125: 3430 | D125: 5440 | E125: 3010 | F125: 2080 | G125: 5640 | H125: 5060 | I125: 3430 | J125: 1980 | K125: 2445 | L125: 4340 | M125: 2230 | N125: 4340 | O125: 3290 | P125: 7590 | Q125: 1560 | R125: 2280 | S125: 2445 | T125: 3080 | U125: 4690 | V125: 3010 | W125: 3430 | X125: 1872 | Y125: 3945 | Z125: 2572 | AA125: 1935 | AB125: 3765 | AC125: 3500 | AD125: 1570 | AE125: 1765 | AF125: 3332 | AG125: 7958 | AH125: 2687 | AI125: 9220 | AJ125: 2870 | AK125: 4820 | AL125: 3260 | AM125: 2680 | AN125: 2390 | AO125: 3370 | AP125: 2230 | AQ125: 1470 | AR125: 4390 | AS125: 2790 | AT125: 2080 | AU125: 3240 | AV125: 2620 | AW125: 1680 | AX125: 3930 | AY125: 2090 | AZ125: 5250 | BA125: 3700 | BB125: 2580 | BC125: 4640 | BD125: 3050 | BE125: 6810 | BF125: 2420 | BG125: 2440 | BH125: 1700 | BI125: 3740 | BJ125: 1960 | BK125: 6250 | BL125: 3090 | BM125: 4260 | BN125: 2970 | BO125: 2120 | BP125: 3940 | BQ125: 6240 | BR125: 2670 | BS125: 2340 | BT125: 3100 | BU125: 7140 | BV125: 6640 | BW125: 3130 | BX125: 2860 | BY125: 5060 | BZ125: 4220 | CA125: 2260 | CB125: 3170 | CC125: 2190 | CD125: 2960 | CE125: 2570 | CF125: 2930 | CG125: 2120 | CH125: 3420 | CI125: 3461.559524
B126: 2013-05-02 | C126: 3795 | D126: 4020 | E126: 5580 | F126: 2620 | G126: 5440 | H126: 4510 | I126: 3795 | J126: 1935 | K126: 2180 | L126: 5440 | M126: 3720 | N126: 3430 | O126: 3500 | P126: 6250 | Q126: 1445 | R126: 2620 | S126: 2500 | T126: 2620 | U126: 6460 | V126: 3150 | W126: 4690 | X126: 1760 | Y126: 5680 | Z126: 2763 | AA126: 1712 | AB126: 3052 | AC126: 3108 | AD126: 1523 | AE126: 1788 | AF126: 3192 | AG126: 7107 | AH126: 3066 | AI126: 5610 | AJ126: 2810 | AK126: 5990 | AL126: 4140 | AM126: 2650 | AN126: 2190 | AO126: 2770 | AP126: 2760 | AQ126: 1420 | AR126: 3270 | AS126: 2600 | AT126: 2320 | AU126: 5120 | AV126: 2530 | AW126: 1860 | AX126: 3520 | AY126: 2480 | AZ126: 8050 | BA126: 4120 | BB126: 2450 | BC126: 4280 | BD126: 4240 | BE126: 4700 | BF126: 2760 | BG126: 2470 | BH126: 3510 | BI126: 4890 | BJ126: 2080 | BK126: 4000 | BL126: 2750 | BM126: 3790 | BN126: 3420 | BO126: 2310 | BP126: 2820 | BQ126: 6810 | BR126: 2200 | BS126: 3370 | BT126: 2870 | BU126: 4980 | BV126: 6440 | BW126: 3400 | BX126: 3550 | BY126: 4040 | BZ126: 4660 | CA126: 2460 | CB126: 3660 | CC126: 2160 | CD126: 2340 | CE126: 2770 | CF126: 2490 | CG126: 2700 | CH126: 3690 | CI126: 3520.488095
B127: 2013-05-03 | C127: 3570 | D127: 3290 | E127: 6680 | F127: 2860 | G127: 4690 | H127: 4260 | I127: 3570 | J127: 3080 | K127: 2230 | L127: 6680 | M127: 7590 | N127: 2750 | O127: 3570 | P127: 4690 | Q127: 1480 | R127: 2445 | S127: 2445 | T127: 2560 | U127: 8770 | V127: 4965 | W127: 4340 | X127: 2080 | Y127: 5540 | Z127: 2608 | AA127: 1752 | AB127: 2708 | AC127: 2718 | AD127: 1509 | AE127: 1709 | AF127: 3136 | AG127: 5345 | AH127: 3080 | AI127: 4320 | AJ127: 2640 | AK127: 4860 | AL127: 3840 | AM127: 2450 | AN127: 2030 | AO127: 2430 | AP127: 4550 | AQ127: 1540 | AR127: 3000 | AS127: 2360 | AT127: 2770 | AU127: 6970 | AV127: 2670 | AW127: 2300 | AX127: 3050 | AY127: 3390 | AZ127: 5950 | BA127: 4830 | BB127: 2660 | BC127: 4050 | BD127: 3430 | BE127: 3780 | BF127: 3070 | BG127: 2570 | BH127: 3190 | BI127: 5670 | BJ127: 2620 | BK127: 3690 | BL127: 2850 | BM127: 3540 | BN127: 3850 | BO127: 2440 | BP127: 2390 | BQ127: 5310 | BR127: 2010 | BS127: 4350 | BT127: 2860 | BU127: 4170 | BV127: 5580 | BW127: 3330 | BX127: 4560 | BY127: 3380 | BZ127: 4230 | CA127: 2540 | CB127: 3430 | CC127: 2220 | CD127: 2100 | CE127: 2990 | CF127: 2360 | CG127: 3310 | CH127: 6870 | CI127: 3572.02381
B128: 2013-05-04 | C128: 3570 | D128: 2880 | E128: 4750 | F128: 2280 | G128: 3870 | H128: 4020 | I128: 3570 | J128: 3570 | K128: 2560 | L128: 8050 | M128: 8050 | N128: 2560 | O128: 3870 | P128: 3945 | Q128: 1375 | R128: 2180 | S128: 2685 | T128: 3220 | U128: 8050 | V128: 6900 | W128: 3660 | X128: 4036 | Y128: 4052 | Z128: 2512 | AA128: 2423 | AB128: 2450 | AC128: 3486 | AD128: 1757 | AE128: 1801 | AF128: 3136 | AG128: 5231 | AH128: 2932 | AI128: 3680 | AJ128: 2400 | AK128: 3740 | AL128: 3680 | AM128: 2130 | AN128: 1910 | AO128: 2500 | AP128: 5880 | AQ128: 1730 | AR128: 3480 | AS128: 2200 | AT128: 3710 | AU128: 7260 | AV128: 3450 | AW128: 2570 | AX128: 2960 | AY128: 3060 | AZ128: 4770 | BA128: 3960 | BB128: 2740 | BC128: 5000 | BD128: 3410 | BE128: 3300 | BF128: 2700 | BG128: 2430 | BH128: 2650 | BI128: 4440 | BJ128: 2580 | BK128: 3060 | BL128: 2570 | BM128: 3800 | BN128: 4160 | BO128: 2560 | BP128: 2490 | BQ128: 5520 | BR128: 2230 | BS128: 3310 | BT128: 2640 | BU128: 4090 | BV128: 4900 | BW128: 2940 | BX128: 4160 | BY128: 3010 | BZ128: 3470 | CA128: 2360 | CB128: 3210 | CC128: 2090 | CD128: 2160 | CE128: 2660 | CF128: 2370 | CG128: 3150 | CH128: 5550 | CI128: 3478.702381
B129: 2013-05-05 | C129: 3570 | D129: 3240 | E129: 3945 | F129: 1980 | G129: 3570 | H129: 4020 | I129: 3570 | J129: 6400 | K129: 3290 | L129: 8770 | M129: 4870 | N129: 2445 | O129: 3360 | P129: 5060 | Q129: 1680 | R129: 1980 | S129: 2500 | T129: 4100 | U129: 6900 | V129: 5640 | W129: 3444 | X129: 3430 | Y129: 3206 | Z129: 2867 | AA129: 3795 | AB129: 2261 | AC129: 6061 | AD129: 2153 | AE129: 2162 | AF129: 3318 | AG129: 6040 | AH129: 3178 | AI129: 3200 | AJ129: 2060 | AK129: 3480 | AL129: 2830 | AM129: 2590 | AN129: 2250 | AO129: 2410 | AP129: 7530 | AQ129: 1880 | AR129: 3250 | AS129: 2240 | AT129: 4280 | AU129: 5410 | AV129: 4600 | AW129: 2190 | AX129: 3960 | AY129: 2600 | AZ129: 4680 | BA129: 3100 | BB129: 2410 | BC129: 5490 | BD129: 4500 | BE129: 2800 | BF129: 2340 | BG129: 2550 | BH129: 2540 | BI129: 3750 | BJ129: 2770 | BK129: 3020 | BL129: 2390 | BM129: 4470 | BN129: 5300 | BO129: 2700 | BP129: 2640 | BQ129: 4710 | BR129: 2850 | BS129: 3080 | BT129: 2410 | BU129: 4150 | BV129: 5020 | BW129: 2540 | BX129: 3460 | BY129: 3320 | BZ129: 3130 | CA129: 3080 | CB129: 3440 | CC129: 2160 | CD129: 2480 | CE129: 2390 | CF129: 3310 | CG129: 4370 | CH129: 4160 | CI129: 3536.607143
B130: 2013-05-06 | C130: 3080 | D130: 4260 | E130: 3645 | F130: 2030 | G130: 4340 | H130: 3870 | I130: 3080 | J130: 4340 | K130: 3570 | L130: 6900 | M130: 3870 | N130: 2230 | O130: 2750 | P130: 5640 | Q130: 1800 | R130: 2080 | S130: 2685 | T130: 3430 | U130: 6680 | V130: 4780 | W130: 4036 | X130: 6170 | Y130: 3010 | Z130: 2646 | AA130: 3720 | AB130: 2198 | AC130: 7314 | AD130: 2351 | AE130: 2315 | AF130: 3825 | AG130: 7360 | AH130: 3150 | AI130: 2860 | AJ130: 2620 | AK130: 2980 | AL130: 2520 | AM130: 3500 | AN130: 2070 | AO130: 2200 | AP130: 10200 | AQ130: 2400 | AR130: 2940 | AS130: 2730 | AT130: 3340 | AU130: 4390 | AV130: 5690 | AW130: 2400 | AX130: 5870 | AY130: 2340 | AZ130: 4140 | BA130: 2560 | BB130: 2240 | BC130: 5650 | BD130: 4200 | BE130: 2520 | BF130: 2290 | BG130: 3030 | BH130: 2590 | BI130: 3180 | BJ130: 2490 | BK130: 3820 | BL130: 2270 | BM130: 5760 | BN130: 5710 | BO130: 2900 | BP130: 2680 | BQ130: 5420 | BR130: 2880 | BS130: 2850 | BT130: 2290 | BU130: 7370 | BV130: 4810 | BW130: 2390 | BX130: 3010 | BY130: 2990 | BZ130: 2910 | CA130: 2710 | CB130: 2630 | CC130: 2110 | CD130: 2860 | CE130: 2090 | CF130: 4250 | CG130: 4670 | CH130: 3390 | CI130: 3617.440476
B131: 2013-05-07 | C131: 2750 | D131: 4870 | E131: 3290 | F131: 1980 | G131: 4180 | H131: 4180 | I131: 2750 | J131: 3430 | K131: 2880 | L131: 4870 | M131: 3870 | N131: 2080 | O131: 3290 | P131: 4340 | Q131: 1520 | R131: 2750 | S131: 3150 | T131: 3870 | U131: 6250 | V131: 4690 | W131: 4908 | X131: 7475 | Y131: 4005 | Z131: 2357 | AA131: 3780 | AB131: 2162 | AC131: 7015 | AD131: 3010 | AE131: 2655 | AF131: 4600 | AG131: 7521 | AH131: 3332 | AI131: 2830 | AJ131: 5410 | AK131: 2710 | AL131: 2300 | AM131: 2980 | AN131: 2030 | AO131: 2030 | AP131: 8110 | AQ131: 3070 | AR131: 2620 | AS131: 4030 | AT131: 2690 | AU131: 4740 | AV131: 5310 | AW131: 2510 | AX131: 7070 | AY131: 2180 | AZ131: 4260 | BA131: 2320 | BB131: 2250 | BC131: 4610 | BD131: 3210 | BE131: 2390 | BF131: 2740 | BG131: 3100 | BH131: 2360 | BI131: 2860 | BJ131: 2230 | BK131: 5050 | BL131: 2200 | BM131: 6270 | BN131: 4080 | BO131: 3290 | BP131: 2620 | BQ131: 5180 | BR131: 3650 | BS131: 2810 | BT131: 2200 | BU131: 6520 | BV131: 4530 | BW131: 3050 | BX131: 2600 | BY131: 2650 | BZ131: 2560 | CA131: 2210 | CB131: 2390 | CC131: 1940 | CD131: 2830 | CE131: 2180 | CF131: 4140 | CG131: 6070 | CH131: 3080 | CI131: 3605.47619
B132: 2013-05-08 | C132: 2560 | D132: 5060 | E132: 3645 | F132: 1760 | G132: 3010 | H132: 4020 | I132: 2560 | J132: 3010 | K132: 2750 | L132: 4020 | M132: 3870 | N132: 2390 | O132: 3430 | P132: 3945 | Q132: 1410 | R132: 3010 | S132: 2815 | T132: 4020 | U132: 6040 | V132: 5740 | W132: 4276 | X132: 5060 | Y132: 6000 | Z132: 2250 | AA132: 3388 | AB132: 2603 | AC132: 5600 | AD132: 4908 | AE132: 3178 | AF132: 5880 | AG132: 7245 | AH132: 4116 | AI132: 3360 | AJ132: 3800 | AK132: 2620 | AL132: 2200 | AM132: 2650 | AN132: 2100 | AO132: 2020 | AP132: 6550 | AQ132: 3700 | AR132: 2550 | AS132: 6270 | AT132: 2540 | AU132: 6430 | AV132: 5710 | AW132: 2420 | AX132: 6750 | AY132: 2210 | AZ132: 5810 | BA132: 2420 | BB132: 2370 | BC132: 3730 | BD132: 3020 | BE132: 2360 | BF132: 3130 | BG132: 2820 | BH132: 2640 | BI132: 2680 | BJ132: 2180 | BK132: 5100 | BL132: 2350 | BM132: 5640 | BN132: 3250 | BO132: 4290 | BP132: 2320 | BQ132: 5430 | BR132: 3960 | BS132: 2940 | BT132: 2170 | BU132: 5430 | BV132: 3900 | BW132: 2800 | BX132: 2500 | BY132: 2880 | BZ132: 2270 | CA132: 1930 | CB132: 2840 | CC132: 1720 | CD132: 3280 | CE132: 3420 | CF132: 3750 | CG132: 4580 | CH132: 2870 | CI132: 3597.964286
B133: 2013-05-09 | C133: 2390 | D133: 4690 | E133: 3720 | F133: 1640 | G133: 2335 | H133: 4690 | I133: 2390 | J133: 2500 | K133: 3010 | L133: 4020 | M133: 3720 | N133: 2750 | O133: 3570 | P133: 4100 | Q133: 1270 | R133: 3080 | S133: 2685 | T133: 4020 | U133: 5640 | V133: 5250 | W133: 4324 | X133: 3960 | Y133: 7602 | Z133: 2280 | AA133: 3234 | AB133: 2540 | AC133: 4672 | AD133: 6355 | AE133: 2880 | AF133: 6460 | AG133: 6570 | AH133: 4260 | AI133: 4450 | AJ133: 2900 | AK133: 2880 | AL133: 2630 | AM133: 2340 | AN133: 2630 | AO133: 2100 | AP133: 6810 | AQ133: 4410 | AR133: 2840 | AS133: 7730 | AT133: 3720 | AU133: 5690 | AV133: 5910 | AW133: 2910 | AX133: 5520 | AY133: 3220 | AZ133: 6630 | BA133: 2510 | BB133: 2720 | BC133: 3280 | BD133: 2710 | BE133: 2400 | BF133: 2720 | BG133: 2430 | BH133: 2910 | BI133: 2480 | BJ133: 2140 | BK133: 4860 | BL133: 2950 | BM133: 5120 | BN133: 2890 | BO133: 3450 | BP133: 2010 | BQ133: 4940 | BR133: 3630 | BS133: 3250 | BT133: 1990 | BU133: 5550 | BV133: 3240 | BW133: 2480 | BX133: 2870 | BY133: 2880 | BZ133: 2140 | CA133: 1810 | CB133: 2610 | CC133: 1740 | CD133: 2430 | CE133: 4060 | CF133: 3120 | CG133: 3690 | CH133: 2750 | CI133: 3579.607143
B134: 2013-05-10 | C134: 2500 | D134: 4690 | E134: 3570 | F134: 1600 | G134: 2180 | H134: 6250 | I134: 2500 | J134: 2180 | K134: 2880 | L134: 4690 | M134: 4510 | N134: 2500 | O134: 3570 | P134: 5060 | Q134: 1210 | R134: 2945 | S134: 3290 | T134: 3080 | U134: 5270 | V134: 6040 | W134: 3615 | X134: 3645 | Y134: 8338 | Z134: 2524 | AA134: 4546 | AB134: 3615 | AC134: 3690 | AD134: 5700 | AE134: 2880 | AF134: 7245 | AG134: 5117 | AH134: 3960 | AI134: 4740 | AJ134: 3560 | AK134: 3850 | AL134: 3000 | AM134: 2140 | AN134: 4630 | AO134: 2610 | AP134: 5430 | AQ134: 3340 | AR134: 3490 | AS134: 8090 | AT134: 2850 | AU134: 5150 | AV134: 4540 | AW134: 2750 | AX134: 4920 | AY134: 5790 | AZ134: 7070 | BA134: 2840 | BB134: 3030 | BC134: 2930 | BD134: 2530 | BE134: 2450 | BF134: 2560 | BG134: 2140 | BH134: 2820 | BI134: 2570 | BJ134: 2410 | BK134: 4200 | BL134: 3240 | BM134: 4250 | BN134: 2890 | BO134: 2760 | BP134: 2620 | BQ134: 5280 | BR134: 3120 | BS134: 4070 | BT134: 1840 | BU134: 6310 | BV134: 2720 | BW134: 2190 | BX134: 3690 | BY134: 2700 | BZ134: 2040 | CA134: 1800 | CB134: 2350 | CC134: 2870 | CD134: 2160 | CE134: 3320 | CF134: 2960 | CG134: 3650 | CH134: 2690 | CI134: =AVERAGE(C134:CH134) -> 3635
B135: 2013-05-11 | C135: 2750 | D135: 5250 | E135: 4260 | F135: 1760 | G135: 2620 | H135: 6040 | I135: 2750 | J135: 2230 | K135: 2500 | L135: 6040 | M135: 4340 | N135: 4690 | O135: 3870 | P135: 4260 | Q135: 1410 | R135: 2500 | S135: 2945 | T135: 2445 | U135: 6040 | V135: 5540 | W135: 2880 | X135: 3164 | Y135: 9023 | Z135: 3765 | AA135: 10060 | AB135: 4946 | AC135: 3024 | AD135: 5780 | AE135: 8530 | AF135: 5880 | AG135: 4889 | AH135: 3900 | AI135: 3740 | AJ135: 4700 | AK135: 3730 | AL135: 2680 | AM135: 2050 | AN135: 4130 | AO135: 3110 | AP135: 3990 | AQ135: 2840 | AR135: 4260 | AS135: 7060 | AT135: 2350 | AU135: 6110 | AV135: 4270 | AW135: 2420 | AX135: 4580 | AY135: 9180 | AZ135: 5670 | BA135: 3220 | BB135: 3620 | BC135: 2750 | BD135: 2560 | BE135: 2430 | BF135: 2760 | BG135: 1940 | BH135: 3040 | BI135: 2720 | BJ135: 2290 | BK135: 3350 | BL135: 4610 | BM135: 3470 | BN135: 2870 | BO135: 2450 | BP135: 2500 | BQ135: 6760 | BR135: 3040 | BS135: 3930 | BT135: 1770 | BU135: 6960 | BV135: 2590 | BW135: 2080 | BX135: 3450 | BY135: 2660 | BZ135: 2070 | CA135: 2010 | CB135: 2230 | CC135: 2710 | CD135: 2340 | CE135: 3020 | CF135: 3780 | CG135: 5080 | CH135: 2540 | CI135: 3839.892857
B136: 2013-05-12 | C136: 3570 | D136: 5020 | E136: 5840 | F136: 1890 | G136: 3720 | H136: 5060 | I136: 3570 | J136: 2280 | K136: 2130 | L136: 6040 | M136: 3870 | N136: 6250 | O136: 4260 | P136: 3570 | Q136: 2750 | R136: 2130 | S136: 2880 | T136: 2180 | U136: 6250 | V136: 5940 | W136: 2880 | X136: 3150 | Y136: 10006 | Z136: 6680 | AA136: 6768 | AB136: 4582 | AC136: 2945 | AD136: 5440 | AE136: 9296 | AF136: 4374 | AG136: 4425 | AH136: 3164 | AI136: 3260 | AJ136: 5700 | AK136: 3070 | AL136: 2450 | AM136: 2030 | AN136: 4010 | AO136: 3890 | AP136: 3710 | AQ136: 2660 | AR136: 4230 | AS136: 6630 | AT136: 2110 | AU136: 8830 | AV136: 4950 | AW136: 2290 | AX136: 4530 | AY136: 6610 | AZ136: 4260 | BA136: 2520 | BB136: 3590 | BC136: 2870 | BD136: 3030 | BE136: 2290 | BF136: 3180 | BG136: 1980 | BH136: 5790 | BI136: 2320 | BJ136: 3190 | BK136: 6700 | BL136: 6660 | BM136: 2760 | BN136: 2840 | BO136: 2700 | BP136: 2050 | BQ136: 7690 | BR136: 3230 | BS136: 3610 | BT136: 2090 | BU136: 8280 | BV136: 2530 | BW136: 2260 | BX136: 3270 | BY136: 3490 | BZ136: 2510 | CA136: 2400 | CB136: 2150 | CC136: 2300 | CD136: 2430 | CE136: 3000 | CF136: 3550 | CG136: 6470 | CH136: 2660 | CI136: 4006.190476
B137: 2013-05-13 | C137: 3500 | D137: 4180 | E137: 6680 | F137: 2390 | G137: 4510 | H137: 5250 | I137: 3500 | J137: 2130 | K137: 2180 | L137: 6900 | M137: 4690 | N137: 5250 | O137: 4870 | P137: 3010 | Q137: 2180 | R137: 1890 | S137: 2685 | T137: 2685 | U137: 5640 | V137: 5440 | W137: 2512 | X137: 3990 | Y137: 10114 | Z137: 7889 | AA137: 4340 | AB137: 7751 | AC137: 3458 | AD137: 3915 | AE137: 8530 | AF137: 3542 | AG137: 4244 | AH137: 2520 | AI137: 4340 | AJ137: 5680 | AK137: 2920 | AL137: 2430 | AM137: 1920 | AN137: 4400 | AO137: 3950 | AP137: 3440 | AQ137: 2390 | AR137: 3150 | AS137: 6520 | AT137: 1970 | AU137: 8390 | AV137: 7230 | AW137: 2960 | AX137: 3860 | AY137: 5570 | AZ137: 4710 | BA137: 2250 | BB137: 3570 | BC137: 3060 | BD137: 2690 | BE137: 2210 | BF137: 2970 | BG137: 2130 | BH137: 4840 | BI137: 2170 | BJ137: 9350 | BK137: 4340 | BL137: 8800 | BM137: 2430 | BN137: 3040 | BO137: 2850 | BP137: 1780 | BQ137: 7450 | BR137: 2670 | BS137: 2940 | BT137: 4640 | BU137: 8990 | BV137: 2830 | BW137: 2520 | BX137: 2880 | BY137: 4310 | BZ137: 4070 | CA137: 2330 | CB137: 2150 | CC137: 2000 | CD137: 2140 | CE137: 3110 | CF137: 3020 | CG137: 4800 | CH137: 2850 | CI137: 4075.892857
B138: 2013-05-14 | C138: 3570 | D138: 4870 | E138: 6250 | F138: 2880 | G138: 4510 | H138: 4690 | I138: 3570 | J138: 2280 | K138: 2185 | L138: 8530 | M138: 6460 | N138: 4180 | O138: 6040 | P138: 2750 | Q138: 1890 | R138: 1845 | S138: 2620 | T138: 2685 | U138: 5440 | V138: 4340 | W138: 2200 | X138: 4116 | Y138: 9348 | Z138: 7130 | AA138: 3416 | AB138: 6482 | AC138: 4068 | AD138: 3645 | AE138: 4510 | AF138: 3262 | AG138: 3930 | AH138: 2324 | AI138: 6550 | AJ138: 5110 | AK138: 3160 | AL138: 2360 | AM138: 1890 | AN138: 3470 | AO138: 3550 | AP138: 2950 | AQ138: 2280 | AR138: 2760 | AS138: 6110 | AT138: 1820 | AU138: 6110 | AV138: 8730 | AW138: 4940 | AX138: 3510 | AY138: 6810 | AZ138: 4530 | BA138: 2400 | BB138: 4920 | BC138: 3940 | BD138: 2450 | BE138: 2630 | BF138: 3230 | BG138: 2320 | BH138: 5450 | BI138: 2780 | BJ138: 5630 | BK138: 3770 | BL138: 6710 | BM138: 2410 | BN138: 3340 | BO138: 2790 | BP138: 1650 | BQ138: 5520 | BR138: 2120 | BS138: 2950 | BT138: 5460 | BU138: 8550 | BV138: 3040 | BW138: 2340 | BX138: 2980 | BY138: 4040 | BZ138: 4920 | CA138: 2480 | CB138: 2110 | CC138: 1990 | CD138: 2140 | CE138: 2610 | CF138: 6380 | CG138: 6990 | CH138: 3140 | CI138: 4033.761905
B139: 2013-05-15 | C139: 3645 | D139: 5640 | E139: 5640 | F139: 2560 | G139: 4340 | H139: 3720 | I139: 3645 | J139: 2335 | K139: 3570 | L139: 7590 | M139: 5440 | N139: 4100 | O139: 6680 | P139: 2685 | Q139: 1640 | R139: 1980 | S139: 2390 | T139: 4358 | U139: 5250 | V139: 3645 | W139: 2160 | X139: 3750 | Y139: 8626 | Z139: 6187 | AA139: 3010 | AB139: 4459 | AC139: 3570 | AD139: 4425 | AE139: 3870 | AF139: 3870 | AG139: 4100 | AH139: 2582 | AI139: 6710 | AJ139: 3940 | AK139: 3360 | AL139: 2220 | AM139: 2140 | AN139: 3040 | AO139: 3210 | AP139: 2800 | AQ139: 2550 | AR139: 2670 | AS139: 4910 | AT139: 2040 | AU139: 4440 | AV139: 8200 | AW139: 5640 | AX139: 3540 | AY139: 7490 | AZ139: 3910 | BA139: 2330 | BB139: 4960 | BC139: 4250 | BD139: 2350 | BE139: 3300 | BF139: 3650 | BG139: 2660 | BH139: 4600 | BI139: 2730 | BJ139: 4010 | BK139: 3890 | BL139: 4730 | BM139: 2630 | BN139: 2930 | BO139: 2470 | BP139: 1610 | BQ139: 4730 | BR139: 2000 | BS139: 3610 | BT139: 4340 | BU139: 8370 | BV139: 3200 | BW139: 2230 | BX139: 3720 | BY139: 6620 | BZ139: 4210 | CA139: 2720 | CB139: 2200 | CC139: 2490 | CD139: 3350 | CE139: 2590 | CF139: 9680 | CG139: 6330 | CH139: 3630 | CI139: 3968.952381
B140: 2013-05-16 | C140: 3500 | D140: 5440 | E140: 5640 | F140: 2945 | G140: 3290 | H140: 3430 | I140: 3500 | J140: 2180 | K140: 3290 | L140: 11730 | M140: 4510 | N140: 4100 | O140: 6250 | P140: 2685 | Q140: 2130 | R140: 2130 | S140: 2445 | T140: 5640 | U140: 5250 | V140: 4100 | W140: 2390 | X140: 4148 | Y140: 7544 | Z140: 5820 | AA140: 3556 | AB140: 4582 | AC140: 3318 | AD140: 5840 | AE140: 3500 | AF140: 5820 | AG140: 4212 | AH140: 3600 | AI140: 5050 | AJ140: 4200 | AK140: 3980 | AL140: 2180 | AM140: 2270 | AN140: 3420 | AO140: 4830 | AP140: 3450 | AQ140: 4360 | AR140: 2640 | AS140: 4480 | AT140: 3950 | AU140: 4740 | AV140: 7330 | AW140: 5080 | AX140: 3210 | AY140: 5390 | AZ140: 4410 | BA140: 2170 | BB140: 4480 | BC140: 4640 | BD140: 2060 | BE140: 2570 | BF140: 4420 | BG140: 2380 | BH140: 3840 | BI140: 3800 | BJ140: 3160 | BK140: 2890 | BL140: 5400 | BM140: 3060 | BN140: 2660 | BO140: 2570 | BP140: 1550 | BQ140: 4010 | BR140: 2010 | BS140: 3920 | BT140: 3950 | BU140: 7990 | BV140: 2690 | BW140: 2170 | BX140: 4350 | BY140: 6310 | BZ140: 3550 | CA140: 2330 | CB140: 2240 | CC140: 4050 | CD140: 6200 | CE140: 3590 | CF140: 11600 | CG140: 5070 | CH140: 4130 | CI140: 4110.654762
B141: 2013-05-17 | C141: 3290 | D141: 3945 | E141: 5060 | F141: 2412 | G141: 3500 | H141: 3795 | I141: 3290 | J141: 1980 | K141: 3150 | L141: 7130 | M141: 4100 | N141: 3720 | O141: 4870 | P141: 2620 | Q141: 5840 | R141: 2230 | S141: 2445 | T141: 3945 | U141: 5840 | V141: 5440 | W141: 2854 | X141: 4965 | Y141: 5840 | Z141: 6000 | AA141: 4798 | AB141: 6124 | AC141: 3360 | AD141: 6313 | AE141: 3290 | AF141: 8578 | AG141: 3930 | AH141: 3915 | AI141: 4200 | AJ141: 4150 | AK141: 4760 | AL141: 2370 | AM141: 2240 | AN141: 4940 | AO141: 3970 | AP141: 2720 | AQ141: 5800 | AR141: 3100 | AS141: 4240 | AT141: 5260 | AU141: 4390 | AV141: 6410 | AW141: 4700 | AX141: 2820 | AY141: 4660 | AZ141: 5010 | BA141: 2070 | BB141: 4160 | BC141: 4180 | BD141: 1800 | BE141: 2220 | BF141: 5050 | BG141: 2080 | BH141: 3210 | BI141: 5800 | BJ141: 2850 | BK141: 2440 | BL141: 5670 | BM141: 3140 | BN141: 2640 | BO141: 2950 | BP141: 1520 | BQ141: 4240 | BR141: 1940 | BS141: 3610 | BT141: 3540 | BU141: 7420 | BV141: 2490 | BW141: 2450 | BX141: 4540 | BY141: 4540 | BZ141: 3990 | CA141: 2210 | CB141: 2180 | CC141: 3080 | CD141: 7060 | CE141: 3380 | CF141: 14600 | CG141: 6020 | CH141: 4540 | CI141: 4141.892857
B142: 2013-05-18 | C142: 3430 | D142: 3870 | E142: 5060 | F142: 2180 | G142: 3430 | H142: 4510 | I142: 3430 | J142: 1760 | K142: 3500 | L142: 5440 | M142: 4510 | N142: 3080 | O142: 4020 | P142: 2685 | Q142: 4875 | R142: 2280 | S142: 2500 | T142: 3150 | U142: 5440 | V142: 6040 | W142: 2401 | X142: 4672 | Y142: 4780 | Z142: 5183 | AA142: 4116 | AB142: 6334 | AC142: 3500 | AD142: 7475 | AE142: 4340 | AF142: 11104 | AG142: 5640 | AH142: 4180 | AI142: 4500 | AJ142: 4160 | AK142: 5210 | AL142: 2400 | AM142: 2890 | AN142: 5030 | AO142: 3020 | AP142: 2520 | AQ142: 5320 | AR142: 3910 | AS142: 4720 | AT142: 3820 | AU142: 3470 | AV142: 5530 | AW142: 4610 | AX142: 2750 | AY142: 5370 | AZ142: 3640 | BA142: 2190 | BB142: 3570 | BC142: 4080 | BD142: 2010 | BE142: 2160 | BF142: 4410 | BG142: 2530 | BH142: 2840 | BI142: 6470 | BJ142: 3300 | BK142: 2290 | BL142: 4420 | BM142: 3620 | BN142: 2870 | BO142: 3320 | BP142: 1600 | BQ142: 4950 | BR142: 1740 | BS142: 3150 | BT142: 3970 | BU142: 5940 | BV142: 4320 | BW142: 5320 | BX142: 3520 | BY142: 3440 | BZ142: 4500 | CA142: 1970 | CB142: 2230 | CC142: 2710 | CD142: 7100 | CE142: 3020 | CF142: 14500 | CG142: 7480 | CH142: 5570 | CI142: 4153.511905
B143: 2013-05-19 | C143: 3360 | D143: 4690 | E143: 6250 | F143: 2230 | G143: 2500 | H143: 4690 | I143: 3360 | J143: 1680 | K143: 3010 | L143: 8050 | M143: 4260 | N143: 2750 | O143: 3080 | P143: 2880 | Q143: 3870 | R143: 2500 | S143: 2815 | T143: 3080 | U143: 4690 | V143: 5940 | W143: 3900 | X143: 4052 | Y143: 4984 | Z143: 4212 | AA143: 3178 | AB143: 6040 | AC143: 6614 | AD143: 7590 | AE143: 7590 | AF143: 11933 | AG143: 5580 | AH143: 4965 | AI143: 3680 | AJ143: 3790 | AK143: 5890 | AL143: 2300 | AM143: 3780 | AN143: 5870 | AO143: 2710 | AP143: 2670 | AQ143: 5090 | AR143: 4800 | AS143: 5130 | AT143: 3340 | AU143: 4350 | AV143: 4390 | AW143: 3770 | AX143: 2730 | AY143: 5190 | AZ143: 3220 | BA143: 2080 | BB143: 3640 | BC143: 3750 | BD143: 2250 | BE143: 3000 | BF143: 3600 | BG143: 2680 | BH143: 3850 | BI143: 5850 | BJ143: 4510 | BK143: 2040 | BL143: 4430 | BM143: 3090 | BN143: 2690 | BO143: 3110 | BP143: 1600 | BQ143: 5280 | BR143: 1980 | BS143: 2600 | BT143: 4810 | BU143: 5220 | BV143: 3350 | BW143: 5670 | BX143: 5220 | BY143: 3010 | BZ143: 4250 | CA143: 1790 | CB143: 2650 | CC143: 3080 | CD143: 6300 | CE143: 2970 | CF143: 11600 | CG143: 8140 | CH143: 5670 | CI143: 4223.607143
B144: 2013-05-20 | C144: 3290 | D144: 5640 | E144: 7130 | F144: 4260 | G144: 2080 | H144: 5250 | I144: 3290 | J144: 2080 | K144: 3290 | L144: 6460 | M144: 3500 | N144: 3500 | O144: 2500 | P144: 2620 | Q144: 3720 | R144: 3430 | S144: 3430 | T144: 2620 | U144: 4100 | V144: 6250 | W144: 3840 | X144: 4511 | Y144: 4340 | Z144: 3825 | AA144: 2997 | AB144: 7577 | AC144: 5193 | AD144: 5680 | AE144: 7590 | AF144: 11048 | AG144: 4260 | AH144: 4260 | AI144: 3120 | AJ144: 8450 | AK144: 6390 | AL144: 2040 | AM144: 4060 | AN144: 7180 | AO144: 3540 | AP144: 3310 | AQ144: 6280 | AR144: 7230 | AS144: 4600 | AT144: 3010 | AU144: 4950 | AV144: 5010 | AW144: 3360 | AX144: 2860 | AY144: 3990 | AZ144: 2800 | BA144: 2000 | BB144: 4200 | BC144: 3610 | BD144: 2330 | BE144: 3090 | BF144: 3520 | BG144: 2690 | BH144: 6330 | BI144: 4760 | BJ144: 5810 | BK144: 1790 | BL144: 4040 | BM144: 2620 | BN144: 2970 | BO144: 3050 | BP144: 1520 | BQ144: 5640 | BR144: 2910 | BS144: 2590 | BT144: 4110 | BU144: 4940 | BV144: 3090 | BW144: 4440 | BX144: 5320 | BY144: 2720 | BZ144: 5460 | CA144: 1750 | CB144: 2550 | CC144: 3010 | CD144: 5520 | CE144: 2990 | CF144: 12100 | CG144: 6480 | CH144: 5680 | CI144: 4302.035714
B145: 2013-05-21 | C145: 3570 | D145: 6460 | E145: 7130 | F145: 4870 | G145: 1980 | H145: 4870 | I145: 3570 | J145: 1720 | K145: 4340 | L145: 7820 | M145: 3500 | N145: 4180 | O145: 2560 | P145: 2560 | Q145: 3570 | R145: 4690 | S145: 3360 | T145: 2685 | U145: 3720 | V145: 5640 | W145: 3570 | X145: 6603 | Y145: 3945 | Z145: 3990 | AA145: 3248 | AB145: 9195 | AC145: 4068 | AD145: 4654 | AE145: 5640 | AF145: 7636 | AG145: 3915 | AH145: 4476 | AI145: 2830 | AJ145: 6390 | AK145: 5590 | AL145: 1950 | AM145: 4280 | AN145: 8770 | AO145: 3390 | AP145: 4410 | AQ145: 7650 | AR145: 5070 | AS145: 5150 | AT145: 2640 | AU145: 3990 | AV145: 8250 | AW145: 2490 | AX145: 2760 | AY145: 3510 | AZ145: 2740 | BA145: 2780 | BB145: 4510 | BC145: 4180 | BD145: 2540 | BE145: 3030 | BF145: 4330 | BG145: 3510 | BH145: 4270 | BI145: 4230 | BJ145: 4340 | BK145: 1660 | BL145: 3970 | BM145: 2320 | BN145: 3450 | BO145: 3130 | BP145: 1300 | BQ145: 5280 | BR145: 2540 | BS145: 2810 | BT145: 3470 | BU145: 3960 | BV145: 3310 | BW145: 3780 | BX145: 5740 | BY145: 2640 | BZ145: 5390 | CA145: 2210 | CB145: 2490 | CC145: 3380 | CD145: 4440 | CE145: 3330 | CF145: 10900 | CG145: 4720 | CH145: 4030 | CI145: 4209.107143
B146: 2013-05-22 | C146: 3430 | D146: 6040 | E146: 7590 | F146: 5440 | G146: 1890 | H146: 4870 | I146: 3430 | J146: 1560 | K146: 4870 | L146: 8770 | M146: 4690 | N146: 4690 | O146: 2880 | P146: 3010 | Q146: 3080 | R146: 6250 | S146: 6460 | T146: 2750 | U146: 3570 | V146: 5940 | W146: 3402 | X146: 7024 | Y146: 4020 | Z146: 5269 | AA146: 4116 | AB146: 5880 | AC146: 3735 | AD146: 3945 | AE146: 4357 | AF146: 7337 | AG146: 4084 | AH146: 5193 | AI146: 2890 | AJ146: 4690 | AK146: 4420 | AL146: 2060 | AM146: 4090 | AN146: 6670 | AO146: 3190 | AP146: 4490 | AQ146: 6950 | AR146: 3870 | AS146: 6280 | AT146: 3130 | AU146: 4060 | AV146: 10800 | AW146: 2220 | AX146: 3010 | AY146: 3660 | AZ146: 3070 | BA146: 2750 | BB146: 3560 | BC146: 4580 | BD146: 2690 | BE146: 2820 | BF146: 5440 | BG146: 3340 | BH146: 3540 | BI146: 5180 | BJ146: 3830 | BK146: 1640 | BL146: 4950 | BM146: 2160 | BN146: 3530 | BO146: 3290 | BP146: 1180 | BQ146: 6260 | BR146: 2190 | BS146: 2830 | BT146: 4150 | BU146: 3540 | BV146: 3040 | BW146: 3760 | BX146: 6950 | BY146: 3520 | BZ146: 5800 | CA146: 2540 | CB146: 3120 | CC146: 3170 | CD146: 4510 | CE146: 3010 | CF146: 7920 | CG146: 4420 | CH146: 3310 | CI146: 4257.642857
B147: 2013-05-23 | C147: 3870 | D147: 4690 | E147: 7590 | F147: 4020 | G147: 1890 | H147: 5250 | I147: 3870 | J147: 1720 | K147: 3720 | L147: 6900 | M147: 3870 | N147: 5060 | O147: 2750 | P147: 3290 | Q147: 2620 | R147: 4690 | S147: 9020 | T147: 4870 | U147: 3795 | V147: 4870 | W147: 3276 | X147: 5580 | Y147: 4212 | Z147: 4672 | AA147: 5402 | AB147: 5022 | AC147: 3010 | AD147: 4148 | AE147: 3870 | AF147: 8410 | AG147: 3570 | AH147: 5212 | AI147: 3850 | AJ147: 3800 | AK147: 5430 | AL147: 2540 | AM147: 3200 | AN147: 4910 | AO147: 3110 | AP147: 3410 | AQ147: 5660 | AR147: 3990 | AS147: 7020 | AT147: 3460 | AU147: 4820 | AV147: 8200 | AW147: 2220 | AX147: 3740 | AY147: 5070 | AZ147: 3130 | BA147: 2780 | BB147: 2930 | BC147: 5290 | BD147: 2190 | BE147: 2610 | BF147: 4130 | BG147: 3660 | BH147: 5470 | BI147: 6270 | BJ147: 3300 | BK147: 1650 | BL147: 4460 | BM147: 2340 | BN147: 3440 | BO147: 2900 | BP147: 1130 | BQ147: 4410 | BR147: 2160 | BS147: 2900 | BT147: 5820 | BU147: 3630 | BV147: 2730 | BW147: 5070 | BX147: 4800 | BY147: 5230 | BZ147: 5090 | CA147: 3050 | CB147: 3380 | CC147: 2900 | CD147: 4510 | CE147: 2670 | CF147: 5680 | CG147: 5120 | CH147: 3780 | CI147: 4164.035714
B148: 2013-05-24 | C148: 4340 | D148: 4690 | E148: 8050 | F148: 3720 | G148: 2280 | H148: 4510 | I148: 4340 | J148: 1890 | K148: 3010 | L148: 6040 | M148: 3945 | N148: 5060 | O148: 2685 | P148: 3010 | Q148: 2500 | R148: 3870 | S148: 7360 | T148: 9530 | U148: 4510 | V148: 5540 | W148: 3615 | X148: 6145 | Y148: 4340 | Z148: 4100 | AA148: 5117 | AB148: 4036 | AC148: 3192 | AD148: 4908 | AE148: 3304 | AF148: 7245 | AG148: 3164 | AH148: 4546 | AI148: 4680 | AJ148: 3340 | AK148: 4440 | AL148: 3190 | AM148: 2740 | AN148: 4390 | AO148: 2830 | AP148: 3060 | AQ148: 4180 | AR148: 3660 | AS148: 7470 | AT148: 3600 | AU148: 5670 | AV148: 5330 | AW148: 3850 | AX148: 4460 | AY148: 5130 | AZ148: 2850 | BA148: 3250 | BB148: 2370 | BC148: 4520 | BD148: 1820 | BE148: 2840 | BF148: 4210 | BG148: 3760 | BH148: 4440 | BI148: 6310 | BJ148: 2910 | BK148: 1680 | BL148: 3420 | BM148: 2690 | BN148: 3030 | BO148: 2880 | BP148: 1280 | BQ148: 3670 | BR148: 2350 | BS148: 2910 | BT148: 4390 | BU148: 3590 | BV148: 2720 | BW148: 8430 | BX148: 3860 | BY148: 5300 | BZ148: 4490 | CA148: 4640 | CB148: 2690 | CC148: 2410 | CD148: 4090 | CE148: 2580 | CF148: 5250 | CG148: 5450 | CH148: 3240 | CI148: 4082.52381
B149: 2013-05-25 | C149: 7035 | D149: 5440 | E149: 6653 | F149: 3360 | G149: 2750 | H149: 3570 | I149: 7035 | J149: 1800 | K149: 2815 | L149: 6680 | M149: 5250 | N149: 5060 | O149: 3290 | P149: 2445 | Q149: 2230 | R149: 5440 | S149: 7130 | T149: 5640 | U149: 4260 | V149: 5940 | W149: 3990 | X149: 9944 | Y149: 4374 | Z149: 4459 | AA149: 5174 | AB149: 4870 | AC149: 3024 | AD149: 4600 | AE149: 3556 | AF149: 5780 | AG149: 3360 | AH149: 5250 | AI149: 4240 | AJ149: 3180 | AK149: 3970 | AL149: 3140 | AM149: 2370 | AN149: 3880 | AO149: 2640 | AP149: 4060 | AQ149: 3390 | AR149: 3630 | AS149: 5810 | AT149: 4430 | AU149: 6130 | AV149: 4150 | AW149: 3560 | AX149: 7440 | AY149: 3990 | AZ149: 3420 | BA149: 2750 | BB149: 2140 | BC149: 4310 | BD149: 1940 | BE149: 4450 | BF149: 6130 | BG149: 3820 | BH149: 3570 | BI149: 6510 | BJ149: 3840 | BK149: 1740 | BL149: 3160 | BM149: 3030 | BN149: 2830 | BO149: 3520 | BP149: 1520 | BQ149: 3690 | BR149: 2550 | BS149: 2900 | BT149: 3990 | BU149: 3590 | BV149: 4730 | BW149: 9260 | BX149: 3330 | BY149: 4510 | BZ149: 4610 | CA149: 4770 | CB149: 2410 | CC149: 2110 | CD149: 3950 | CE149: 2870 | CF149: 7300 | CG149: 5250 | CH149: 2830 | CI149: 4232.666667
B150: 2013-05-26 | C150: 8920 | D150: 4940 | E150: 4870 | F150: 2750 | G150: 2560 | H150: 3010 | I150: 8920 | J150: 1760 | K150: 3080 | L150: 7580 | M150: 4870 | N150: 4690 | O150: 3870 | P150: 1890 | Q150: 1890 | R150: 5060 | S150: 6040 | T150: 4340 | U150: 3945 | V150: 5740 | W150: 4036 | X150: 9975 | Y150: 4690 | Z150: 5940 | AA150: 3630 | AB150: 4408 | AC150: 2844 | AD150: 4780 | AE150: 3990 | AF150: 6355 | AG150: 3458 | AH150: 5269 | AI150: 4000 | AJ150: 3300 | AK150: 5330 | AL150: 3240 | AM150: 2210 | AN150: 3760 | AO150: 2990 | AP150: 5560 | AQ150: 3240 | AR150: 3870 | AS150: 4780 | AT150: 5420 | AU150: 6210 | AV150: 4180 | AW150: 2670 | AX150: 9000 | AY150: 3660 | AZ150: 2880 | BA150: 2820 | BB150: 2140 | BC150: 4870 | BD150: 3340 | BE150: 3880 | BF150: 5430 | BG150: 3640 | BH150: 6650 | BI150: 5170 | BJ150: 5190 | BK150: 1750 | BL150: 3050 | BM150: 2680 | BN150: 2580 | BO150: 3030 | BP150: 1620 | BQ150: 3210 | BR150: 2340 | BS150: 3050 | BT150: 4040 | BU150: 3760 | BV150: 3730 | BW150: 5990 | BX150: 3210 | BY150: 3870 | BZ150: 5040 | CA150: 3430 | CB150: 4760 | CC150: 1950 | CD150: 3710 | CE150: 2950 | CF150: 8070 | CG150: 5130 | CH150: 2920 | CI150: 4230.952381
B151: 2013-05-27 | C151: 6040 | D151: 4180 | E151: 3795 | F151: 2560 | G151: 2390 | H151: 2750 | I151: 6040 | J151: 1890 | K151: 3360 | L151: 8050 | M151: 4690 | N151: 4510 | O151: 3570 | P151: 1640 | Q151: 1640 | R151: 4340 | S151: 5250 | T151: 4870 | U151: 4690 | V151: 5840 | W151: 4308 | X151: 11163 | Y151: 5250 | Z151: 7892 | AA151: 3220 | AB151: 4762 | AC151: 3528 | AD151: 3500 | AE151: 4340 | AF151: 5560 | AG151: 3248 | AH151: 4798 | AI151: 4000 | AJ151: 3780 | AK151: 5290 | AL151: 3420 | AM151: 1980 | AN151: 4790 | AO151: 4110 | AP151: 4840 | AQ151: 3480 | AR151: 3280 | AS151: 4580 | AT151: 3660 | AU151: 6790 | AV151: 5950 | AW151: 2160 | AX151: 6560 | AY151: 3930 | AZ151: 4320 | BA151: 2650 | BB151: 2580 | BC151: 4360 | BD151: 3350 | BE151: 2950 | BF151: 3930 | BG151: 3360 | BH151: 6550 | BI151: 4420 | BJ151: 4660 | BK151: 1690 | BL151: 3210 | BM151: 3350 | BN151: 2710 | BO151: 2610 | BP151: 1590 | BQ151: 3290 | BR151: 1860 | BS151: 3020 | BT151: 3640 | BU151: 3910 | BV151: 4320 | BW151: 5060 | BX151: 4480 | BY151: 3650 | BZ151: 5590 | CA151: 2960 | CB151: 6060 | CC151: 1910 | CD151: 4060 | CE151: 3240 | CF151: 8550 | CG151: 4650 | CH151: 3710 | CI151: 4148.97619
B152: 2013-05-28 | C152: 4870 | D152: 3290 | E152: 3220 | F152: 2750 | G152: 2180 | H152: 2945 | I152: 4870 | J152: 1800 | K152: 3430 | L152: 6680 | M152: 4510 | N152: 4020 | O152: 5395 | P152: 1560 | Q152: 1640 | R152: 3945 | S152: 3720 | T152: 6460 | U152: 5250 | V152: 6790 | W152: 3840 | X152: 13569 | Y152: 4834 | Z152: 6746 | AA152: 3318 | AB152: 5288 | AC152: 3556 | AD152: 2856 | AE152: 3705 | AF152: 4459 | AG152: 3304 | AH152: 4116 | AI152: 3580 | AJ152: 3520 | AK152: 4380 | AL152: 3820 | AM152: 2130 | AN152: 6390 | AO152: 5170 | AP152: 3510 | AQ152: 3800 | AR152: 2980 | AS152: 4310 | AT152: 2940 | AU152: 7110 | AV152: 8530 | AW152: 1900 | AX152: 5150 | AY152: 3910 | AZ152: 3990 | BA152: 2550 | BB152: 3900 | BC152: 3420 | BD152: 2980 | BE152: 2630 | BF152: 3180 | BG152: 4030 | BH152: 5170 | BI152: 3940 | BJ152: 4510 | BK152: 1650 | BL152: 4950 | BM152: 3260 | BN152: 3810 | BO152: 2400 | BP152: 1350 | BQ152: 3760 | BR152: 1530 | BS152: 3050 | BT152: 3090 | BU152: 4680 | BV152: 4190 | BW152: 5390 | BX152: 4540 | BY152: 3180 | BZ152: 8930 | CA152: 3950 | CB152: 5640 | CC152: 1850 | CD152: 4670 | CE152: 2850 | CF152: 8160 | CG152: 4840 | CH152: 5770 | CI152: 4164.714286
B153: 2013-05-29 | C153: 5840 | D153: 3720 | E153: 3220 | F153: 2750 | G153: 2280 | H153: 3870 | I153: 5840 | J153: 1800 | K153: 3795 | L153: 5440 | M153: 4020 | N153: 3360 | O153: 9790 | P153: 1640 | Q153: 1640 | R153: 3430 | S153: 3945 | T153: 4950 | U153: 6040 | V153: 6355 | W153: 2945 | X153: 11486 | Y153: 4212 | Z153: 5580 | AA153: 2997 | AB153: 5193 | AC153: 3855 | AD153: 4100 | AE153: 5060 | AF153: 5560 | AG153: 3570 | AH153: 3108 | AI153: 3140 | AJ153: 3540 | AK153: 4280 | AL153: 3370 | AM153: 2410 | AN153: 6060 | AO153: 4790 | AP153: 3280 | AQ153: 5120 | AR153: 3030 | AS153: 5860 | AT153: 2970 | AU153: 6870 | AV153: 10400 | AW153: 2040 | AX153: 4830 | AY153: 4600 | AZ153: 2950 | BA153: 2780 | BB153: 3430 | BC153: 2710 | BD153: 2520 | BE153: 2640 | BF153: 3720 | BG153: 4940 | BH153: 6270 | BI153: 3860 | BJ153: 4630 | BK153: 1680 | BL153: 4350 | BM153: 2930 | BN153: 3930 | BO153: 2580 | BP153: 1340 | BQ153: 3870 | BR153: 2380 | BS153: 3230 | BT153: 3880 | BU153: 5890 | BV153: 3460 | BW153: 4620 | BX153: 4080 | BY153: 2800 | BZ153: 10300 | CA153: 3780 | CB153: 6940 | CC153: 1800 | CD153: 5980 | CE153: 2470 | CF153: 7520 | CG153: 6170 | CH153: 7450 | CI153: 4307.869048
B154: 2013-05-30 | C154: 6680 | D154: 3360 | E154: 3080 | F154: 2750 | G154: 2815 | H154: 5060 | I154: 6680 | J154: 1760 | K154: 3430 | L154: 4340 | M154: 3360 | N154: 2815 | O154: 5840 | P154: 1845 | Q154: 1480 | R154: 3080 | S154: 3795 | T154: 6355 | U154: 6460 | V154: 4425 | W154: 2633 | X154: 8097 | Y154: 3750 | Z154: 5345 | AA154: 2596 | AB154: 3675 | AC154: 3915 | AD154: 3024 | AE154: 7682 | AF154: 8122 | AG154: 4052 | AH154: 2697 | AI154: 2920 | AJ154: 4440 | AK154: 4120 | AL154: 2710 | AM154: 2510 | AN154: 7380 | AO154: 4180 | AP154: 3390 | AQ154: 4160 | AR154: 2770 | AS154: 11600 | AT154: 4240 | AU154: 5340 | AV154: 9230 | AW154: 2710 | AX154: 4480 | AY154: 5730 | AZ154: 3000 | BA154: 2430 | BB154: 2750 | BC154: 2320 | BD154: 2320 | BE154: 2820 | BF154: 3980 | BG154: 4580 | BH154: 6770 | BI154: 6150 | BJ154: 5110 | BK154: 2500 | BL154: 3190 | BM154: 2660 | BN154: 3360 | BO154: 2880 | BP154: 1310 | BQ154: 3130 | BR154: 3630 | BS154: 3350 | BT154: 4040 | BU154: 6120 | BV154: 3290 | BW154: 4480 | BX154: 3580 | BY154: 2270 | BZ154: 8080 | CA154: 3410 | CB154: 7740 | CC154: 1690 | CD154: 4220 | CE154: 2930 | CF154: 5960 | CG154: 7360 | CH154: 5790 | CI154: 4239.380952
B155: 2013-05-31 | C155: 5250 | D155: 2620 | E155: 4100 | F155: 3086 | G155: 3010 | H155: 5060 | I155: 5250 | J155: 1845 | K155: 3150 | L155: 4340 | M155: 3645 | N155: 2390 | O155: 3945 | P155: 2620 | Q155: 2445 | R155: 3010 | S155: 5060 | T155: 3645 | U155: 5840 | V155: 4340 | W155: 2357 | X155: 7305 | Y155: 3290 | Z155: 5269 | AA155: 2291 | AB155: 3136 | AC155: 3108 | AD155: 3810 | AE155: 5640 | AF155: 9145 | AG155: 4324 | AH155: 2603 | AI155: 3490 | AJ155: 6750 | AK155: 3860 | AL155: 2430 | AM155: 2380 | AN155: 9090 | AO155: 3400 | AP155: 2760 | AQ155: 3210 | AR155: 2560 | AS155: 6120 | AT155: 3400 | AU155: 4150 | AV155: 7610 | AW155: 2710 | AX155: 4190 | AY155: 6670 | AZ155: 2530 | BA155: 2690 | BB155: 2480 | BC155: 2390 | BD155: 2260 | BE155: 2580 | BF155: 4530 | BG155: 3570 | BH155: 4540 | BI155: 4680 | BJ155: 5080 | BK155: 5000 | BL155: 2710 | BM155: 2820 | BN155: 4810 | BO155: 2540 | BP155: 1210 | BQ155: 3610 | BR155: 2460 | BS155: 3080 | BT155: 3070 | BU155: 8200 | BV155: 3260 | BW155: 4840 | BX155: 3490 | BY155: 2030 | BZ155: 6550 | CA155: 3360 | CB155: 6850 | CC155: 1680 | CD155: 3740 | CE155: 3530 | CF155: 5320 | CG155: 6590 | CH155: 5200 | CI155: 3987.964286
B156: 2013-06-01 | C156: 4180 | D156: 2390 | E156: 4486 | F156: 3720 | G156: 2750 | H156: 4690 | I156: 4180 | J156: 1640 | K156: 3080 | L156: 4180 | M156: 5250 | N156: 2500 | O156: 3080 | P156: 2130 | Q156: 2560 | R156: 3010 | S156: 5060 | T156: 4260 | U156: 4340 | V156: 4690 | W156: 2230 | X156: 7504 | Y156: 3318 | Z156: 5840 | AA156: 2260 | AB156: 2729 | AC156: 2844 | AD156: 4340 | AE156: 5060 | AF156: 7682 | AG156: 4340 | AH156: 2820 | AI156: 4620 | AJ156: 4750 | AK156: 5020 | AL156: 2310 | AM156: 2070 | AN156: 10100 | AO156: 2800 | AP156: 2430 | AQ156: 3700 | AR156: 8080 | AS156: 5120 | AT156: 4260 | AU156: 3560 | AV156: 6270 | AW156: 2120 | AX156: 4530 | AY156: 8280 | AZ156: 2380 | BA156: 4460 | BB156: 2820 | BC156: 3150 | BD156: 3100 | BE156: 2260 | BF156: 4440 | BG156: 2920 | BH156: 3390 | BI156: 4850 | BJ156: 4590 | BK156: 4020 | BL156: 3190 | BM156: 3460 | BN156: 5110 | BO156: 2630 | BP156: 1260 | BQ156: 4420 | BR156: 2240 | BS156: 2760 | BT156: 2770 | BU156: 8950 | BV156: 3600 | BW156: 6560 | BX156: 3240 | BY156: 2780 | BZ156: 5550 | CA156: 2840 | CB156: 4510 | CC156: 3600 | CD156: 4220 | CE156: 3640 | CF156: 5220 | CG156: 6040 | CH156: 5880 | CI156: 4047.77381
B157: 2013-06-02 | C157: 4260 | D157: 2860 | E157: 4690 | F157: 4690 | G157: 2335 | H157: 4340 | I157: 4260 | J157: 1375 | K157: 3570 | L157: 3870 | M157: 7360 | N157: 2750 | O157: 2880 | P157: 2030 | Q157: 1935 | R157: 2945 | S157: 3795 | T157: 4870 | U157: 3360 | V157: 5840 | W157: 2608 | X157: 7613 | Y157: 3472 | Z157: 6460 | AA157: 2467 | AB157: 2676 | AC157: 2945 | AD157: 3528 | AE157: 3795 | AF157: 5980 | AG157: 4228 | AH157: 2655 | AI157: 5500 | AJ157: 4900 | AK157: 6230 | AL157: 2940 | AM157: 2040 | AN157: 8520 | AO157: 3480 | AP157: 2370 | AQ157: 5930 | AR157: 16300 | AS157: 5800 | AT157: 5980 | AU157: 3460 | AV157: 5310 | AW157: 1780 | AX157: 6040 | AY157: 8780 | AZ157: 2180 | BA157: 3760 | BB157: 3310 | BC157: 4020 | BD157: 4030 | BE157: 2100 | BF157: 3600 | BG157: 2710 | BH157: 2930 | BI157: 4180 | BJ157: 3970 | BK157: 2810 | BL157: 3250 | BM157: 4400 | BN157: 5030 | BO157: 3080 | BP157: 1200 | BQ157: 3450 | BR157: 1950 | BS157: 2550 | BT157: 2990 | BU157: 6710 | BV157: 3570 | BW157: 4740 | BX157: 3270 | BY157: 2970 | BZ157: 5390 | CA157: 2420 | CB157: 3540 | CC157: 3030 | CD157: 5830 | CE157: 3740 | CF157: 4630 | CG157: 6390 | CH157: 6550 | CI157: 4143.833333
B158: 2013-06-03 | C158: 5840 | D158: 2750 | E158: 4020 | F158: 3870 | G158: 1800 | H158: 4340 | I158: 5840 | J158: 1270 | K158: 2880 | L158: 5840 | M158: 7590 | N158: 2685 | O158: 2945 | P158: 1980 | Q158: 1720 | R158: 2750 | S158: 3360 | T158: 3430 | U158: 3010 | V158: 5640 | W158: 2633 | X158: 8526 | Y158: 3080 | Z158: 7080 | AA158: 2724 | AB158: 3290 | AC158: 2760 | AD158: 3720 | AE158: 4600 | AF158: 6526 | AG158: 3458 | AH158: 2582 | AI158: 5530 | AJ158: 5630 | AK158: 6290 | AL158: 3720 | AM158: 2070 | AN158: 6480 | AO158: 4210 | AP158: 2270 | AQ158: 5420 | AR158: 9250 | AS158: 6230 | AT158: 6940 | AU158: 3620 | AV158: 5550 | AW158: 1570 | AX158: 6290 | AY158: 5790 | AZ158: 2030 | BA158: 3030 | BB158: 3850 | BC158: 4430 | BD158: 2940 | BE158: 2050 | BF158: 3000 | BG158: 2650 | BH158: 2790 | BI158: 3830 | BJ158: 3330 | BK158: 2340 | BL158: 4290 | BM158: 4980 | BN158: 5140 | BO158: 2820 | BP158: 1040 | BQ158: 2900 | BR158: 1820 | BS158: 2480 | BT158: 3870 | BU158: 6060 | BV158: 3820 | BW158: 3670 | BX158: 3340 | BY158: 3240 | BZ158: 5310 | CA158: 2280 | CB158: 3270 | CC158: 2780 | CD158: 5750 | CE158: 4230 | CF158: 4500 | CG158: 5980 | CH158: 9670 | CI158: 4058.440476
B159: 2013-06-04 | C159: 6460 | D159: 2390 | E159: 4180 | F159: 3080 | G159: 1800 | H159: 4340 | I159: 6460 | J159: 1210 | K159: 3010 | L159: 4690 | M159: 5640 | N159: 2945 | O159: 3010 | P159: 1890 | Q159: 1520 | R159: 2560 | S159: 3010 | T159: 2750 | U159: 3010 | V159: 4600 | W159: 2368 | X159: 6668 | Y159: 3600 | Z159: 8242 | AA159: 2893 | AB159: 4582 | AC159: 2906 | AD159: 4870 | AE159: 5940 | AF159: 6145 | AG159: 3290 | AH159: 2369 | AI159: 5290 | AJ159: 4690 | AK159: 5630 | AL159: 3200 | AM159: 1740 | AN159: 7510 | AO159: 4130 | AP159: 2340 | AQ159: 4580 | AR159: 5370 | AS159: 6720 | AT159: 6100 | AU159: 3810 | AV159: 5910 | AW159: 1510 | AX159: 8190 | AY159: 5530 | AZ159: 1910 | BA159: 4490 | BB159: 4280 | BC159: 4310 | BD159: 2470 | BE159: 3610 | BF159: 2690 | BG159: 2320 | BH159: 3000 | BI159: 5190 | BJ159: 3020 | BK159: 2430 | BL159: 3680 | BM159: 4890 | BN159: 7440 | BO159: 2310 | BP159: 944 | BQ159: 2620 | BR159: 1970 | BS159: 2390 | BT159: 3810 | BU159: 6560 | BV159: 3710 | BW159: 4110 | BX159: 3720 | BY159: 2570 | BZ159: 5410 | CA159: 2260 | CB159: 3450 | CC159: 2460 | CD159: 5090 | CE159: 4720 | CF159: 6860 | CG159: 5600 | CH159: 6160 | CI159: 4013.47619
B160: 2013-06-05 | C160: 6040 | D160: 2500 | E160: 4870 | F160: 2880 | G160: 1935 | H160: 3945 | I160: 6040 | J160: 1270 | K160: 3720 | L160: 4020 | M160: 5250 | N160: 3290 | O160: 3570 | P160: 1560 | Q160: 1410 | R160: 2815 | S160: 3500 | T160: 2815 | U160: 2880 | V160: 4180 | W160: 2270 | X160: 6103 | Y160: 5440 | Z160: 7728 | AA160: 2608 | AB160: 5980 | AC160: 2750 | AD160: 3945 | AE160: 6856 | AF160: 5402 | AG160: 3500 | AH160: 2676 | AI160: 7510 | AJ160: 4120 | AK160: 4960 | AL160: 3240 | AM160: 2690 | AN160: 9330 | AO160: 4160 | AP160: 2250 | AQ160: 5040 | AR160: 4440 | AS160: 6650 | AT160: 4750 | AU160: 3640 | AV160: 6110 | AW160: 1760 | AX160: 15000 | AY160: 6390 | AZ160: 1880 | BA160: 4390 | BB160: 4410 | BC160: 4450 | BD160: 2180 | BE160: 2850 | BF160: 2610 | BG160: 2110 | BH160: 4410 | BI160: 4610 | BJ160: 2610 | BK160: 2620 | BL160: 3220 | BM160: 4710 | BN160: 5360 | BO160: 1960 | BP160: 897 | BQ160: 2650 | BR160: 2140 | BS160: 2460 | BT160: 2970 | BU160: 5100 | BV160: 3150 | BW160: 5700 | BX160: 4540 | BY160: 2130 | BZ160: 6400 | CA160: 2590 | CB160: 3490 | CC160: 2140 | CD160: 6450 | CE160: 3830 | CF160: 5320 | CG160: 5760 | CH160: 6290 | CI160: 4097.321429
B161: 2013-06-06 | C161: 5840 | D161: 2880 | E161: 5840 | F161: 3150 | G161: 2080 | H161: 3290 | I161: 5840 | J161: 1340 | K161: 4340 | L161: 4340 | M161: 5250 | N161: 3430 | O161: 3430 | P161: 1445 | Q161: 1480 | R161: 4100 | S161: 4340 | T161: 3220 | U161: 2815 | V161: 4600 | W161: 2608 | X161: 7682 | Y161: 6526 | Z161: 5383 | AA161: 3150 | AB161: 4340 | AC161: 2893 | AD161: 5840 | AE161: 6418 | AF161: 4690 | AG161: 3528 | AH161: 2880 | AI161: 5450 | AJ161: 4200 | AK161: 4810 | AL161: 2950 | AM161: 2470 | AN161: 8220 | AO161: 4270 | AP161: 3190 | AQ161: 5460 | AR161: 4060 | AS161: 5620 | AT161: 5180 | AU161: 4090 | AV161: 6730 | AW161: 2290 | AX161: 11600 | AY161: 5790 | AZ161: 2150 | BA161: 4780 | BB161: 3980 | BC161: 3100 | BD161: 2070 | BE161: 5570 | BF161: 2790 | BG161: 1980 | BH161: 4440 | BI161: 3940 | BJ161: 2420 | BK161: 2180 | BL161: 2830 | BM161: 4640 | BN161: 4690 | BO161: 2110 | BP161: 881 | BQ161: 2600 | BR161: 2070 | BS161: 2590 | BT161: 2860 | BU161: 4460 | BV161: 3030 | BW161: 5720 | BX161: 3700 | BY161: 2090 | BZ161: 7450 | CA161: 2970 | CB161: 5090 | CC161: 2100 | CD161: 4650 | CE161: 3280 | CF161: 6220 | CG161: 5210 | CH161: 5480 | CI161: 4065.345238
B162: 2013-06-07 | C162: 5640 | D162: 2945 | E162: 6250 | F162: 3728 | G162: 2180 | H162: 3010 | I162: 5640 | J162: 1340 | K162: 4510 | L162: 6900 | M162: 5840 | N162: 3570 | O162: 3290 | P162: 2080 | Q162: 1980 | R162: 4690 | S162: 4690 | T162: 3290 | U162: 3010 | V162: 4260 | W162: 2672 | X162: 9220 | Y162: 6570 | Z162: 4459 | AA162: 4340 | AB162: 3630 | AC162: 3915 | AD162: 8218 | AE162: 8362 | AF162: 5098 | AG162: 2708 | AH162: 2592 | AI162: 4220 | AJ162: 3250 | AK162: 4580 | AL162: 2790 | AM162: 2040 | AN162: 8470 | AO162: 4010 | AP162: 4450 | AQ162: 4860 | AR162: 3330 | AS162: 4630 | AT162: 4910 | AU162: 5130 | AV162: 6930 | AW162: 3230 | AX162: 10800 | AY162: 4450 | AZ162: 2620 | BA162: 4680 | BB162: 3270 | BC162: 3130 | BD162: 2010 | BE162: 3510 | BF162: 2640 | BG162: 2220 | BH162: 4330 | BI162: 12100 | BJ162: 2160 | BK162: 2100 | BL162: 2770 | BM162: 3920 | BN162: 7230 | BO162: 2650 | BP162: 887 | BQ162: 3550 | BR162: 2770 | BS162: 2590 | BT162: 3110 | BU162: 4290 | BV162: 3150 | BW162: 4210 | BX162: 3480 | BY162: 2270 | BZ162: 5370 | CA162: 3180 | CB162: 4220 | CC162: 2010 | CD162: 3940 | CE162: 2690 | CF162: 7230 | CG162: 4160 | CH162: 6600 | CI162: 4211.357143
B163: 2013-06-08 | C163: 8235 | D163: 2280 | E163: 5790 | F163: 3080 | G163: 2180 | H163: 3150 | I163: 8235 | J163: 1305 | K163: 3945 | L163: 10330 | M163: 5840 | N163: 3290 | O163: 3645 | P163: 2080 | Q163: 1980 | R163: 3795 | S163: 4870 | T163: 2685 | U163: 2880 | V163: 3795 | W163: 3645 | X163: 9400 | Y163: 4780 | Z163: 4408 | AA163: 3675 | AB163: 3430 | AC163: 4228 | AD163: 5700 | AE163: 10880 | AF163: 5155 | AG163: 2510 | AH163: 2261 | AI163: 3610 | AJ163: 2810 | AK163: 3520 | AL163: 3480 | AM163: 1910 | AN163: 8110 | AO163: 3770 | AP163: 4340 | AQ163: 3840 | AR163: 3210 | AS163: 4590 | AT163: 3410 | AU163: 5320 | AV163: 6870 | AW163: 4130 | AX163: 7160 | AY163: 3600 | AZ163: 3150 | BA163: 4090 | BB163: 2780 | BC163: 3360 | BD163: 2250 | BE163: 3250 | BF163: 2790 | BG163: 2560 | BH163: 6750 | BI163: 11600 | BJ163: 2100 | BK163: 2170 | BL163: 2720 | BM163: 3600 | BN163: 5800 | BO163: 3150 | BP163: 864 | BQ163: 4360 | BR163: 2490 | BS163: 2080 | BT163: 2980 | BU163: 3940 | BV163: 3250 | BW163: 3710 | BX163: 3360 | BY163: 2330 | BZ163: 4180 | CA163: 3040 | CB163: 3510 | CC163: 2120 | CD163: 3370 | CE163: 2410 | CF163: 6170 | CG163: 3460 | CH163: 5630 | CI163: 4077.571429
B164: 2013-06-09 | C164: 9210 | D164: 2130 | E164: 4870 | F164: 2815 | G164: 1980 | H164: 4340 | I164: 9210 | J164: 1270 | K164: 3430 | L164: 7590 | M164: 5060 | N164: 2335 | O164: 3570 | P164: 1760 | Q164: 1890 | R164: 4340 | S164: 5250 | T164: 2620 | U164: 2815 | V164: 4100 | W164: 5960 | X164: 9020 | Y164: 4260 | Z164: 4528 | AA164: 3220 | AB164: 3500 | AC164: 3472 | AD164: 4744 | AE164: 12020 | AF164: 6482 | AG164: 2288 | AH164: 2049 | AI164: 4180 | AJ164: 2820 | AK164: 3400 | AL164: 3560 | AM164: 2450 | AN164: 7340 | AO164: 3880 | AP164: 4000 | AQ164: 3350 | AR164: 2880 | AS164: 4840 | AT164: 3210 | AU164: 4370 | AV164: 9130 | AW164: 3080 | AX164: 5880 | AY164: 3600 | AZ164: 3400 | BA164: 2930 | BB164: 3200 | BC164: 2910 | BD164: 2380 | BE164: 7850 | BF164: 3390 | BG164: 2580 | BH164: 5510 | BI164: 6050 | BJ164: 1900 | BK164: 2050 | BL164: 2600 | BM164: 3440 | BN164: 5040 | BO164: 2880 | BP164: 856 | BQ164: 3750 | BR164: 2100 | BS164: 2010 | BT164: 2530 | BU164: 3970 | BV164: 3130 | BW164: 3450 | BX164: 3510 | BY164: 2830 | BZ164: 3590 | CA164: 2680 | CB164: 3240 | CC164: 1980 | CD164: 3130 | CE164: 2200 | CF164: 5300 | CG164: 3450 | CH164: 6690 | CI164: 3959.571429
B165: 2013-06-10 | C165: 5840 | D165: 2335 | E165: 4340 | F165: 2750 | G165: 2030 | H165: 6040 | I165: 5840 | J165: 1240 | K165: 3720 | L165: 6040 | M165: 5640 | N165: 1800 | O165: 3290 | P165: 1720 | Q165: 1720 | R165: 8120 | S165: 4180 | T165: 3220 | U165: 3150 | V165: 4100 | W165: 6614 | X165: 9556 | Y165: 4546 | Z165: 5610 | AA165: 3206 | AB165: 3318 | AC165: 3542 | AD165: 4510 | AE165: 12600 | AF165: 6724 | AG165: 2065 | AH165: 2065 | AI165: 4660 | AJ165: 3130 | AK165: 3080 | AL165: 3100 | AM165: 2340 | AN165: 8180 | AO165: 3490 | AP165: 4570 | AQ165: 3240 | AR165: 2830 | AS165: 4890 | AT165: 3590 | AU165: 4330 | AV165: 7550 | AW165: 2220 | AX165: 5950 | AY165: 4480 | AZ165: 3810 | BA165: 2550 | BB165: 3200 | BC165: 2540 | BD165: 2250 | BE165: 5050 | BF165: 4350 | BG165: 2920 | BH165: 4470 | BI165: 4630 | BJ165: 1960 | BK165: 1760 | BL165: 3220 | BM165: 2850 | BN165: 5140 | BO165: 3030 | BP165: 823 | BQ165: 4750 | BR165: 1930 | BS165: 2080 | BT165: 2170 | BU165: 4380 | BV165: 3100 | BW165: 3190 | BX165: 3340 | BY165: 2860 | BZ165: 3950 | CA165: 2170 | CB165: 3230 | CC165: 1750 | CD165: 2940 | CE165: 3250 | CF165: 7180 | CG165: 3710 | CH165: 6920 | CI165: 3935.166667
B166: 2013-06-11 | C166: 4870 | D166: 3010 | E166: 4340 | F166: 2685 | G166: 2180 | H166: 6680 | I166: 4870 | J166: 1270 | K166: 3360 | L166: 5440 | M166: 4340 | N166: 1800 | O166: 3220 | P166: 1800 | Q166: 1600 | R166: 7820 | S166: 3290 | T166: 3430 | U166: 3150 | V166: 3795 | W166: 4442 | X166: 7912 | Y166: 4308 | Z166: 7199 | AA166: 3164 | AB166: 2645 | AC166: 4260 | AD166: 4260 | AE166: 11730 | AF166: 6376 | AG166: 2500 | AH166: 1900 | AI166: 4180 | AJ166: 3370 | AK166: 3060 | AL166: 2720 | AM166: 2290 | AN166: 7050 | AO166: 3770 | AP166: 5120 | AQ166: 3160 | AR166: 2820 | AS166: 4450 | AT166: 2740 | AU166: 5140 | AV166: 5510 | AW166: 1940 | AX166: 7670 | AY166: 4810 | AZ166: 3190 | BA166: 2510 | BB166: 2510 | BC166: 2080 | BD166: 2120 | BE166: 4080 | BF166: 5110 | BG166: 3120 | BH166: 3840 | BI166: 4210 | BJ166: 2050 | BK166: 1620 | BL166: 3500 | BM166: 2980 | BN166: 6530 | BO166: 3790 | BP166: 783 | BQ166: 3950 | BR166: 1960 | BS166: 2780 | BT166: 2140 | BU166: 4900 | BV166: 2950 | BW166: 3390 | BX166: 3330 | BY166: 4040 | BZ166: 4960 | CA166: 1840 | CB166: 3230 | CC166: 1750 | CD166: 2790 | CE166: 3880 | CF166: 6660 | CG166: 3820 | CH166: 7040 | CI166: 3843.797619
B167: 2013-06-12 | C167: 6250 | D167: 2685 | E167: 4340 | F167: 2560 | G167: 1720 | H167: 7360 | I167: 6250 | J167: 1270 | K167: 3010 | L167: 4870 | M167: 4340 | N167: 2180 | O167: 3500 | P167: 1720 | Q167: 1560 | R167: 5060 | S167: 2945 | T167: 2750 | U167: 2945 | V167: 3795 | W167: 3276 | X167: 6900 | Y167: 4020 | Z167: 7406 | AA167: 3052 | AB167: 2279 | AC167: 5098 | AD167: 4340 | AE167: 10303 | AF167: 4600 | AG167: 3735 | AH167: 1857 | AI167: 4940 | AJ167: 3240 | AK167: 2830 | AL167: 2810 | AM167: 2510 | AN167: 6320 | AO167: 3130 | AP167: 4430 | AQ167: 3110 | AR167: 2610 | AS167: 4080 | AT167: 2280 | AU167: 4810 | AV167: 4920 | AW167: 2110 | AX167: 8950 | AY167: 5390 | AZ167: 3520 | BA167: 2380 | BB167: 2350 | BC167: 1840 | BD167: 1970 | BE167: 3330 | BF167: 5620 | BG167: 2570 | BH167: 3570 | BI167: 4710 | BJ167: 2050 | BK167: 1640 | BL167: 3020 | BM167: 3400 | BN167: 5970 | BO167: 3460 | BP167: 931 | BQ167: 4530 | BR167: 1900 | BS167: 2270 | BT167: 2090 | BU167: 4350 | BV167: 2590 | BW167: 4280 | BX167: 9980 | BY167: 6010 | BZ167: 5980 | CA167: 1780 | CB167: 2770 | CC167: 2190 | CD167: 3590 | CE167: 2760 | CF167: 5560 | CG167: 3560 | CH167: 5630 | CI167: 3816.630952
B168: 2013-06-13 | C168: 9270 | D168: 2445 | E168: 6040 | F168: 2620 | G168: 1640 | H168: 7590 | I168: 9270 | J168: 1240 | K168: 3010 | L168: 4510 | M168: 4340 | N168: 2280 | O168: 3720 | P168: 1720 | Q168: 1445 | R168: 3870 | S168: 3010 | T168: 2180 | U168: 2815 | V168: 4260 | W168: 2854 | X168: 5880 | Y168: 3570 | Z168: 6614 | AA168: 3066 | AB168: 1967 | AC168: 8290 | AD168: 4476 | AE168: 8050 | AF168: 4228 | AG168: 4020 | AH168: 1733 | AI168: 4260 | AJ168: 3250 | AK168: 2870 | AL168: 2550 | AM168: 2380 | AN168: 6210 | AO168: 2350 | AP168: 3520 | AQ168: 3670 | AR168: 2570 | AS168: 3640 | AT168: 2450 | AU168: 5030 | AV168: 4590 | AW168: 2800 | AX168: 9940 | AY168: 5590 | AZ168: 3490 | BA168: 2370 | BB168: 2620 | BC168: 1830 | BD168: 1990 | BE168: 3570 | BF168: 4780 | BG168: 2140 | BH168: 4290 | BI168: 4540 | BJ168: 1810 | BK168: 1680 | BL168: 2870 | BM168: 3500 | BN168: 6230 | BO168: 4280 | BP168: 2150 | BQ168: 3480 | BR168: 2910 | BS168: 2080 | BT168: 2010 | BU168: 3610 | BV168: 2480 | BW168: 6150 | BX168: 8270 | BY168: 4810 | BZ168: 7270 | CA168: 1730 | CB168: 3300 | CC168: 2280 | CD168: 4290 | CE168: 2420 | CF168: 4990 | CG168: 3700 | CH168: 5340 | CI168: 3868.488095
B169: 2013-06-14 | C169: 10060 | D169: 2280 | E169: 7130 | F169: 2122 | G169: 1800 | H169: 7130 | I169: 10060 | J169: 1150 | K169: 3290 | L169: 4340 | M169: 4510 | N169: 2030 | O169: 3290 | P169: 1480 | Q169: 1305 | R169: 3795 | S169: 3010 | T169: 1935 | U169: 2815 | V169: 8530 | W169: 2815 | X169: 5060 | Y169: 3585 | Z169: 5880 | AA169: 3290 | AB169: 1795 | AC169: 5740 | AD169: 4528 | AE169: 6040 | AF169: 4528 | AG169: 4408 | AH169: 1678 | AI169: 3490 | AJ169: 3200 | AK169: 3240 | AL169: 2520 | AM169: 2170 | AN169: 6370 | AO169: 2110 | AP169: 3560 | AQ169: 4360 | AR169: 2780 | AS169: 3490 | AT169: 2710 | AU169: 6410 | AV169: 4570 | AW169: 2260 | AX169: 10700 | AY169: 5070 | AZ169: 2710 | BA169: 2320 | BB169: 2580 | BC169: 1810 | BD169: 2060 | BE169: 2950 | BF169: 4260 | BG169: 2010 | BH169: 4860 | BI169: 4810 | BJ169: 1800 | BK169: 1650 | BL169: 3160 | BM169: 3350 | BN169: 4720 | BO169: 3780 | BP169: 2880 | BQ169: 2990 | BR169: 6870 | BS169: 1980 | BT169: 1970 | BU169: 3470 | BV169: 2220 | BW169: 7150 | BX169: 6160 | BY169: 3760 | BZ169: 8020 | CA169: 1730 | CB169: 3550 | CC169: 2170 | CD169: 3550 | CE169: 2200 | CF169: 4990 | CG169: 3480 | CH169: 4760 | CI169: 3847.011905
B170: 2013-06-15 | C170: 9790 | D170: 3795 | E170: 6739 | F170: 1980 | G170: 3290 | H170: 6900 | I170: 9790 | J170: 1090 | K170: 4340 | L170: 5060 | M170: 5440 | N170: 1935 | O170: 3360 | P170: 1305 | Q170: 1180 | R170: 8655 | S170: 2880 | T170: 1760 | U170: 2390 | V170: 12310 | W170: 2489 | X170: 4374 | Y170: 3780 | Z170: 5580 | AA170: 3615 | AB170: 1725 | AC170: 4292 | AD170: 6460 | AE170: 5060 | AF170: 5193 | AG170: 3500 | AH170: 1749 | AI170: 3310 | AJ170: 4460 | AK170: 4140 | AL170: 2980 | AM170: 2170 | AN170: 6540 | AO170: 2000 | AP170: 4100 | AQ170: 4850 | AR170: 2420 | AS170: 3180 | AT170: 2960 | AU170: 5410 | AV170: 4870 | AW170: 2270 | AX170: 10100 | AY170: 5310 | AZ170: 3130 | BA170: 2160 | BB170: 2260 | BC170: 1730 | BD170: 2090 | BE170: 2640 | BF170: 4260 | BG170: 2810 | BH170: 5310 | BI170: 5510 | BJ170: 1750 | BK170: 1580 | BL170: 3620 | BM170: 3190 | BN170: 4490 | BO170: 3040 | BP170: 1650 | BQ170: 3320 | BR170: 5010 | BS170: 1940 | BT170: 1950 | BU170: 4140 | BV170: 2540 | BW170: 8440 | BX170: 7780 | BY170: 3230 | BZ170: 7020 | CA170: 1500 | CB170: 3020 | CC170: 2060 | CD170: 4320 | CE170: 2130 | CF170: 4860 | CG170: 3170 | CH170: 3970 | CI170: 3982.095238
B171: 2013-06-16 | C171: 8290 | D171: 3320 | E171: 6250 | F171: 2390 | G171: 6040 | H171: 4510 | I171: 8290 | J171: 1006 | K171: 3150 | L171: 4690 | M171: 5840 | N171: 1980 | O171: 3430 | P171: 1210 | Q171: 1084 | R171: 8050 | S171: 3080 | T171: 1845 | U171: 2230 | V171: 7130 | W171: 2560 | X171: 4654 | Y171: 3500 | Z171: 7015 | AA171: 3290 | AB171: 2378 | AC171: 3840 | AD171: 6570 | AE171: 4020 | AF171: 4780 | AG171: 2718 | AH171: 1757 | AI171: 3550 | AJ171: 8330 | AK171: 4580 | AL171: 3960 | AM171: 2290 | AN171: 9360 | AO171: 1930 | AP171: 4850 | AQ171: 5030 | AR171: 2370 | AS171: 3080 | AT171: 3040 | AU171: 4460 | AV171: 4740 | AW171: 2450 | AX171: 7950 | AY171: 4620 | AZ171: 9250 | BA171: 1950 | BB171: 2220 | BC171: 2080 | BD171: 2390 | BE171: 2730 | BF171: 4670 | BG171: 2520 | BH171: 4150 | BI171: 4170 | BJ171: 1520 | BK171: 1410 | BL171: 3720 | BM171: 2580 | BN171: 4460 | BO171: 2950 | BP171: 1330 | BQ171: 3200 | BR171: 3360 | BS171: 1810 | BT171: 1870 | BU171: 4590 | BV171: 3550 | BW171: 7550 | BX171: 4700 | BY171: 2920 | BZ171: 5950 | CA171: 1440 | CB171: 2640 | CC171: 1860 | CD171: 4080 | CE171: 2200 | CF171: 5000 | CG171: 2920 | CH171: 3820 | CI171: 3869.607143
B172: 2013-06-17 | C172: 6460 | D172: 2685 | E172: 5840 | F172: 1980 | G172: 5840 | H172: 3570 | I172: 6460 | J172: 865 | K172: 2750 | L172: 3870 | M172: 6680 | N172: 1980 | O172: 4020 | P172: 1030 | Q172: 1042 | R172: 6680 | S172: 7045 | T172: 2080 | U172: 2335 | V172: 5540 | W172: 3630 | X172: 6187 | Y172: 2906 | Z172: 9790 | AA172: 2750 | AB172: 3556 | AC172: 4052 | AD172: 5440 | AE172: 3870 | AF172: 4276 | AG172: 2530 | AH172: 1874 | AI172: 4030 | AJ172: 5050 | AK172: 4840 | AL172: 3500 | AM172: 2110 | AN172: 8260 | AO172: 2520 | AP172: 4620 | AQ172: 5330 | AR172: 2400 | AS172: 3070 | AT172: 2510 | AU172: 3940 | AV172: 3970 | AW172: 3740 | AX172: 8630 | AY172: 4170 | AZ172: 6130 | BA172: 1930 | BB172: 2030 | BC172: 2090 | BD172: 3220 | BE172: 3040 | BF172: 5320 | BG172: 2360 | BH172: 3220 | BI172: 3720 | BJ172: 1380 | BK172: 1240 | BL172: 3440 | BM172: 2220 | BN172: 3730 | BO172: 3570 | BP172: 1230 | BQ172: 2690 | BR172: 2670 | BS172: 1750 | BT172: 1730 | BU172: 5320 | BV172: 2610 | BW172: 5620 | BX172: 4050 | BY172: 2600 | BZ172: 4710 | CA172: 1480 | CB172: 2560 | CC172: 1960 | CD172: 4010 | CE172: 3630 | CF172: 5110 | CG172: 2710 | CH172: 3330 | CI172: 3698.964286
B173: 2013-06-18 | C173: 5060 | D173: 2280 | E173: 5840 | F173: 1680 | G173: 4020 | H173: 3570 | I173: 5060 | J173: 932 | K173: 2750 | L173: 4180 | M173: 7820 | N173: 1760 | O173: 4100 | P173: 1150 | Q173: 1270 | R173: 5250 | S173: 5250 | T173: 2080 | U173: 2620 | V173: 4780 | W173: 2867 | X173: 4493 | Y173: 2572 | Z173: 7590 | AA173: 2500 | AB173: 3150 | AC173: 3585 | AD173: 4425 | AE173: 4020 | AF173: 4708 | AG173: 2387 | AH173: 1950 | AI173: 3780 | AJ173: 3540 | AK173: 4420 | AL173: 3020 | AM173: 1870 | AN173: 8870 | AO173: 2670 | AP173: 3450 | AQ173: 5330 | AR173: 2450 | AS173: 3010 | AT173: 3040 | AU173: 4190 | AV173: 3690 | AW173: 4480 | AX173: 9300 | AY173: 3510 | AZ173: 5710 | BA173: 2050 | BB173: 2260 | BC173: 1890 | BD173: 2540 | BE173: 3360 | BF173: 6120 | BG173: 3640 | BH173: 3010 | BI173: 4260 | BJ173: 1530 | BK173: 1150 | BL173: 2840 | BM173: 2110 | BN173: 3360 | BO173: 3070 | BP173: 1130 | BQ173: 2480 | BR173: 4390 | BS173: 2190 | BT173: 1660 | BU173: 7180 | BV173: 2310 | BW173: 5570 | BX173: 4010 | BY173: 2350 | BZ173: 6170 | CA173: 1660 | CB173: 2590 | CC173: 1870 | CD173: 3230 | CE173: 3720 | CF173: 4130 | CG173: 2500 | CH173: 3120 | CI173: 3541.416667
B174: 2013-06-19 | C174: 4690 | D174: 2390 | E174: 6040 | F174: 1680 | G174: 3150 | H174: 3570 | I174: 4690 | J174: 915 | K174: 2880 | L174: 3570 | M174: 9270 | N174: 1680 | O174: 6680 | P174: 1150 | Q174: 2080 | R174: 6680 | S174: 4020 | T174: 2280 | U174: 3010 | V174: 5345 | W174: 2512 | X174: 4493 | Y174: 2724 | Z174: 7981 | AA174: 2412 | AB174: 3010 | AC174: 3360 | AD174: 3870 | AE174: 4510 | AF174: 7337 | AG174: 2333 | AH174: 1825 | AI174: 4920 | AJ174: 2890 | AK174: 3760 | AL174: 2930 | AM174: 1730 | AN174: 7080 | AO174: 2350 | AP174: 3570 | AQ174: 5340 | AR174: 2580 | AS174: 2870 | AT174: 3320 | AU174: 5660 | AV174: 4000 | AW174: 3350 | AX174: 9200 | AY174: 3840 | AZ174: 5790 | BA174: 2050 | BB174: 2260 | BC174: 1750 | BD174: 2230 | BE174: 7490 | BF174: 6000 | BG174: 4420 | BH174: 3120 | BI174: 4510 | BJ174: 1870 | BK174: 1170 | BL174: 2730 | BM174: 2320 | BN174: 3370 | BO174: 3200 | BP174: 1050 | BQ174: 2300 | BR174: 3510 | BS174: 2240 | BT174: 1520 | BU174: 4920 | BV174: 2160 | BW174: 4950 | BX174: 3740 | BY174: 2340 | BZ174: 5870 | CA174: 1490 | CB174: 2410 | CC174: 1660 | CD174: 2670 | CE174: 3010 | CF174: 3830 | CG174: 2630 | CH174: 3190 | CI174: 3586.869048
B175: 2013-06-20 | C175: 4340 | D175: 2750 | E175: 4690 | F175: 1890 | G175: 2500 | H175: 3945 | I175: 4340 | J175: 825 | K175: 2500 | L175: 3500 | M175: 8530 | N175: 1890 | O175: 7590 | P175: 1150 | Q175: 2560 | R175: 5060 | S175: 3500 | T175: 1980 | U175: 3290 | V175: 5640 | W175: 2220 | X175: 4528 | Y175: 2919 | Z175: 8870 | AA175: 2280 | AB175: 2893 | AC175: 3690 | AD175: 7130 | AE175: 4908 | AF175: 6504 | AG175: 2180 | AH175: 1701 | AI175: 5390 | AJ175: 3130 | AK175: 2900 | AL175: 2940 | AM175: 1570 | AN175: 5830 | AO175: 2440 | AP175: 2950 | AQ175: 5880 | AR175: 2290 | AS175: 2540 | AT175: 3070 | AU175: 5610 | AV175: 4440 | AW175: 2950 | AX175: 8550 | AY175: 4210 | AZ175: 4630 | BA175: 1880 | BB175: 2180 | BC175: 1820 | BD175: 2260 | BE175: 5370 | BF175: 5800 | BG175: 3850 | BH175: 3520 | BI175: 4170 | BJ175: 1550 | BK175: 1200 | BL175: 2600 | BM175: 3270 | BN175: 3440 | BO175: 4420 | BP175: 1000 | BQ175: 2110 | BR175: 2740 | BS175: 2090 | BT175: 1380 | BU175: 3850 | BV175: 2000 | BW175: 3970 | BX175: 3110 | BY175: 2490 | BZ175: 4660 | CA175: 1490 | CB175: 2170 | CC175: 1530 | CD175: 2330 | CE175: 2720 | CF175: 4150 | CG175: 3670 | CH175: 3320 | CI175: 3472.892857
B176: 2013-06-21 | C176: 4690 | D176: 2945 | E176: 4100 | F176: 1845 | G176: 2180 | H176: 4690 | I176: 4690 | J176: 762 | K176: 2500 | L176: 3290 | M176: 8290 | N176: 2390 | O176: 5440 | P176: 1000 | Q176: 1845 | R176: 4020 | S176: 3430 | T176: 2030 | U176: 3430 | V176: 5345 | W176: 2030 | X176: 8795 | Y176: 3042 | Z176: 8290 | AA176: 2180 | AB176: 2880 | AC176: 3360 | AD176: 7590 | AE176: 7199 | AF176: 4708 | AG176: 2049 | AH176: 1693 | AI176: 4680 | AJ176: 2930 | AK176: 2430 | AL176: 2980 | AM176: 1530 | AN176: 4870 | AO176: 2200 | AP176: 2510 | AQ176: 5020 | AR176: 2120 | AS176: 2170 | AT176: 3650 | AU176: 5680 | AV176: 4560 | AW176: 2940 | AX176: 7270 | AY176: 3660 | AZ176: 4210 | BA176: 1680 | BB176: 2220 | BC176: 1990 | BD176: 2220 | BE176: 4430 | BF176: 5370 | BG176: 2870 | BH176: 5630 | BI176: 3500 | BJ176: 1450 | BK176: 1370 | BL176: 2590 | BM176: 2450 | BN176: 3760 | BO176: 3870 | BP176: 944 | BQ176: 1920 | BR176: 2570 | BS176: 2280 | BT176: 1440 | BU176: 3520 | BV176: 2160 | BW176: 4330 | BX176: 3170 | BY176: 2640 | BZ176: 5230 | CA176: 2280 | CB176: 2110 | CC176: 1450 | CD176: 2180 | CE176: 2760 | CF176: 5800 | CG176: 2620 | CH176: 3670 | CI176: 3412.047619
B177: 2013-06-22 | C177: 4340 | D177: 2500 | E177: 4051 | F177: 1720 | G177: 2230 | H177: 5440 | I177: 4340 | J177: 762 | K177: 2880 | L177: 3795 | M177: 6680 | N177: 2750 | O177: 4690 | P177: 845 | Q177: 1560 | R177: 3430 | S177: 4180 | T177: 1800 | U177: 3360 | V177: 4180 | W177: 1881 | X177: 7636 | Y177: 2945 | Z177: 6856 | AA177: 2140 | AB177: 3220 | AC177: 3192 | AD177: 6250 | AE177: 8027 | AF177: 4357 | AG177: 1833 | AH177: 1725 | AI177: 4120 | AJ177: 2570 | AK177: 2220 | AL177: 2930 | AM177: 1610 | AN177: 4650 | AO177: 2120 | AP177: 2390 | AQ177: 4370 | AR177: 2360 | AS177: 2310 | AT177: 3400 | AU177: 7560 | AV177: 3940 | AW177: 3070 | AX177: 7410 | AY177: 3240 | AZ177: 3810 | BA177: 1800 | BB177: 2040 | BC177: 2210 | BD177: 2020 | BE177: 5030 | BF177: 4320 | BG177: 2430 | BH177: 4780 | BI177: 3190 | BJ177: 1370 | BK177: 1890 | BL177: 2700 | BM177: 2130 | BN177: 4220 | BO177: 3210 | BP177: 924 | BQ177: 2020 | BR177: 2390 | BS177: 2140 | BT177: 1510 | BU177: 5070 | BV177: 2260 | BW177: 6330 | BX177: 3010 | BY177: 2590 | BZ177: 5650 | CA177: 1880 | CB177: 2100 | CC177: 1510 | CD177: 2050 | CE177: 2500 | CF177: 5680 | CG177: 2570 | CH177: 3360 | CI177: 3316.178571
B178: 2013-06-23 | C178: 4260 | D178: 2640 | E178: 4100 | F178: 1560 | G178: 2560 | H178: 4340 | I178: 4260 | J178: 939 | K178: 2500 | L178: 3720 | M178: 7130 | N178: 2500 | O178: 4340 | P178: 926 | Q178: 1410 | R178: 3290 | S178: 4260 | T178: 1800 | U178: 3010 | V178: 3430 | W178: 1899 | X178: 5640 | Y178: 2776 | Z178: 9095 | AA178: 2060 | AB178: 2718 | AC178: 3220 | AD178: 5640 | AE178: 7130 | AF178: 4132 | AG178: 1788 | AH178: 1602 | AI178: 3640 | AJ178: 2680 | AK178: 2320 | AL178: 2940 | AM178: 1480 | AN178: 6210 | AO178: 2100 | AP178: 2350 | AQ178: 3550 | AR178: 2600 | AS178: 3560 | AT178: 2870 | AU178: 7160 | AV178: 4110 | AW178: 3020 | AX178: 6270 | AY178: 2810 | AZ178: 3180 | BA178: 1670 | BB178: 1870 | BC178: 2210 | BD178: 1810 | BE178: 4790 | BF178: 4120 | BG178: 2490 | BH178: 4590 | BI178: 2860 | BJ178: 1420 | BK178: 1630 | BL178: 2450 | BM178: 2190 | BN178: 4150 | BO178: 2950 | BP178: 879 | BQ178: 3810 | BR178: 2290 | BS178: 2020 | BT178: 1530 | BU178: 5570 | BV178: 2190 | BW178: 6080 | BX178: 2710 | BY178: 2320 | BZ178: 5370 | CA178: 1660 | CB178: 2130 | CC178: 1690 | CD178: 2020 | CE178: 2190 | CF178: 4710 | CG178: 2320 | CH178: 3430 | CI178: 3210.047619
B179: 2013-06-24 | C179: 4340 | D179: 2685 | E179: 4690 | F179: 1480 | G179: 2500 | H179: 3870 | I179: 4340 | J179: 820 | K179: 2130 | L179: 3290 | M179: 6460 | N179: 2280 | O179: 4020 | P179: 815 | Q179: 1270 | R179: 3720 | S179: 3570 | T179: 1845 | U179: 2750 | V179: 3360 | W179: 1971 | X179: 4834 | Y179: 2646 | Z179: 6570 | AA179: 2090 | AB179: 2369 | AC179: 3720 | AD179: 4870 | AE179: 5640 | AF179: 3542 | AG179: 1840 | AH179: 1670 | AI179: 3550 | AJ179: 3060 | AK179: 2270 | AL179: 3360 | AM179: 1410 | AN179: 6290 | AO179: 2160 | AP179: 2650 | AQ179: 3570 | AR179: 2280 | AS179: 5780 | AT179: 2500 | AU179: 5400 | AV179: 9450 | AW179: 2570 | AX179: 5470 | AY179: 3190 | AZ179: 2920 | BA179: 1450 | BB179: 1720 | BC179: 2150 | BD179: 1740 | BE179: 3850 | BF179: 4070 | BG179: 2480 | BH179: 4960 | BI179: 2350 | BJ179: 1450 | BK179: 1290 | BL179: 2170 | BM179: 2480 | BN179: 3520 | BO179: 2760 | BP179: 837 | BQ179: 2740 | BR179: 2000 | BS179: 2080 | BT179: 1790 | BU179: 6380 | BV179: 2110 | BW179: 7970 | BX179: 2660 | BY179: 2030 | BZ179: 4460 | CA179: 1490 | CB179: 2090 | CC179: 1490 | CD179: 2050 | CE179: 1990 | CF179: 4210 | CG179: 2190 | CH179: 3730 | CI179: 3126.357143
B180: 2013-06-25 | C180: 5060 | D180: 2560 | E180: 4870 | F180: 1445 | G180: 2500 | H180: 3570 | I180: 5060 | J180: 741 | K180: 1935 | L180: 2880 | M180: 5060 | N180: 1935 | O180: 3430 | P180: 815 | Q180: 1240 | R180: 3430 | S180: 3430 | T180: 1720 | U180: 2685 | V180: 4510 | W180: 1980 | X180: 4212 | Y180: 2789 | Z180: 5060 | AA180: 2020 | AB180: 2234 | AC180: 3430 | AD180: 4618 | AE180: 4510 | AF180: 3080 | AG180: 1685 | AH180: 1625 | AI180: 3370 | AJ180: 2750 | AK180: 2250 | AL180: 3340 | AM180: 2190 | AN180: 5490 | AO180: 2090 | AP180: 2380 | AQ180: 3780 | AR180: 2300 | AS180: 5470 | AT180: 2310 | AU180: 6460 | AV180: 7070 | AW180: 3790 | AX180: 5250 | AY180: 3910 | AZ180: 3990 | BA180: 1400 | BB180: 1780 | BC180: 2160 | BD180: 2980 | BE180: 3130 | BF180: 4460 | BG180: 2310 | BH180: 4570 | BI180: 2020 | BJ180: 1350 | BK180: 1170 | BL180: 2100 | BM180: 2550 | BN180: 3130 | BO180: 2680 | BP180: 785 | BQ180: 2290 | BR180: 1770 | BS180: 2070 | BT180: 1770 | BU180: 4780 | BV180: 2920 | BW180: 7360 | BX180: 2590 | BY180: 2170 | BZ180: 4490 | CA180: 1370 | CB180: 1950 | CC180: 1350 | CD180: 2210 | CE180: 2490 | CF180: 4090 | CG180: 2520 | CH180: 3470 | CI180: 3030.285714
B181: 2013-06-26 | C181: 5440 | D181: 2230 | E181: 3870 | F181: 1480 | G181: 6040 | H181: 3570 | I181: 5440 | J181: 741 | K181: 1980 | L181: 2620 | M181: 4510 | N181: 1720 | O181: 2815 | P181: 815 | Q181: 1210 | R181: 3360 | S181: 3010 | T181: 1680 | U181: 2685 | V181: 4340 | W181: 2750 | X181: 3855 | Y181: 2560 | Z181: 4965 | AA181: 1908 | AB181: 2225 | AC181: 3010 | AD181: 5022 | AE181: 4528 | AF181: 3150 | AG181: 1685 | AH181: 1343 | AI181: 2800 | AJ181: 2300 | AK181: 2280 | AL181: 3800 | AM181: 1830 | AN181: 5420 | AO181: 1780 | AP181: 2380 | AQ181: 3860 | AR181: 2330 | AS181: 4060 | AT181: 2290 | AU181: 5200 | AV181: 5850 | AW181: 3330 | AX181: 4710 | AY181: 4750 | AZ181: 3270 | BA181: 1340 | BB181: 1810 | BC181: 1990 | BD181: 3100 | BE181: 2840 | BF181: 3940 | BG181: 2210 | BH181: 4480 | BI181: 2110 | BJ181: 1230 | BK181: 1200 | BL181: 2110 | BM181: 2500 | BN181: 2880 | BO181: 2610 | BP181: 743 | BQ181: 2110 | BR181: 1810 | BS181: 1980 | BT181: 1640 | BU181: 4350 | BV181: 2870 | BW181: 5980 | BX181: 2620 | BY181: 1980 | BZ181: 5240 | CA181: 1380 | CB181: 1760 | CC181: 1280 | CD181: 2490 | CE181: 2150 | CF181: 4180 | CG181: 2270 | CH181: 3270 | CI181: 2919.642857
B182: 2013-06-27 | C182: 5060 | D182: 1935 | E182: 3290 | F182: 1800 | G182: 4340 | H182: 3720 | I182: 5060 | J182: 770 | K182: 2180 | L182: 2560 | M182: 4340 | N182: 1600 | O182: 2750 | P182: 749 | Q182: 1150 | R182: 3010 | S182: 3290 | T182: 1445 | U182: 2560 | V182: 4020 | W182: 5421 | X182: 3765 | Y182: 2302 | Z182: 5620 | AA182: 1784 | AB182: 2432 | AC182: 3122 | AD182: 4870 | AE182: 4984 | AF182: 4374 | AG182: 2180 | AH182: 1757 | AI182: 2660 | AJ182: 2280 | AK182: 1770 | AL182: 2870 | AM182: 1490 | AN182: 4670 | AO182: 1580 | AP182: 2590 | AQ182: 3640 | AR182: 2610 | AS182: 3270 | AT182: 2340 | AU182: 4180 | AV182: 5470 | AW182: 2810 | AX182: 4000 | AY182: 4500 | AZ182: 2880 | BA182: 1230 | BB182: 1750 | BC182: 2510 | BD182: 2880 | BE182: 2500 | BF182: 3820 | BG182: 2180 | BH182: 4330 | BI182: 2310 | BJ182: 1100 | BK182: 1210 | BL182: 1920 | BM182: 1960 | BN182: 2610 | BO182: 2510 | BP182: 705 | BQ182: 2300 | BR182: 1750 | BS182: 1790 | BT182: 1880 | BU182: 3660 | BV182: 2730 | BW182: 4590 | BX182: 2840 | BY182: 2010 | BZ182: 5360 | CA182: 1450 | CB182: 1570 | CC182: 1310 | CD182: 2530 | CE182: 1960 | CF182: 4040 | CG182: 2020 | CH182: 2920 | CI182: 2810.535714
B183: 2013-06-28 | C183: 5060 | D183: 2080 | E183: 3570 | F183: 2335 | G183: 3010 | H183: 3720 | I183: 5060 | J183: 736 | K183: 2500 | L183: 2335 | M183: 4690 | N183: 1600 | O183: 3290 | P183: 770 | Q183: 1060 | R183: 2815 | S183: 3645 | T183: 1410 | U183: 2335 | V183: 3645 | W183: 4908 | X183: 4164 | Y183: 2260 | Z183: 6768 | AA183: 1728 | AB183: 2582 | AC183: 3178 | AD183: 4690 | AE183: 5345 | AF183: 4726 | AG183: 2135 | AH183: 2117 | AI183: 2670 | AJ183: 2290 | AK183: 1410 | AL183: 2440 | AM183: 1330 | AN183: 4010 | AO183: 1490 | AP183: 5040 | AQ183: 3010 | AR183: 3240 | AS183: 3070 | AT183: 2020 | AU183: 3870 | AV183: 5190 | AW183: 2540 | AX183: 3780 | AY183: 4650 | AZ183: 3210 | BA183: 1150 | BB183: 1950 | BC183: 3400 | BD183: 2900 | BE183: 2250 | BF183: 3160 | BG183: 2080 | BH183: 3970 | BI183: 2070 | BJ183: 1060 | BK183: 1180 | BL183: 1660 | BM183: 1740 | BN183: 2840 | BO183: 2820 | BP183: 674 | BQ183: 2340 | BR183: 1620 | BS183: 1630 | BT183: 1770 | BU183: 3230 | BV183: 2250 | BW183: 3880 | BX183: 2910 | BY183: 2870 | BZ183: 5380 | CA183: 1440 | CB183: 1460 | CC183: 1390 | CD183: 2310 | CE183: 1950 | CF183: 5470 | CG183: 1930 | CH183: 2760 | CI183: 2821.678571
B184: 2013-06-29 | C184: 4340 | D184: 1935 | E184: 3313 | F184: 1980 | G184: 2500 | H184: 3720 | I184: 4340 | J184: 840 | K184: 3645 | L184: 2130 | M184: 5060 | N184: 1600 | O184: 4020 | P184: 705 | Q184: 982 | R184: 2815 | S184: 3945 | T184: 1480 | U184: 2130 | V184: 5740 | W184: 3735 | X184: 4476 | Y184: 2854 | Z184: 8050 | AA184: 1704 | AB184: 2997 | AC184: 2856 | AD184: 4005 | AE184: 7130 | AF184: 4005 | AG184: 1883 | AH184: 2252 | AI184: 2360 | AJ184: 2300 | AK184: 1370 | AL184: 2500 | AM184: 2610 | AN184: 3570 | AO184: 1600 | AP184: 3710 | AQ184: 2910 | AR184: 2770 | AS184: 3080 | AT184: 1770 | AU184: 3460 | AV184: 5090 | AW184: 2210 | AX184: 4300 | AY184: 3700 | AZ184: 4210 | BA184: 1110 | BB184: 2150 | BC184: 2350 | BD184: 2320 | BE184: 2040 | BF184: 2760 | BG184: 1960 | BH184: 4450 | BI184: 2100 | BJ184: 1130 | BK184: 1140 | BL184: 1610 | BM184: 1670 | BN184: 2700 | BO184: 3080 | BP184: 951 | BQ184: 2180 | BR184: 1550 | BS184: 1580 | BT184: 1620 | BU184: 4550 | BV184: 2120 | BW184: 3620 | BX184: 2850 | BY184: 2330 | BZ184: 9980 | CA184: 1320 | CB184: 1400 | CC184: 1350 | CD184: 1930 | CE184: 2120 | CF184: 6970 | CG184: 1910 | CH184: 2840 | CI184: 2886.047619
B185: 2013-06-30 | C185: 4100 | D185: 1720 | E185: 3080 | F185: 1720 | G185: 2180 | H185: 3430 | I185: 4100 | J185: 749 | K185: 7130 | L185: 1980 | M185: 3945 | N185: 1560 | O185: 3570 | P185: 720 | Q185: 1120 | R185: 2750 | S185: 4100 | T185: 1445 | U185: 1935 | V185: 4965 | W185: 2880 | X185: 4357 | Y185: 2854 | Z185: 7843 | AA185: 1664 | AB185: 9374 | AC185: 3332 | AD185: 5155 | AE185: 7130 | AF185: 3136 | AG185: 1594 | AH185: 1586 | AI185: 2420 | AJ185: 2200 | AK185: 1490 | AL185: 2680 | AM185: 2540 | AN185: 4430 | AO185: 1800 | AP185: 2630 | AQ185: 2810 | AR185: 2190 | AS185: 2750 | AT185: 1680 | AU185: 3480 | AV185: 4950 | AW185: 1900 | AX185: 6140 | AY185: 3120 | AZ185: 3690 | BA185: 989 | BB185: 1950 | BC185: 2250 | BD185: 2010 | BE185: 2040 | BF185: 2970 | BG185: 2030 | BH185: 3940 | BI185: 1940 | BJ185: 1070 | BK185: 1100 | BL185: 1480 | BM185: 1880 | BN185: 2770 | BO185: 2760 | BP185: 1080 | BQ185: 2070 | BR185: 1460 | BS185: 1590 | BT185: 1520 | BU185: 3860 | BV185: 2100 | BW185: 3940 | BX185: 2500 | BY185: 1990 | BZ185: 5530 | CA185: 1310 | CB185: 1350 | CC185: 1250 | CD185: 1710 | CE185: 2060 | CF185: 7390 | CG185: 1720 | CH185: 2380 | CI185: 2834.440476
B186: 2013-07-01 | C186: 4260 | D186: 1800 | E186: 3010 | F186: 1640 | G186: 1890 | H186: 3150 | I186: 4260 | J186: 757 | K186: 4510 | L186: 1935 | M186: 4180 | N186: 1375 | O186: 2750 | P186: 709 | Q186: 937 | R186: 2750 | S186: 3945 | T186: 1340 | U186: 1800 | V186: 4340 | W186: 2412 | X186: 4326 | Y186: 2390 | Z186: 7337 | AA186: 1624 | AB186: 5345 | AC186: 3080 | AD186: 5860 | AE186: 8674 | AF186: 2958 | AG186: 1438 | AH186: 1378 | AI186: 2650 | AJ186: 2090 | AK186: 1250 | AL186: 2220 | AM186: 2070 | AN186: 5350 | AO186: 2150 | AP186: 2440 | AQ186: 2460 | AR186: 1950 | AS186: 2450 | AT186: 1400 | AU186: 3620 | AV186: 4530 | AW186: 1750 | AX186: 6390 | AY186: 3450 | AZ186: 3660 | BA186: 982 | BB186: 1740 | BC186: 3300 | BD186: 1910 | BE186: 2100 | BF186: 2860 | BG186: 2100 | BH186: 3120 | BI186: 1780 | BJ186: 977 | BK186: 1050 | BL186: 1390 | BM186: 2010 | BN186: 2500 | BO186: 2540 | BP186: 799 | BQ186: 1900 | BR186: 1520 | BS186: 1520 | BT186: 1530 | BU186: 3810 | BV186: 2120 | BW186: 4920 | BX186: 2070 | BY186: 1870 | BZ186: 4130 | CA186: 1210 | CB186: 1280 | CC186: 1190 | CD186: 1690 | CE186: 1900 | CF186: 6700 | CG186: 1660 | CH186: 2140 | CI186: 2670.928571
B187: 2013-07-02 | C187: 5640 | D187: 1760 | E187: 3010 | F187: 1520 | G187: 1720 | H187: 3080 | I187: 5640 | J187: 728 | K187: 3290 | L187: 1890 | M187: 3290 | N187: 1180 | O187: 2620 | P187: 690 | Q187: 905 | R187: 2500 | S187: 3500 | T187: 1210 | U187: 1760 | V187: 4340 | W187: 2280 | X187: 2867 | Y187: 2180 | Z187: 6460 | AA187: 1560 | AB187: 3290 | AC187: 3220 | AD187: 5640 | AE187: 6250 | AF187: 3500 | AG187: 1301 | AH187: 959 | AI187: 2930 | AJ187: 1760 | AK187: 1360 | AL187: 2420 | AM187: 1850 | AN187: 5520 | AO187: 2320 | AP187: 2620 | AQ187: 2660 | AR187: 2010 | AS187: 2410 | AT187: 1360 | AU187: 3380 | AV187: 4150 | AW187: 1600 | AX187: 4560 | AY187: 3720 | AZ187: 3550 | BA187: 1030 | BB187: 1680 | BC187: 3350 | BD187: 1950 | BE187: 1880 | BF187: 2560 | BG187: 3220 | BH187: 2870 | BI187: 1990 | BJ187: 1020 | BK187: 988 | BL187: 2190 | BM187: 2160 | BN187: 2310 | BO187: 2900 | BP187: 746 | BQ187: 2300 | BR187: 3180 | BS187: 1560 | BT187: 1560 | BU187: 3560 | BV187: 2000 | BW187: 5320 | BX187: 1850 | BY187: 1770 | BZ187: 3660 | CA187: 1060 | CB187: 1220 | CC187: 1110 | CD187: 1610 | CE187: 1800 | CF187: 5910 | CG187: 1610 | CH187: 2030 | CI187: 2570.404762
B188: 2013-07-03 | C188: 4510 | D188: 1760 | E188: 2685 | F188: 1375 | G188: 1560 | H188: 5081 | I188: 4510 | J188: 698 | K188: 2880 | L188: 1935 | M188: 2880 | N188: 1078 | O188: 3010 | P188: 690 | Q188: 895 | R188: 2280 | S188: 3080 | T188: 1270 | U188: 1760 | V188: 3720 | W188: 2100 | X188: 2646 | Y188: 2313 | Z188: 5620 | AA188: 1512 | AB188: 2784 | AC188: 3542 | AD188: 4690 | AE188: 4690 | AF188: 3444 | AG188: 1180 | AH188: 898 | AI188: 2980 | AJ188: 1730 | AK188: 1530 | AL188: 2040 | AM188: 1650 | AN188: 4460 | AO188: 2280 | AP188: 4700 | AQ188: 2810 | AR188: 2040 | AS188: 2380 | AT188: 1670 | AU188: 3580 | AV188: 4170 | AW188: 1560 | AX188: 3780 | AY188: 4200 | AZ188: 3310 | BA188: 1150 | BB188: 1590 | BC188: 2320 | BD188: 1880 | BE188: 1750 | BF188: 3900 | BG188: 3160 | BH188: 2970 | BI188: 2240 | BJ188: 988 | BK188: 932 | BL188: 2550 | BM188: 1920 | BN188: 2580 | BO188: 3420 | BP188: 759 | BQ188: 2350 | BR188: 2310 | BS188: 2000 | BT188: 1490 | BU188: 3230 | BV188: 1910 | BW188: 6460 | BX188: 1710 | BY188: 1650 | BZ188: 3350 | CA188: 982 | CB188: 1210 | CC188: 1100 | CD188: 1550 | CE188: 1740 | CF188: 6730 | CG188: 1720 | CH188: 2030 | CI188: 2518.77381
B189: 2013-07-04 | C189: 3945 | D189: 3010 | E189: 2560 | F189: 1270 | G189: 1480 | H189: 6381 | I189: 3945 | J189: 679 | K189: 2560 | L189: 2280 | M189: 2815 | N189: 1018 | O189: 4340 | P189: 604 | Q189: 806 | R189: 2030 | S189: 3150 | T189: 1150 | U189: 1760 | V189: 3290 | W189: 1881 | X189: 2548 | Y189: 2500 | Z189: 5700 | AA189: 1403 | AB189: 3220 | AC189: 3402 | AD189: 4425 | AE189: 4164 | AF189: 2984 | AG189: 1219 | AH189: 887 | AI189: 3250 | AJ189: 1850 | AK189: 1280 | AL189: 1950 | AM189: 1500 | AN189: 4110 | AO189: 2220 | AP189: 4980 | AQ189: 2680 | AR189: 2010 | AS189: 2710 | AT189: 2050 | AU189: 3670 | AV189: 4320 | AW189: 1570 | AX189: 5060 | AY189: 4360 | AZ189: 3630 | BA189: 1070 | BB189: 1530 | BC189: 2040 | BD189: 1750 | BE189: 1700 | BF189: 3610 | BG189: 2390 | BH189: 2950 | BI189: 2210 | BJ189: 1100 | BK189: 885 | BL189: 1780 | BM189: 1630 | BN189: 2250 | BO189: 3160 | BP189: 732 | BQ189: 2130 | BR189: 1810 | BS189: 2380 | BT189: 1570 | BU189: 3590 | BV189: 1740 | BW189: 4940 | BX189: 1930 | BY189: 1670 | BZ189: 3110 | CA189: 936 | CB189: 1240 | CC189: 1020 | CD189: 1550 | CE189: 1730 | CF189: 5230 | CG189: 1790 | CH189: 1890 | CI189: 2472.011905
B190: 2013-07-05 | C190: 4180 | D190: 3430 | E190: 2500 | F190: 1340 | G190: 1410 | H190: 3570 | I190: 4180 | J190: 694 | K190: 2230 | L190: 2880 | M190: 2445 | N190: 970 | O190: 3430 | P190: 604 | Q190: 835 | R190: 1800 | S190: 2815 | T190: 1060 | U190: 1680 | V190: 3150 | W190: 1736 | X190: 2260 | Y190: 2512 | Z190: 5840 | AA190: 1228 | AB190: 2666 | AC190: 2997 | AD190: 4690 | AE190: 3720 | AF190: 3735 | AG190: 1130 | AH190: 838 | AI190: 2940 | AJ190: 1910 | AK190: 2550 | AL190: 2100 | AM190: 1460 | AN190: 4450 | AO190: 2180 | AP190: 3980 | AQ190: 2460 | AR190: 1940 | AS190: 2410 | AT190: 1880 | AU190: 3660 | AV190: 4440 | AW190: 1560 | AX190: 5020 | AY190: 5650 | AZ190: 3630 | BA190: 1090 | BB190: 1450 | BC190: 1890 | BD190: 1690 | BE190: 1620 | BF190: 2780 | BG190: 2200 | BH190: 3190 | BI190: 2110 | BJ190: 1010 | BK190: 1030 | BL190: 1550 | BM190: 1450 | BN190: 2330 | BO190: 2660 | BP190: 1520 | BQ190: 1900 | BR190: 1700 | BS190: 1980 | BT190: 1380 | BU190: 4030 | BV190: 1670 | BW190: 4260 | BX190: 1640 | BY190: 1660 | BZ190: 2900 | CA190: 926 | CB190: 1110 | CC190: 972 | CD190: 1570 | CE190: 1840 | CF190: 4020 | CG190: 1660 | CH190: 2050 | CI190: 2376.345238
B191: 2013-07-06 | C191: 4510 | D191: 2500 | E191: 2500 | F191: 1240 | G191: 1315 | H191: 2620 | I191: 4510 | J191: 698 | K191: 1980 | L191: 2080 | M191: 2080 | N191: 964 | O191: 2685 | P191: 620 | Q191: 749 | R191: 1600 | S191: 2880 | T191: 937 | U191: 1640 | V191: 3010 | W191: 1640 | X191: 2456 | Y191: 2170 | Z191: 5460 | AA191: 1030 | AB191: 2351 | AC191: 3556 | AD191: 4260 | AE191: 3570 | AF191: 4528 | AG191: 1273 | AH191: 813 | AI191: 3120 | AJ191: 1960 | AK191: 2490 | AL191: 3460 | AM191: 1260 | AN191: 4180 | AO191: 2030 | AP191: 3450 | AQ191: 2030 | AR191: 1780 | AS191: 2040 | AT191: 1570 | AU191: 4100 | AV191: 4600 | AW191: 1470 | AX191: 4140 | AY191: 5750 | AZ191: 4020 | BA191: 1040 | BB191: 1390 | BC191: 1890 | BD191: 1500 | BE191: 1510 | BF191: 2630 | BG191: 1990 | BH191: 2910 | BI191: 1740 | BJ191: 916 | BK191: 1440 | BL191: 1800 | BM191: 1440 | BN191: 2490 | BO191: 2330 | BP191: 2120 | BQ191: 1760 | BR191: 1590 | BS191: 1570 | BT191: 1190 | BU191: 4650 | BV191: 1520 | BW191: 4500 | BX191: 1530 | BY191: 1500 | BZ191: 2880 | CA191: 921 | CB191: 1070 | CC191: 1360 | CD191: 1420 | CE191: 1830 | CF191: 4600 | CG191: 1570 | CH191: 2040 | CI191: 2313.238095
B192: 2013-07-07 | C192: 4510 | D192: 2200 | E192: 2280 | F192: 1180 | G192: 1270 | H192: 2500 | I192: 4510 | J192: 741 | K192: 1890 | L192: 1800 | M192: 2080 | N192: 1090 | O192: 2500 | P192: 573 | Q192: 686 | R192: 1480 | S192: 2815 | T192: 1078 | U192: 1520 | V192: 2880 | W192: 1520 | X192: 3010 | Y192: 1908 | Z192: 4744 | AA192: 988 | AB192: 2074 | AC192: 4084 | AD192: 4690 | AE192: 3570 | AF192: 3660 | AG192: 1245 | AH192: 752 | AI192: 2760 | AJ192: 1950 | AK192: 1910 | AL192: 2870 | AM192: 1260 | AN192: 4920 | AO192: 2030 | AP192: 2930 | AQ192: 1880 | AR192: 1660 | AS192: 1870 | AT192: 1430 | AU192: 3630 | AV192: 4060 | AW192: 1500 | AX192: 3980 | AY192: 5070 | AZ192: 4200 | BA192: 981 | BB192: 1380 | BC192: 1790 | BD192: 1430 | BE192: 1840 | BF192: 2570 | BG192: 1750 | BH192: 2420 | BI192: 1630 | BJ192: 857 | BK192: 1100 | BL192: 1730 | BM192: 1500 | BN192: 2320 | BO192: 2060 | BP192: 1980 | BQ192: 1640 | BR192: 1520 | BS192: 1440 | BT192: 1140 | BU192: 4120 | BV192: 1450 | BW192: 5250 | BX192: 1500 | BY192: 1350 | BZ192: 3200 | CA192: 887 | CB192: 1330 | CC192: 1470 | CD192: 1260 | CE192: 1590 | CF192: 3500 | CG192: 1460 | CH192: 2100 | CI192: 2205.75
B193: 2013-07-08 | C193: 4870 | D193: 1980 | E193: 2180 | F193: 1210 | G193: 1120 | H193: 2390 | I193: 4870 | J193: 598 | K193: 1980 | L193: 1680 | M193: 2080 | N193: 1090 | O193: 2335 | P193: 620 | Q193: 668 | R193: 1340 | S193: 2500 | T193: 865 | U193: 1480 | V193: 2880 | W193: 1403 | X193: 2724 | Y193: 2100 | Z193: 4292 | AA193: 890 | AB193: 2074 | AC193: 4600 | AD193: 4084 | AE193: 3570 | AF193: 4036 | AG193: 1051 | AH193: 714 | AI193: 2390 | AJ193: 1780 | AK193: 1520 | AL193: 2600 | AM193: 1490 | AN193: 6060 | AO193: 1860 | AP193: 2810 | AQ193: 1730 | AR193: 1490 | AS193: 1790 | AT193: 1400 | AU193: 3270 | AV193: 3300 | AW193: 1350 | AX193: 3980 | AY193: 4930 | AZ193: 5530 | BA193: 921 | BB193: 1420 | BC193: 1710 | BD193: 1500 | BE193: 1870 | BF193: 2330 | BG193: 1580 | BH193: 2210 | BI193: 1670 | BJ193: 846 | BK193: 1060 | BL193: 1610 | BM193: 1510 | BN193: 2180 | BO193: 2140 | BP193: 1480 | BQ193: 1530 | BR193: 1440 | BS193: 1340 | BT193: 1160 | BU193: 3880 | BV193: 1380 | BW193: 4500 | BX193: 1570 | BY193: 1270 | BZ193: 4110 | CA193: 851 | CB193: 1210 | CC193: 1290 | CD193: 1170 | CE193: 1410 | CF193: 3280 | CG193: 1330 | CH193: 2350 | CI193: 2150.738095
B194: 2013-07-09 | C194: 4020 | D194: 1845 | E194: 2230 | F194: 1090 | G194: 1030 | H194: 2280 | I194: 4020 | J194: 654 | K194: 1980 | L194: 1560 | M194: 2080 | N194: 1042 | O194: 2390 | P194: 573 | Q194: 607 | R194: 1305 | S194: 3010 | T194: 825 | U194: 1445 | V194: 3720 | W194: 1240 | X194: 2240 | Y194: 2410 | Z194: 4052 | AA194: 793 | AB194: 2207 | AC194: 3945 | AD194: 3500 | AE194: 3870 | AF194: 4834 | AG194: 1028 | AH194: 747 | AI194: 2180 | AJ194: 1420 | AK194: 1510 | AL194: 2630 | AM194: 1580 | AN194: 4950 | AO194: 1530 | AP194: 2780 | AQ194: 1580 | AR194: 1440 | AS194: 1750 | AT194: 1410 | AU194: 3980 | AV194: 3310 | AW194: 1270 | AX194: 5450 | AY194: 4710 | AZ194: 4420 | BA194: 874 | BB194: 1370 | BC194: 1760 | BD194: 1490 | BE194: 1570 | BF194: 2220 | BG194: 1470 | BH194: 2160 | BI194: 1740 | BJ194: 822 | BK194: 979 | BL194: 1710 | BM194: 1350 | BN194: 2200 | BO194: 2070 | BP194: 1260 | BQ194: 1450 | BR194: 1330 | BS194: 1400 | BT194: 1240 | BU194: 10400 | BV194: 1300 | BW194: 4340 | BX194: 1540 | BY194: 1230 | BZ194: 3160 | CA194: 826 | CB194: 1040 | CC194: 2900 | CD194: 1130 | CE194: 1310 | CF194: 3330 | CG194: 1250 | CH194: 2370 | CI194: 2179.321429
B195: 2013-07-10 | C195: 3570 | D195: 1720 | E195: 2080 | F195: 1090 | G195: 1150 | H195: 3570 | I195: 3570 | J195: 598 | K195: 1800 | L195: 1800 | M195: 1935 | N195: 915 | O195: 2620 | P195: 558 | Q195: 661 | R195: 1150 | S195: 2750 | T195: 788 | U195: 1305 | V195: 3150 | W195: 1333 | X195: 2280 | Y195: 2646 | Z195: 3870 | AA195: 895 | AB195: 2324 | AC195: 3360 | AD195: 4510 | AE195: 4180 | AF195: 4744 | AG195: 1136 | AH195: 682 | AI195: 2660 | AJ195: 1380 | AK195: 1490 | AL195: 2490 | AM195: 1610 | AN195: 4100 | AO195: 1390 | AP195: 2650 | AQ195: 1440 | AR195: 1310 | AS195: 1730 | AT195: 1250 | AU195: 5020 | AV195: 3160 | AW195: 1230 | AX195: 4680 | AY195: 4530 | AZ195: 3420 | BA195: 855 | BB195: 1250 | BC195: 2500 | BD195: 1430 | BE195: 1420 | BF195: 2190 | BG195: 1380 | BH195: 2210 | BI195: 1700 | BJ195: 902 | BK195: 974 | BL195: 1660 | BM195: 1280 | BN195: 2080 | BO195: 1940 | BP195: 1110 | BQ195: 1360 | BR195: 1220 | BS195: 1720 | BT195: 1120 | BU195: 9230 | BV195: 1230 | BW195: 5010 | BX195: 1400 | BY195: 1200 | BZ195: 3220 | CA195: 777 | CB195: 983 | CC195: 2100 | CD195: 1140 | CE195: 1310 | CF195: 3270 | CG195: 1200 | CH195: 2360 | CI195: 2131.083333
B196: 2013-07-11 | C196: 3220 | D196: 1640 | E196: 1800 | F196: 1150 | G196: 1030 | H196: 3570 | I196: 3220 | J196: 598 | K196: 1720 | L196: 2280 | M196: 1845 | N196: 890 | O196: 2500 | P196: 558 | Q196: 665 | R196: 1305 | S196: 2500 | T196: 788 | U196: 1240 | V196: 3360 | W196: 1162 | X196: 2200 | Y196: 2560 | Z196: 3108 | AA196: 880 | AB196: 2108 | AC196: 3318 | AD196: 5155 | AE196: 4020 | AF196: 4020 | AG196: 1213 | AH196: 656 | AI196: 2700 | AJ196: 1430 | AK196: 1370 | AL196: 2300 | AM196: 1820 | AN196: 4560 | AO196: 1470 | AP196: 2620 | AQ196: 1500 | AR196: 1240 | AS196: 1820 | AT196: 1150 | AU196: 4590 | AV196: 3480 | AW196: 1210 | AX196: 4520 | AY196: 4420 | AZ196: 2950 | BA196: 748 | BB196: 1280 | BC196: 2070 | BD196: 1450 | BE196: 1340 | BF196: 2240 | BG196: 1360 | BH196: 2130 | BI196: 1510 | BJ196: 1740 | BK196: 900 | BL196: 1560 | BM196: 1240 | BN196: 2120 | BO196: 1830 | BP196: 1110 | BQ196: 1290 | BR196: 1140 | BS196: 1360 | BT196: 1040 | BU196: 7590 | BV196: 1140 | BW196: 5000 | BX196: 1410 | BY196: 1160 | BZ196: 3600 | CA196: 782 | CB196: 1220 | CC196: 1670 | CD196: 1110 | CE196: 1270 | CF196: 2670 | CG196: 1170 | CH196: 2250 | CI196: 2058.678571
B197: 2013-07-12 | C197: 3720 | D197: 1600 | E197: 1680 | F197: 1013 | G197: 926 | H197: 2750 | I197: 3720 | J197: 614 | K197: 1720 | L197: 1845 | M197: 1760 | N197: 915 | O197: 2230 | P197: 573 | Q197: 644 | R197: 1480 | S197: 2080 | T197: 753 | U197: 1120 | V197: 2750 | W197: 1375 | X197: 1962 | Y197: 2500 | Z197: 3080 | AA197: 850 | AB197: 2024 | AC197: 3262 | AD197: 3945 | AE197: 4260 | AF197: 4084 | AG197: 1117 | AH197: 723 | AI197: 2630 | AJ197: 1180 | AK197: 1420 | AL197: 2130 | AM197: 1610 | AN197: 5680 | AO197: 1270 | AP197: 2330 | AQ197: 1760 | AR197: 1460 | AS197: 1820 | AT197: 1060 | AU197: 4040 | AV197: 6030 | AW197: 1150 | AX197: 4490 | AY197: 3660 | AZ197: 2840 | BA197: 985 | BB197: 1180 | BC197: 2060 | BD197: 1680 | BE197: 1280 | BF197: 2260 | BG197: 2570 | BH197: 2100 | BI197: 1390 | BJ197: 1870 | BK197: 877 | BL197: 1570 | BM197: 1330 | BN197: 2280 | BO197: 1770 | BP197: 1030 | BQ197: 1270 | BR197: 1070 | BS197: 1170 | BT197: 1060 | BU197: 5170 | BV197: 1160 | BW197: 4580 | BX197: 1450 | BY197: 1100 | BZ197: 3370 | CA197: 789 | CB197: 1160 | CC197: 1470 | CD197: 1020 | CE197: 1260 | CF197: 2370 | CG197: 1210 | CH197: 2160 | CI197: 2008.404762
B198: 2013-07-13 | C198: 3945 | D198: 1480 | E198: 1680 | F198: 1060 | G198: 959 | H198: 2445 | I198: 3945 | J198: 544 | K198: 1890 | L198: 1640 | M198: 1720 | N198: 865 | O198: 1980 | P198: 620 | Q198: 588 | R198: 1270 | S198: 1890 | T198: 741 | U198: 942 | V198: 2390 | W198: 1270 | X198: 1818 | Y198: 2445 | Z198: 3472 | AA198: 880 | AB198: 1900 | AC198: 2971 | AD198: 3585 | AE198: 5440 | AF198: 4148 | AG198: 1117 | AH198: 639 | AI198: 2460 | AJ198: 1260 | AK198: 1420 | AL198: 1920 | AM198: 1420 | AN198: 5530 | AO198: 1300 | AP198: 2270 | AQ198: 1760 | AR198: 1440 | AS198: 1620 | AT198: 991 | AU198: 4030 | AV198: 13300 | AW198: 1100 | AX198: 3940 | AY198: 3060 | AZ198: 2660 | BA198: 1000 | BB198: 1140 | BC198: 1720 | BD198: 1400 | BE198: 1560 | BF198: 2240 | BG198: 7950 | BH198: 1890 | BI198: 1260 | BJ198: 1450 | BK198: 860 | BL198: 2970 | BM198: 1470 | BN198: 2110 | BO198: 1940 | BP198: 921 | BQ198: 1190 | BR198: 1010 | BS198: 1080 | BT198: 1070 | BU198: 4130 | BV198: 1150 | BW198: 4280 | BX198: 1380 | BY198: 1040 | BZ198: 3140 | CA198: 813 | CB198: 1050 | CC198: 1400 | CD198: 1270 | CE198: 1220 | CF198: 2460 | CG198: 1240 | CH198: 1820 | CI198: =AVERAGE(C198:CH198) -> 2099.809524
B199: 2013-07-14 | C199: 4180 | D199: 1410 | E199: 1720 | F199: 932 | G199: 915 | H199: 2500 | I199: 4180 | J199: 576 | K199: 2080 | L199: 1480 | M199: 1720 | N199: 850 | O199: 2030 | P199: 558 | Q199: 555 | R199: 1270 | S199: 2030 | T199: 694 | U199: 890 | V199: 2180 | W199: 1096 | X199: 1809 | Y199: 2412 | Z199: 3705 | AA199: 865 | AB199: 1733 | AC199: 2820 | AD199: 4020 | AE199: 6658 | AF199: 3388 | AG199: 998 | AH199: 551 | AI199: 2200 | AJ199: 1240 | AK199: 1400 | AL199: 1670 | AM199: 1360 | AN199: 4960 | AO199: 1380 | AP199: 2360 | AQ199: 1700 | AR199: 1330 | AS199: 1420 | AT199: 947 | AU199: 4410 | AV199: 6670 | AW199: 1100 | AX199: 4390 | AY199: 2600 | AZ199: 2600 | BA199: 863 | BB199: 1140 | BC199: 1500 | BD199: 1300 | BE199: 2150 | BF199: 2580 | BG199: 7350 | BH199: 1940 | BI199: 1150 | BJ199: 1150 | BK199: 819 | BL199: 2550 | BM199: 1380 | BN199: 1860 | BO199: 1700 | BP199: 863 | BQ199: 1350 | BR199: 994 | BS199: 1000 | BT199: 1030 | BU199: 3830 | BV199: 1050 | BW199: 4000 | BX199: 1300 | BY199: 972 | BZ199: 2890 | CA199: 860 | CB199: 967 | CC199: 1270 | CD199: 1160 | CE199: 1180 | CF199: 2440 | CG199: 1160 | CH199: 1510 | CI199: 1973.809524
B200: 2013-07-15 | C200: 4690 | D200: 1240 | E200: 1680 | F200: 926 | G200: 942 | H200: 2390 | I200: 4690 | J200: 550 | K200: 2080 | L200: 1410 | M200: 1640 | N200: 728 | O200: 2030 | P200: 517 | Q200: 634 | R200: 1375 | S200: 1890 | T200: 686 | U200: 815 | V200: 2180 | W200: 1347 | X200: 1827 | Y200: 2524 | Z200: 4052 | AA200: 728 | AB200: 1625 | AC200: 3024 | AD200: 4148 | AE200: 6376 | AF200: 2666 | AG200: 2315 | AH200: 482 | AI200: 2030 | AJ200: 1170 | AK200: 1310 | AL200: 1590 | AM200: 1530 | AN200: 5220 | AO200: 1400 | AP200: 2310 | AQ200: 1430 | AR200: 1790 | AS200: 1330 | AT200: 915 | AU200: 5000 | AV200: 4900 | AW200: 1100 | AX200: 4780 | AY200: 2300 | AZ200: 2720 | BA200: 831 | BB200: 1070 | BC200: 1430 | BD200: 1420 | BE200: 1710 | BF200: 3250 | BG200: 8850 | BH200: 1980 | BI200: 1110 | BJ200: 1030 | BK200: 784 | BL200: 1960 | BM200: 1330 | BN200: 1710 | BO200: 1590 | BP200: 823 | BQ200: 1330 | BR200: 965 | BS200: 958 | BT200: 1020 | BU200: 3570 | BV200: 996 | BW200: 3150 | BX200: 1180 | BY200: 941 | BZ200: 2490 | CA200: 760 | CB200: 922 | CC200: 1180 | CD200: 1040 | CE200: 1080 | CF200: 2290 | CG200: 1060 | CH200: 1440 | CI200: 1955.738095
B201: 2013-07-16 | C201: 4690 | D201: 1210 | E201: 1520 | F201: 865 | G201: 792 | H201: 2280 | I201: 4690 | J201: 661 | K201: 1845 | L201: 1305 | M201: 1520 | N201: 860 | O201: 2280 | P201: 530 | Q201: 507 | R201: 2230 | S201: 2815 | T201: 647 | U201: 840 | V201: 2080 | W201: 1277 | X201: 1845 | Y201: 2524 | Z201: 2828 | AA201: 732 | AB201: 1488 | AC201: 2396 | AD201: 3675 | AE201: 6145 | AF201: 2666 | AG201: 2207 | AH201: 492 | AI201: 1890 | AJ201: 952 | AK201: 1120 | AL201: 1600 | AM201: 1480 | AN201: 4940 | AO201: 1340 | AP201: 2070 | AQ201: 1340 | AR201: 1570 | AS201: 1240 | AT201: 944 | AU201: 5220 | AV201: 4420 | AW201: 1050 | AX201: 3720 | AY201: 2230 | AZ201: 3060 | BA201: 817 | BB201: 1210 | BC201: 1440 | BD201: 1400 | BE201: 1520 | BF201: 3730 | BG201: 5250 | BH201: 2180 | BI201: 1040 | BJ201: 1120 | BK201: 753 | BL201: 1630 | BM201: 1270 | BN201: 1640 | BO201: 1520 | BP201: 762 | BQ201: 1370 | BR201: 925 | BS201: 945 | BT201: 967 | BU201: 3190 | BV201: 954 | BW201: 3140 | BX201: 1130 | BY201: 1130 | BZ201: 2220 | CA201: 713 | CB201: 872 | CC201: 1140 | CD201: 965 | CE201: 1020 | CF201: 2170 | CG201: 999 | CH201: 1460 | CI201: 1847.857143
... 169 more rows

Sheet Snoqualmie total output (R)
A1: Snoqualmie Falls annual generation estimate
A2: 80-year results with rate-year scheduled outages as of 1/31/2019
A3: monthly energy in MWh
A4: Snoqualmie Total | C4: 1927 | D4: 1928 | E4: 1929 | F4: 1930 | G4: 1931 | H4: 1932 | I4: 1933 | J4: 1934 | K4: 1935 | L4: 1936 | M4: 1937 | N4: 1938 | O4: 1939 | P4: 1940 | Q4: 1941 | R4: 1942 | S4: 1943 | T4: 1944 | U4: 1945 | V4: 1946 | W4: 1947 | X4: 1948 | Y4: 1949 | Z4: 1950 | AA4: 1951 | AB4: 1952 | AC4: 1953 | AD4: 1954 | AE4: 1955 | AF4: 1956 | AG4: 1957 | AH4: 1958 | AI4: 1959 | AJ4: 1960 | AK4: 1961 | AL4: 1962 | AM4: 1963 | AN4: 1964 | AO4: 1965 | AP4: 1966 | AQ4: 1967 | AR4: 1968 | AS4: 1969 | AT4: 1970 | AU4: 1971 | AV4: 1972 | AW4: 1973 | AX4: 1974 | AY4: 1975 | AZ4: 1976 | BA4: 1977 | BB4: 1978 | BC4: 1979 | BD4: 1980 | BE4: 1981 | BF4: 1982 | BG4: 1983 | BH4: 1984 | BI4: 1985 | BJ4: 1986 | BK4: 1987 | BL4: 1988 | BM4: 1989 | BN4: 1990 | BO4: 1991 | BP4: 1992 | BQ4: 1993 | BR4: 1994 | BS4: 1995 | BT4: 1996 | BU4: 1997 | BV4: 1998 | BW4: 1999 | BX4: 2000 | BY4: 2001 | BZ4: 2002 | CA4: 2003 | CB4: 2004 | CC4: 2005 | CD4: 2006 | CE4: 2007 | CF4: 2008 | CG4: 2009 | CH4: 2010 | CI4: 80 year average 1929-2008
B5: JAN | C5: XXXX | D5: XXXX | E5: XXXX | F5: XXXX | G5: XXXX | H5: XXXX | I5: XXXX | J5: XXXX | K5: XXXX | L5: XXXX | M5: XXXX | N5: XXXX | O5: XXXX | P5: XXXX | Q5: XXXX | R5: XXXX | S5: XXXX | T5: XXXX | U5: XXXX | V5: XXXX | W5: XXXX | X5: XXXX | Y5: XXXX | Z5: XXXX | AA5: XXXX | AB5: XXXX | AC5: XXXX | AD5: XXXX | AE5: XXXX | AF5: XXXX | AG5: XXXX | AH5: XXXX | AI5: XXXX | AJ5: XXXX | AK5: XXXX | AL5: XXXX | AM5: XXXX | AN5: XXXX | AO5: XXXX | AP5: XXXX | AQ5: XXXX | AR5: XXXX | AS5: XXXX | AT5: XXXX | AU5: XXXX | AV5: XXXX | AW5: XXXX | AX5: XXXX | AY5: XXXX | AZ5: XXXX | BA5: XXXX | BB5: XXXX | BC5: XXXX | BD5: XXXX | BE5: XXXX | BF5: XXXX | BG5: XXXX | BH5: XXXX | BI5: XXXX | BJ5: XXXX | BK5: XXXX | BL5: XXXX | BM5: XXXX | BN5: XXXX | BO5: XXXX | BP5: XXXX | BQ5: XXXX | BR5: XXXX | BS5: XXXX | BT5: XXXX | BU5: XXXX | BV5: XXXX | BW5: XXXX | BX5: XXXX | BY5: XXXX | BZ5: XXXX | CA5: XXXX | CB5: XXXX | CC5: XXXX | CD5: XXXX | CE5: XXXX | CF5: XXXX | CG5: XXXX | CH5: XXXX | CI5: XXXX
B6: FEB | C6: XXXX | D6: XXXX | E6: XXXX | F6: XXXX | G6: XXXX | H6: XXXX | I6: XXXX | J6: XXXX | K6: XXXX | L6: XXXX | M6: XXXX | N6: XXXX | O6: XXXX | P6: XXXX | Q6: XXXX | R6: XXXX | S6: XXXX | T6: XXXX | U6: XXXX | V6: XXXX | W6: XXXX | X6: XXXX | Y6: XXXX | Z6: XXXX | AA6: XXXX | AB6: XXXX | AC6: XXXX | AD6: XXXX | AE6: XXXX | AF6: XXXX | AG6: XXXX | AH6: XXXX | AI6: XXXX | AJ6: XXXX | AK6: XXXX | AL6: XXXX | AM6: XXXX | AN6: XXXX | AO6: XXXX | AP6: XXXX | AQ6: XXXX | AR6: XXXX | AS6: XXXX | AT6: XXXX | AU6: XXXX | AV6: XXXX | AW6: XXXX | AX6: XXXX | AY6: XXXX | AZ6: XXXX | BA6: XXXX | BB6: XXXX | BC6: XXXX | BD6: XXXX | BE6: XXXX | BF6: XXXX | BG6: XXXX | BH6: XXXX | BI6: XXXX | BJ6: XXXX | BK6: XXXX | BL6: XXXX | BM6: XXXX | BN6: XXXX | BO6: XXXX | BP6: XXXX | BQ6: XXXX | BR6: XXXX | BS6: XXXX | BT6: XXXX | BU6: XXXX | BV6: XXXX | BW6: XXXX | BX6: XXXX | BY6: XXXX | BZ6: XXXX | CA6: XXXX | CB6: XXXX | CC6: XXXX | CD6: XXXX | CE6: XXXX | CF6: XXXX | CG6: XXXX | CH6: XXXX | CI6: XXXX
B7: MAR | C7: XXXX | D7: XXXX | E7: XXXX | F7: XXXX | G7: XXXX | H7: XXXX | I7: XXXX | J7: XXXX | K7: XXXX | L7: XXXX | M7: XXXX | N7: XXXX | O7: XXXX | P7: XXXX | Q7: XXXX | R7: XXXX | S7: XXXX | T7: XXXX | U7: XXXX | V7: XXXX | W7: XXXX | X7: XXXX | Y7: XXXX | Z7: XXXX | AA7: XXXX | AB7: XXXX | AC7: XXXX | AD7: XXXX | AE7: XXXX | AF7: XXXX | AG7: XXXX | AH7: XXXX | AI7: XXXX | AJ7: XXXX | AK7: XXXX | AL7: XXXX | AM7: XXXX | AN7: XXXX | AO7: XXXX | AP7: XXXX | AQ7: XXXX | AR7: XXXX | AS7: XXXX | AT7: XXXX | AU7: XXXX | AV7: XXXX | AW7: XXXX | AX7: XXXX | AY7: XXXX | AZ7: XXXX | BA7: XXXX | BB7: XXXX | BC7: XXXX | BD7: XXXX | BE7: XXXX | BF7: XXXX | BG7: XXXX | BH7: XXXX | BI7: XXXX | BJ7: XXXX | BK7: XXXX | BL7: XXXX | BM7: XXXX | BN7: XXXX | BO7: XXXX | BP7: XXXX | BQ7: XXXX | BR7: XXXX | BS7: XXXX | BT7: XXXX | BU7: XXXX | BV7: XXXX | BW7: XXXX | BX7: XXXX | BY7: XXXX | BZ7: XXXX | CA7: XXXX | CB7: XXXX | CC7: XXXX | CD7: XXXX | CE7: XXXX | CF7: XXXX | CG7: XXXX | CH7: XXXX | CI7: XXXX
B8: APR | C8: XXXX | D8: XXXX | E8: XXXX | F8: XXXX | G8: XXXX | H8: XXXX | I8: XXXX | J8: XXXX | K8: XXXX | L8: XXXX | M8: XXXX | N8: XXXX | O8: XXXX | P8: XXXX | Q8: XXXX | R8: XXXX | S8: XXXX | T8: XXXX | U8: XXXX | V8: XXXX | W8: XXXX | X8: XXXX | Y8: XXXX | Z8: XXXX | AA8: XXXX | AB8: XXXX | AC8: XXXX | AD8: XXXX | AE8: XXXX | AF8: XXXX | AG8: XXXX | AH8: XXXX | AI8: XXXX | AJ8: XXXX | AK8: XXXX | AL8: XXXX | AM8: XXXX | AN8: XXXX | AO8: XXXX | AP8: XXXX | AQ8: XXXX | AR8: XXXX | AS8: XXXX | AT8: XXXX | AU8: XXXX | AV8: XXXX | AW8: XXXX | AX8: XXXX | AY8: XXXX | AZ8: XXXX | BA8: XXXX | BB8: XXXX | BC8: XXXX | BD8: XXXX | BE8: XXXX | BF8: XXXX | BG8: XXXX | BH8: XXXX | BI8: XXXX | BJ8: XXXX | BK8: XXXX | BL8: XXXX | BM8: XXXX | BN8: XXXX | BO8: XXXX | BP8: XXXX | BQ8: XXXX | BR8: XXXX | BS8: XXXX | BT8: XXXX | BU8: XXXX | BV8: XXXX | BW8: XXXX | BX8: XXXX | BY8: XXXX | BZ8: XXXX | CA8: XXXX | CB8: XXXX | CC8: XXXX | CD8: XXXX | CE8: XXXX | CF8: XXXX | CG8: XXXX | CH8: XXXX | CI8: XXXX
B9: MAY | C9: XXXX | D9: XXXX | E9: XXXX | F9: XXXX | G9: XXXX | H9: XXXX | I9: XXXX | J9: XXXX | K9: XXXX | L9: XXXX | M9: XXXX | N9: XXXX | O9: XXXX | P9: XXXX | Q9: XXXX | R9: XXXX | S9: XXXX | T9: XXXX | U9: XXXX | V9: XXXX | W9: XXXX | X9: XXXX | Y9: XXXX | Z9: XXXX | AA9: XXXX | AB9: XXXX | AC9: XXXX | AD9: XXXX | AE9: XXXX | AF9: XXXX | AG9: XXXX | AH9: XXXX | AI9: XXXX | AJ9: XXXX | AK9: XXXX | AL9: XXXX | AM9: XXXX | AN9: XXXX | AO9: XXXX | AP9: XXXX | AQ9: XXXX | AR9: XXXX | AS9: XXXX | AT9: XXXX | AU9: XXXX | AV9: XXXX | AW9: XXXX | AX9: XXXX | AY9: XXXX | AZ9: XXXX | BA9: XXXX | BB9: XXXX | BC9: XXXX | BD9: XXXX | BE9: XXXX | BF9: XXXX | BG9: XXXX | BH9: XXXX | BI9: XXXX | BJ9: XXXX | BK9: XXXX | BL9: XXXX | BM9: XXXX | BN9: XXXX | BO9: XXXX | BP9: XXXX | BQ9: XXXX | BR9: XXXX | BS9: XXXX | BT9: XXXX | BU9: XXXX | BV9: XXXX | BW9: XXXX | BX9: XXXX | BY9: XXXX | BZ9: XXXX | CA9: XXXX | CB9: XXXX | CC9: XXXX | CD9: XXXX | CE9: XXXX | CF9: XXXX | CG9: XXXX | CH9: XXXX | CI9: XXXX
B10: JUN | C10: XXXX | D10: XXXX | E10: XXXX | F10: XXXX | G10: XXXX | H10: XXXX | I10: XXXX | J10: XXXX | K10: XXXX | L10: XXXX | M10: XXXX | N10: XXXX | O10: XXXX | P10: XXXX | Q10: XXXX | R10: XXXX | S10: XXXX | T10: XXXX | U10: XXXX | V10: XXXX | W10: XXXX | X10: XXXX | Y10: XXXX | Z10: XXXX | AA10: XXXX | AB10: XXXX | AC10: XXXX | AD10: XXXX | AE10: XXXX | AF10: XXXX | AG10: XXXX | AH10: XXXX | AI10: XXXX | AJ10: XXXX | AK10: XXXX | AL10: XXXX | AM10: XXXX | AN10: XXXX | AO10: XXXX | AP10: XXXX | AQ10: XXXX | AR10: XXXX | AS10: XXXX | AT10: XXXX | AU10: XXXX | AV10: XXXX | AW10: XXXX | AX10: XXXX | AY10: XXXX | AZ10: XXXX | BA10: XXXX | BB10: XXXX | BC10: XXXX | BD10: XXXX | BE10: XXXX | BF10: XXXX | BG10: XXXX | BH10: XXXX | BI10: XXXX | BJ10: XXXX | BK10: XXXX | BL10: XXXX | BM10: XXXX | BN10: XXXX | BO10: XXXX | BP10: XXXX | BQ10: XXXX | BR10: XXXX | BS10: XXXX | BT10: XXXX | BU10: XXXX | BV10: XXXX | BW10: XXXX | BX10: XXXX | BY10: XXXX | BZ10: XXXX | CA10: XXXX | CB10: XXXX | CC10: XXXX | CD10: XXXX | CE10: XXXX | CF10: XXXX | CG10: XXXX | CH10: XXXX | CI10: XXXX
B11: JUL | C11: XXXX | D11: XXXX | E11: XXXX | F11: XXXX | G11: XXXX | H11: XXXX | I11: XXXX | J11: XXXX | K11: XXXX | L11: XXXX | M11: XXXX | N11: XXXX | O11: XXXX | P11: XXXX | Q11: XXXX | R11: XXXX | S11: XXXX | T11: XXXX | U11: XXXX | V11: XXXX | W11: XXXX | X11: XXXX | Y11: XXXX | Z11: XXXX | AA11: XXXX | AB11: XXXX | AC11: XXXX | AD11: XXXX | AE11: XXXX | AF11: XXXX | AG11: XXXX | AH11: XXXX | AI11: XXXX | AJ11: XXXX | AK11: XXXX | AL11: XXXX | AM11: XXXX | AN11: XXXX | AO11: XXXX | AP11: XXXX | AQ11: XXXX | AR11: XXXX | AS11: XXXX | AT11: XXXX | AU11: XXXX | AV11: XXXX | AW11: XXXX | AX11: XXXX | AY11: XXXX | AZ11: XXXX | BA11: XXXX | BB11: XXXX | BC11: XXXX | BD11: XXXX | BE11: XXXX | BF11: XXXX | BG11: XXXX | BH11: XXXX | BI11: XXXX | BJ11: XXXX | BK11: XXXX | BL11: XXXX | BM11: XXXX | BN11: XXXX | BO11: XXXX | BP11: XXXX | BQ11: XXXX | BR11: XXXX | BS11: XXXX | BT11: XXXX | BU11: XXXX | BV11: XXXX | BW11: XXXX | BX11: XXXX | BY11: XXXX | BZ11: XXXX | CA11: XXXX | CB11: XXXX | CC11: XXXX | CD11: XXXX | CE11: XXXX | CF11: XXXX | CG11: XXXX | CH11: XXXX | CI11: XXXX
B12: AUG | C12: XXXX | D12: XXXX | E12: XXXX | F12: XXXX | G12: XXXX | H12: XXXX | I12: XXXX | J12: XXXX | K12: XXXX | L12: XXXX | M12: XXXX | N12: XXXX | O12: XXXX | P12: XXXX | Q12: XXXX | R12: XXXX | S12: XXXX | T12: XXXX | U12: XXXX | V12: XXXX | W12: XXXX | X12: XXXX | Y12: XXXX | Z12: XXXX | AA12: XXXX | AB12: XXXX | AC12: XXXX | AD12: XXXX | AE12: XXXX | AF12: XXXX | AG12: XXXX | AH12: XXXX | AI12: XXXX | AJ12: XXXX | AK12: XXXX | AL12: XXXX | AM12: XXXX | AN12: XXXX | AO12: XXXX | AP12: XXXX | AQ12: XXXX | AR12: XXXX | AS12: XXXX | AT12: XXXX | AU12: XXXX | AV12: XXXX | AW12: XXXX | AX12: XXXX | AY12: XXXX | AZ12: XXXX | BA12: XXXX | BB12: XXXX | BC12: XXXX | BD12: XXXX | BE12: XXXX | BF12: XXXX | BG12: XXXX | BH12: XXXX | BI12: XXXX | BJ12: XXXX | BK12: XXXX | BL12: XXXX | BM12: XXXX | BN12: XXXX | BO12: XXXX | BP12: XXXX | BQ12: XXXX | BR12: XXXX | BS12: XXXX | BT12: XXXX | BU12: XXXX | BV12: XXXX | BW12: XXXX | BX12: XXXX | BY12: XXXX | BZ12: XXXX | CA12: XXXX | CB12: XXXX | CC12: XXXX | CD12: XXXX | CE12: XXXX | CF12: XXXX | CG12: XXXX | CH12: XXXX | CI12: XXXX
B13: SEP | C13: XXXX | D13: XXXX | E13: XXXX | F13: XXXX | G13: XXXX | H13: XXXX | I13: XXXX | J13: XXXX | K13: XXXX | L13: XXXX | M13: XXXX | N13: XXXX | O13: XXXX | P13: XXXX | Q13: XXXX | R13: XXXX | S13: XXXX | T13: XXXX | U13: XXXX | V13: XXXX | W13: XXXX | X13: XXXX | Y13: XXXX | Z13: XXXX | AA13: XXXX | AB13: XXXX | AC13: XXXX | AD13: XXXX | AE13: XXXX | AF13: XXXX | AG13: XXXX | AH13: XXXX | AI13: XXXX | AJ13: XXXX | AK13: XXXX | AL13: XXXX | AM13: XXXX | AN13: XXXX | AO13: XXXX | AP13: XXXX | AQ13: XXXX | AR13: XXXX | AS13: XXXX | AT13: XXXX | AU13: XXXX | AV13: XXXX | AW13: XXXX | AX13: XXXX | AY13: XXXX | AZ13: XXXX | BA13: XXXX | BB13: XXXX | BC13: XXXX | BD13: XXXX | BE13: XXXX | BF13: XXXX | BG13: XXXX | BH13: XXXX | BI13: XXXX | BJ13: XXXX | BK13: XXXX | BL13: XXXX | BM13: XXXX | BN13: XXXX | BO13: XXXX | BP13: XXXX | BQ13: XXXX | BR13: XXXX | BS13: XXXX | BT13: XXXX | BU13: XXXX | BV13: XXXX | BW13: XXXX | BX13: XXXX | BY13: XXXX | BZ13: XXXX | CA13: XXXX | CB13: XXXX | CC13: XXXX | CD13: XXXX | CE13: XXXX | CF13: XXXX | CG13: XXXX | CH13: XXXX | CI13: XXXX
B14: OCT | C14: XXXX | D14: XXXX | E14: XXXX | F14: XXXX | G14: XXXX | H14: XXXX | I14: XXXX | J14: XXXX | K14: XXXX | L14: XXXX | M14: XXXX | N14: XXXX | O14: XXXX | P14: XXXX | Q14: XXXX | R14: XXXX | S14: XXXX | T14: XXXX | U14: XXXX | V14: XXXX | W14: XXXX | X14: XXXX | Y14: XXXX | Z14: XXXX | AA14: XXXX | AB14: XXXX | AC14: XXXX | AD14: XXXX | AE14: XXXX | AF14: XXXX | AG14: XXXX | AH14: XXXX | AI14: XXXX | AJ14: XXXX | AK14: XXXX | AL14: XXXX | AM14: XXXX | AN14: XXXX | AO14: XXXX | AP14: XXXX | AQ14: XXXX | AR14: XXXX | AS14: XXXX | AT14: XXXX | AU14: XXXX | AV14: XXXX | AW14: XXXX | AX14: XXXX | AY14: XXXX | AZ14: XXXX | BA14: XXXX | BB14: XXXX | BC14: XXXX | BD14: XXXX | BE14: XXXX | BF14: XXXX | BG14: XXXX | BH14: XXXX | BI14: XXXX | BJ14: XXXX | BK14: XXXX | BL14: XXXX | BM14: XXXX | BN14: XXXX | BO14: XXXX | BP14: XXXX | BQ14: XXXX | BR14: XXXX | BS14: XXXX | BT14: XXXX | BU14: XXXX | BV14: XXXX | BW14: XXXX | BX14: XXXX | BY14: XXXX | BZ14: XXXX | CA14: XXXX | CB14: XXXX | CC14: XXXX | CD14: XXXX | CE14: XXXX | CF14: XXXX | CG14: XXXX | CH14: XXXX | CI14: XXXX
